Workbook

Sheet Begin (hidden)

Sheet Gulf Premium Surge
C6: =IF(SUMIF($A$1385:$A$1424,"Actual Period?",C$1385:C$1424)=1,"Actual","Forecast") -> Actual | D6: Actual | E6: Actual | F6: Actual | G6: Actual | H6: Actual | I6: Actual | J6: Actual | K6: Actual | L6: Actual | M6: Actual | N6: Actual | O6: Actual | P6: Actual | Q6: Actual | R6: Actual | S6: Actual | T6: Actual | U6: Actual | V6: Actual | W6: Actual | X6: Actual | Y6: Actual | Z6: Actual | AA6: Actual | AB6: Actual | AC6: Actual | AD6: Actual | AE6: Actual | AF6: Actual | AG6: Actual | AH6: Actual | AI6: =IF(SUMIF($A$1385:$A$1424,"Actual Period?",AI$1385:AI$1424)=1,"Actual","Forecast") -> Actual | AJ6: Actual | AK6: Actual | AL6: Actual | AM6: Actual | AN6: Actual | AO6: Actual | AP6: Actual | AQ6: Actual | AR6: Actual | AS6: Actual | AT6: Actual | AU6: Actual | AV6: Actual | AW6: Actual | AX6: Actual | AY6: Actual | AZ6: Actual | BA6: Actual | BB6: Actual | BC6: Actual | BD6: Actual | BE6: Actual | BF6: Actual | BG6: Actual | BH6: Actual | BI6: Actual | BJ6: Actual | BK6: Actual | BL6: Actual | BM6: Actual | BN6: Actual | BO6: =IF(SUMIF($A$1385:$A$1424,"Actual Period?",BO$1385:BO$1424)=1,"Actual","Forecast") -> Actual | BP6: Actual | BQ6: Actual | BR6: Forecast | BS6: Forecast | BT6: Forecast | BU6: Forecast | BV6: Forecast | BW6: Forecast | CG6: =IF(SUMIF($A$1385:$A$1424,"Actual Period?",CG$1385:CG$1424)=1,"Actual","Forecast") -> Forecast | CH6: =IF(SUMIF($A$1385:$A$1424,"Actual Period?",CH$1385:CH$1424)=1,"Actual","Forecast") -> Forecast | CI6: =IF(SUMIF($A$1385:$A$1424,"Actual Period?",CI$1385:CI$1424)=1,"Actual","Forecast") -> Forecast | CJ6: =IF(SUMIF($A$1385:$A$1424,"Actual Period?",CJ$1385:CJ$1424)=1,"Actual","Forecast") -> Forecast | CK6: =IF(SUMIF($A$1385:$A$1424,"Actual Period?",CK$1385:CK$1424)=1,"Actual","Forecast") -> Forecast
C7: =Labels!C7 -> 2004-12-31 | D7: =Labels!D7 -> 2005-01-31 | E7: =Labels!E7 -> 2005-02-28 | F7: =Labels!F7 -> 2005-03-31 | G7: =Labels!G7 -> 2005-04-30 | H7: =Labels!H7 -> 2005-05-31 | I7: =Labels!I7 -> 2005-06-30 | J7: =Labels!J7 -> 2005-07-31 | K7: =Labels!K7 -> 2005-08-31 | L7: =Labels!L7 -> 2005-09-30 | M7: =Labels!M7 -> 2005-10-31 | N7: =Labels!N7 -> 2005-11-30 | O7: =Labels!O7 -> 2005-12-31 | P7: =Labels!P7 -> 2006-01-31 | Q7: =Labels!Q7 -> 2006-02-28 | R7: =Labels!R7 -> 2006-03-31 | S7: =Labels!S7 -> 2006-04-30 | T7: =Labels!T7 -> 2006-05-31 | U7: =Labels!U7 -> 2006-06-30 | V7: =Labels!V7 -> 2006-07-31 | W7: =Labels!W7 -> 2006-08-31 | X7: =Labels!X7 -> 2006-09-30 | Y7: =Labels!Y7 -> 2006-10-31 | Z7: =Labels!Z7 -> 2006-11-30 | AA7: =Labels!AA7 -> 2006-12-31 | AB7: =Labels!AB7 -> 2007-01-31 | AC7: =Labels!AC7 -> 2007-02-28 | AD7: =Labels!AD7 -> 2007-03-31 | AE7: =Labels!AE7 -> 2007-04-30 | AF7: =Labels!AF7 -> 2007-05-31 | AG7: =Labels!AG7 -> 2007-06-30 | AH7: =Labels!AH7 -> 2007-07-31 | AI7: =Labels!AI7 -> 2007-08-31 | AJ7: =Labels!AJ7 -> 2007-09-30 | AK7: =Labels!AK7 -> 2007-10-31 | AL7: =Labels!AL7 -> 2007-11-30 | AM7: =Labels!AM7 -> 2007-12-31 | AN7: =Labels!AN7 -> 2008-01-31 | AO7: =Labels!AO7 -> 2008-02-29 | AP7: =Labels!AP7 -> 2008-03-31 | AQ7: =Labels!AQ7 -> 2008-04-30 | AR7: =Labels!AR7 -> 2008-05-31 | AS7: =Labels!AS7 -> 2008-06-30 | AT7: =Labels!AT7 -> 2008-07-31 | AU7: =Labels!AU7 -> 2008-08-31 | AV7: =Labels!AV7 -> 2008-09-30 | AW7: =Labels!AW7 -> 2008-10-31 | AX7: =Labels!AX7 -> 2008-11-30 | AY7: =Labels!AY7 -> 2008-12-31 | AZ7: =Labels!AZ7 -> 2009-01-31 | BA7: =Labels!BA7 -> 2009-02-28 | BB7: =Labels!BB7 -> 2009-03-31 | BC7: =Labels!BC7 -> 2009-04-30 | BD7: =Labels!BD7 -> 2009-05-31 | BE7: =Labels!BE7 -> 2009-06-30 | BF7: =Labels!BF7 -> 2009-07-31 | BG7: =Labels!BG7 -> 2009-08-31 | BH7: =Labels!BH7 -> 2009-09-30 | BI7: =Labels!BI7 -> 2009-10-31 | BJ7: =Labels!BJ7 -> 2009-11-30 | BK7: =Labels!BK7 -> 2009-12-31 | BL7: =Labels!BL7 -> 2010-01-31 | BM7: =Labels!BM7 -> 2010-02-28 | BN7: =Labels!BN7 -> 2010-03-31 | BO7: =Labels!BO7 -> 2010-04-30 | BP7: =Labels!BP7 -> 2010-05-31 | BQ7: =Labels!BQ7 -> 2010-06-30 | BR7: =Labels!BR7 -> 2010-07-31 | BS7: =Labels!BS7 -> 2010-08-31 | BT7: =Labels!BT7 -> 2010-09-30 | BU7: =Labels!BU7 -> 2010-10-31 | BV7: =Labels!BV7 -> 2010-11-30 | BW7: =Labels!BW7 -> 2010-12-31 | BZ7: =Labels!BZ7 -> 2004-12-31 | CA7: =Labels!CA7 -> 2005-12-31 | CB7: =Labels!CB7 -> 2006-12-31 | CC7: =Labels!CC7 -> 2007-12-31 | CD7: =Labels!CD7 -> 2008-12-31 | CE7: =Labels!CE7 -> 2009-12-31 | CF7: =Labels!CF7 -> 2010-12-31 | CG7: =Labels!CG7 -> 2011-12-31 | CH7: =Labels!CH7 -> 2012-12-31 | CI7: =Labels!CI7 -> 2013-12-31 | CJ7: =Labels!CJ7 -> 2014-12-31 | CK7: =Labels!CK7 -> 2015-12-31
B8: =IF(ABS(SUM(BZ245:CK245))>10,"OUT OF BALANCE", "IN BALANCE") -> IN BALANCE | C8: =Labels!C8 -> DEC | D8: =Labels!D8 -> JAN | E8: =Labels!E8 -> FEB | F8: =Labels!F8 -> MAR | G8: =Labels!G8 -> APR | H8: =Labels!H8 -> MAY | I8: =Labels!I8 -> JUN | J8: =Labels!J8 -> JUL | K8: =Labels!K8 -> AUG | L8: =Labels!L8 -> SEP | M8: =Labels!M8 -> OCT | N8: =Labels!N8 -> NOV | O8: =Labels!O8 -> DEC | P8: =Labels!P8 -> JAN | Q8: =Labels!Q8 -> FEB | R8: =Labels!R8 -> MAR | S8: =Labels!S8 -> APR | T8: =Labels!T8 -> MAY | U8: =Labels!U8 -> JUN | V8: =Labels!V8 -> JUL | W8: =Labels!W8 -> AUG | X8: =Labels!X8 -> SEP | Y8: =Labels!Y8 -> OCT | Z8: =Labels!Z8 -> NOV | AA8: =Labels!AA8 -> DEC | AB8: =Labels!AB8 -> JAN | AC8: =Labels!AC8 -> FEB | AD8: =Labels!AD8 -> MAR | AE8: =Labels!AE8 -> APR | AF8: =Labels!AF8 -> MAY | AG8: =Labels!AG8 -> JUN | AH8: =Labels!AH8 -> JUL | AI8: =Labels!AI8 -> AUG | AJ8: =Labels!AJ8 -> SEP | AK8: =Labels!AK8 -> OCT | AL8: =Labels!AL8 -> NOV | AM8: =Labels!AM8 -> DEC | AN8: =Labels!AN8 -> JAN | AO8: =Labels!AO8 -> FEB | AP8: =Labels!AP8 -> MAR | AQ8: =Labels!AQ8 -> APR | AR8: =Labels!AR8 -> MAY | AS8: =Labels!AS8 -> JUN | AT8: =Labels!AT8 -> JUL | AU8: =Labels!AU8 -> AUG | AV8: =Labels!AV8 -> SEP | AW8: =Labels!AW8 -> OCT | AX8: =Labels!AX8 -> NOV | AY8: =Labels!AY8 -> DEC | AZ8: =Labels!AZ8 -> JAN | BA8: =Labels!BA8 -> FEB | BB8: =Labels!BB8 -> MAR | BC8: =Labels!BC8 -> APR | BD8: =Labels!BD8 -> MAY | BE8: =Labels!BE8 -> JUN | BF8: =Labels!BF8 -> JUL | BG8: =Labels!BG8 -> AUG | BH8: =Labels!BH8 -> SEP | BI8: =Labels!BI8 -> OCT | BJ8: =Labels!BJ8 -> NOV | BK8: =Labels!BK8 -> DEC | BL8: =Labels!BL8 -> JAN | BM8: =Labels!BM8 -> FEB | BN8: =Labels!BN8 -> MAR | BO8: =Labels!BO8 -> APR | BP8: =Labels!BP8 -> MAY | BQ8: =Labels!BQ8 -> JUN | BR8: =Labels!BR8 -> JUL | BS8: =Labels!BS8 -> AUG | BT8: =Labels!BT8 -> SEP | BU8: =Labels!BU8 -> OCT | BV8: =Labels!BV8 -> NOV | BW8: =Labels!BW8 -> DEC | BZ8: =Labels!BZ8 -> TOTAL | CA8: =Labels!CA8 -> TOTAL | CB8: =Labels!CB8 -> TOTAL | CC8: =Labels!CC8 -> TOTAL | CD8: =Labels!CD8 -> TOTAL | CE8: =Labels!CE8 -> TOTAL | CF8: =Labels!CF8 -> TOTAL | CG8: =Labels!CG8 -> TOTAL | CH8: =Labels!CH8 -> TOTAL | CI8: =Labels!CI8 -> TOTAL | CJ8: =Labels!CJ8 -> TOTAL | CK8: =Labels!CK8 -> TOTAL
B9: =Labels!B9 -> NPS REPORTING SECTION
B10: =Labels!B10 -> Beginning of Reporting Section
B12: =Labels!B12 -> SUMMARY
A14: =B14 -> Return on Average Common Equity | B14: =Labels!B14 -> Return on Average Common Equity | D14: =IF(ISERROR(D139/D195),0,D139/D195) -> 0.01188504189 | E14: =IF(ISERROR(E139/(SUM(D195:E195)/2)),0,E139/(SUM(D195:E195)/2)) -> 0.01660297504 | F14: =IF(ISERROR(F139/(SUM(D195:F195)/3)),0,F139/(SUM(D195:F195)/3)) -> 0.01221965012 | G14: =IF(ISERROR(G139/(SUM(D195:G195)/4)),0,G139/(SUM(D195:G195)/4)) -> 0.01268396211 | H14: =IF(ISERROR(H139/(SUM(D195:H195)/5)),0,H139/(SUM(D195:H195)/5)) -> 0.01117977357 | I14: =IF(ISERROR(I139/(SUM(D195:I195)/6)),0,I139/(SUM(D195:I195)/6)) -> 0.003414346353 | J14: =IF(ISERROR(J139/(SUM(D195:J195)/7)),0,J139/(SUM(D195:J195)/7)) -> 0.01177573021 | K14: =IF(ISERROR(K139/(SUM(D195:K195)/8)),0,K139/(SUM(D195:K195)/8)) -> 0.01313987988 | L14: =IF(ISERROR(L139/(SUM(D195:L195)/9)),0,L139/(SUM(D195:L195)/9)) -> 0.007617328676 | M14: =IF(ISERROR(M139/(SUM(D195:M195)/10)),0,M139/(SUM(D195:M195)/10)) -> 0.008304731196 | N14: =IF(ISERROR(N139/(SUM(D195:N195)/11)),0,N139/(SUM(D195:N195)/11)) -> 0.01609227218 | O14: =IF(ISERROR(O139/(SUM(D195:O195)/12)),0,O139/(SUM(D195:O195)/12)) -> 0.01615779943 | P14: =IF(ISERROR(P139/((P195+D195)/2)),0,P139/((P195+D195)/2)) -> 0.0150637966 | Q14: 0.01738566892 | R14: 0.01378972398 | S14: 0.01498385626 | T14: 0.01017939764 | U14: 0.01402488561 | V14: 0.01338532988 | W14: 0.01296990731 | X14: 0.01432740319 | Y14: 0.0157356197 | Z14: 0.01846693613 | AA14: 0.01551099628 | AB14: 0.01652641658 | AC14: 0.01596045918 | AD14: 0.01542272485 | AE14: 0.0154896648 | AF14: 0.01587826633 | AG14: 0.01400878031 | AH14: 0.01373818899 | AI14: 0.01444486814 | AJ14: 0.0162323436 | AK14: 0.01405578783 | AL14: 0.01611649586 | AM14: 0.01706858956 | AN14: 0.01740289418 | AO14: 0.01667747941 | AP14: 0.01691204943 | AQ14: 0.01678828486 | AR14: 0.01515467166 | AS14: 0.01316316737 | AT14: 0.01493386933 | AU14: 0.01514679112 | AV14: =IF(ISERROR(AV139/((AV195+AJ195)/2)),0,AV139/((AV195+AJ195)/2)) -> 0.01722741293 | AW14: 0.01680989198 | AX14: 0.01738375419 | AY14: 0.01898192366 | AZ14: 0.01748624061 | BA14: 0.01969739447 | BB14: 0.01891678534 | BC14: 0.01774972879 | BD14: 0.01906817242 | BE14: 0.01981241513 | BF14: 0.01153267573 | BG14: 0.01791328995 | BH14: 0.01689129674 | BI14: 0.01711942768 | BJ14: 0.01993078006 | BK14: 0.0186653518 | BL14: 0.01867557464 | BM14: 0.01800390423 | BN14: 0.01822170236 | BO14: 0.01855854068 | BP14: 0.01913485186 | BQ14: 0.01890200013 | BR14: 0.01665440761 | BS14: 0.01626862832 | BT14: 0.01737008274 | BU14: 0.01856578469 | BV14: 0.01936066983 | BW14: 0.01887344092 | CA14: =IF(ISERROR(CA139/((CA195+BZ195)/2)),0,CA139/((CA195+BZ195)/2)) -> 0.1343043152 | CB14: 0.164033932 | CC14: 0.1765415258 | CD14: 0.1932464394 | CE14: 0.2152193356 | CF14: 0.2206265915 | CG14: 0.2111062929 | CH14: 0.2263924313 | CI14: 0.2894338165 | CJ14: 0.316201881 | CK14: 0.3366656715
A15: Base Case Return on Equity % | B15: =Labels!B15 -> Base Case Return on Equity % | D15: =IF(D$6="Actual",SUMIF($A$1385:$A$1424,$B15,D$1385:D$1424)*D$351,SUMIF($A$542:$A$1382,$B15,D$542:D$1382)*D$351) -> 0 | E15: 0 | F15: 0 | G15: 0 | H15: 0 | I15: 0 | J15: 0 | K15: 0 | L15: 0 | M15: 0 | N15: 0 | O15: 0 | P15: 0 | Q15: 0 | R15: 0 | S15: 0 | T15: 0 | U15: 0 | V15: 0 | W15: 0 | X15: 0 | Y15: 0 | Z15: 0 | AA15: 0 | AB15: 0 | AC15: 0 | AD15: 0 | AE15: 0 | AF15: 0 | AG15: 0 | AH15: 0 | AI15: 0 | AJ15: =IF(AJ$6="Actual",SUMIF($A$1385:$A$1424,$B15,AJ$1385:AJ$1424)*AJ$351,SUMIF($A$542:$A$1382,$B15,AJ$542:AJ$1382)*AJ$351) -> 0 | AK15: 0 | AL15: 0 | AM15: 0 | AN15: 0 | AO15: 0 | AP15: 0 | AQ15: 0 | AR15: 0 | AS15: 0 | AT15: 0 | AU15: 0 | AV15: 0 | AW15: 0 | AX15: 0 | AY15: 0 | AZ15: 0 | BA15: 0 | BB15: 0 | BC15: 0 | BD15: 0 | BE15: 0 | BF15: 0 | BG15: 0 | BH15: 0 | BI15: 0 | BJ15: 0 | BK15: 0 | BL15: 0 | BM15: 0 | BN15: 0 | BO15: 0 | BP15: =IF(BP$6="Actual",SUMIF($A$1385:$A$1424,$B15,BP$1385:BP$1424)*BP$351,SUMIF($A$542:$A$1382,$B15,BP$542:BP$1382)*BP$351) -> 0 | BQ15: 0 | BR15: 0 | BS15: 0 | BT15: 0 | BU15: 0 | BV15: 0 | BW15: 0 | CA15: =IF(CA$6="Actual",SUMIF($A$1385:$A$1424,$B15,CA$1385:CA$1424)*CA$351,SUMIF($A$542:$A$1382,$B15,CA$542:CA$1382)*CA$351) -> 0 | CB15: 0 | CC15: 0 | CD15: 0 | CE15: 0 | CF15: 0 | CG15: 0 | CH15: 0 | CI15: 0 | CJ15: 0 | CK15: 0
A16: End of Period Return on Equity % | B16: =Labels!B16 -> End of Period Return on Equity % | O16: =IF(ISERROR(SUM(D139:O139)/O195),0,(SUM(D139:O139)/O195)) -> 0.1252856528 | P16: 0.129858712 | Q16: 0.1316658068 | R16: 0.1344865546 | S16: 0.1341326542 | T16: 0.1357960075 | U16: 0.144684905 | V16: 0.1488229329 | W16: 0.1433331192 | X16: 0.1482235331 | Y16: 0.1521867199 | Z16: 0.1556810347 | AA16: 0.1563823708 | AB16: 0.1606308526 | AC16: 0.1619359482 | AD16: 0.1664900559 | AE16: 0.1687978837 | AF16: 0.1722459293 | AG16: 0.1728990897 | AH16: 0.1742091636 | AI16: 0.172006111 | AJ16: 0.1746883475 | AK16: 0.1702336843 | AL16: 0.1695616621 | AM16: 0.1733294768 | AN16: 0.1772802284 | AO16: 0.1806382953 | AP16: 0.1847789245 | AQ16: 0.1886175876 | AR16: 0.18647288 | AS16: 0.1865441048 | AT16: 0.1871429523 | AU16: =IF(ISERROR(SUM(AJ139:AU139)/AU195),0,(SUM(AJ139:AU139)/AU195)) -> 0.1825880566 | AV16: 0.181804128 | AW16: 0.1856460917 | AX16: 0.1895236527 | AY16: 0.1939033173 | AZ16: 0.1964448453 | BA16: 0.2020368494 | BB16: 0.2068612239 | BC16: 0.2100780717 | BD16: 0.2159280772 | BE16: 0.2196184434 | BF16: 0.2168006034 | BG16: 0.2163214415 | BH16: 0.2136209559 | BI16: 0.2138003079 | BJ16: 0.2183351779 | BK16: 0.220151716 | BL16: 0.223992117 | BM16: 0.2248568856 | BN16: 0.2261311553 | BO16: 0.2295364081 | BP16: 0.2323776886 | BQ16: 0.2298943841 | BR16: 0.232839429 | BS16: 0.2340729323 | BT16: 0.2377561948 | BU16: 0.23655489 | BV16: 0.2408435038 | BW16: 0.2290354932 | CA16: =IF(ISERROR(CA139/CA195),0,(CA139/CA195)) -> 0.1252856528 | CB16: 0.1563823708 | CC16: 0.1733294768 | CD16: 0.1939033173 | CE16: 0.220151716 | CF16: 0.2290354932 | CG16: 0.2188213462 | CH16: 0.2364879837 | CI16: 0.2956964744 | CJ16: 0.3226502032 | CK16: 0.3408541724
A17: EBITDA | B17: =Labels!B17 -> EBITDA | D17: =D109+D91 -> 41.61805 | E17: 52.45219 | F17: 41.89679 | G17: 44.77814 | H17: 40.44931 | I17: 22.5432 | J17: 42.96826 | K17: 46.42897 | L17: 34.34419 | M17: 36.58578 | N17: 56.28466 | O17: 56.60414 | P17: 54.56963 | Q17: 60.31581 | R17: 52.06225 | S17: 56.05767 | T17: 43.17075 | U17: 53.31525 | V17: 52.00539 | W17: 52.50182 | X17: 58.22959 | Y17: 63.87443 | Z17: 72.02296 | AA17: 63.55021 | AB17: 66.51158 | AC17: 64.8461 | AD17: 64.87246 | AE17: 64.52618 | AF17: 64.67407 | AG17: 58.77438 | AH17: 59.40594 | AI17: 64.31995 | AJ17: =AJ109+AJ91 -> 69.25257 | AK17: 64.61942 | AL17: 71.08592 | AM17: 73.67099 | AN17: 74.01595 | AO17: 72.85988 | AP17: 71.97939 | AQ17: 71.42211 | AR17: 67.61527 | AS17: 62.02328 | AT17: 67.79186 | AU17: 68.63905 | AV17: 78.5388 | AW17: 78.28399 | AX17: 79.05556 | AY17: 82.61913 | AZ17: 76.85523 | BA17: 80.90283 | BB17: 80.58074 | BC17: 76.27042 | BD17: 77.84478 | BE17: 80.56537 | BF17: 65.70132 | BG17: 78.82379 | BH17: 78.62372 | BI17: 78.60556 | BJ17: 86.8805 | BK17: 83.37966 | BL17: 81.70277 | BM17: 79.56004 | BN17: 78.79181 | BO17: 79.34308 | BP17: =BP109+BP91 -> 81.03036 | BQ17: 82.46079 | BR17: 75.69865235 | BS17: 74.68091693 | BT17: 77.74917353 | BU17: 81.74187449 | BV17: 82.9979682 | BW17: 82.47142556 | CA17: =CA109+CA91 -> 516.95368 | CB17: 681.67576 | CC17: 786.55956 | CD17: 874.84427 | CE17: 945.03392 | CF17: 958.2288611 | CG17: 918.4381269 | CH17: 934.3689316 | CI17: 943.4050102 | CJ17: 953.9314684 | CK17: 956.8141469
A18: EBIT | B18: =Labels!B18 -> EBIT | D18: =D109 -> 27.99222 | E18: 38.86973 | F18: 28.39195 | G18: 30.58646 | H18: 26.18923 | I18: 8.09573 | J18: 28.25445 | K18: 31.36002 | L18: 19.05345 | M18: 20.16721 | N18: 39.74266 | O18: 40.00168 | P18: 37.9226 | Q18: 43.53511 | R18: 35.20396 | S18: 38.67953 | T18: 25.83575 | U18: 35.6888 | V18: 34.40177 | W18: 34.10898 | X18: 39.45924 | Y18: 44.50843 | Z18: 52.41596 | AA18: 43.73121 | AB18: 46.64538 | AC18: 44.89015 | AD18: 43.76112 | AE18: 44.42995 | AF18: 44.14449 | AG18: 38.02098 | AH18: 38.46414 | AI18: 42.77079 | AJ18: =AJ109 -> 47.36817 | AK18: 42.19668 | AL18: 48.51661 | AM18: 51.03069 | AN18: 51.37495 | AO18: 50.18256 | AP18: 49.26868 | AQ18: 48.68511 | AR18: 44.50588 | AS18: 38.74503 | AT18: 44.20758 | AU18: 44.38554 | AV18: 53.84557 | AW18: 53.43107 | AX18: 54.13737 | AY18: 57.67889 | AZ18: 51.88536 | BA18: 55.91169 | BB18: 55.58139 | BC18: 51.21935 | BD18: 52.72593 | BE18: 55.02585 | BF18: 39.99599 | BG18: 52.68049 | BH18: 52.10116 | BI18: 51.87419 | BJ18: 60.09316 | BK18: 56.55089 | BL18: 54.85953 | BM18: 52.70122 | BN18: 51.87357 | BO18: 52.39887 | BP18: =BP109 -> 54.08613 | BQ18: 55.25003 | BR18: 47.54453696 | BS18: 46.38890733 | BT18: 49.33020117 | BU18: 52.83200137 | BV18: 54.05016144 | BW18: 53.51557626 | CA18: =CA109 -> 338.70479 | CB18: 465.49134 | CC18: 532.23915 | CD18: 590.44823 | CE18: 635.64545 | CF18: 624.8307345 | CG18: 556.9767388 | CH18: 552.6552225 | CI18: 662.3574857 | CJ18: 694.411266 | CK18: 715.7798282
A19: Net Income (NI) | B19: =Labels!B19 -> Net Income (NI) | D19: =D139 -> 17.19395568 | E19: 23.86337003 | F19: 17.52117261 | G19: 18.38144341 | H19: 16.29092862 | I19: 4.998076835 | J19: 17.32294734 | K19: 19.44617048 | L19: 11.33524811 | M19: 12.51108297 | N19: 24.48295124 | O19: 24.77080082 | P19: 23.32279055 | Q19: 26.74795821 | R19: 21.15705549 | S19: 23.83751912 | T19: 16.04919185 | U19: 22.2896277 | V19: 21.2524392 | W19: 21.26643459 | X19: 23.76343516 | Y19: 27.44542854 | Z19: 32.27947852 | AA19: 27.09163135 | AB19: 28.64517414 | AC19: 27.58262056 | AD19: 26.45944914 | AE19: 26.8726227 | AF19: 27.61850903 | AG19: 24.53050111 | AH19: 23.92836235 | AI19: 26.08117976 | AJ19: =AJ139 -> 29.55966436 | AK19: 26.25935539 | AL19: 30.14415082 | AM19: 31.86123607 | AN19: 32.15556886 | AO19: 30.58339172 | AP19: 30.70668312 | AQ19: 30.26380739 | AR19: 27.72034482 | AS19: 24.0978467 | AT19: 27.44839918 | AU19: 28.68678239 | AV19: 32.89438334 | AW19: 32.39176135 | AX19: 33.25298946 | AY19: 35.9675539 | AZ19: 32.74896776 | BA19: 36.48868666 | BB19: 34.63863772 | BC19: 32.16131267 | BD19: 34.59335093 | BE19: 36.16062849 | BF19: 21.08986818 | BG19: 33.53669369 | BH19: 32.00834755 | BI19: 32.36528071 | BJ19: 37.2495456 | BK19: 34.47548517 | BL19: 34.06000953 | BM19: 32.40796309 | BN19: 32.40096689 | BO19: 32.60399864 | BP19: =BP139 -> 33.19620959 | BQ19: 33.07300731 | BR19: 29.20423183 | BS19: 28.49438633 | BT19: 30.30107607 | BU19: 32.45205684 | BV19: 33.20031166 | BW19: 32.87194272 | CA19: =CA139 -> 208.1181481 | CB19: 286.5029903 | CC19: 329.5428254 | CD19: 366.1695122 | CE19: 397.5168051 | CF19: 384.2661605 | CG19: 342.1229618 | CH19: 339.4684704 | CI19: 406.8530856 | CJ19: 426.5421201 | CK19: 439.6677595
A20: YTD Net Income | B20: =Labels!B20 -> YTD Net Income | D20: =SUM($D139:D139) -> 17.19395568 | E20: =SUM($D139:E139) -> 41.05732571 | F20: =SUM($D139:F139) -> 58.57849832 | G20: =SUM($D139:G139) -> 76.95994173 | H20: =SUM($D139:H139) -> 93.25087034 | I20: =SUM($D139:I139) -> 98.24894718 | J20: =SUM($D139:J139) -> 115.5718945 | K20: =SUM($D139:K139) -> 135.018065 | L20: =SUM($D139:L139) -> 146.3533131 | M20: =SUM($D139:M139) -> 158.8643961 | N20: =SUM($D139:N139) -> 183.3473473 | O20: =SUM($D139:O139) -> 208.1181481 | P20: =SUM($P139:P139) -> 23.32279055 | Q20: =SUM($P139:Q139) -> 50.07074876 | R20: =SUM($P139:R139) -> 71.22780425 | S20: =SUM($P139:S139) -> 95.06532337 | T20: =SUM($P139:T139) -> 111.1145152 | U20: =SUM($P139:U139) -> 133.4041429 | V20: =SUM($P139:V139) -> 154.6565821 | W20: =SUM($P139:W139) -> 175.9230167 | X20: =SUM($P139:X139) -> 199.6864519 | Y20: =SUM($P139:Y139) -> 227.1318804 | Z20: =SUM($P139:Z139) -> 259.4113589 | AA20: =SUM($P139:AA139) -> 286.5029903 | AB20: =SUM($AB139:AB139) -> 28.64517414 | AC20: =SUM($AB139:AC139) -> 56.2277947 | AD20: =SUM($AB139:AD139) -> 82.68724385 | AE20: =SUM($AB139:AE139) -> 109.5598665 | AF20: =SUM($AB139:AF139) -> 137.1783756 | AG20: =SUM($AB139:AG139) -> 161.7088767 | AH20: =SUM($AB139:AH139) -> 185.637239 | AI20: =SUM($AB139:AI139) -> 211.7184188 | AJ20: =SUM($AB139:AJ139) -> 241.2780832 | AK20: =SUM($AB139:AK139) -> 267.5374386 | AL20: =SUM($AB139:AL139) -> 297.6815894 | AM20: =SUM($AB139:AM139) -> 329.5428254 | AN20: =SUM($AN139:AN139) -> 32.15556886 | AO20: =SUM($AN139:AO139) -> 62.73896058 | AP20: =SUM($AN139:AP139) -> 93.44564369 | AQ20: =SUM($AN139:AQ139) -> 123.7094511 | AR20: =SUM($AN139:AR139) -> 151.4297959 | AS20: =SUM($AN139:AS139) -> 175.5276426 | AT20: =SUM($AN139:AT139) -> 202.9760418 | AU20: =SUM($AN139:AU139) -> 231.6628242 | AV20: =SUM($AN139:AV139) -> 264.5572075 | AW20: =SUM($AN139:AW139) -> 296.9489689 | AX20: =SUM($AN139:AX139) -> 330.2019583 | AY20: =SUM($AN139:AY139) -> 366.1695122 | AZ20: =SUM($AZ139:AZ139) -> 32.74896776 | BA20: =SUM($AZ139:BA139) -> 69.23765443 | BB20: =SUM($AZ139:BB139) -> 103.8762921 | BC20: =SUM($AZ139:BC139) -> 136.0376048 | BD20: =SUM($AZ139:BD139) -> 170.6309557 | BE20: =SUM($AZ139:BE139) -> 206.7915842 | BF20: =SUM($AZ139:BF139) -> 227.8814524 | BG20: =SUM($AZ139:BG139) -> 261.4181461 | BH20: =SUM($AZ139:BH139) -> 293.4264937 | BI20: =SUM($AZ139:BI139) -> 325.7917744 | BJ20: =SUM($AZ139:BJ139) -> 363.04132 | BK20: =SUM($AZ139:BK139) -> 397.5168051 | BL20: =SUM($BL139:BL139) -> 34.06000953 | BM20: =SUM($BL139:BM139) -> 66.46797262 | BN20: =SUM($BL139:BN139) -> 98.86893951 | BO20: =SUM($BL139:BO139) -> 131.4729381 | BP20: =SUM($BL139:BP139) -> 164.6691477 | BQ20: =SUM($BL139:BQ139) -> 197.742155 | BR20: =SUM($BL139:BR139) -> 226.9463869 | BS20: =SUM($BL139:BS139) -> 255.4407732 | BT20: =SUM($BL139:BT139) -> 285.7418493 | BU20: =SUM($BL139:BU139) -> 318.1939061 | BV20: =SUM($BL139:BV139) -> 351.3942178 | BW20: =SUM($BL139:BW139) -> 384.2661605
B22: =Labels!B22 -> Capital Structure:
A23: =B23 -> Debt % | B23: =Labels!B23 -> Debt % | D23: =IF(ISERROR((D211+D221)/(D213+D221)),0,(D211+D221)/(D213+D221)) -> 0 | E23: 0 | F23: 0 | G23: 0 | H23: 0 | I23: 0 | J23: 0 | K23: 0 | L23: 0 | M23: 0 | N23: 0 | O23: 0 | P23: 0 | Q23: 0 | R23: 0 | S23: 0 | T23: 0 | U23: 0 | V23: 0 | W23: 0 | X23: 0 | Y23: 0 | Z23: 0 | AA23: 0 | AB23: 0 | AC23: 0 | AD23: 0 | AE23: 0 | AF23: 0 | AG23: 0 | AH23: 0 | AI23: 0 | AJ23: =IF(ISERROR((AJ211+AJ221)/(AJ213+AJ221)),0,(AJ211+AJ221)/(AJ213+AJ221)) -> 0 | AK23: 0 | AL23: 0 | AM23: 0 | AN23: 0 | AO23: 0 | AP23: 0 | AQ23: 0 | AR23: 0 | AS23: 0 | AT23: 0 | AU23: 0 | AV23: 0 | AW23: 0 | AX23: 0 | AY23: 0 | AZ23: 0 | BA23: 0 | BB23: 0 | BC23: 0 | BD23: 0 | BE23: 0 | BF23: 0 | BG23: 0 | BH23: 0 | BI23: 0 | BJ23: 0 | BK23: 0 | BL23: 0 | BM23: 0 | BN23: 0 | BO23: 0 | BP23: =IF(ISERROR((BP211+BP221)/(BP213+BP221)),0,(BP211+BP221)/(BP213+BP221)) -> 0 | BQ23: 0 | BR23: 0 | BS23: 0 | BT23: 0 | BU23: 0 | BV23: 0 | BW23: 0 | CA23: =IF(ISERROR((CA211+CA221)/(CA213+CA221)),0,(CA211+CA221)/(CA213+CA221)) -> 0 | CB23: 0 | CC23: 0 | CD23: 0 | CE23: 0 | CF23: 0 | CG23: 0 | CH23: 0 | CI23: 0 | CJ23: 0 | CK23: 0
A24: =B24 -> Preferred % | B24: =Labels!B24 -> Preferred % | D24: =IF(ISERROR(D197/(D213+D221)),0,D197/(D213+D221)) -> 0 | E24: 0 | F24: 0 | G24: 0 | H24: 0 | I24: 0 | J24: 0 | K24: 0 | L24: 0 | M24: 0 | N24: 0 | O24: 0 | P24: 0 | Q24: 0 | R24: 0 | S24: 0 | T24: 0 | U24: 0 | V24: 0 | W24: 0 | X24: 0 | Y24: 0 | Z24: 0 | AA24: 0 | AB24: 0 | AC24: 0 | AD24: 0 | AE24: 0 | AF24: 0 | AG24: 0 | AH24: 0 | AI24: 0 | AJ24: =IF(ISERROR(AJ197/(AJ213+AJ221)),0,AJ197/(AJ213+AJ221)) -> 0 | AK24: 0 | AL24: 0 | AM24: 0 | AN24: 0 | AO24: 0 | AP24: 0 | AQ24: 0 | AR24: 0 | AS24: 0 | AT24: 0 | AU24: 0 | AV24: 0 | AW24: 0 | AX24: 0 | AY24: 0 | AZ24: 0 | BA24: 0 | BB24: 0 | BC24: 0 | BD24: 0 | BE24: 0 | BF24: 0 | BG24: 0 | BH24: 0 | BI24: 0 | BJ24: 0 | BK24: 0 | BL24: 0 | BM24: 0 | BN24: 0 | BO24: 0 | BP24: =IF(ISERROR(BP197/(BP213+BP221)),0,BP197/(BP213+BP221)) -> 0 | BQ24: 0 | BR24: 0 | BS24: 0 | BT24: 0 | BU24: 0 | BV24: 0 | BW24: 0 | CA24: =IF(ISERROR(CA197/(CA213+CA221)),0,CA197/(CA213+CA221)) -> 0 | CB24: 0 | CC24: 0 | CD24: 0 | CE24: 0 | CF24: 0 | CG24: 0 | CH24: 0 | CI24: 0 | CJ24: 0 | CK24: 0
A25: =B25 -> Trust Preferred % | B25: =Labels!B25 -> Trust Preferred % | D25: =IF(ISERROR(D198/(D213+D221)),0,D198/(D213+D221)) -> 0 | E25: 0 | F25: 0 | G25: 0 | H25: 0 | I25: 0 | J25: 0 | K25: 0 | L25: 0 | M25: 0 | N25: 0 | O25: 0 | P25: 0 | Q25: 0 | R25: 0 | S25: 0 | T25: 0 | U25: 0 | V25: 0 | W25: 0 | X25: 0 | Y25: 0 | Z25: 0 | AA25: 0 | AB25: 0 | AC25: 0 | AD25: 0 | AE25: 0 | AF25: 0 | AG25: 0 | AH25: 0 | AI25: 0 | AJ25: =IF(ISERROR(AJ198/(AJ213+AJ221)),0,AJ198/(AJ213+AJ221)) -> 0 | AK25: 0 | AL25: 0 | AM25: 0 | AN25: 0 | AO25: 0 | AP25: 0 | AQ25: 0 | AR25: 0 | AS25: 0 | AT25: 0 | AU25: 0 | AV25: 0 | AW25: 0 | AX25: 0 | AY25: 0 | AZ25: 0 | BA25: 0 | BB25: 0 | BC25: 0 | BD25: 0 | BE25: 0 | BF25: 0 | BG25: 0 | BH25: 0 | BI25: 0 | BJ25: 0 | BK25: 0 | BL25: 0 | BM25: 0 | BN25: 0 | BO25: 0 | BP25: =IF(ISERROR(BP198/(BP213+BP221)),0,BP198/(BP213+BP221)) -> 0 | BQ25: 0 | BR25: 0 | BS25: 0 | BT25: 0 | BU25: 0 | BV25: 0 | BW25: 0 | CA25: =IF(ISERROR(CA198/(CA213+CA221)),0,CA198/(CA213+CA221)) -> 0 | CB25: 0 | CC25: 0 | CD25: 0 | CE25: 0 | CF25: 0 | CG25: 0 | CH25: 0 | CI25: 0 | CJ25: 0 | CK25: 0
A26: =B26 -> Equity % | B26: =Labels!B26 -> Equity % | D26: =IF(ISERROR(D195/(D221+D213)),0,D195/(D221+D213)) -> 1 | E26: 1 | F26: 1 | G26: 1 | H26: 1 | I26: 1 | J26: 1 | K26: 1 | L26: 1 | M26: 1 | N26: 1 | O26: 1 | P26: 1 | Q26: 1 | R26: 1 | S26: 1 | T26: 1 | U26: 1 | V26: 1 | W26: 1 | X26: 1 | Y26: 1 | Z26: 1 | AA26: 1 | AB26: 1 | AC26: 1 | AD26: 1 | AE26: 1 | AF26: 1 | AG26: 1 | AH26: 1 | AI26: 1 | AJ26: =IF(ISERROR(AJ195/(AJ221+AJ213)),0,AJ195/(AJ221+AJ213)) -> 1 | AK26: 1 | AL26: 1 | AM26: 1 | AN26: 1 | AO26: 1 | AP26: 1 | AQ26: 1 | AR26: 1 | AS26: 1 | AT26: 1 | AU26: 1 | AV26: 1 | AW26: 1 | AX26: 1 | AY26: 1 | AZ26: 1 | BA26: 1 | BB26: 1 | BC26: 1 | BD26: 1 | BE26: 1 | BF26: 1 | BG26: 1 | BH26: 1 | BI26: 1 | BJ26: 1 | BK26: 1 | BL26: 1 | BM26: 1 | BN26: 1 | BO26: 1 | BP26: =IF(ISERROR(BP195/(BP221+BP213)),0,BP195/(BP221+BP213)) -> 1 | BQ26: 1 | BR26: 1 | BS26: 1 | BT26: 1 | BU26: 1 | BV26: 1 | BW26: 1 | CA26: =IF(ISERROR(CA195/(CA221+CA213)),0,CA195/(CA221+CA213)) -> 1 | CB26: 1 | CC26: 1 | CD26: 1 | CE26: 1 | CF26: 1 | CG26: 1 | CH26: 1 | CI26: 1 | CJ26: 1 | CK26: 1
B28: =Labels!B28 -> Rating Agency Ratios / Other Measures:
A29: =B29 -> RA Debt % | B29: =Labels!B29 -> RA Debt % | D29: =IF(ISERROR((D211+D221+D37)/(D213+D221+D37)),0,(D211+D221+D37)/(D213+D221+D37)) -> 0 | E29: 0 | F29: 0 | G29: 0 | H29: 0 | I29: 0 | J29: 0 | K29: 0 | L29: 0 | M29: 0 | N29: 0 | O29: 0 | P29: 0 | Q29: 0 | R29: 0 | S29: 0 | T29: 0 | U29: 0 | V29: 0 | W29: 0 | X29: 0 | Y29: 0 | Z29: 0 | AA29: 0 | AB29: 0 | AC29: 0 | AD29: 0 | AE29: 0 | AF29: 0 | AG29: 0 | AH29: 0 | AI29: 0 | AJ29: =IF(ISERROR((AJ211+AJ221+AJ37)/(AJ213+AJ221+AJ37)),0,(AJ211+AJ221+AJ37)/(AJ213+AJ221+AJ37)) -> 0 | AK29: 0 | AL29: 0 | AM29: 0 | AN29: 0 | AO29: 0 | AP29: 0 | AQ29: 0 | AR29: 0 | AS29: 0 | AT29: 0 | AU29: 0 | AV29: 0 | AW29: 0 | AX29: 0 | AY29: 0 | AZ29: 0 | BA29: 0 | BB29: 0 | BC29: 0 | BD29: 0 | BE29: 0 | BF29: 0 | BG29: 0 | BH29: 0 | BI29: 0 | BJ29: 0 | BK29: 0 | BL29: 0 | BM29: 0 | BN29: 0 | BO29: 0 | BP29: =IF(ISERROR((BP211+BP221+BP37)/(BP213+BP221+BP37)),0,(BP211+BP221+BP37)/(BP213+BP221+BP37)) -> 0 | BQ29: 0 | BR29: 0 | BS29: 0 | BT29: 0 | BU29: 0 | BV29: 0 | BW29: 0 | CA29: =IF(ISERROR((CA211+CA221+CA37)/(CA213+CA221+CA37)),0,(CA211+CA221+CA37)/(CA213+CA221+CA37)) -> 0 | CB29: 0 | CC29: 0 | CD29: 0 | CE29: 0 | CF29: 0 | CG29: 0 | CH29: 0 | CI29: 0 | CJ29: 0 | CK29: 0
A30: RA Preferred % | B30: =Labels!B30 -> RA Preferred % | D30: =IF(ISERROR(D197/(D213+D221+D37)),0,D197/(D213+D221+D37)) -> 0 | E30: 0 | F30: 0 | G30: 0 | H30: 0 | I30: 0 | J30: 0 | K30: 0 | L30: 0 | M30: 0 | N30: 0 | O30: 0 | P30: 0 | Q30: 0 | R30: 0 | S30: 0 | T30: 0 | U30: 0 | V30: 0 | W30: 0 | X30: 0 | Y30: 0 | Z30: 0 | AA30: 0 | AB30: 0 | AC30: 0 | AD30: 0 | AE30: 0 | AF30: 0 | AG30: 0 | AH30: 0 | AI30: 0 | AJ30: =IF(ISERROR(AJ197/(AJ213+AJ221+AJ37)),0,AJ197/(AJ213+AJ221+AJ37)) -> 0 | AK30: 0 | AL30: 0 | AM30: 0 | AN30: 0 | AO30: 0 | AP30: 0 | AQ30: 0 | AR30: 0 | AS30: 0 | AT30: 0 | AU30: 0 | AV30: 0 | AW30: 0 | AX30: 0 | AY30: 0 | AZ30: 0 | BA30: 0 | BB30: 0 | BC30: 0 | BD30: 0 | BE30: 0 | BF30: 0 | BG30: 0 | BH30: 0 | BI30: 0 | BJ30: 0 | BK30: 0 | BL30: 0 | BM30: 0 | BN30: 0 | BO30: 0 | BP30: =IF(ISERROR(BP197/(BP213+BP221+BP37)),0,BP197/(BP213+BP221+BP37)) -> 0 | BQ30: 0 | BR30: 0 | BS30: 0 | BT30: 0 | BU30: 0 | BV30: 0 | BW30: 0 | CA30: =IF(ISERROR(CA197/(CA213+CA221+CA37)),0,CA197/(CA213+CA221+CA37)) -> 0 | CB30: 0 | CC30: 0 | CD30: 0 | CE30: 0 | CF30: 0 | CG30: 0 | CH30: 0 | CI30: 0 | CJ30: 0 | CK30: 0
A31: RA Trust Preferred % | B31: =Labels!B31 -> RA Trust Preferred % | D31: =IF(ISERROR(D198/(D213+D221+D37)),0,D198/(D213+D221+D37)) -> 0 | E31: 0 | F31: 0 | G31: 0 | H31: 0 | I31: 0 | J31: 0 | K31: 0 | L31: 0 | M31: 0 | N31: 0 | O31: 0 | P31: 0 | Q31: 0 | R31: 0 | S31: 0 | T31: 0 | U31: 0 | V31: 0 | W31: 0 | X31: 0 | Y31: 0 | Z31: 0 | AA31: 0 | AB31: 0 | AC31: 0 | AD31: 0 | AE31: 0 | AF31: 0 | AG31: 0 | AH31: 0 | AI31: 0 | AJ31: =IF(ISERROR(AJ198/(AJ213+AJ221+AJ37)),0,AJ198/(AJ213+AJ221+AJ37)) -> 0 | AK31: 0 | AL31: 0 | AM31: 0 | AN31: 0 | AO31: 0 | AP31: 0 | AQ31: 0 | AR31: 0 | AS31: 0 | AT31: 0 | AU31: 0 | AV31: 0 | AW31: 0 | AX31: 0 | AY31: 0 | AZ31: 0 | BA31: 0 | BB31: 0 | BC31: 0 | BD31: 0 | BE31: 0 | BF31: 0 | BG31: 0 | BH31: 0 | BI31: 0 | BJ31: 0 | BK31: 0 | BL31: 0 | BM31: 0 | BN31: 0 | BO31: 0 | BP31: =IF(ISERROR(BP198/(BP213+BP221+BP37)),0,BP198/(BP213+BP221+BP37)) -> 0 | BQ31: 0 | BR31: 0 | BS31: 0 | BT31: 0 | BU31: 0 | BV31: 0 | BW31: 0 | CA31: =IF(ISERROR(CA198/(CA213+CA221+CA37)),0,CA198/(CA213+CA221+CA37)) -> 0 | CB31: 0 | CC31: 0 | CD31: 0 | CE31: 0 | CF31: 0 | CG31: 0 | CH31: 0 | CI31: 0 | CJ31: 0 | CK31: 0
A32: RA Equity % | B32: =Labels!B32 -> RA Equity % | D32: =IF(ISERROR(D195/(D221+D213+D37)),0,D195/(D221+D213+D37)) -> 1 | E32: 1 | F32: 1 | G32: 1 | H32: 1 | I32: 1 | J32: 1 | K32: 1 | L32: 1 | M32: 1 | N32: 1 | O32: 1 | P32: 1 | Q32: 1 | R32: 1 | S32: 1 | T32: 1 | U32: 1 | V32: 1 | W32: 1 | X32: 1 | Y32: 1 | Z32: 1 | AA32: 1 | AB32: 1 | AC32: 1 | AD32: 1 | AE32: 1 | AF32: 1 | AG32: 1 | AH32: 1 | AI32: 1 | AJ32: =IF(ISERROR(AJ195/(AJ221+AJ213+AJ37)),0,AJ195/(AJ221+AJ213+AJ37)) -> 1 | AK32: 1 | AL32: 1 | AM32: 1 | AN32: 1 | AO32: 1 | AP32: 1 | AQ32: 1 | AR32: 1 | AS32: 1 | AT32: 1 | AU32: 1 | AV32: 1 | AW32: 1 | AX32: 1 | AY32: 1 | AZ32: 1 | BA32: 1 | BB32: 1 | BC32: 1 | BD32: 1 | BE32: 1 | BF32: 1 | BG32: 1 | BH32: 1 | BI32: 1 | BJ32: 1 | BK32: 1 | BL32: 1 | BM32: 1 | BN32: 1 | BO32: 1 | BP32: =IF(ISERROR(BP195/(BP221+BP213+BP37)),0,BP195/(BP221+BP213+BP37)) -> 1 | BQ32: 1 | BR32: 1 | BS32: 1 | BT32: 1 | BU32: 1 | BV32: 1 | BW32: 1 | CA32: =IF(ISERROR(CA195/(CA221+CA213+CA37)),0,CA195/(CA221+CA213+CA37)) -> 1 | CB32: 1 | CC32: 1 | CD32: 1 | CE32: 1 | CF32: 1 | CG32: 1 | CH32: 1 | CI32: 1 | CJ32: 1 | CK32: 1
A33: Funds From Operations Interest Coverage | B33: =Labels!B33 -> Funds From Operations Interest Coverage | D33: 0 | E33: 0 | F33: 0 | G33: 0 | H33: 0 | I33: 0 | J33: 0 | K33: 0 | L33: 0 | M33: 0 | N33: 0 | O33: 0 | P33: 0 | Q33: 0 | R33: 0 | S33: 0 | T33: 0 | U33: 0 | V33: 0 | W33: 0 | X33: 0 | Y33: 0 | Z33: 0 | AA33: 0 | AB33: 0 | AC33: 0 | AD33: 0 | AE33: 0 | AF33: 0 | AG33: 0 | AH33: 0 | AI33: 0 | AJ33: 0 | AK33: 0 | AL33: 0 | AM33: 0 | AN33: 0 | AO33: 0 | AP33: 0 | AQ33: 0 | AR33: 0 | AS33: 0 | AT33: 0 | AU33: 0 | AV33: 0 | AW33: 0 | AX33: 0 | AY33: 0 | AZ33: 0 | BA33: 0 | BB33: 0 | BC33: 0 | BD33: 0 | BE33: 0 | BF33: 0 | BG33: 0 | BH33: 0 | BI33: 0 | BJ33: 0 | BK33: 0 | BL33: 0 | BM33: 0 | BN33: 0 | BO33: 0 | BP33: 0 | BQ33: 0 | BR33: 0 | BS33: 0 | BT33: 0 | BU33: 0 | BV33: 0 | BW33: 0 | CA33: 0 | CB33: 0 | CC33: 0 | CD33: 0 | CE33: 0 | CF33: 0 | CG33: 0 | CH33: 0 | CI33: 0 | CJ33: 0 | CK33: 0
A34: Funds From Operations to Avg Debt % | B34: =Labels!B34 -> Funds From Operations to Avg Debt % | D34: 0 | E34: 0 | F34: 0 | G34: 0 | H34: 0 | I34: 0 | J34: 0 | K34: 0 | L34: 0 | M34: 0 | N34: 0 | O34: 0 | P34: 0 | Q34: 0 | R34: 0 | S34: 0 | T34: 0 | U34: 0 | V34: 0 | W34: 0 | X34: 0 | Y34: 0 | Z34: 0 | AA34: 0 | AB34: 0 | AC34: 0 | AD34: 0 | AE34: 0 | AF34: 0 | AG34: 0 | AH34: 0 | AI34: 0 | AJ34: 0 | AK34: 0 | AL34: 0 | AM34: 0 | AN34: 0 | AO34: 0 | AP34: 0 | AQ34: 0 | AR34: 0 | AS34: 0 | AT34: 0 | AU34: 0 | AV34: 0 | AW34: 0 | AX34: 0 | AY34: 0 | AZ34: 0 | BA34: 0 | BB34: 0 | BC34: 0 | BD34: 0 | BE34: 0 | BF34: 0 | BG34: 0 | BH34: 0 | BI34: 0 | BJ34: 0 | BK34: 0 | BL34: 0 | BM34: 0 | BN34: 0 | BO34: 0 | BP34: 0 | BQ34: 0 | BR34: 0 | BS34: 0 | BT34: 0 | BU34: 0 | BV34: 0 | BW34: 0 | CA34: 0 | CB34: 0 | CC34: 0 | CD34: 0 | CE34: 0 | CF34: 0 | CG34: 0 | CH34: 0 | CI34: 0 | CJ34: 0 | CK34: 0
A35: Pre-Tax Interest Coverage | B35: =Labels!B35 -> Pre-Tax Interest Coverage | D35: 0 | E35: 0 | F35: 0 | G35: 0 | H35: 0 | I35: 0 | J35: 0 | K35: 0 | L35: 0 | M35: 0 | N35: 0 | O35: 0 | P35: 0 | Q35: 0 | R35: 0 | S35: 0 | T35: 0 | U35: 0 | V35: 0 | W35: 0 | X35: 0 | Y35: 0 | Z35: 0 | AA35: 0 | AB35: 0 | AC35: 0 | AD35: 0 | AE35: 0 | AF35: 0 | AG35: 0 | AH35: 0 | AI35: 0 | AJ35: 0 | AK35: 0 | AL35: 0 | AM35: 0 | AN35: 0 | AO35: 0 | AP35: 0 | AQ35: 0 | AR35: 0 | AS35: 0 | AT35: 0 | AU35: 0 | AV35: 0 | AW35: 0 | AX35: 0 | AY35: 0 | AZ35: 0 | BA35: 0 | BB35: 0 | BC35: 0 | BD35: 0 | BE35: 0 | BF35: 0 | BG35: 0 | BH35: 0 | BI35: 0 | BJ35: 0 | BK35: 0 | BL35: 0 | BM35: 0 | BN35: 0 | BO35: 0 | BP35: 0 | BQ35: 0 | BR35: 0 | BS35: 0 | BT35: 0 | BU35: 0 | BV35: 0 | BW35: 0 | CA35: 0 | CB35: 0 | CC35: 0 | CD35: 0 | CE35: 0 | CF35: 0 | CG35: 0 | CH35: 0 | CI35: 0 | CJ35: 0 | CK35: 0
A36: CF to Net Construction Expenditures % | B36: =Labels!B36 -> CF to Net Construction Expenditures % | D36: 0 | E36: 0 | F36: 0 | G36: 0 | H36: 0 | I36: 0 | J36: 0 | K36: 0 | L36: 0 | M36: 0 | N36: 0 | O36: 0 | P36: 0 | Q36: 0 | R36: 0 | S36: 0 | T36: 0 | U36: 0 | V36: 0 | W36: 0 | X36: 0 | Y36: 0 | Z36: 0 | AA36: 0 | AB36: 0 | AC36: 0 | AD36: 0 | AE36: 0 | AF36: 0 | AG36: 0 | AH36: 0 | AI36: 0 | AJ36: 0 | AK36: 0 | AL36: 0 | AM36: 0 | AN36: 0 | AO36: 0 | AP36: 0 | AQ36: 0 | AR36: 0 | AS36: 0 | AT36: 0 | AU36: 0 | AV36: 0 | AW36: 0 | AX36: 0 | AY36: 0 | AZ36: 0 | BA36: 0 | BB36: 0 | BC36: 0 | BD36: 0 | BE36: 0 | BF36: 0 | BG36: 0 | BH36: 0 | BI36: 0 | BJ36: 0 | BK36: 0 | BL36: 0 | BM36: 0 | BN36: 0 | BO36: 0 | BP36: 0 | BQ36: 0 | BR36: 0 | BS36: 0 | BT36: 0 | BU36: 0 | BV36: 0 | BW36: 0 | CA36: 0 | CB36: 0 | CC36: 0 | CD36: 0 | CE36: 0 | CF36: 0 | CG36: 0 | CH36: 0 | CI36: 0 | CJ36: 0 | CK36: 0
A37: Imputed Debt Balance | B37: =Labels!B37 -> Imputed Debt Balance | C37: =IF(C$6="Actual",SUMIF($A$1385:$A$1424,$B37,C$1385:C$1424)*C$351,SUMIF($A$542:$A$1382,$B37,C$542:C$1382)*C$351) -> 0 | D37: 0 | E37: 0 | F37: 0 | G37: 0 | H37: 0 | I37: 0 | J37: 0 | K37: 0 | L37: 0 | M37: 0 | N37: 0 | O37: 0 | P37: 0 | Q37: 0 | R37: 0 | S37: 0 | T37: 0 | U37: 0 | V37: 0 | W37: 0 | X37: 0 | Y37: 0 | Z37: 0 | AA37: 0 | AB37: 0 | AC37: 0 | AD37: 0 | AE37: 0 | AF37: 0 | AG37: 0 | AH37: 0 | AI37: =IF(AI$6="Actual",SUMIF($A$1385:$A$1424,$B37,AI$1385:AI$1424)*AI$351,SUMIF($A$542:$A$1382,$B37,AI$542:AI$1382)*AI$351) -> 0 | AJ37: 0 | AK37: 0 | AL37: 0 | AM37: 0 | AN37: 0 | AO37: 0 | AP37: 0 | AQ37: 0 | AR37: 0 | AS37: 0 | AT37: 0 | AU37: 0 | AV37: 0 | AW37: 0 | AX37: 0 | AY37: 0 | AZ37: 0 | BA37: 0 | BB37: 0 | BC37: 0 | BD37: 0 | BE37: 0 | BF37: 0 | BG37: 0 | BH37: 0 | BI37: 0 | BJ37: 0 | BK37: 0 | BL37: 0 | BM37: 0 | BN37: 0 | BO37: =IF(BO$6="Actual",SUMIF($A$1385:$A$1424,$B37,BO$1385:BO$1424)*BO$351,SUMIF($A$542:$A$1382,$B37,BO$542:BO$1382)*BO$351) -> 0 | BP37: 0 | BQ37: 0 | BR37: 0 | BS37: 0 | BT37: 0 | BU37: 0 | BV37: 0 | BW37: 0 | CA37: =O37 -> 0 | CB37: =AA37 -> 0 | CC37: =AM37 -> 0 | CD37: =AY37 -> 0 | CE37: =BK37 -> 0 | CF37: =BW37 -> 0 | CG37: =IF(CG$6="Actual",SUMIF($A$1385:$A$1424,$B37,CG$1385:CG$1424)*CG$351,SUMIF($A$542:$A$1382,$B37,CG$542:CG$1382)*CG$351) -> 0 | CH37: =IF(CH$6="Actual",SUMIF($A$1385:$A$1424,$B37,CH$1385:CH$1424)*CH$351,SUMIF($A$542:$A$1382,$B37,CH$542:CH$1382)*CH$351) -> 0 | CI37: =IF(CI$6="Actual",SUMIF($A$1385:$A$1424,$B37,CI$1385:CI$1424)*CI$351,SUMIF($A$542:$A$1382,$B37,CI$542:CI$1382)*CI$351) -> 0 | CJ37: =IF(CJ$6="Actual",SUMIF($A$1385:$A$1424,$B37,CJ$1385:CJ$1424)*CJ$351,SUMIF($A$542:$A$1382,$B37,CJ$542:CJ$1382)*CJ$351) -> 0 | CK37: =IF(CK$6="Actual",SUMIF($A$1385:$A$1424,$B37,CK$1385:CK$1424)*CK$351,SUMIF($A$542:$A$1382,$B37,CK$542:CK$1382)*CK$351) -> 0
B39: =Labels!B39 -> INCOME STATEMENT
B41: =Labels!B41 -> Operating Revenues:
A42: =B42 -> Recurring Revenue | B42: =Labels!B42 -> Recurring Revenue | D42: =IF(D$6="Actual",SUMIF($A$1385:$A$1424,$B42,D$1385:D$1424)*D$351,SUMIF($A$542:$A$1382,$B42,D$542:D$1382)*D$351) -> 51.74473 | E42: 54.15846 | F42: 55.47498 | G42: 53.75889 | H42: 55.43673 | I42: 55.56764 | J42: 56.74795 | K42: 59.82255 | L42: 60.46589 | M42: 61.20726 | N42: =IF(N$6="Actual",SUMIF($A$1385:$A$1424,$B42,N$1385:N$1424)*N$351,SUMIF($A$542:$A$1382,$B42,N$542:N$1382)*N$351) -> 65.42881 | O42: 65.8162 | P42: 65.44712 | Q42: 65.12562 | R42: 64.86633 | S42: 65.69876 | T42: 64.82316 | U42: 67.26724 | V42: 67.81946 | W42: 68.65224 | X42: =IF(X$6="Actual",SUMIF($A$1385:$A$1424,$B42,X$1385:X$1424)*X$351,SUMIF($A$542:$A$1382,$B42,X$542:X$1382)*X$351) -> 69.98528 | Y42: 71.45466 | Z42: 74.23278 | AA42: 75.36048 | AB42: 77.10492 | AC42: 74.32908 | AD42: 75.7797 | AE42: 77.76834 | AF42: 76.75818 | AG42: 76.07325 | AH42: =IF(AH$6="Actual",SUMIF($A$1385:$A$1424,$B42,AH$1385:AH$1424)*AH$351,SUMIF($A$542:$A$1382,$B42,AH$542:AH$1382)*AH$351) -> 76.83528 | AI42: 81.81606 | AJ42: 79.29746 | AK42: 82.95603 | AL42: 83.15167 | AM42: 84.09387 | AN42: 83.75336 | AO42: 83.97158 | AP42: 85.43966 | AQ42: 84.43673 | AR42: =IF(AR$6="Actual",SUMIF($A$1385:$A$1424,$B42,AR$1385:AR$1424)*AR$351,SUMIF($A$542:$A$1382,$B42,AR$542:AR$1382)*AR$351) -> 82.99058 | AS42: 84.25739 | AT42: 84.90928 | AU42: 87.00914 | AV42: 88.19519 | AW42: 90.12533 | AX42: 92.3711 | AY42: 91.16938 | AZ42: 88.85068 | BA42: 89.76723 | BB42: =IF(BB$6="Actual",SUMIF($A$1385:$A$1424,$B42,BB$1385:BB$1424)*BB$351,SUMIF($A$542:$A$1382,$B42,BB$542:BB$1382)*BB$351) -> 89.16969 | BC42: 91.03011 | BD42: 88.47387 | BE42: 91.98224 | BF42: 90.16271 | BG42: 94.05755 | BH42: 91.58872 | BI42: 95.36383 | BJ42: 95.07398 | BK42: 95.53508 | BL42: =IF(BL$6="Actual",SUMIF($A$1385:$A$1424,$B42,BL$1385:BL$1424)*BL$351,SUMIF($A$542:$A$1382,$B42,BL$542:BL$1382)*BL$351) -> 93.52778 | BM42: 93.96004 | BN42: 95.54667 | BO42: 93.80858 | BP42: 94.93342 | BQ42: 94.41818 | BR42: 96.009888 | BS42: 95.562272 | BT42: 96.84806387 | BU42: 97.24990627 | BV42: 97.13756232 | BW42: 96.87925448 | CA42: =SUM(D42:O42) -> 695.63009 | CB42: =SUM(P42:AA42) -> 820.73313 | CC42: =SUM(AB42:AM42) -> 945.96384 | CD42: =SUM(AN42:AY42) -> 1038.62872 | CE42: =SUM(AZ42:BK42) -> 1101.05569 | CF42: =SUM(BL42:BW42) -> 1145.881617 | CG42: =IF(CG$6="Actual",SUMIF($A$1385:$A$1424,$B42,CG$1385:CG$1424)*CG$351,SUMIF($A$542:$A$1382,$B42,CG$542:CG$1382)*CG$351) -> 1132.586811 | CH42: 1147.024282 | CI42: 1158.312288 | CJ42: 1165.840023 | CK42: 1170.851709
A43: One - Time Revenue | B43: =Labels!B43 -> One - Time Revenue | D43: 6.32247 | E43: 2.89884 | F43: 0.69972 | G43: 2.07417 | H43: 3.47361 | I43: 2.69892 | J43: 1.47441 | K43: 3.64854 | L43: 8.59656 | M43: 6.30798 | N43: 3.44862 | O43: 1.02459 | P43: 0.9996 | Q43: 0.64974 | R43: 0.97461 | S43: 1.2495 | T43: 1.42443 | U43: 2.87385 | V43: 2.37405 | W43: 4.47321 | X43: 5.45031 | Y43: 3.4986 | Z43: 5.89764 | AA43: 2.9988 | AB43: 1.39944 | AC43: 0.62475 | AD43: 0.84966 | AE43: 0.39984 | AF43: 2.12415 | AG43: 3.02379 | AH43: 3.7485 | AI43: 4.07337 | AJ43: 3.82347 | AK43: 3.57357 | AL43: 3.82347 | AM43: 0.8712 | AN43: 0.79968 | AO43: 0.7497 | AP43: 0.59976 | AQ43: 0.47481 | AR43: 1.27449 | AS43: 3.27369 | AT43: 4.34826 | AU43: 3.42363 | AV43: 6.2475 | AW43: 3.04878 | AX43: 0.54978 | AY43: 0.22491 | AZ43: 0.52479 | BA43: 0.12495 | BB43: 0.57477 | BC43: 0.94962 | BD43: 1.47441 | BE43: 3.64554 | BF43: 4.02339 | BG43: 1.93821 | BH43: 4.94802 | BI43: 2.62395 | BJ43: 1.39944 | BK43: 0.92463 | BL43: 0.42483 | BM43: 0.19992 | BN43: 0.69372 | BO43: 0.47481 | BP43: 1.39944 | BQ43: 2.94882 | BR43: 3.1667328 | BS43: 2.9908032 | BT43: 4.0463808 | BU43: 1.9352256 | BV43: 0.7037184 | BW43: 0.3518592 | CA43: 42.66843 | CB43: 32.86434 | CC43: 28.33521 | CD43: 25.01499 | CE43: 23.15172 | CF43: 19.33626 | CG43: 15.39384 | CH43: 14.56499299 | CI43: 14.3704679 | CJ43: 13.21774553 | CK43: 13.46847498
A44: Service Contract Revenue | B44: =Labels!B44 -> Service Contract Revenue | D44: 0 | E44: 0 | F44: 0 | G44: 0 | H44: 0 | I44: 0 | J44: 0 | K44: 0 | L44: 0 | M44: 0 | N44: 0 | O44: 0 | P44: 0 | Q44: 0 | R44: 0 | S44: 0 | T44: 0 | U44: 0 | V44: 0 | W44: 0 | X44: 0 | Y44: 0 | Z44: 0 | AA44: 0 | AB44: 0 | AC44: 0 | AD44: 0 | AE44: 0 | AF44: 0 | AG44: 0 | AH44: 0 | AI44: 0 | AJ44: 0 | AK44: 0 | AL44: 0 | AM44: 0 | AN44: 0 | AO44: 0 | AP44: 0 | AQ44: 0 | AR44: 0 | AS44: 0 | AT44: 0 | AU44: 0 | AV44: 0 | AW44: 0 | AX44: 0 | AY44: 0 | AZ44: 0 | BA44: 0 | BB44: 0 | BC44: 0 | BD44: 0 | BE44: 0 | BF44: 0 | BG44: 0 | BH44: 0 | BI44: 0 | BJ44: 0 | BK44: 0 | BL44: 0 | BM44: 0 | BN44: 0 | BO44: 0 | BP44: 0 | BQ44: 0 | BR44: 0 | BS44: 0 | BT44: 0 | BU44: 0 | BV44: 0 | BW44: 0 | CA44: 0 | CB44: 0 | CC44: 0 | CD44: 0 | CE44: 0 | CF44: 0 | CG44: 0 | CH44: 0 | CI44: 0 | CJ44: 0 | CK44: 0
A45: Energy Sales Revenue | B45: =Labels!B45 -> Energy Sales Revenue | D45: 0 | E45: 0 | F45: 0 | G45: 0 | H45: 0 | I45: 0 | J45: 0 | K45: 0 | L45: 0 | M45: 0 | N45: 0 | O45: 0 | P45: 0 | Q45: 0 | R45: 0 | S45: 0 | T45: 0 | U45: 0 | V45: 0 | W45: 0 | X45: 0 | Y45: 0 | Z45: 0 | AA45: 0 | AB45: 0 | AC45: 0 | AD45: 0 | AE45: 0 | AF45: 0 | AG45: 0 | AH45: 0 | AI45: 0 | AJ45: 0 | AK45: 0 | AL45: 0 | AM45: 0 | AN45: 0 | AO45: 0 | AP45: 0 | AQ45: 0 | AR45: 0 | AS45: 0 | AT45: 0 | AU45: 0 | AV45: 0 | AW45: 0 | AX45: 0 | AY45: 0 | AZ45: 0 | BA45: 0 | BB45: 0 | BC45: 0 | BD45: 0 | BE45: 0 | BF45: 0 | BG45: 0 | BH45: 0 | BI45: 0 | BJ45: 0 | BK45: 0 | BL45: 0 | BM45: 0 | BN45: 0 | BO45: 0 | BP45: 0 | BQ45: 0 | BR45: 0 | BS45: 0 | BT45: 0 | BU45: 0 | BV45: 0 | BW45: 0 | CA45: 0 | CB45: 0 | CC45: 0 | CD45: 0 | CE45: 0 | CF45: 0 | CG45: 0 | CH45: 0 | CI45: 0 | CJ45: 0 | CK45: 0
A46: Tax Credit Premium | B46: =Labels!B46 -> Tax Credit Premium | D46: 0 | E46: 0 | F46: 0 | G46: 0 | H46: 0 | I46: 0 | J46: 0 | K46: 0 | L46: 0 | M46: 0 | N46: 0 | O46: 0 | P46: 0 | Q46: 0 | R46: 0 | S46: 0 | T46: 0 | U46: 0 | V46: 0 | W46: 0 | X46: 0 | Y46: 0 | Z46: 0 | AA46: 0 | AB46: 0 | AC46: 0 | AD46: 0 | AE46: 0 | AF46: 0 | AG46: 0 | AH46: 0 | AI46: 0 | AJ46: 0 | AK46: 0 | AL46: 0 | AM46: 0 | AN46: 0 | AO46: 0 | AP46: 0 | AQ46: 0 | AR46: 0 | AS46: 0 | AT46: 0 | AU46: 0 | AV46: 0 | AW46: 0 | AX46: 0 | AY46: 0 | AZ46: 0 | BA46: 0 | BB46: 0 | BC46: 0 | BD46: 0 | BE46: 0 | BF46: 0 | BG46: 0 | BH46: 0 | BI46: 0 | BJ46: 0 | BK46: 0 | BL46: 0 | BM46: 0 | BN46: 0 | BO46: 0 | BP46: 0 | BQ46: 0 | BR46: 0 | BS46: 0 | BT46: 0 | BU46: 0 | BV46: 0 | BW46: 0 | CA46: 0 | CB46: 0 | CC46: 0 | CD46: 0 | CE46: 0 | CF46: 0 | CG46: 0 | CH46: 0 | CI46: 0 | CJ46: 0 | CK46: 0
A47: Demand Revenue | B47: =Labels!B47 -> Demand Revenue | D47: 0 | E47: 0 | F47: 0 | G47: 0 | H47: 0 | I47: 0 | J47: 0 | K47: 0 | L47: 0 | M47: 0 | N47: 0 | O47: 0 | P47: 0 | Q47: 0 | R47: 0 | S47: 0 | T47: 0 | U47: 0 | V47: 0 | W47: 0 | X47: 0 | Y47: 0 | Z47: 0 | AA47: 0 | AB47: 0 | AC47: 0 | AD47: 0 | AE47: 0 | AF47: 0 | AG47: 0 | AH47: 0 | AI47: 0 | AJ47: 0 | AK47: 0 | AL47: 0 | AM47: 0 | AN47: 0 | AO47: 0 | AP47: 0 | AQ47: 0 | AR47: 0 | AS47: 0 | AT47: 0 | AU47: 0 | AV47: 0 | AW47: 0 | AX47: 0 | AY47: 0 | AZ47: 0 | BA47: 0 | BB47: 0 | BC47: 0 | BD47: 0 | BE47: 0 | BF47: 0 | BG47: 0 | BH47: 0 | BI47: 0 | BJ47: 0 | BK47: 0 | BL47: 0 | BM47: 0 | BN47: 0 | BO47: 0 | BP47: 0 | BQ47: 0 | BR47: 0 | BS47: 0 | BT47: 0 | BU47: 0 | BV47: 0 | BW47: 0 | CA47: 0 | CB47: 0 | CC47: 0 | CD47: 0 | CE47: 0 | CF47: 0 | CG47: 0 | CH47: 0 | CI47: 0 | CJ47: 0 | CK47: 0
A48: Usage Revenue | B48: =Labels!B48 -> Usage Revenue | D48: 0 | E48: 0 | F48: 0 | G48: 0 | H48: 0 | I48: 0 | J48: 0 | K48: 0 | L48: 0 | M48: 0 | N48: 0 | O48: 0 | P48: 0 | Q48: 0 | R48: 0 | S48: 0 | T48: 0 | U48: 0 | V48: 0 | W48: 0 | X48: 0 | Y48: 0 | Z48: 0 | AA48: 0 | AB48: 0 | AC48: 0 | AD48: 0 | AE48: 0 | AF48: 0 | AG48: 0 | AH48: 0 | AI48: 0 | AJ48: 0 | AK48: 0 | AL48: 0 | AM48: 0 | AN48: 0 | AO48: 0 | AP48: 0 | AQ48: 0 | AR48: 0 | AS48: 0 | AT48: 0 | AU48: 0 | AV48: 0 | AW48: 0 | AX48: 0 | AY48: 0 | AZ48: 0 | BA48: 0 | BB48: 0 | BC48: 0 | BD48: 0 | BE48: 0 | BF48: 0 | BG48: 0 | BH48: 0 | BI48: 0 | BJ48: 0 | BK48: 0 | BL48: 0 | BM48: 0 | BN48: 0 | BO48: 0 | BP48: 0 | BQ48: 0 | BR48: 0 | BS48: 0 | BT48: 0 | BU48: 0 | BV48: 0 | BW48: 0 | CA48: 0 | CB48: 0 | CC48: 0 | CD48: 0 | CE48: 0 | CF48: 0 | CG48: 0 | CH48: 0 | CI48: 0 | CJ48: 0 | CK48: 0
A49: Equipment Sales | B49: =Labels!B49 -> Equipment Sales | D49: 0 | E49: 0 | F49: 0 | G49: 0 | H49: 0 | I49: 0 | J49: 0 | K49: 0 | L49: 0 | M49: 0 | N49: 0 | O49: 0 | P49: 0 | Q49: 0 | R49: 0 | S49: 0 | T49: 0 | U49: 0 | V49: 0 | W49: 0 | X49: 0 | Y49: 0 | Z49: 0 | AA49: 0 | AB49: 0 | AC49: 0 | AD49: 0 | AE49: 0 | AF49: 0 | AG49: 0 | AH49: 0 | AI49: 0 | AJ49: 0 | AK49: 0 | AL49: 0 | AM49: 0 | AN49: 0 | AO49: 0 | AP49: 0 | AQ49: 0 | AR49: 0 | AS49: 0 | AT49: 0 | AU49: 0 | AV49: 0 | AW49: 0 | AX49: 0 | AY49: 0 | AZ49: 0 | BA49: 0 | BB49: 0 | BC49: 0 | BD49: 0 | BE49: 0 | BF49: 0 | BG49: 0 | BH49: 0 | BI49: 0 | BJ49: 0 | BK49: 0 | BL49: 0 | BM49: 0 | BN49: 0 | BO49: 0 | BP49: 0 | BQ49: 0 | BR49: 0 | BS49: 0 | BT49: 0 | BU49: 0 | BV49: 0 | BW49: 0 | CA49: 0 | CB49: 0 | CC49: 0 | CD49: 0 | CE49: 0 | CF49: 0 | CG49: 0 | CH49: 0 | CI49: 0 | CJ49: 0 | CK49: 0
A50: Hide | B50: =Labels!B50 -> Hide | D50: 0 | E50: 0 | F50: 0 | G50: 0 | H50: 0 | I50: 0 | J50: 0 | K50: 0 | L50: 0 | M50: 0 | N50: 0 | O50: 0 | P50: 0 | Q50: 0 | R50: 0 | S50: 0 | T50: 0 | U50: 0 | V50: 0 | W50: 0 | X50: 0 | Y50: 0 | Z50: 0 | AA50: 0 | AB50: 0 | AC50: 0 | AD50: 0 | AE50: 0 | AF50: 0 | AG50: 0 | AH50: 0 | AI50: 0 | AJ50: 0 | AK50: 0 | AL50: 0 | AM50: 0 | AN50: 0 | AO50: 0 | AP50: 0 | AQ50: 0 | AR50: 0 | AS50: 0 | AT50: 0 | AU50: 0 | AV50: 0 | AW50: 0 | AX50: 0 | AY50: 0 | AZ50: 0 | BA50: 0 | BB50: 0 | BC50: 0 | BD50: 0 | BE50: 0 | BF50: 0 | BG50: 0 | BH50: 0 | BI50: 0 | BJ50: 0 | BK50: 0 | BL50: 0 | BM50: 0 | BN50: 0 | BO50: 0 | BP50: 0 | BQ50: 0 | BR50: 0 | BS50: 0 | BT50: 0 | BU50: 0 | BV50: 0 | BW50: 0 | CA50: 0 | CB50: 0 | CC50: 0 | CD50: 0 | CE50: 0 | CF50: 0 | CG50: 0 | CH50: 0 | CI50: 0 | CJ50: 0 | CK50: 0
A51: Hide | B51: =Labels!B51 -> Hide | D51: 0 | E51: 0 | F51: 0 | G51: 0 | H51: 0 | I51: 0 | J51: 0 | K51: 0 | L51: 0 | M51: 0 | N51: 0 | O51: 0 | P51: 0 | Q51: 0 | R51: 0 | S51: 0 | T51: 0 | U51: 0 | V51: 0 | W51: 0 | X51: 0 | Y51: 0 | Z51: 0 | AA51: 0 | AB51: 0 | AC51: 0 | AD51: 0 | AE51: 0 | AF51: 0 | AG51: 0 | AH51: 0 | AI51: 0 | AJ51: 0 | AK51: 0 | AL51: 0 | AM51: 0 | AN51: 0 | AO51: 0 | AP51: 0 | AQ51: 0 | AR51: 0 | AS51: 0 | AT51: 0 | AU51: 0 | AV51: 0 | AW51: 0 | AX51: 0 | AY51: 0 | AZ51: 0 | BA51: 0 | BB51: 0 | BC51: 0 | BD51: 0 | BE51: 0 | BF51: 0 | BG51: 0 | BH51: 0 | BI51: 0 | BJ51: 0 | BK51: 0 | BL51: 0 | BM51: 0 | BN51: 0 | BO51: 0 | BP51: 0 | BQ51: 0 | BR51: 0 | BS51: 0 | BT51: 0 | BU51: 0 | BV51: 0 | BW51: 0 | CA51: 0 | CB51: 0 | CC51: 0 | CD51: 0 | CE51: 0 | CF51: 0 | CG51: 0 | CH51: 0 | CI51: 0 | CJ51: 0 | CK51: 0
A52: Hide | B52: =Labels!B52 -> Hide | D52: 0 | E52: 0 | F52: 0 | G52: 0 | H52: 0 | I52: 0 | J52: 0 | K52: 0 | L52: 0 | M52: 0 | N52: 0 | O52: 0 | P52: 0 | Q52: 0 | R52: 0 | S52: 0 | T52: 0 | U52: 0 | V52: 0 | W52: 0 | X52: 0 | Y52: 0 | Z52: 0 | AA52: 0 | AB52: 0 | AC52: 0 | AD52: 0 | AE52: 0 | AF52: 0 | AG52: 0 | AH52: 0 | AI52: 0 | AJ52: 0 | AK52: 0 | AL52: 0 | AM52: 0 | AN52: 0 | AO52: 0 | AP52: 0 | AQ52: 0 | AR52: 0 | AS52: 0 | AT52: 0 | AU52: 0 | AV52: 0 | AW52: 0 | AX52: 0 | AY52: 0 | AZ52: 0 | BA52: 0 | BB52: 0 | BC52: 0 | BD52: 0 | BE52: 0 | BF52: 0 | BG52: 0 | BH52: 0 | BI52: 0 | BJ52: 0 | BK52: 0 | BL52: 0 | BM52: 0 | BN52: 0 | BO52: 0 | BP52: 0 | BQ52: 0 | BR52: 0 | BS52: 0 | BT52: 0 | BU52: 0 | BV52: 0 | BW52: 0 | CA52: 0 | CB52: 0 | CC52: 0 | CD52: 0 | CE52: 0 | CF52: 0 | CG52: 0 | CH52: 0 | CI52: 0 | CJ52: 0 | CK52: 0
A53: Hide | B53: =Labels!B53 -> Hide | D53: 0 | E53: 0 | F53: 0 | G53: 0 | H53: 0 | I53: 0 | J53: 0 | K53: 0 | L53: 0 | M53: 0 | N53: 0 | O53: 0 | P53: 0 | Q53: 0 | R53: 0 | S53: 0 | T53: 0 | U53: 0 | V53: 0 | W53: 0 | X53: 0 | Y53: 0 | Z53: 0 | AA53: 0 | AB53: 0 | AC53: 0 | AD53: 0 | AE53: 0 | AF53: 0 | AG53: 0 | AH53: 0 | AI53: 0 | AJ53: 0 | AK53: 0 | AL53: 0 | AM53: 0 | AN53: 0 | AO53: 0 | AP53: 0 | AQ53: 0 | AR53: 0 | AS53: 0 | AT53: 0 | AU53: 0 | AV53: 0 | AW53: 0 | AX53: 0 | AY53: 0 | AZ53: 0 | BA53: 0 | BB53: 0 | BC53: 0 | BD53: 0 | BE53: 0 | BF53: 0 | BG53: 0 | BH53: 0 | BI53: 0 | BJ53: 0 | BK53: 0 | BL53: 0 | BM53: 0 | BN53: 0 | BO53: 0 | BP53: 0 | BQ53: 0 | BR53: 0 | BS53: 0 | BT53: 0 | BU53: 0 | BV53: 0 | BW53: 0 | CA53: 0 | CB53: 0 | CC53: 0 | CD53: 0 | CE53: 0 | CF53: 0 | CG53: 0 | CH53: 0 | CI53: 0 | CJ53: 0 | CK53: 0
A54: Other Revenues | B54: =Labels!B54 -> Other Revenues | D54: 0 | E54: 0 | F54: 0 | G54: 0 | H54: 0 | I54: 0 | J54: 0 | K54: 0 | L54: 0 | M54: 0 | N54: 0 | O54: 0 | P54: 0 | Q54: 0 | R54: 0 | S54: 0 | T54: 0 | U54: 0 | V54: 0 | W54: 0 | X54: 0 | Y54: 0 | Z54: 0 | AA54: 0 | AB54: 0 | AC54: 0 | AD54: 0 | AE54: 0 | AF54: 0 | AG54: 0 | AH54: 0 | AI54: 0 | AJ54: 0 | AK54: 0 | AL54: 0 | AM54: 0 | AN54: 0 | AO54: 0 | AP54: 0 | AQ54: 0 | AR54: 0 | AS54: 0 | AT54: 0 | AU54: 0 | AV54: 0 | AW54: 0 | AX54: 0 | AY54: 0 | AZ54: 0 | BA54: 0 | BB54: 0 | BC54: 0 | BD54: 0 | BE54: 0 | BF54: 0 | BG54: 0 | BH54: 0 | BI54: 0 | BJ54: 0 | BK54: 0 | BL54: 0 | BM54: 0 | BN54: 0 | BO54: 0 | BP54: 0 | BQ54: 0 | BR54: 0 | BS54: 0 | BT54: 0 | BU54: 0 | BV54: 0 | BW54: 0 | CA54: 0 | CB54: 0 | CC54: 0 | CD54: 0 | CE54: 0 | CF54: 0 | CG54: 0 | CH54: 0 | CI54: 0 | CJ54: 0 | CK54: 0
A55: Hide | B55: =Labels!B55 -> Hide | D55: 0 | E55: 0 | F55: 0 | G55: 0 | H55: 0 | I55: 0 | J55: 0 | K55: 0 | L55: 0 | M55: 0 | N55: 0 | O55: 0 | P55: 0 | Q55: 0 | R55: 0 | S55: 0 | T55: 0 | U55: 0 | V55: 0 | W55: 0 | X55: 0 | Y55: 0 | Z55: 0 | AA55: 0 | AB55: 0 | AC55: 0 | AD55: 0 | AE55: 0 | AF55: 0 | AG55: 0 | AH55: 0 | AI55: 0 | AJ55: 0 | AK55: 0 | AL55: 0 | AM55: 0 | AN55: 0 | AO55: 0 | AP55: 0 | AQ55: 0 | AR55: 0 | AS55: 0 | AT55: 0 | AU55: 0 | AV55: 0 | AW55: 0 | AX55: 0 | AY55: 0 | AZ55: 0 | BA55: 0 | BB55: 0 | BC55: 0 | BD55: 0 | BE55: 0 | BF55: 0 | BG55: 0 | BH55: 0 | BI55: 0 | BJ55: 0 | BK55: 0 | BL55: 0 | BM55: 0 | BN55: 0 | BO55: 0 | BP55: 0 | BQ55: 0 | BR55: 0 | BS55: 0 | BT55: 0 | BU55: 0 | BV55: 0 | BW55: 0 | CA55: 0 | CB55: 0 | CC55: 0 | CD55: 0 | CE55: 0 | CF55: 0 | CG55: 0 | CH55: 0 | CI55: 0 | CJ55: 0 | CK55: 0
A56: Total Revenues | B56: =Labels!B56 -> Total Revenues | D56: =SUM(D42:D55) -> 58.0672 | E56: 57.0573 | F56: 56.1747 | G56: 55.83306 | H56: 58.91034 | I56: 58.26656 | J56: 58.22236 | K56: 63.47109 | L56: 69.06245 | M56: 67.51524 | N56: 68.87743 | O56: 66.84079 | P56: 66.44672 | Q56: 65.77536 | R56: 65.84094 | S56: 66.94826 | T56: 66.24759 | U56: 70.14109 | V56: 70.19351 | W56: 73.12545 | X56: 75.43559 | Y56: 74.95326 | Z56: 80.13042 | AA56: 78.35928 | AB56: 78.50436 | AC56: 74.95383 | AD56: 76.62936 | AE56: 78.16818 | AF56: 78.88233 | AG56: 79.09704 | AH56: 80.58378 | AI56: 85.88943 | AJ56: =SUM(AJ42:AJ55) -> 83.12093 | AK56: 86.5296 | AL56: 86.97514 | AM56: 84.96507 | AN56: 84.55304 | AO56: 84.72128 | AP56: 86.03942 | AQ56: 84.91154 | AR56: 84.26507 | AS56: 87.53108 | AT56: 89.25754 | AU56: 90.43277 | AV56: 94.44269 | AW56: 93.17411 | AX56: 92.92088 | AY56: 91.39429 | AZ56: 89.37547 | BA56: 89.89218 | BB56: 89.74446 | BC56: 91.97973 | BD56: 89.94828 | BE56: 95.62778 | BF56: 94.1861 | BG56: 95.99576 | BH56: 96.53674 | BI56: 97.98778 | BJ56: 96.47342 | BK56: 96.45971 | BL56: 93.95261 | BM56: 94.15996 | BN56: 96.24039 | BO56: 94.28339 | BP56: =SUM(BP42:BP55) -> 96.33286 | BQ56: 97.367 | BR56: 99.1766208 | BS56: 98.5530752 | BT56: 100.8944447 | BU56: 99.18513187 | BV56: 97.84128072 | BW56: 97.23111368 | CA56: =SUM(CA42:CA55) -> 738.29852 | CB56: 853.59747 | CC56: 974.29905 | CD56: 1063.64371 | CE56: 1124.20741 | CF56: 1165.217877 | CG56: 1147.980651 | CH56: 1161.589275 | CI56: 1172.682756 | CJ56: 1179.057768 | CK56: 1184.320184
AM57: =SUM(AB59:AM59) -> 45.20111
B58: =Labels!B58 -> Operating & Maintenance Expenses: | AB58: =AB59/$AM$57 -> 0.01613677186 | AC58: 0.01715887066 | AD58: 0.01526068718 | AE58: 0.1131908044 | AF58: 0.1026100908 | AG58: 0.200022964 | AH58: 0.1227941084 | AI58: 0.1881256898 | AJ58: 0.160856448 | AK58: 0.02627811574 | AL58: 0.01974730267 | AM58: =AM59/$AM$57 -> 0.0178181465 | AN58: =AN59/$CD$59 -> 0.01506585767 | AO58: =AO59/$CD$59 -> 0.01762322612 | AP58: 0.08584690105 | AQ58: 0.06807797451 | AR58: 0.09052062237 | AS58: 0.2661924807 | AT58: 0.1348272482 | AU58: 0.1391765143 | AV58: 0.07611215626 | AW58: 0.0543658259 | AX58: 0.02609559643 | AY58: 0.02609559643
A59: =B59 -> Marketing & Enrollment Costs | B59: =Labels!B59 -> Marketing & Enrollment Costs | D59: =IF(D$6="Actual",SUMIF($A$1385:$A$1424,$B59,D$1385:D$1424)*D$351,SUMIF($A$542:$A$1382,$B59,D$542:D$1382)*D$351) -> 0.934 | E59: 0.9406 | F59: 0.8794 | G59: 0.98139 | H59: 5.22063 | I59: 22.33989 | J59: 2.3836 | K59: 3.39529 | L59: 7.1378 | M59: 6.82965 | N59: =IF(N$6="Actual",SUMIF($A$1385:$A$1424,$B59,N$1385:N$1424)*N$351,SUMIF($A$542:$A$1382,$B59,N$542:N$1382)*N$351) -> 1.012 | O59: 1.17904 | P59: 0.7714 | Q59: 0.7354 | R59: 0.7762 | S59: 1.63084 | T59: 11.21681 | U59: 5.98492 | V59: 8.64347 | W59: 8.24149 | X59: =IF(X$6="Actual",SUMIF($A$1385:$A$1424,$B59,X$1385:X$1424)*X$351,SUMIF($A$542:$A$1382,$B59,X$542:X$1382)*X$351) -> 4.05165 | Y59: 1.48755 | Z59: 0.961 | AA59: 1.22418 | AB59: 0.7294 | AC59: 0.7756 | AD59: 0.6898 | AE59: 5.11635 | AF59: 4.63809 | AG59: 9.04126 | AH59: =IF(AH$6="Actual",SUMIF($A$1385:$A$1424,$B59,AH$1385:AH$1424)*AH$351,SUMIF($A$542:$A$1382,$B59,AH$542:AH$1382)*AH$351) -> 5.55043 | AI59: 8.50349 | AJ59: 7.27089 | AK59: 1.1878 | AL59: 0.8926 | AM59: 0.8054 | AN59: 0.6928 | AO59: 0.8104 | AP59: 3.94765 | AQ59: 3.13055 | AR59: =IF(AR$6="Actual",SUMIF($A$1385:$A$1424,$B59,AR$1385:AR$1424)*AR$351,SUMIF($A$542:$A$1382,$B59,AR$542:AR$1382)*AR$351) -> 4.16257 | AS59: 12.2408 | AT59: =2.2+3+1 -> 6.2 | AU59: =3+2.4+1 -> 6.4 | AV59: =2.5+1 -> 3.5 | AW59: =2+0.5 -> 2.5 | AX59: 1.2 | AY59: 1.2 | AZ59: 0.7006 | BA59: 0.7192 | BB59: =IF(BB$6="Actual",SUMIF($A$1385:$A$1424,$B59,BB$1385:BB$1424)*BB$351,SUMIF($A$542:$A$1382,$B59,BB$542:BB$1382)*BB$351) -> 0 | BC59: 1.52012 | BD59: 1.96225 | BE59: 2.0452 | BF59: 13.59663 | BG59: 4.28618 | BH59: 2.3422 | BI59: 1.99678 | BJ59: 0.88868 | BK59: 0.82 | BL59: =IF(BL$6="Actual",SUMIF($A$1385:$A$1424,$B59,BL$1385:BL$1424)*BL$351,SUMIF($A$542:$A$1382,$B59,BL$542:BL$1382)*BL$351) -> 0.7726 | BM59: 0.7492 | BN59: 4.12345 | BO59: 1.37917 | BP59: 4.29746 | BQ59: 4.09392 | BR59: 7.785970791 | BS59: 7.785970791 | BT59: 7.785970791 | BU59: 2.478610894 | BV59: 0 | BW59: 0 | CA59: =SUM(D59:O59) -> 53.23329 | CB59: =SUM(P59:AA59) -> 45.72491 | CC59: =SUM(AB59:AM59) -> 45.20111 | CD59: =SUM(AN59:AY59) -> 45.98477 | CE59: =SUM(AZ59:BK59) -> 30.87784 | CF59: =SUM(BL59:BW59) -> 41.25232327 | CG59: =IF(CG$6="Actual",SUMIF($A$1385:$A$1424,$B59,CG$1385:CG$1424)*CG$351,SUMIF($A$542:$A$1382,$B59,CG$542:CG$1382)*CG$351) -> 46.09938097 | CH59: 41.84951833 | CI59: 40.94560589 | CJ59: 36.56763571 | CK59: 37.26556503
A60: Removal & Cancellation Costs | B60: =Labels!B60 -> Removal & Cancellation Costs | D60: 7.90875 | E60: 0.83025 | F60: 5.7825 | G60: 4.28625 | H60: 7.785 | I60: 0 | J60: 16.155 | K60: 7.4925 | L60: 11.7585 | M60: 13.9626 | N60: -0.63375 | O60: 11.88375 | P60: 5.9175 | Q60: -0.10125 | R60: 6.7825 | S60: 2.8225 | T60: 6.316 | U60: 5.14 | V60: 2.58425 | W60: 6.67195 | X60: 4.86075 | Y60: 3.4 | Z60: 2.1975 | AA60: 4.43 | AB60: 7.7675 | AC60: 4.98625 | AD60: 4.7125 | AE60: 3.2125 | AF60: 4.375 | AG60: 5.575 | AH60: 9.9125 | AI60: 5.6375 | AJ60: 0.2 | AK60: 12.3 | AL60: 5.65 | AM60: 5.525 | AN60: 4.5875 | AO60: 5.0875 | AP60: 5.0375 | AQ60: 5.5875 | AR60: 5.4 | AS60: 6.6875 | AT60: 7.7375 | AU60: 6.9125 | AV60: 4.9875 | AW60: 4.5875 | AX60: 4.125 | AY60: 2.1375 | AZ60: 5.4 | BA60: 4.875 | BB60: 3.5375 | BC60: 5.675 | BD60: 5.575 | BE60: 7.27 | BF60: 5.505 | BG60: 7.0625 | BH60: 7.3375 | BI60: 7.87228 | BJ60: 4.41522 | BK60: 3.9 | BL60: 5.075 | BM60: 7.075 | BN60: 7.46226 | BO60: 6.3375 | BP60: 7.335 | BQ60: 4.775 | BR60: 6.309831137 | BS60: 6.309831137 | BT60: 6.309831137 | BU60: 6.309831137 | BV60: 6.309831137 | BW60: 6.309831137 | CA60: 87.21135 | CB60: 51.0217 | CC60: 69.85375 | CD60: 62.875 | CE60: 68.425 | CF60: 75.91874682 | CG60: 74.61874229 | CH60: 75.50330285 | CI60: 76.22437914 | CJ60: 76.63875493 | CK60: 76.98081196
A61: Replacements & Claims | B61: =Labels!B61 -> Replacements & Claims | D61: 0.34595 | E61: 0.056 | F61: 0.17 | G61: 0.14 | H61: 0.05 | I61: 0.9 | J61: 0 | K61: 0.2 | L61: 1.30368 | M61: 0.387 | N61: 0 | O61: 0 | P61: 0.2 | Q61: 0.5 | R61: 0 | S61: 0 | T61: 0 | U61: 0.375 | V61: 1.15 | W61: 0.243 | X61: 0.146 | Y61: 0.357 | Z61: 0.04615 | AA61: 0.45 | AB61: 0.398 | AC61: 0.01 | AD61: 0.589 | AE61: 0.2 | AF61: 0 | AG61: 0.04927 | AH61: 0.60625 | AI61: 0.828 | AJ61: 0.3651 | AK61: 0.303 | AL61: 0 | AM61: 0.32 | AN61: 0 | AO61: 0 | AP61: 0 | AQ61: 0 | AR61: 0 | AS61: 0.185 | AT61: 0.205 | AU61: 0.524 | AV61: 0.47618 | AW61: 0.8 | AX61: 0.07524 | AY61: 0 | AZ61: 0 | BA61: 0 | BB61: 0 | BC61: 3.21019 | BD61: 0 | BE61: 0.6 | BF61: 0.50515 | BG61: 1.61121 | BH61: 0.8 | BI61: 0.635 | BJ61: 0 | BK61: 0.431 | BL61: 0.285 | BM61: 0.02748 | BN61: 0.57252 | BO61: 0.2475 | BP61: 0.1 | BQ61: 0.465 | BR61: 0.3882973007 | BS61: 0.3882973007 | BT61: 0.3882973007 | BU61: 0.3882973007 | BV61: 0.3882973007 | BW61: 0.3882973007 | CA61: 3.55263 | CB61: 3.46715 | CC61: 3.66862 | CD61: 2.26542 | CE61: 7.79255 | CF61: 4.027283804 | CG61: 8.035864554 | CH61: 9.292714196 | CI61: 11.72682756 | CJ61: 11.79057768 | CK61: 11.84320184
A62: Sales / Training / Commission | B62: =Labels!B62 -> Sales / Training / Commission | D62: 0 | E62: 0 | F62: 0 | G62: 0 | H62: 0 | I62: 0 | J62: 0 | K62: 0 | L62: 0 | M62: 0 | N62: 0 | O62: 0 | P62: 0 | Q62: 0 | R62: 0 | S62: 0 | T62: 0 | U62: 0 | V62: 0 | W62: 0 | X62: 0 | Y62: 0 | Z62: 0 | AA62: 0 | AB62: 0 | AC62: 0 | AD62: 0 | AE62: 0 | AF62: 0 | AG62: 0 | AH62: 0 | AI62: 0 | AJ62: 0 | AK62: 0 | AL62: 0 | AM62: 0 | AN62: 0 | AO62: 0 | AP62: 0 | AQ62: 0 | AR62: 0 | AS62: 0 | AT62: 0 | AU62: 0 | AV62: 0 | AW62: 0 | AX62: 0 | AY62: 0 | AZ62: 0 | BA62: 0 | BB62: 0 | BC62: 0 | BD62: 0 | BE62: 0 | BF62: 0 | BG62: 0 | BH62: 0 | BI62: 0 | BJ62: 0 | BK62: 0 | BL62: 0 | BM62: 0 | BN62: 0 | BO62: 0 | BP62: 0 | BQ62: 0 | BR62: 0 | BS62: 0 | BT62: 0 | BU62: 0 | BV62: 0 | BW62: 0 | CA62: 0 | CB62: 0 | CC62: 0 | CD62: 0 | CE62: 0 | CF62: 0 | CG62: 0 | CH62: 0 | CI62: 0 | CJ62: 0 | CK62: 0
A63: Billing & Printing Costs & Postage | B63: =Labels!B63 -> Billing & Printing Costs & Postage | D63: 0.40464 | E63: 0.42216 | F63: 0.43152 | G63: 0.41952 | H63: 0 | I63: 0 | J63: 0.44152 | K63: 0.46432 | L63: 0.47144 | M63: 0.47448 | N63: 0.50672 | O63: 0.5108 | P63: 0.50744 | Q63: 0.50344 | R63: 0.50048 | S63: 0.50872 | T63: 0.50336 | U63: 0.52232 | V63: 0.52112 | W63: 0.5304 | X63: 0.54024 | Y63: 0.5528 | Z63: 0.57208 | AA63: 0.58032 | AB63: 0.59512 | AC63: 0.5732 | AD63: 0.5828 | AE63: 0.5984 | AF63: 0.59312 | AG63: 0.58832 | AH63: 0.59064 | AI63: 0.62792 | AJ63: 0.6092 | AK63: 0.63632 | AL63: 0.64256 | AM63: 0.64584 | AN63: 0.64312 | AO63: 0.64456 | AP63: 0.6572 | AQ63: 0.64792 | AR63: 0.6588 | AS63: 0.6692 | AT63: 0.652 | AU63: 0.66768 | AV63: 0.6764 | AW63: 0.69096 | AX63: 0.70784 | AY63: 0.69872 | AZ63: 0.68192 | BA63: 0 | BB63: 1.37312 | BC63: 0.69888 | BD63: 0.6788 | BE63: 0.70848 | BF63: 0.69176 | BG63: 0.72104 | BH63: 0.70304 | BI63: 0.73336 | BJ63: 0.7292 | BK63: 0.73208 | BL63: 0.71856 | BM63: 0.72208 | BN63: 0.73232 | BO63: 0.72112 | BP63: 0.7284 | BQ63: 0.72552 | BR63: 0.918868 | BS63: 0.9312313833 | BT63: 0.9350952526 | BU63: 0.9340150224 | BV63: 0.9315312931 | BW63: 0.9283539127 | CA63: 4.54712 | CB63: 6.34272 | CC63: 7.28344 | CD63: 8.0144 | CE63: 8.45168 | CF63: 9.927094864 | CG63: 10.89025779 | CH63: 11.02907963 | CI63: 11.13761815 | CJ63: 11.21000022 | CK63: 11.25818951
A64: Fuel Expenses | B64: =Labels!B64 -> Fuel Expenses | D64: 0 | E64: 0 | F64: 0 | G64: 0 | H64: 0 | I64: 0 | J64: 0 | K64: 0 | L64: 0 | M64: 0 | N64: 0 | O64: 0 | P64: 0 | Q64: 0 | R64: 0 | S64: 0 | T64: 0 | U64: 0 | V64: 0 | W64: 0 | X64: 0 | Y64: 0 | Z64: 0 | AA64: 0 | AB64: 0 | AC64: 0 | AD64: 0 | AE64: 0 | AF64: 0 | AG64: 0 | AH64: 0 | AI64: 0 | AJ64: 0 | AK64: 0 | AL64: 0 | AM64: 0 | AN64: 0 | AO64: 0 | AP64: 0 | AQ64: 0 | AR64: 0 | AS64: 0 | AT64: 0 | AU64: 0 | AV64: 0 | AW64: 0 | AX64: 0 | AY64: 0 | AZ64: 0 | BA64: 0 | BB64: 0 | BC64: 0 | BD64: 0 | BE64: 0 | BF64: 0 | BG64: 0 | BH64: 0 | BI64: 0 | BJ64: 0 | BK64: 0 | BL64: 0 | BM64: 0 | BN64: 0 | BO64: 0 | BP64: 0 | BQ64: 0 | BR64: 0 | BS64: 0 | BT64: 0 | BU64: 0 | BV64: 0 | BW64: 0 | CA64: 0 | CB64: 0 | CC64: 0 | CD64: 0 | CE64: 0 | CF64: 0 | CG64: 0 | CH64: 0 | CI64: 0 | CJ64: 0 | CK64: 0
A65: Repair & Maintance Expenses | B65: =Labels!B65 -> Repair & Maintance Expenses | D65: 0 | E65: 0 | F65: 0 | G65: 0 | H65: 0 | I65: 0 | J65: 0 | K65: 0 | L65: 0 | M65: 0 | N65: 0 | O65: 0 | P65: 0 | Q65: 0 | R65: 0 | S65: 0 | T65: 0 | U65: 0 | V65: 0 | W65: 0 | X65: 0 | Y65: 0 | Z65: 0 | AA65: 0 | AB65: 0 | AC65: 0 | AD65: 0 | AE65: 0 | AF65: 0 | AG65: 0 | AH65: 0 | AI65: 0 | AJ65: 0 | AK65: 0 | AL65: 0 | AM65: 0 | AN65: 0 | AO65: 0 | AP65: 0 | AQ65: 0 | AR65: 0 | AS65: 0 | AT65: 0 | AU65: 0 | AV65: 0 | AW65: 0 | AX65: 0 | AY65: 0 | AZ65: 0 | BA65: 0 | BB65: 0 | BC65: 0 | BD65: 0 | BE65: 0 | BF65: 0 | BG65: 0 | BH65: 0 | BI65: 0 | BJ65: 0 | BK65: 0 | BL65: 0 | BM65: 0 | BN65: 0 | BO65: 0 | BP65: 0 | BQ65: 0 | BR65: 0 | BS65: 0 | BT65: 0 | BU65: 0 | BV65: 0 | BW65: 0 | CA65: 0 | CB65: 0 | CC65: 0 | CD65: 0 | CE65: 0 | CF65: 0 | CG65: 0 | CH65: 0 | CI65: 0 | CJ65: 0 | CK65: 0
A66: Equipment Costs & Inventory | B66: =Labels!B66 -> Equipment Costs & Inventory | D66: 3.115 | E66: -0.665 | F66: 3.57 | G66: 0.42 | H66: 0.28 | I66: 1.295 | J66: 1.05 | K66: 1.925 | L66: 3.22 | M66: 7.07 | N66: 1.365 | O66: 0.215 | P66: 0.45 | Q66: 0 | R66: 0.42 | S66: 0.525 | T66: 0.175 | U66: 0.73 | V66: 0.53 | W66: 0.42 | X66: 0.84 | Y66: 1.425 | Z66: 0.78 | AA66: 0.84 | AB66: 0.725 | AC66: -0.03 | AD66: 0 | AE66: 0.24 | AF66: 0.31 | AG66: 1.05 | AH66: 0.4 | AI66: 0.68 | AJ66: 0.4 | AK66: 3.38921 | AL66: 3.6822 | AM66: -0.14 | AN66: 0.4 | AO66: 0.02 | AP66: 0.56 | AQ66: 0.2 | AR66: 0.35 | AS66: 1.81 | AT66: 2.55053 | AU66: 1.91287 | AV66: 1.96 | AW66: 2.32 | AX66: 1.4218 | AY66: 0 | AZ66: 0.76154 | BA66: 0.25 | BB66: 0.04 | BC66: 0.24 | BD66: 0.44 | BE66: 0.8 | BF66: 1.2 | BG66: 0.52 | BH66: 2.96 | BI66: 2.30439 | BJ66: 0.21561 | BK66: 1.2 | BL66: 1.04 | BM66: 0.32 | BN66: 0.57619 | BO66: 0.96 | BP66: -0.28 | BQ66: 0.28 | BR66: 1.053184 | BS66: 1.424896 | BT66: 0.681472 | BU66: 0.247808 | BV66: 0.123904 | BW66: 0.061952 | CA66: 22.86 | CB66: 7.135 | CC66: 10.70641 | CD66: 13.5052 | CE66: 10.93154 | CF66: 6.489406 | CG66: 5.4208 | CH66: 5.128929106 | CI66: 5.060428872 | CJ66: 4.654508229 | CK66: 4.742800315
A67: Lease Payment | B67: =Labels!B67 -> Lease Payment | D67: 0 | E67: 0 | F67: 0 | G67: 0 | H67: 0 | I67: 0 | J67: 0 | K67: 0 | L67: 0 | M67: 0 | N67: 0 | O67: 0 | P67: 0 | Q67: 0 | R67: 0 | S67: 0 | T67: 0 | U67: 0 | V67: 0 | W67: 0 | X67: 0 | Y67: 0 | Z67: 0 | AA67: 0 | AB67: 0 | AC67: 0 | AD67: 0 | AE67: 0 | AF67: 0 | AG67: 0 | AH67: 0 | AI67: 0 | AJ67: 0 | AK67: 0 | AL67: 0 | AM67: 0 | AN67: 0 | AO67: 0 | AP67: 0 | AQ67: 0 | AR67: 0 | AS67: 0 | AT67: 0 | AU67: 0 | AV67: 0 | AW67: 0 | AX67: 0 | AY67: 0 | AZ67: 0 | BA67: 0 | BB67: 0 | BC67: 0 | BD67: 0 | BE67: 0 | BF67: 0 | BG67: 0 | BH67: 0 | BI67: 0 | BJ67: 0 | BK67: 0 | BL67: 0 | BM67: 0 | BN67: 0 | BO67: 0 | BP67: 0 | BQ67: 0 | BR67: 0 | BS67: 0 | BT67: 0 | BU67: 0 | BV67: 0 | BW67: 0 | CA67: 0 | CB67: 0 | CC67: 0 | CD67: 0 | CE67: 0 | CF67: 0 | CG67: 0 | CH67: 0 | CI67: 0 | CJ67: 0 | CK67: 0
A68: Partnership Sharing Expense | B68: =Labels!B68 -> Partnership Sharing Expense | D68: 0 | E68: 0 | F68: 0 | G68: 0 | H68: 0 | I68: 0 | J68: 0 | K68: 0 | L68: 0 | M68: 0 | N68: 0 | O68: 0 | P68: 0 | Q68: 0 | R68: 0 | S68: 0 | T68: 0 | U68: 0 | V68: 0 | W68: 0 | X68: 0 | Y68: 0 | Z68: 0 | AA68: 0 | AB68: 0 | AC68: 0 | AD68: 0 | AE68: 0 | AF68: 0 | AG68: 0 | AH68: 0 | AI68: 0 | AJ68: 0 | AK68: 0 | AL68: 0 | AM68: 0 | AN68: 0 | AO68: 0 | AP68: 0 | AQ68: 0 | AR68: 0 | AS68: 0 | AT68: 0 | AU68: 0 | AV68: 0 | AW68: 0 | AX68: 0 | AY68: 0 | AZ68: 0 | BA68: 0 | BB68: 0 | BC68: 0 | BD68: 0 | BE68: 0 | BF68: 0 | BG68: 0 | BH68: 0 | BI68: 0 | BJ68: 0 | BK68: 0 | BL68: 0 | BM68: 0 | BN68: 0 | BO68: 0 | BP68: 0 | BQ68: 0 | BR68: 0 | BS68: 0 | BT68: 0 | BU68: 0 | BV68: 0 | BW68: 0 | CA68: 0 | CB68: 0 | CC68: 0 | CD68: 0 | CE68: 0 | CF68: 0 | CG68: 0 | CH68: 0 | CI68: 0 | CJ68: 0 | CK68: 0
A69: General & Adminstration Expenses | B69: =Labels!B69 -> General & Adminstration Expenses | D69: =IF(D$6="Actual",SUMIF($A$1385:$A$1424,$B69,D$1385:D$1424)*D$351,SUMIF($A$542:$A$1382,$B69,D$542:D$1382)*D$351) -> 2.91884 | E69: 2.63152 | F69: 2.86043 | G69: 4.06069 | H69: 3.33504 | I69: 3.1941 | J69: 2.09169 | K69: 2.99765 | L69: 4.10478 | M69: 2.60305 | N69: =IF(N$6="Actual",SUMIF($A$1385:$A$1424,$B69,N$1385:N$1424)*N$351,SUMIF($A$542:$A$1382,$B69,N$542:N$1382)*N$351) -> 2.72131 | O69: 2.94252 | P69: 3.38518 | Q69: 3.30431 | R69: 4.80238 | S69: 3.44435 | T69: 3.3378 | U69: 3.57693 | V69: 3.41841 | W69: 3.97907 | X69: =IF(X$6="Actual",SUMIF($A$1385:$A$1424,$B69,X$1385:X$1424)*X$351,SUMIF($A$542:$A$1382,$B69,X$542:X$1382)*X$351) -> 6.28795 | Y69: 3.33955 | Z69: 3.05226 | AA69: 6.69522 | AB69: 1.31027 | AC69: 3.36109 | AD69: 4.58218 | AE69: 3.46502 | AF69: 3.56111 | AG69: 3.54337 | AH69: =IF(AH$6="Actual",SUMIF($A$1385:$A$1424,$B69,AH$1385:AH$1424)*AH$351,SUMIF($A$542:$A$1382,$B69,AH$542:AH$1382)*AH$351) -> 3.59711 | AI69: 4.79253 | AJ69: 4.32954 | AK69: 3.56132 | AL69: 3.53448 | AM69: 4.19211 | AN69: 3.46993 | AO69: 4.66335 | AP69: 3.35459 | AQ69: 3.42942 | AR69: =IF(AR$6="Actual",SUMIF($A$1385:$A$1424,$B69,AR$1385:AR$1424)*AR$351,SUMIF($A$542:$A$1382,$B69,AR$542:AR$1382)*AR$351) -> 3.51384 | AS69: 3.35642 | AT69: 3.53963 | AU69: 4.8039 | AV69: 3.73632 | AW69: 3.51763 | AX69: 3.56312 | AY69: 4.14992 | AZ69: 4.44887 | BA69: 2.70737 | BB69: =IF(BB$6="Actual",SUMIF($A$1385:$A$1424,$B69,BB$1385:BB$1424)*BB$351,SUMIF($A$542:$A$1382,$B69,BB$542:BB$1382)*BB$351) -> 2.76435 | BC69: 2.95958 | BD69: 3.02315 | BE69: 2.9927 | BF69: 4.69538 | BG69: 3.38516 | BH69: 3.3424 | BI69: 3.32304 | BJ69: 2.93521 | BK69: 5.30712 | BL69: =IF(BL$6="Actual",SUMIF($A$1385:$A$1424,$B69,BL$1385:BL$1424)*BL$351,SUMIF($A$542:$A$1382,$B69,BL$542:BL$1382)*BL$351) -> 3.87849 | BM69: 5.2025 | BN69: 3.5747 | BO69: 3.75129 | BP69: 2.71959 | BQ69: 3.96623 | BR69: 4.245518193 | BS69: 4.245518193 | BT69: 4.245518193 | BU69: 4.245518193 | BV69: 4.245518193 | BW69: 4.245518193 | CA69: 36.46162 | CB69: 48.62341 | CC69: 43.83013 | CD69: 45.09807 | CE69: 41.88433 | CF69: 48.56590916 | CG69: =IF(CG$6="Actual",SUMIF($A$1385:$A$1424,$B69,CG$1385:CG$1424)*CG$351,SUMIF($A$542:$A$1382,$B69,CG$542:CG$1382)*CG$351) -> 52.70833596 | CH69: 54.53212771 | CI69: 56.41975218 | CJ69: 58.37344351 | CK69: 60.39551403
A70: Other Miscellanous | B70: =Labels!B70 -> Other Miscellanous | D70: 0 | E70: 0 | F70: 0 | G70: 0 | H70: 0 | I70: 0 | J70: 0 | K70: 0 | L70: 0 | M70: 0 | N70: 0 | O70: 0 | P70: 0 | Q70: 0 | R70: 0 | S70: 0 | T70: 0 | U70: 0 | V70: 0 | W70: 0 | X70: 0 | Y70: 0 | Z70: 0 | AA70: 0 | AB70: 0 | AC70: 0 | AD70: 0 | AE70: 0 | AF70: 0 | AG70: 0 | AH70: 0 | AI70: 0 | AJ70: 0 | AK70: 0 | AL70: 0 | AM70: 0 | AN70: 0 | AO70: 0 | AP70: 0 | AQ70: 0 | AR70: 0 | AS70: 0 | AT70: 0 | AU70: 0 | AV70: 0 | AW70: 0 | AX70: 0 | AY70: 0 | AZ70: 0 | BA70: 0 | BB70: 0 | BC70: 0 | BD70: 0 | BE70: 0 | BF70: 0 | BG70: 0 | BH70: 0 | BI70: 0 | BJ70: 0 | BK70: 0 | BL70: 0 | BM70: 0 | BN70: 0 | BO70: 0 | BP70: 0 | BQ70: 0 | BR70: 0 | BS70: 0 | BT70: 0 | BU70: 0 | BV70: 0 | BW70: 0 | CA70: 0 | CB70: 0 | CC70: 0 | CD70: 0 | CE70: 0 | CF70: 0 | CG70: 0 | CH70: 0 | CI70: 0 | CJ70: 0 | CK70: 0
A71: Distribution Network Access Fee | B71: =Labels!B71 -> Distribution Network Access Fee | D71: 0 | E71: 0 | F71: 0 | G71: 0 | H71: 0 | I71: 0 | J71: 0 | K71: 0 | L71: 0 | M71: 0 | N71: 0 | O71: 0 | P71: 0 | Q71: 0 | R71: 0 | S71: 0 | T71: 0 | U71: 0 | V71: 0 | W71: 0 | X71: 0 | Y71: 0 | Z71: 0 | AA71: 0 | AB71: 0 | AC71: 0 | AD71: 0 | AE71: 0 | AF71: 0 | AG71: 0 | AH71: 0 | AI71: 0 | AJ71: 0 | AK71: 0 | AL71: 0 | AM71: 0 | AN71: 0 | AO71: 0 | AP71: 0 | AQ71: 0 | AR71: 0 | AS71: 0 | AT71: 0 | AU71: 0 | AV71: 0 | AW71: 0 | AX71: 0 | AY71: 0 | AZ71: 0 | BA71: 0 | BB71: 0 | BC71: 0 | BD71: 0 | BE71: 0 | BF71: 0 | BG71: 0 | BH71: 0 | BI71: 0 | BJ71: 0 | BK71: 0 | BL71: 0 | BM71: 0 | BN71: 0 | BO71: 0 | BP71: 0 | BQ71: 0 | BR71: 0 | BS71: 0 | BT71: 0 | BU71: 0 | BV71: 0 | BW71: 0 | CA71: 0 | CB71: 0 | CC71: 0 | CD71: 0 | CE71: 0 | CF71: 0 | CG71: 0 | CH71: 0 | CI71: 0 | CJ71: 0 | CK71: 0
A72: Legal | B72: =Labels!B72 -> Legal | D72: 0 | E72: 0 | F72: 0 | G72: 0 | H72: 0 | I72: 0 | J72: 0 | K72: 0 | L72: 0 | M72: 0 | N72: 0 | O72: 0 | P72: 0 | Q72: 0 | R72: 0 | S72: 0 | T72: 0 | U72: 0 | V72: 0 | W72: 0 | X72: 0 | Y72: 0 | Z72: 0 | AA72: 0 | AB72: 0 | AC72: 0 | AD72: 0 | AE72: 0 | AF72: 0 | AG72: 0 | AH72: 0 | AI72: 0 | AJ72: 0 | AK72: 0 | AL72: 0 | AM72: 0 | AN72: 0 | AO72: 0 | AP72: 0 | AQ72: 0 | AR72: 0 | AS72: 0 | AT72: 0 | AU72: 0 | AV72: 0 | AW72: 0 | AX72: 0 | AY72: 0 | AZ72: 0 | BA72: 0 | BB72: 0 | BC72: 0 | BD72: 0 | BE72: 0 | BF72: 0 | BG72: 0 | BH72: 0 | BI72: 0 | BJ72: 0 | BK72: 0 | BL72: 0 | BM72: 0 | BN72: 0 | BO72: 0 | BP72: 0 | BQ72: 0 | BR72: 0 | BS72: 0 | BT72: 0 | BU72: 0 | BV72: 0 | BW72: 0 | CA72: 0 | CB72: 0 | CC72: 0 | CD72: 0 | CE72: 0 | CF72: 0 | CG72: 0 | CH72: 0 | CI72: 0 | CJ72: 0 | CK72: 0
A73: Other Expenses | B73: =Labels!B73 -> Other Expenses | D73: 0 | E73: 0 | F73: 0 | G73: 0 | H73: 0 | I73: 0 | J73: 0 | K73: 0 | L73: 0 | M73: 0 | N73: 0 | O73: 0 | P73: 0 | Q73: 0 | R73: 0 | S73: 0 | T73: 0 | U73: 0 | V73: 0 | W73: 0 | X73: 0 | Y73: 0 | Z73: 0 | AA73: 0 | AB73: 0 | AC73: 0 | AD73: 0 | AE73: 0 | AF73: 0 | AG73: 0 | AH73: 0 | AI73: 0 | AJ73: 0 | AK73: 0 | AL73: 0 | AM73: 0 | AN73: 0 | AO73: 0 | AP73: 0 | AQ73: 0 | AR73: 0 | AS73: 0 | AT73: 0 | AU73: 0 | AV73: 0 | AW73: 0 | AX73: 0 | AY73: 0 | AZ73: 0 | BA73: 0 | BB73: 0 | BC73: 0 | BD73: 0 | BE73: 0 | BF73: 0 | BG73: 0 | BH73: 0 | BI73: 0 | BJ73: 0 | BK73: 0 | BL73: 0 | BM73: 0 | BN73: 0 | BO73: 0 | BP73: 0 | BQ73: 0 | BR73: 0 | BS73: 0 | BT73: 0 | BU73: 0 | BV73: 0 | BW73: 0 | CA73: 0 | CB73: 0 | CC73: 0 | CD73: 0 | CE73: 0 | CF73: 0 | CG73: 0 | CH73: 0 | CI73: 0 | CJ73: 0 | CK73: 0
A74: Other O&M Expense | B74: =Labels!B74 -> Other O&M Expense | D74: 0.67668 | E74: 0.25886 | F74: 0.45862 | G74: 0.56 | H74: 1.67927 | I74: 7.88082 | J74: -6.95502 | K74: 0.46429 | L74: 6.56962 | M74: -0.50423 | N74: 7.51349 | O74: -6.59757 | P74: 0.49071 | Q74: 0.37717 | R74: 0.29102 | S74: 1.83258 | T74: 1.40364 | U74: 0.3789 | V74: 1.21938 | W74: 0.41892 | X74: 0.29452 | Y74: 0.39676 | Z74: 0.38548 | AA74: 0.47627 | AB74: 0.31362 | AC74: 0.28925 | AD74: 0.28908 | AE74: 0.5874 | AF74: 0.55767 | AG74: 0.30271 | AH74: 0.34873 | AI74: 0.26379 | AJ74: 0.46972 | AK74: 0.35991 | AL74: 1.32901 | AM74: -0.26588 | AN74: 0.54028 | AO74: 0.34632 | AP74: 0.32447 | AQ74: 0.29657 | AR74: 2.36893 | AS74: 0.36442 | AT74: 0.38709 | AU74: 0.3036 | AV74: 0.38107 | AW74: 0.28683 | AX74: 2.58998 | AY74: 0.3835 | AZ74: 0.26808 | BA74: 0.28247 | BB74: 1.29837 | BC74: 1.25608 | BD74: 0.27811 | BE74: 0.49937 | BF74: 2.04827 | BG74: -0.57669 | BH74: 0.27112 | BI74: 2.35876 | BJ74: 0.27377 | BK74: 0.45268 | BL74: 0.22808 | BM74: 0.31341 | BN74: 0.22808 | BO74: 1.3718 | BP74: 0.22808 | BQ74: 0.4278 | BR74: 0.6666666667 | BS74: 0.6666666667 | BT74: 0.6666666667 | BU74: 0.6666666667 | BV74: 0.6666666667 | BW74: 0.6666666667 | CA74: 12.00483 | CB74: 7.96535 | CC74: 4.84501 | CD74: 8.57306 | CE74: 8.71039 | CF74: 6.79725 | CG74: 8 | CH74: 8 | CI74: 8 | CJ74: 8 | CK74: 8
A75: Southern Company Support | B75: =Labels!B75 -> Southern Company Support | D75: 0 | E75: 0 | F75: 0 | G75: 0 | H75: 0 | I75: 0 | J75: 0 | K75: 0 | L75: 0 | M75: 0 | N75: 0 | O75: 0 | P75: 0 | Q75: 0 | R75: 0 | S75: 0 | T75: 0 | U75: 0 | V75: 0 | W75: 0 | X75: 0 | Y75: 0 | Z75: 0 | AA75: 0 | AB75: 0 | AC75: 0 | AD75: 0 | AE75: 0 | AF75: 0 | AG75: 0 | AH75: 0 | AI75: 0 | AJ75: 0 | AK75: 0 | AL75: 0 | AM75: 0 | AN75: 0 | AO75: 0 | AP75: 0 | AQ75: 0 | AR75: 0 | AS75: 0 | AT75: 0 | AU75: 0 | AV75: 0 | AW75: 0 | AX75: 0 | AY75: 0 | AZ75: 0 | BA75: 0 | BB75: 0 | BC75: 0 | BD75: 0 | BE75: 0 | BF75: 0 | BG75: 0 | BH75: 0 | BI75: 0 | BJ75: 0 | BK75: 0 | BL75: 0 | BM75: 0 | BN75: 0 | BO75: 0 | BP75: 0 | BQ75: 0 | BR75: 0 | BS75: 0 | BT75: 0 | BU75: 0 | BV75: 0 | BW75: 0 | CA75: 0 | CB75: 0 | CC75: 0 | CD75: 0 | CE75: 0 | CF75: 0 | CG75: 0 | CH75: 0 | CI75: 0 | CJ75: 0 | CK75: 0
A76: Hide | B76: =Labels!B76 -> Hide | D76: 0 | E76: 0 | F76: 0 | G76: 0 | H76: 0 | I76: 0 | J76: 0 | K76: 0 | L76: 0 | M76: 0 | N76: 0 | O76: 0 | P76: 0 | Q76: 0 | R76: 0 | S76: 0 | T76: 0 | U76: 0 | V76: 0 | W76: 0 | X76: 0 | Y76: 0 | Z76: 0 | AA76: 0 | AB76: 0 | AC76: 0 | AD76: 0 | AE76: 0 | AF76: 0 | AG76: 0 | AH76: 0 | AI76: 0 | AJ76: 0 | AK76: 0 | AL76: 0 | AM76: 0 | AN76: 0 | AO76: 0 | AP76: 0 | AQ76: 0 | AR76: 0 | AS76: 0 | AT76: 0 | AU76: 0 | AV76: 0 | AW76: 0 | AX76: 0 | AY76: 0 | AZ76: 0 | BA76: 0 | BB76: 0 | BC76: 0 | BD76: 0 | BE76: 0 | BF76: 0 | BG76: 0 | BH76: 0 | BI76: 0 | BJ76: 0 | BK76: 0 | BL76: 0 | BM76: 0 | BN76: 0 | BO76: 0 | BP76: 0 | BQ76: 0 | BR76: 0 | BS76: 0 | BT76: 0 | BU76: 0 | BV76: 0 | BW76: 0 | CA76: 0 | CB76: 0 | CC76: 0 | CD76: 0 | CE76: 0 | CF76: 0 | CG76: 0 | CH76: 0 | CI76: 0 | CJ76: 0 | CK76: 0
A77: Total Operating & Maintenance Expenses | B77: =Labels!B77 -> Total Operating & Maintenance Expenses | D77: =SUM(D59:D76) -> 16.30386 | E77: 4.47439 | F77: 14.15247 | G77: 10.86785 | H77: 18.34994 | I77: 35.60981 | J77: 15.16679 | K77: 16.93905 | L77: 34.56582 | M77: 30.82255 | N77: 12.48477 | O77: 10.13354 | P77: 11.72223 | Q77: 5.31907 | R77: 13.57258 | S77: 10.76399 | T77: 22.95261 | U77: 16.70807 | V77: 18.06663 | W77: 20.50483 | X77: 17.02111 | Y77: 10.95866 | Z77: 7.99447 | AA77: 14.69599 | AB77: 11.83891 | AC77: 9.96539 | AD77: 11.44536 | AE77: 13.41967 | AF77: 14.03499 | AG77: 20.14993 | AH77: 21.00566 | AI77: 21.33323 | AJ77: =SUM(AJ59:AJ76) -> 13.64445 | AK77: 21.73756 | AL77: 15.73085 | AM77: 11.08247 | AN77: 10.33363 | AO77: 11.57213 | AP77: 13.88141 | AQ77: 13.29196 | AR77: 16.45414 | AS77: 25.31334 | AT77: 21.27175 | AU77: 21.52455 | AV77: 15.71747 | AW77: 14.70292 | AX77: 13.68298 | AY77: 8.56964 | AZ77: 12.26101 | BA77: 8.83404 | BB77: 9.01334 | BC77: 15.55985 | BD77: 11.95731 | BE77: 14.91575 | BF77: 28.24219 | BG77: 17.0094 | BH77: 17.75626 | BI77: 19.22361 | BJ77: 9.45769 | BK77: 12.84288 | BL77: 11.99773 | BM77: 14.40967 | BN77: 17.26952 | BO77: 14.76838 | BP77: =SUM(BP59:BP76) -> 15.12853 | BQ77: 14.73347 | BR77: 21.36833609 | BS77: 21.75241147 | BT77: 21.01285134 | BU77: 15.27074721 | BV77: 12.66574859 | BW77: 12.60061921 | CA77: =SUM(CA59:CA76) -> 219.87084 | CB77: 170.28024 | CC77: 185.38847 | CD77: 186.31592 | CE77: 177.07333 | CF77: 192.9780139 | CG77: 205.7733816 | CH77: 205.3356718 | CI77: 209.5146118 | CJ77: 207.2349203 | CK77: 210.4860827
P78: =P79-P81 -> 1.33887332
B79: =Labels!B79 -> Other Operating Expenses / (Income): | P79: 1.49373332
A80: =B80 -> Insurance Cost | B80: =Labels!B80 -> Insurance Cost | D80: =IF(D$6="Actual",SUMIF($A$1385:$A$1424,$B80,D$1385:D$1424)*D$351,SUMIF($A$542:$A$1382,$B80,D$542:D$1382)*D$351) -> 0 | E80: 0 | F80: 0 | G80: 0 | H80: 0 | I80: 0 | J80: 0 | K80: 0 | L80: 0 | M80: 0 | N80: =IF(N$6="Actual",SUMIF($A$1385:$A$1424,$B80,N$1385:N$1424)*N$351,SUMIF($A$542:$A$1382,$B80,N$542:N$1382)*N$351) -> 0 | O80: 0 | P80: 0 | Q80: 0 | R80: 0 | S80: 0 | T80: 0 | U80: 0 | V80: 0 | W80: 0 | X80: =IF(X$6="Actual",SUMIF($A$1385:$A$1424,$B80,X$1385:X$1424)*X$351,SUMIF($A$542:$A$1382,$B80,X$542:X$1382)*X$351) -> 0 | Y80: 0 | Z80: 0 | AA80: 0 | AB80: 0 | AC80: 0 | AD80: 0 | AE80: 0 | AF80: 0 | AG80: 0 | AH80: =IF(AH$6="Actual",SUMIF($A$1385:$A$1424,$B80,AH$1385:AH$1424)*AH$351,SUMIF($A$542:$A$1382,$B80,AH$542:AH$1382)*AH$351) -> 0 | AI80: 0 | AJ80: 0 | AK80: 0 | AL80: 0 | AM80: 0 | AN80: 0 | AO80: 0 | AP80: 0 | AQ80: 0 | AR80: =IF(AR$6="Actual",SUMIF($A$1385:$A$1424,$B80,AR$1385:AR$1424)*AR$351,SUMIF($A$542:$A$1382,$B80,AR$542:AR$1382)*AR$351) -> 0 | AS80: 0 | AT80: 0 | AU80: 0 | AV80: 0 | AW80: 0 | AX80: 0 | AY80: 0 | AZ80: 0 | BA80: 0 | BB80: =IF(BB$6="Actual",SUMIF($A$1385:$A$1424,$B80,BB$1385:BB$1424)*BB$351,SUMIF($A$542:$A$1382,$B80,BB$542:BB$1382)*BB$351) -> 0 | BC80: 0 | BD80: 0 | BE80: 0 | BF80: 0 | BG80: 0 | BH80: 0 | BI80: 0 | BJ80: 0 | BK80: 0 | BL80: =IF(BL$6="Actual",SUMIF($A$1385:$A$1424,$B80,BL$1385:BL$1424)*BL$351,SUMIF($A$542:$A$1382,$B80,BL$542:BL$1382)*BL$351) -> 0 | BM80: 0 | BN80: 0 | BO80: 0 | BP80: 0 | BQ80: 0 | BR80: 0 | BS80: 0 | BT80: 0 | BU80: 0 | BV80: 0 | BW80: 0 | CA80: =SUM(D80:O80) -> 0 | CB80: =SUM(P80:AA80) -> 0 | CC80: =SUM(AB80:AM80) -> 0 | CD80: =SUM(AN80:AY80) -> 0 | CE80: =SUM(AZ80:BK80) -> 0 | CF80: =SUM(BL80:BW80) -> 0 | CG80: =IF(CG$6="Actual",SUMIF($A$1385:$A$1424,$B80,CG$1385:CG$1424)*CG$351,SUMIF($A$542:$A$1382,$B80,CG$542:CG$1382)*CG$351) -> 0 | CH80: 0 | CI80: 0 | CJ80: 0 | CK80: 0
A81: =B81 -> Taxes Other Than Income | B81: =Labels!B81 -> Taxes Other Than Income | D81: 0.14529 | E81: 0.13072 | F81: 0.12544 | G81: 0.18707 | H81: 0.11109 | I81: 0.11355 | J81: 0.08731 | K81: 0.10307 | L81: 0.15244 | M81: 0.10691 | N81: 0.108 | O81: 0.10311 | P81: 0.15486 | Q81: 0.14048 | R81: 0.20611 | S81: 0.1266 | T81: 0.12423 | U81: 0.11777 | V81: 0.12149 | W81: 0.1188 | X81: 0.18489 | Y81: 0.12017 | Z81: 0.11299 | AA81: 0.11308 | AB81: 0.15387 | AC81: 0.14234 | AD81: 0.31154 | AE81: 0.22233 | AF81: 0.17327 | AG81: 0.17273 | AH81: 0.17218 | AI81: 0.23625 | AJ81: 0.22391 | AK81: 0.17262 | AL81: 0.15837 | AM81: 0.21161 | AN81: 0.20346 | AO81: 0.28927 | AP81: 0.17862 | AQ81: 0.19747 | AR81: 0.19566 | AS81: 0.19446 | AT81: 0.19393 | AU81: 0.26917 | AV81: 0.18642 | AW81: 0.1872 | AX81: 0.18234 | AY81: 0.20552 | AZ81: 0.25923 | BA81: 0.15531 | BB81: 0.15038 | BC81: 0.14946 | BD81: 0.14619 | BE81: 0.14666 | BF81: 0.24259 | BG81: 0.16257 | BH81: 0.15676 | BI81: 0.15861 | BJ81: 0.13523 | BK81: 0.23717 | BL81: 0.25211 | BM81: 0.19025 | BN81: 0.17906 | BO81: 0.17193 | BP81: 0.17397 | BQ81: 0.17274 | BR81: 1.627968057 | BS81: 1.632911798 | BT81: 1.636536697 | BU81: 1.679744785 | BV81: 1.673091715 | BW81: 1.663143253 | CA81: =SUM(D81:O81) -> 1.474 | CB81: =SUM(P81:AA81) -> 1.64147 | CC81: =SUM(AB81:AM81) -> 2.35102 | CD81: =SUM(AN81:AY81) -> 2.48352 | CE81: =SUM(AZ81:BK81) -> 2.10016 | CF81: =SUM(BL81:BW81) -> 11.05345631 | CG81: 18.02923884 | CH81: 16.07672476 | CI81: 13.89972013 | CJ81: 11.99609066 | CK81: 11.09835359
A82: =B82 -> Bad Debt Expense | B82: =Labels!B82 -> Bad Debt Expense | D82: 0 | E82: 0 | F82: 0 | G82: 0 | H82: 0 | I82: 0 | J82: 0 | K82: 0 | L82: 0 | M82: 0 | N82: 0 | O82: 0 | P82: 0 | Q82: 0 | R82: 0 | S82: 0 | T82: 0 | U82: 0 | V82: 0 | W82: 0 | X82: 0 | Y82: 0 | Z82: 0 | AA82: 0 | AB82: 0 | AC82: 0 | AD82: 0 | AE82: 0 | AF82: 0 | AG82: 0 | AH82: 0 | AI82: 0 | AJ82: 0 | AK82: 0 | AL82: 0 | AM82: 0 | AN82: 0 | AO82: 0 | AP82: 0 | AQ82: 0 | AR82: 0 | AS82: 0 | AT82: 0 | AU82: 0 | AV82: 0 | AW82: 0 | AX82: 0 | AY82: 0 | AZ82: 0 | BA82: 0 | BB82: 0 | BC82: 0 | BD82: 0 | BE82: 0 | BF82: 0 | BG82: 0 | BH82: 0 | BI82: 0 | BJ82: 0 | BK82: 0 | BL82: 0 | BM82: 0 | BN82: 0 | BO82: 0 | BP82: 0 | BQ82: 0 | BR82: 0.4816643 | BS82: 0.486835 | BT82: 0.495883104 | BU82: 0.492765376 | BV82: 0.5044722233 | BW82: 0.4959256593 | CA82: =SUM(D82:O82) -> 0 | CB82: =SUM(P82:AA82) -> 0 | CC82: =SUM(AB82:AM82) -> 0 | CD82: =SUM(AN82:AY82) -> 0 | CE82: =SUM(AZ82:BK82) -> 0 | CF82: =SUM(BL82:BW82) -> 2.957545663 | CG82: 5.739903253 | CH82: 5.807946373 | CI82: 5.86341378 | CJ82: 5.895288841 | CK82: 5.92160092
A83: =B83 -> Hide | B83: =Labels!B83 -> Hide | D83: 0 | E83: 0 | F83: 0 | G83: 0 | H83: 0 | I83: 0 | J83: 0 | K83: 0 | L83: 0 | M83: 0 | N83: 0 | O83: 0 | P83: 0 | Q83: 0 | R83: 0 | S83: 0 | T83: 0 | U83: 0 | V83: 0 | W83: 0 | X83: 0 | Y83: 0 | Z83: 0 | AA83: 0 | AB83: 0 | AC83: 0 | AD83: 0 | AE83: 0 | AF83: 0 | AG83: 0 | AH83: 0 | AI83: 0 | AJ83: 0 | AK83: 0 | AL83: 0 | AM83: 0 | AN83: 0 | AO83: 0 | AP83: 0 | AQ83: 0 | AR83: 0 | AS83: 0 | AT83: 0 | AU83: 0 | AV83: 0 | AW83: 0 | AX83: 0 | AY83: 0 | AZ83: 0 | BA83: 0 | BB83: 0 | BC83: 0 | BD83: 0 | BE83: 0 | BF83: 0 | BG83: 0 | BH83: 0 | BI83: 0 | BJ83: 0 | BK83: 0 | BL83: 0 | BM83: 0 | BN83: 0 | BO83: 0 | BP83: 0 | BQ83: 0 | BR83: 0 | BS83: 0 | BT83: 0 | BU83: 0 | BV83: 0 | BW83: 0 | CA83: =SUM(D83:O83) -> 0 | CB83: =SUM(P83:AA83) -> 0 | CC83: =SUM(AB83:AM83) -> 0 | CD83: =SUM(AN83:AY83) -> 0 | CE83: =SUM(AZ83:BK83) -> 0 | CF83: =SUM(BL83:BW83) -> 0 | CG83: 0 | CH83: 0 | CI83: 0 | CJ83: 0 | CK83: 0
A84: =B84 -> Total Other Operating Expenses | B84: =Labels!B84 -> Total Other Operating Expenses | D84: =SUM(D80:D83) -> 0.14529 | E84: 0.13072 | F84: 0.12544 | G84: 0.18707 | H84: 0.11109 | I84: 0.11355 | J84: 0.08731 | K84: 0.10307 | L84: 0.15244 | M84: 0.10691 | N84: 0.108 | O84: 0.10311 | P84: 0.15486 | Q84: 0.14048 | R84: 0.20611 | S84: 0.1266 | T84: 0.12423 | U84: 0.11777 | V84: 0.12149 | W84: 0.1188 | X84: 0.18489 | Y84: 0.12017 | Z84: 0.11299 | AA84: 0.11308 | AB84: 0.15387 | AC84: 0.14234 | AD84: 0.31154 | AE84: 0.22233 | AF84: 0.17327 | AG84: 0.17273 | AH84: 0.17218 | AI84: 0.23625 | AJ84: =SUM(AJ80:AJ83) -> 0.22391 | AK84: 0.17262 | AL84: 0.15837 | AM84: 0.21161 | AN84: 0.20346 | AO84: 0.28927 | AP84: 0.17862 | AQ84: 0.19747 | AR84: 0.19566 | AS84: 0.19446 | AT84: 0.19393 | AU84: 0.26917 | AV84: 0.18642 | AW84: 0.1872 | AX84: 0.18234 | AY84: 0.20552 | AZ84: 0.25923 | BA84: 0.15531 | BB84: 0.15038 | BC84: 0.14946 | BD84: 0.14619 | BE84: 0.14666 | BF84: 0.24259 | BG84: 0.16257 | BH84: 0.15676 | BI84: 0.15861 | BJ84: 0.13523 | BK84: 0.23717 | BL84: 0.25211 | BM84: 0.19025 | BN84: 0.17906 | BO84: 0.17193 | BP84: =SUM(BP80:BP83) -> 0.17397 | BQ84: 0.17274 | BR84: 2.109632357 | BS84: 2.119746798 | BT84: 2.132419801 | BU84: 2.172510161 | BV84: 2.177563939 | BW84: 2.159068913 | CA84: =SUM(CA80:CA83) -> 1.474 | CB84: 1.64147 | CC84: 2.35102 | CD84: 2.48352 | CE84: 2.10016 | CF84: 14.01100197 | CG84: 23.7691421 | CH84: 21.88467113 | CI84: 19.76313391 | CJ84: 17.8913795 | CK84: 17.01995451
B86: =Labels!B86 -> Depreciation & Amortization:
A87: =B87 -> Depreciation | B87: =Labels!B87 -> Depreciation | D87: =IF(D$6="Actual",SUMIF($A$1385:$A$1424,$B87,D$1385:D$1424)*D$351,SUMIF($A$542:$A$1382,$B87,D$542:D$1382)*D$351) -> 13.62583 | E87: 13.58246 | F87: 13.50484 | G87: 14.19168 | H87: 14.26008 | I87: 14.44747 | J87: 14.71381 | K87: 15.06895 | L87: 15.29074 | M87: 16.41857 | N87: =IF(N$6="Actual",SUMIF($A$1385:$A$1424,$B87,N$1385:N$1424)*N$351,SUMIF($A$542:$A$1382,$B87,N$542:N$1382)*N$351) -> 16.542 | O87: 16.60246 | P87: 16.64703 | Q87: 16.7807 | R87: 16.85829 | S87: 17.37814 | T87: 17.335 | U87: 17.62645 | V87: 17.60362 | W87: 18.39284 | X87: =IF(X$6="Actual",SUMIF($A$1385:$A$1424,$B87,X$1385:X$1424)*X$351,SUMIF($A$542:$A$1382,$B87,X$542:X$1382)*X$351) -> 18.77035 | Y87: 19.366 | Z87: 19.607 | AA87: 19.819 | AB87: 19.8662 | AC87: 19.95595 | AD87: 21.11134 | AE87: 20.09623 | AF87: 20.52958 | AG87: 20.7534 | AH87: =IF(AH$6="Actual",SUMIF($A$1385:$A$1424,$B87,AH$1385:AH$1424)*AH$351,SUMIF($A$542:$A$1382,$B87,AH$542:AH$1382)*AH$351) -> 20.9418 | AI87: 21.54916 | AJ87: 21.8844 | AK87: 22.42274 | AL87: 22.56931 | AM87: 22.6403 | AN87: 22.641 | AO87: 22.67732 | AP87: 22.71071 | AQ87: 22.737 | AR87: =IF(AR$6="Actual",SUMIF($A$1385:$A$1424,$B87,AR$1385:AR$1424)*AR$351,SUMIF($A$542:$A$1382,$B87,AR$542:AR$1382)*AR$351) -> 23.10939 | AS87: 23.27825 | AT87: 23.58428 | AU87: 24.25351 | AV87: 24.69323 | AW87: 24.85292 | AX87: 24.91819 | AY87: 24.94024 | AZ87: 24.96987 | BA87: 24.99114 | BB87: =IF(BB$6="Actual",SUMIF($A$1385:$A$1424,$B87,BB$1385:BB$1424)*BB$351,SUMIF($A$542:$A$1382,$B87,BB$542:BB$1382)*BB$351) -> 24.99935 | BC87: 25.05107 | BD87: 25.11885 | BE87: 25.53952 | BF87: 25.70533 | BG87: 26.1433 | BH87: 26.52256 | BI87: 26.73137 | BJ87: 26.78734 | BK87: 26.82877 | BL87: =IF(BL$6="Actual",SUMIF($A$1385:$A$1424,$B87,BL$1385:BL$1424)*BL$351,SUMIF($A$542:$A$1382,$B87,BL$542:BL$1382)*BL$351) -> 26.84324 | BM87: 26.85882 | BN87: 26.91824 | BO87: 26.94421 | BP87: 26.94423 | BQ87: 27.21076 | BR87: 28.1541154 | BS87: 28.2920096 | BT87: 28.41897236 | BU87: 28.90987312 | BV87: 28.94780676 | BW87: 28.9558493 | CA87: =SUM(D87:O87) -> 178.24889 | CB87: =SUM(P87:AA87) -> 216.18442 | CC87: =SUM(AB87:AM87) -> 254.32041 | CD87: =SUM(AN87:AY87) -> 284.39604 | CE87: =SUM(AZ87:BK87) -> 309.38847 | CF87: =SUM(BL87:BW87) -> 333.3981265 | CG87: =IF(CG$6="Actual",SUMIF($A$1385:$A$1424,$B87,CG$1385:CG$1424)*CG$351,SUMIF($A$542:$A$1382,$B87,CG$542:CG$1382)*CG$351) -> 361.4613881 | CH87: 381.7137091 | CI87: 281.0475246 | CJ87: 259.5202024 | CK87: 241.0343187
A88: =B88 -> Hide | B88: =Labels!B88 -> Hide | D88: 0 | E88: 0 | F88: 0 | G88: 0 | H88: 0 | I88: 0 | J88: 0 | K88: 0 | L88: 0 | M88: 0 | N88: 0 | O88: 0 | P88: 0 | Q88: 0 | R88: 0 | S88: 0 | T88: 0 | U88: 0 | V88: 0 | W88: 0 | X88: 0 | Y88: 0 | Z88: 0 | AA88: 0 | AB88: 0 | AC88: 0 | AD88: 0 | AE88: 0 | AF88: 0 | AG88: 0 | AH88: 0 | AI88: 0 | AJ88: 0 | AK88: 0 | AL88: 0 | AM88: 0 | AN88: 0 | AO88: 0 | AP88: 0 | AQ88: 0 | AR88: 0 | AS88: 0 | AT88: 0 | AU88: 0 | AV88: 0 | AW88: 0 | AX88: 0 | AY88: 0 | AZ88: 0 | BA88: 0 | BB88: 0 | BC88: 0 | BD88: 0 | BE88: 0 | BF88: 0 | BG88: 0 | BH88: 0 | BI88: 0 | BJ88: 0 | BK88: 0 | BL88: 0 | BM88: 0 | BN88: 0 | BO88: 0 | BP88: 0 | BQ88: 0 | BR88: 0 | BS88: 0 | BT88: 0 | BU88: 0 | BV88: 0 | BW88: 0 | CA88: =SUM(D88:O88) -> 0 | CB88: =SUM(P88:AA88) -> 0 | CC88: =SUM(AB88:AM88) -> 0 | CD88: =SUM(AN88:AY88) -> 0 | CE88: =SUM(AZ88:BK88) -> 0 | CF88: =SUM(BL88:BW88) -> 0 | CG88: 0 | CH88: 0 | CI88: 0 | CJ88: 0 | CK88: 0
A89: =B89 -> Amortization | B89: =Labels!B89 -> Amortization | D89: 0 | E89: 0 | F89: 0 | G89: 0 | H89: 0 | I89: 0 | J89: 0 | K89: 0 | L89: 0 | M89: 0 | N89: 0 | O89: 0 | P89: 0 | Q89: 0 | R89: 0 | S89: 0 | T89: 0 | U89: 0 | V89: 0 | W89: 0 | X89: 0 | Y89: 0 | Z89: 0 | AA89: 0 | AB89: 0 | AC89: 0 | AD89: 0 | AE89: 0 | AF89: 0 | AG89: 0 | AH89: 0 | AI89: 0 | AJ89: 0 | AK89: 0 | AL89: 0 | AM89: 0 | AN89: 0 | AO89: 0 | AP89: 0 | AQ89: 0 | AR89: 0 | AS89: 0 | AT89: 0 | AU89: 0 | AV89: 0 | AW89: 0 | AX89: 0 | AY89: 0 | AZ89: 0 | BA89: 0 | BB89: 0 | BC89: 0 | BD89: 0 | BE89: 0 | BF89: 0 | BG89: 0 | BH89: 0 | BI89: 0 | BJ89: 0 | BK89: 0 | BL89: 0 | BM89: 0 | BN89: 0 | BO89: 0 | BP89: 0 | BQ89: 0 | BR89: 0 | BS89: 0 | BT89: 0 | BU89: 0 | BV89: 0 | BW89: 0 | CA89: =SUM(D89:O89) -> 0 | CB89: =SUM(P89:AA89) -> 0 | CC89: =SUM(AB89:AM89) -> 0 | CD89: =SUM(AN89:AY89) -> 0 | CE89: =SUM(AZ89:BK89) -> 0 | CF89: =SUM(BL89:BW89) -> 0 | CG89: 0 | CH89: 0 | CI89: 0 | CJ89: 0 | CK89: 0
A90: =B90 -> Hide | B90: =Labels!B90 -> Hide | D90: 0 | E90: 0 | F90: 0 | G90: 0 | H90: 0 | I90: 0 | J90: 0 | K90: 0 | L90: 0 | M90: 0 | N90: 0 | O90: 0 | P90: 0 | Q90: 0 | R90: 0 | S90: 0 | T90: 0 | U90: 0 | V90: 0 | W90: 0 | X90: 0 | Y90: 0 | Z90: 0 | AA90: 0 | AB90: 0 | AC90: 0 | AD90: 0 | AE90: 0 | AF90: 0 | AG90: 0 | AH90: 0 | AI90: 0 | AJ90: 0 | AK90: 0 | AL90: 0 | AM90: 0 | AN90: 0 | AO90: 0 | AP90: 0 | AQ90: 0 | AR90: 0 | AS90: 0 | AT90: 0 | AU90: 0 | AV90: 0 | AW90: 0 | AX90: 0 | AY90: 0 | AZ90: 0 | BA90: 0 | BB90: 0 | BC90: 0 | BD90: 0 | BE90: 0 | BF90: 0 | BG90: 0 | BH90: 0 | BI90: 0 | BJ90: 0 | BK90: 0 | BL90: 0 | BM90: 0 | BN90: 0 | BO90: 0 | BP90: 0 | BQ90: 0 | BR90: 0 | BS90: 0 | BT90: 0 | BU90: 0 | BV90: 0 | BW90: 0 | CA90: =SUM(D90:O90) -> 0 | CB90: =SUM(P90:AA90) -> 0 | CC90: =SUM(AB90:AM90) -> 0 | CD90: =SUM(AN90:AY90) -> 0 | CE90: =SUM(AZ90:BK90) -> 0 | CF90: =SUM(BL90:BW90) -> 0 | CG90: 0 | CH90: 0 | CI90: 0 | CJ90: 0 | CK90: 0
A91: =B91 -> Total Depreciation & Amortization | B91: =Labels!B91 -> Total Depreciation & Amortization | D91: =SUM(D87:D90) -> 13.62583 | E91: 13.58246 | F91: 13.50484 | G91: 14.19168 | H91: 14.26008 | I91: 14.44747 | J91: 14.71381 | K91: 15.06895 | L91: 15.29074 | M91: 16.41857 | N91: 16.542 | O91: 16.60246 | P91: 16.64703 | Q91: 16.7807 | R91: 16.85829 | S91: 17.37814 | T91: 17.335 | U91: 17.62645 | V91: 17.60362 | W91: 18.39284 | X91: 18.77035 | Y91: 19.366 | Z91: 19.607 | AA91: 19.819 | AB91: 19.8662 | AC91: 19.95595 | AD91: 21.11134 | AE91: 20.09623 | AF91: 20.52958 | AG91: 20.7534 | AH91: 20.9418 | AI91: 21.54916 | AJ91: =SUM(AJ87:AJ90) -> 21.8844 | AK91: 22.42274 | AL91: 22.56931 | AM91: 22.6403 | AN91: 22.641 | AO91: 22.67732 | AP91: 22.71071 | AQ91: 22.737 | AR91: 23.10939 | AS91: 23.27825 | AT91: 23.58428 | AU91: 24.25351 | AV91: 24.69323 | AW91: 24.85292 | AX91: 24.91819 | AY91: 24.94024 | AZ91: 24.96987 | BA91: 24.99114 | BB91: 24.99935 | BC91: 25.05107 | BD91: 25.11885 | BE91: 25.53952 | BF91: 25.70533 | BG91: 26.1433 | BH91: 26.52256 | BI91: 26.73137 | BJ91: 26.78734 | BK91: 26.82877 | BL91: 26.84324 | BM91: 26.85882 | BN91: 26.91824 | BO91: 26.94421 | BP91: =SUM(BP87:BP90) -> 26.94423 | BQ91: 27.21076 | BR91: 28.1541154 | BS91: 28.2920096 | BT91: 28.41897236 | BU91: 28.90987312 | BV91: 28.94780676 | BW91: 28.9558493 | CA91: =SUM(CA87:CA90) -> 178.24889 | CB91: 216.18442 | CC91: 254.32041 | CD91: 284.39604 | CE91: 309.38847 | CF91: 333.3981265 | CG91: 361.4613881 | CH91: 381.7137091 | CI91: 281.0475246 | CJ91: 259.5202024 | CK91: 241.0343187
A93: =B93 -> Total Operating Expenses | B93: =Labels!B93 -> Total Operating Expenses | D93: =D77+D84+D91 -> 30.07498 | E93: 18.18757 | F93: 27.78275 | G93: 25.2466 | H93: 32.72111 | I93: 50.17083 | J93: 29.96791 | K93: 32.11107 | L93: 50.009 | M93: 47.34803 | N93: 29.13477 | O93: 26.83911 | P93: 28.52412 | Q93: 22.24025 | R93: 30.63698 | S93: 28.26873 | T93: 40.41184 | U93: 34.45229 | V93: 35.79174 | W93: 39.01647 | X93: 35.97635 | Y93: 30.44483 | Z93: 27.71446 | AA93: 34.62807 | AB93: 31.85898 | AC93: 30.06368 | AD93: 32.86824 | AE93: 33.73823 | AF93: 34.73784 | AG93: 41.07606 | AH93: 42.11964 | AI93: 43.11864 | AJ93: =AJ77+AJ84+AJ91 -> 35.75276 | AK93: 44.33292 | AL93: 38.45853 | AM93: 33.93438 | AN93: 33.17809 | AO93: 34.53872 | AP93: 36.77074 | AQ93: 36.22643 | AR93: 39.75919 | AS93: 48.78605 | AT93: 45.04996 | AU93: 46.04723 | AV93: 40.59712 | AW93: 39.74304 | AX93: 38.78351 | AY93: 33.7154 | AZ93: 37.49011 | BA93: 33.98049 | BB93: 34.16307 | BC93: 40.76038 | BD93: 37.22235 | BE93: 40.60193 | BF93: 54.19011 | BG93: 43.31527 | BH93: 44.43558 | BI93: 46.11359 | BJ93: 36.38026 | BK93: 39.90882 | BL93: 39.09308 | BM93: 41.45874 | BN93: 44.36682 | BO93: 41.88452 | BP93: =BP77+BP84+BP91 -> 42.24673 | BQ93: 42.11697 | BR93: 51.63208384 | BS93: 52.16416787 | BT93: 51.5642435 | BU93: 46.35313049 | BV93: 43.79111928 | BW93: 43.71553742 | CA93: =CA77+CA84+CA91 -> 399.59373 | CB93: 388.10613 | CC93: 442.0599 | CD93: 473.19548 | CE93: 488.56196 | CF93: 540.3871424 | CG93: 591.0039118 | CH93: 608.934052 | CI93: 510.3252703 | CJ93: 484.6465022 | CK93: 468.5403559
A95: =B95 -> Total Operating Income | B95: =Labels!B95 -> Total Operating Income | D95: =D56-D93 -> 27.99222 | E95: 38.86973 | F95: 28.39195 | G95: 30.58646 | H95: 26.18923 | I95: 8.09573 | J95: 28.25445 | K95: 31.36002 | L95: 19.05345 | M95: 20.16721 | N95: 39.74266 | O95: 40.00168 | P95: 37.9226 | Q95: 43.53511 | R95: 35.20396 | S95: 38.67953 | T95: 25.83575 | U95: 35.6888 | V95: 34.40177 | W95: 34.10898 | X95: 39.45924 | Y95: 44.50843 | Z95: 52.41596 | AA95: 43.73121 | AB95: 46.64538 | AC95: 44.89015 | AD95: 43.76112 | AE95: 44.42995 | AF95: 44.14449 | AG95: 38.02098 | AH95: 38.46414 | AI95: 42.77079 | AJ95: =AJ56-AJ93 -> 47.36817 | AK95: 42.19668 | AL95: 48.51661 | AM95: 51.03069 | AN95: 51.37495 | AO95: 50.18256 | AP95: 49.26868 | AQ95: 48.68511 | AR95: 44.50588 | AS95: 38.74503 | AT95: 44.20758 | AU95: 44.38554 | AV95: 53.84557 | AW95: 53.43107 | AX95: 54.13737 | AY95: 57.67889 | AZ95: 51.88536 | BA95: 55.91169 | BB95: 55.58139 | BC95: 51.21935 | BD95: 52.72593 | BE95: 55.02585 | BF95: 39.99599 | BG95: 52.68049 | BH95: 52.10116 | BI95: 51.87419 | BJ95: 60.09316 | BK95: 56.55089 | BL95: 54.85953 | BM95: 52.70122 | BN95: 51.87357 | BO95: 52.39887 | BP95: =BP56-BP93 -> 54.08613 | BQ95: 55.25003 | BR95: 47.54453696 | BS95: 46.38890733 | BT95: 49.33020117 | BU95: 52.83200137 | BV95: 54.05016144 | BW95: 53.51557626 | CA95: =CA56-CA93 -> 338.70479 | CB95: 465.49134 | CC95: 532.23915 | CD95: 590.44823 | CE95: 635.64545 | CF95: 624.8307345 | CG95: 556.9767388 | CH95: 552.6552225 | CI95: 662.3574857 | CJ95: 694.411266 | CK95: 715.7798282
B97: =Labels!B97 -> Other Income:
A98: =B98 -> Hide | B98: =Labels!B98 -> Hide | D98: =IF(D$6="Actual",SUMIF($A$1385:$A$1424,$B98,D$1385:D$1424)*D$351,SUMIF($A$542:$A$1382,$B98,D$542:D$1382)*D$351) -> 0 | E98: 0 | F98: 0 | G98: 0 | H98: 0 | I98: 0 | J98: 0 | K98: 0 | L98: 0 | M98: 0 | N98: =IF(N$6="Actual",SUMIF($A$1385:$A$1424,$B98,N$1385:N$1424)*N$351,SUMIF($A$542:$A$1382,$B98,N$542:N$1382)*N$351) -> 0 | O98: 0 | P98: 0 | Q98: 0 | R98: 0 | S98: 0 | T98: 0 | U98: 0 | V98: 0 | W98: 0 | X98: =IF(X$6="Actual",SUMIF($A$1385:$A$1424,$B98,X$1385:X$1424)*X$351,SUMIF($A$542:$A$1382,$B98,X$542:X$1382)*X$351) -> 0 | Y98: 0 | Z98: 0 | AA98: 0 | AB98: 0 | AC98: 0 | AD98: 0 | AE98: 0 | AF98: 0 | AG98: 0 | AH98: =IF(AH$6="Actual",SUMIF($A$1385:$A$1424,$B98,AH$1385:AH$1424)*AH$351,SUMIF($A$542:$A$1382,$B98,AH$542:AH$1382)*AH$351) -> 0 | AI98: 0 | AJ98: 0 | AK98: 0 | AL98: 0 | AM98: 0 | AN98: 0 | AO98: 0 | AP98: 0 | AQ98: 0 | AR98: =IF(AR$6="Actual",SUMIF($A$1385:$A$1424,$B98,AR$1385:AR$1424)*AR$351,SUMIF($A$542:$A$1382,$B98,AR$542:AR$1382)*AR$351) -> 0 | AS98: 0 | AT98: 0 | AU98: 0 | AV98: 0 | AW98: 0 | AX98: 0 | AY98: 0 | AZ98: 0 | BA98: 0 | BB98: =IF(BB$6="Actual",SUMIF($A$1385:$A$1424,$B98,BB$1385:BB$1424)*BB$351,SUMIF($A$542:$A$1382,$B98,BB$542:BB$1382)*BB$351) -> 0 | BC98: 0 | BD98: 0 | BE98: 0 | BF98: 0 | BG98: 0 | BH98: 0 | BI98: 0 | BJ98: 0 | BK98: 0 | BL98: =IF(BL$6="Actual",SUMIF($A$1385:$A$1424,$B98,BL$1385:BL$1424)*BL$351,SUMIF($A$542:$A$1382,$B98,BL$542:BL$1382)*BL$351) -> 0 | BM98: 0 | BN98: 0 | BO98: 0 | BP98: 0 | BQ98: 0 | BR98: 0 | BS98: 0 | BT98: 0 | BU98: 0 | BV98: 0 | BW98: 0 | CA98: =SUM(D98:O98) -> 0 | CB98: =SUM(P98:AA98) -> 0 | CC98: =SUM(AB98:AM98) -> 0 | CD98: =SUM(AN98:AY98) -> 0 | CE98: =SUM(AZ98:BK98) -> 0 | CF98: =SUM(BL98:BW98) -> 0 | CG98: =IF(CG$6="Actual",SUMIF($A$1385:$A$1424,$B98,CG$1385:CG$1424)*CG$351,SUMIF($A$542:$A$1382,$B98,CG$542:CG$1382)*CG$351) -> 0 | CH98: 0 | CI98: 0 | CJ98: 0 | CK98: 0
A99: Hide | B99: =Labels!B99 -> Hide | D99: 0 | E99: 0 | F99: 0 | G99: 0 | H99: 0 | I99: 0 | J99: 0 | K99: 0 | L99: 0 | M99: 0 | N99: 0 | O99: 0 | P99: 0 | Q99: 0 | R99: 0 | S99: 0 | T99: 0 | U99: 0 | V99: 0 | W99: 0 | X99: 0 | Y99: 0 | Z99: 0 | AA99: 0 | AB99: 0 | AC99: 0 | AD99: 0 | AE99: 0 | AF99: 0 | AG99: 0 | AH99: 0 | AI99: 0 | AJ99: 0 | AK99: 0 | AL99: 0 | AM99: 0 | AN99: 0 | AO99: 0 | AP99: 0 | AQ99: 0 | AR99: 0 | AS99: 0 | AT99: 0 | AU99: 0 | AV99: 0 | AW99: 0 | AX99: 0 | AY99: 0 | AZ99: 0 | BA99: 0 | BB99: 0 | BC99: 0 | BD99: 0 | BE99: 0 | BF99: 0 | BG99: 0 | BH99: 0 | BI99: 0 | BJ99: 0 | BK99: 0 | BL99: 0 | BM99: 0 | BN99: 0 | BO99: 0 | BP99: 0 | BQ99: 0 | BR99: 0 | BS99: 0 | BT99: 0 | BU99: 0 | BV99: 0 | BW99: 0 | CA99: =SUM(D99:O99) -> 0 | CB99: =SUM(P99:AA99) -> 0 | CC99: =SUM(AB99:AM99) -> 0 | CD99: =SUM(AN99:AY99) -> 0 | CE99: =SUM(AZ99:BK99) -> 0 | CF99: =SUM(BL99:BW99) -> 0 | CG99: 0 | CH99: 0 | CI99: 0 | CJ99: 0 | CK99: 0
A100: Temporary Cash Interest Income | B100: =Labels!B100 -> Temporary Cash Interest Income | D100: 0 | E100: 0 | F100: 0 | G100: 0 | H100: 0 | I100: 0 | J100: 0 | K100: 0 | L100: 0 | M100: 0 | N100: 0 | O100: 0 | P100: 0 | Q100: 0 | R100: 0 | S100: 0 | T100: 0 | U100: 0 | V100: 0 | W100: 0 | X100: 0 | Y100: 0 | Z100: 0 | AA100: 0 | AB100: 0 | AC100: 0 | AD100: 0 | AE100: 0 | AF100: 0 | AG100: 0 | AH100: 0 | AI100: 0 | AJ100: 0 | AK100: 0 | AL100: 0 | AM100: 0 | AN100: 0 | AO100: 0 | AP100: 0 | AQ100: 0 | AR100: 0 | AS100: 0 | AT100: 0 | AU100: 0 | AV100: 0 | AW100: 0 | AX100: 0 | AY100: 0 | AZ100: 0 | BA100: 0 | BB100: 0 | BC100: 0 | BD100: 0 | BE100: 0 | BF100: 0 | BG100: 0 | BH100: 0 | BI100: 0 | BJ100: 0 | BK100: 0 | BL100: 0 | BM100: 0 | BN100: 0 | BO100: 0 | BP100: 0 | BQ100: 0 | BR100: 0 | BS100: 0 | BT100: 0 | BU100: 0 | BV100: 0 | BW100: 0 | CA100: =SUM(D100:O100) -> 0 | CB100: =SUM(P100:AA100) -> 0 | CC100: =SUM(AB100:AM100) -> 0 | CD100: =SUM(AN100:AY100) -> 0 | CE100: =SUM(AZ100:BK100) -> 0 | CF100: =SUM(BL100:BW100) -> 0 | CG100: 0 | CH100: 0 | CI100: 0 | CJ100: 0 | CK100: 0
A101: Hide | B101: =Labels!B101 -> Hide
A102: Hide | B102: =Labels!B102 -> Hide | D102: =IF(D$6="Actual",SUMIF($A$1385:$A$1424,$B102,D$1385:D$1424)*D$351,SUMIF($A$542:$A$1382,$B102,D$542:D$1382)*D$351) -> 0 | E102: 0 | F102: 0 | G102: 0 | H102: 0 | I102: 0 | J102: 0 | K102: 0 | L102: 0 | M102: 0 | N102: =IF(N$6="Actual",SUMIF($A$1385:$A$1424,$B102,N$1385:N$1424)*N$351,SUMIF($A$542:$A$1382,$B102,N$542:N$1382)*N$351) -> 0 | O102: 0 | P102: 0 | Q102: 0 | R102: 0 | S102: 0 | T102: 0 | U102: 0 | V102: 0 | W102: 0 | X102: =IF(X$6="Actual",SUMIF($A$1385:$A$1424,$B102,X$1385:X$1424)*X$351,SUMIF($A$542:$A$1382,$B102,X$542:X$1382)*X$351) -> 0 | Y102: 0 | Z102: 0 | AA102: 0 | AB102: 0 | AC102: 0 | AD102: 0 | AE102: 0 | AF102: 0 | AG102: 0 | AH102: =IF(AH$6="Actual",SUMIF($A$1385:$A$1424,$B102,AH$1385:AH$1424)*AH$351,SUMIF($A$542:$A$1382,$B102,AH$542:AH$1382)*AH$351) -> 0 | AI102: 0 | AJ102: 0 | AK102: 0 | AL102: 0 | AM102: 0 | AN102: 0 | AO102: 0 | AP102: 0 | AQ102: 0 | AR102: =IF(AR$6="Actual",SUMIF($A$1385:$A$1424,$B102,AR$1385:AR$1424)*AR$351,SUMIF($A$542:$A$1382,$B102,AR$542:AR$1382)*AR$351) -> 0 | AS102: 0 | AT102: 0 | AU102: 0 | AV102: 0 | AW102: 0 | AX102: 0 | AY102: 0 | AZ102: 0 | BA102: 0 | BB102: =IF(BB$6="Actual",SUMIF($A$1385:$A$1424,$B102,BB$1385:BB$1424)*BB$351,SUMIF($A$542:$A$1382,$B102,BB$542:BB$1382)*BB$351) -> 0 | BC102: 0 | BD102: 0 | BE102: 0 | BF102: 0 | BG102: 0 | BH102: 0 | BI102: 0 | BJ102: 0 | BK102: 0 | BL102: =IF(BL$6="Actual",SUMIF($A$1385:$A$1424,$B102,BL$1385:BL$1424)*BL$351,SUMIF($A$542:$A$1382,$B102,BL$542:BL$1382)*BL$351) -> 0 | BM102: 0 | BN102: 0 | BO102: 0 | BP102: 0 | BQ102: 0 | BR102: 0 | BS102: 0 | BT102: 0 | BU102: 0 | BV102: 0 | BW102: 0 | CA102: =SUM(D102:O102) -> 0 | CB102: =SUM(P102:AA102) -> 0 | CC102: =SUM(AB102:AM102) -> 0 | CD102: =SUM(AN102:AY102) -> 0 | CE102: =SUM(AZ102:BK102) -> 0 | CF102: =SUM(BL102:BW102) -> 0 | CG102: =IF(CG$6="Actual",SUMIF($A$1385:$A$1424,$B102,CG$1385:CG$1424)*CG$351,SUMIF($A$542:$A$1382,$B102,CG$542:CG$1382)*CG$351) -> 0 | CH102: 0 | CI102: 0 | CJ102: 0 | CK102: 0
A103: Asset Sales, Net | B103: =Labels!B103 -> Asset Sales, Net | D103: 0 | E103: 0 | F103: 0 | G103: 0 | H103: 0 | I103: 0 | J103: 0 | K103: 0 | L103: 0 | M103: 0 | N103: 0 | O103: 0 | P103: 0 | Q103: 0 | R103: 0 | S103: 0 | T103: 0 | U103: 0 | V103: 0 | W103: 0 | X103: 0 | Y103: 0 | Z103: 0 | AA103: 0 | AB103: 0 | AC103: 0 | AD103: 0 | AE103: 0 | AF103: 0 | AG103: 0 | AH103: 0 | AI103: 0 | AJ103: 0 | AK103: 0 | AL103: 0 | AM103: 0 | AN103: 0 | AO103: 0 | AP103: 0 | AQ103: 0 | AR103: 0 | AS103: 0 | AT103: 0 | AU103: 0 | AV103: 0 | AW103: 0 | AX103: 0 | AY103: 0 | AZ103: 0 | BA103: 0 | BB103: 0 | BC103: 0 | BD103: 0 | BE103: 0 | BF103: 0 | BG103: 0 | BH103: 0 | BI103: 0 | BJ103: 0 | BK103: 0 | BL103: 0 | BM103: 0 | BN103: 0 | BO103: 0 | BP103: 0 | BQ103: 0 | BR103: 0 | BS103: 0 | BT103: 0 | BU103: 0 | BV103: 0 | BW103: 0 | CA103: =SUM(D103:O103) -> 0 | CB103: =SUM(P103:AA103) -> 0 | CC103: =SUM(AB103:AM103) -> 0 | CD103: =SUM(AN103:AY103) -> 0 | CE103: =SUM(AZ103:BK103) -> 0 | CF103: =SUM(BL103:BW103) -> 0 | CG103: 0 | CH103: 0 | CI103: 0 | CJ103: 0 | CK103: 0
A104: Other Income | B104: =Labels!B104 -> Other Income | D104: 0 | E104: 0 | F104: 0 | G104: 0 | H104: 0 | I104: 0 | J104: 0 | K104: 0 | L104: 0 | M104: 0 | N104: 0 | O104: 0 | P104: 0 | Q104: 0 | R104: 0 | S104: 0 | T104: 0 | U104: 0 | V104: 0 | W104: 0 | X104: 0 | Y104: 0 | Z104: 0 | AA104: 0 | AB104: 0 | AC104: 0 | AD104: 0 | AE104: 0 | AF104: 0 | AG104: 0 | AH104: 0 | AI104: 0 | AJ104: 0 | AK104: 0 | AL104: 0 | AM104: 0 | AN104: 0 | AO104: 0 | AP104: 0 | AQ104: 0 | AR104: 0 | AS104: 0 | AT104: 0 | AU104: 0 | AV104: 0 | AW104: 0 | AX104: 0 | AY104: 0 | AZ104: 0 | BA104: 0 | BB104: 0 | BC104: 0 | BD104: 0 | BE104: 0 | BF104: 0 | BG104: 0 | BH104: 0 | BI104: 0 | BJ104: 0 | BK104: 0 | BL104: 0 | BM104: 0 | BN104: 0 | BO104: 0 | BP104: 0 | BQ104: 0 | BR104: 0 | BS104: 0 | BT104: 0 | BU104: 0 | BV104: 0 | BW104: 0 | CA104: =SUM(D104:O104) -> 0 | CB104: =SUM(P104:AA104) -> 0 | CC104: =SUM(AB104:AM104) -> 0 | CD104: =SUM(AN104:AY104) -> 0 | CE104: =SUM(AZ104:BK104) -> 0 | CF104: =SUM(BL104:BW104) -> 0 | CG104: 0 | CH104: 0 | CI104: 0 | CJ104: 0 | CK104: 0
A105: Hide | B105: =Labels!B105 -> Hide | D105: 0 | E105: 0 | F105: 0 | G105: 0 | H105: 0 | I105: 0 | J105: 0 | K105: 0 | L105: 0 | M105: 0 | N105: 0 | O105: 0 | P105: 0 | Q105: 0 | R105: 0 | S105: 0 | T105: 0 | U105: 0 | V105: 0 | W105: 0 | X105: 0 | Y105: 0 | Z105: 0 | AA105: 0 | AB105: 0 | AC105: 0 | AD105: 0 | AE105: 0 | AF105: 0 | AG105: 0 | AH105: 0 | AI105: 0 | AJ105: 0 | AK105: 0 | AL105: 0 | AM105: 0 | AN105: 0 | AO105: 0 | AP105: 0 | AQ105: 0 | AR105: 0 | AS105: 0 | AT105: 0 | AU105: 0 | AV105: 0 | AW105: 0 | AX105: 0 | AY105: 0 | AZ105: 0 | BA105: 0 | BB105: 0 | BC105: 0 | BD105: 0 | BE105: 0 | BF105: 0 | BG105: 0 | BH105: 0 | BI105: 0 | BJ105: 0 | BK105: 0 | BL105: 0 | BM105: 0 | BN105: 0 | BO105: 0 | BP105: 0 | BQ105: 0 | BR105: 0 | BS105: 0 | BT105: 0 | BU105: 0 | BV105: 0 | BW105: 0 | CA105: =SUM(D105:O105) -> 0 | CB105: =SUM(P105:AA105) -> 0 | CC105: =SUM(AB105:AM105) -> 0 | CD105: =SUM(AN105:AY105) -> 0 | CE105: =SUM(AZ105:BK105) -> 0 | CF105: =SUM(BL105:BW105) -> 0 | CG105: 0 | CH105: 0 | CI105: 0 | CJ105: 0 | CK105: 0
A106: Hide | B106: =Labels!B106 -> Hide | D106: 0 | E106: 0 | F106: 0 | G106: 0 | H106: 0 | I106: 0 | J106: 0 | K106: 0 | L106: 0 | M106: 0 | N106: 0 | O106: 0 | P106: 0 | Q106: 0 | R106: 0 | S106: 0 | T106: 0 | U106: 0 | V106: 0 | W106: 0 | X106: 0 | Y106: 0 | Z106: 0 | AA106: 0 | AB106: 0 | AC106: 0 | AD106: 0 | AE106: 0 | AF106: 0 | AG106: 0 | AH106: 0 | AI106: 0 | AJ106: 0 | AK106: 0 | AL106: 0 | AM106: 0 | AN106: 0 | AO106: 0 | AP106: 0 | AQ106: 0 | AR106: 0 | AS106: 0 | AT106: 0 | AU106: 0 | AV106: 0 | AW106: 0 | AX106: 0 | AY106: 0 | AZ106: 0 | BA106: 0 | BB106: 0 | BC106: 0 | BD106: 0 | BE106: 0 | BF106: 0 | BG106: 0 | BH106: 0 | BI106: 0 | BJ106: 0 | BK106: 0 | BL106: 0 | BM106: 0 | BN106: 0 | BO106: 0 | BP106: 0 | BQ106: 0 | BR106: 0 | BS106: 0 | BT106: 0 | BU106: 0 | BV106: 0 | BW106: 0 | CA106: =SUM(D106:O106) -> 0 | CB106: =SUM(P106:AA106) -> 0 | CC106: =SUM(AB106:AM106) -> 0 | CD106: =SUM(AN106:AY106) -> 0 | CE106: =SUM(AZ106:BK106) -> 0 | CF106: =SUM(BL106:BW106) -> 0 | CG106: 0 | CH106: 0 | CI106: 0 | CJ106: 0 | CK106: 0
A107: Total Other Income | B107: =Labels!B107 -> Total Other Income | D107: =SUM(D98:D106) -> 0 | E107: 0 | F107: 0 | G107: 0 | H107: 0 | I107: 0 | J107: 0 | K107: 0 | L107: 0 | M107: 0 | N107: 0 | O107: 0 | P107: 0 | Q107: 0 | R107: 0 | S107: 0 | T107: 0 | U107: 0 | V107: 0 | W107: 0 | X107: 0 | Y107: 0 | Z107: 0 | AA107: 0 | AB107: 0 | AC107: 0 | AD107: 0 | AE107: 0 | AF107: 0 | AG107: 0 | AH107: 0 | AI107: 0 | AJ107: =SUM(AJ98:AJ106) -> 0 | AK107: 0 | AL107: 0 | AM107: 0 | AN107: 0 | AO107: 0 | AP107: 0 | AQ107: 0 | AR107: 0 | AS107: 0 | AT107: 0 | AU107: 0 | AV107: 0 | AW107: 0 | AX107: 0 | AY107: 0 | AZ107: 0 | BA107: 0 | BB107: 0 | BC107: 0 | BD107: 0 | BE107: 0 | BF107: 0 | BG107: 0 | BH107: 0 | BI107: 0 | BJ107: 0 | BK107: 0 | BL107: 0 | BM107: 0 | BN107: 0 | BO107: 0 | BP107: =SUM(BP98:BP106) -> 0 | BQ107: 0 | BR107: 0 | BS107: 0 | BT107: 0 | BU107: 0 | BV107: 0 | BW107: 0 | CA107: =SUM(CA98:CA106) -> 0 | CB107: 0 | CC107: 0 | CD107: 0 | CE107: 0 | CF107: 0 | CG107: 0 | CH107: 0 | CI107: 0 | CJ107: 0 | CK107: 0
A109: =B109 -> Earnings Before Interest & Taxes (EBIT) | B109: =Labels!B109 -> Earnings Before Interest & Taxes (EBIT) | D109: =D95+D107 -> 27.99222 | E109: 38.86973 | F109: 28.39195 | G109: 30.58646 | H109: 26.18923 | I109: 8.09573 | J109: 28.25445 | K109: 31.36002 | L109: 19.05345 | M109: 20.16721 | N109: 39.74266 | O109: 40.00168 | P109: 37.9226 | Q109: 43.53511 | R109: 35.20396 | S109: 38.67953 | T109: 25.83575 | U109: 35.6888 | V109: 34.40177 | W109: 34.10898 | X109: 39.45924 | Y109: 44.50843 | Z109: 52.41596 | AA109: 43.73121 | AB109: 46.64538 | AC109: 44.89015 | AD109: 43.76112 | AE109: 44.42995 | AF109: 44.14449 | AG109: 38.02098 | AH109: 38.46414 | AI109: 42.77079 | AJ109: =AJ95+AJ107 -> 47.36817 | AK109: 42.19668 | AL109: 48.51661 | AM109: 51.03069 | AN109: 51.37495 | AO109: 50.18256 | AP109: 49.26868 | AQ109: 48.68511 | AR109: 44.50588 | AS109: 38.74503 | AT109: 44.20758 | AU109: 44.38554 | AV109: 53.84557 | AW109: 53.43107 | AX109: 54.13737 | AY109: 57.67889 | AZ109: 51.88536 | BA109: 55.91169 | BB109: 55.58139 | BC109: 51.21935 | BD109: 52.72593 | BE109: 55.02585 | BF109: 39.99599 | BG109: 52.68049 | BH109: 52.10116 | BI109: 51.87419 | BJ109: 60.09316 | BK109: 56.55089 | BL109: 54.85953 | BM109: 52.70122 | BN109: 51.87357 | BO109: 52.39887 | BP109: =BP95+BP107 -> 54.08613 | BQ109: 55.25003 | BR109: 47.54453696 | BS109: 46.38890733 | BT109: 49.33020117 | BU109: 52.83200137 | BV109: 54.05016144 | BW109: 53.51557626 | CA109: =CA95+CA107 -> 338.70479 | CB109: 465.49134 | CC109: 532.23915 | CD109: 590.44823 | CE109: 635.64545 | CF109: 624.8307345 | CG109: 556.9767388 | CH109: 552.6552225 | CI109: 662.3574857 | CJ109: 694.411266 | CK109: 715.7798282
B111: =Labels!B111 -> Interest Expenses:
A112: =B112 -> Long Term Debt Interest Expense | B112: =Labels!B112 -> Long Term Debt Interest Expense | D112: =IF(D$6="Actual",SUMIF($A$1385:$A$1424,$B112,D$1385:D$1424)*D$351,SUMIF($A$542:$A$1382,$B112,D$542:D$1382)*D$351) -> 0 | E112: 0 | F112: 0 | G112: 0 | H112: 0 | I112: 0 | J112: 0 | K112: 0 | L112: 0 | M112: 0 | N112: =IF(N$6="Actual",SUMIF($A$1385:$A$1424,$B112,N$1385:N$1424)*N$351,SUMIF($A$542:$A$1382,$B112,N$542:N$1382)*N$351) -> 0 | O112: 0 | P112: 0 | Q112: 0 | R112: 0 | S112: 0 | T112: 0 | U112: 0 | V112: 0 | W112: 0 | X112: =IF(X$6="Actual",SUMIF($A$1385:$A$1424,$B112,X$1385:X$1424)*X$351,SUMIF($A$542:$A$1382,$B112,X$542:X$1382)*X$351) -> 0 | Y112: 0 | Z112: 0 | AA112: 0 | AB112: 0 | AC112: 0 | AD112: 0 | AE112: 0 | AF112: 0 | AG112: 0 | AH112: =IF(AH$6="Actual",SUMIF($A$1385:$A$1424,$B112,AH$1385:AH$1424)*AH$351,SUMIF($A$542:$A$1382,$B112,AH$542:AH$1382)*AH$351) -> 0 | AI112: 0 | AJ112: 0 | AK112: 0 | AL112: 0 | AM112: 0 | AN112: 0 | AO112: 0 | AP112: 0 | AQ112: 0 | AR112: =IF(AR$6="Actual",SUMIF($A$1385:$A$1424,$B112,AR$1385:AR$1424)*AR$351,SUMIF($A$542:$A$1382,$B112,AR$542:AR$1382)*AR$351) -> 0 | AS112: 0 | AT112: 0 | AU112: 0 | AV112: 0 | AW112: 0 | AX112: 0 | AY112: 0 | AZ112: 0 | BA112: 0 | BB112: =IF(BB$6="Actual",SUMIF($A$1385:$A$1424,$B112,BB$1385:BB$1424)*BB$351,SUMIF($A$542:$A$1382,$B112,BB$542:BB$1382)*BB$351) -> 0 | BC112: 0 | BD112: 0 | BE112: 0 | BF112: 0 | BG112: 0 | BH112: 0 | BI112: 0 | BJ112: 0 | BK112: 0 | BL112: =IF(BL$6="Actual",SUMIF($A$1385:$A$1424,$B112,BL$1385:BL$1424)*BL$351,SUMIF($A$542:$A$1382,$B112,BL$542:BL$1382)*BL$351) -> 0 | BM112: 0 | BN112: 0 | BO112: 0 | BP112: 0 | BQ112: 0 | BR112: 0 | BS112: 0 | BT112: 0 | BU112: 0 | BV112: 0 | BW112: 0 | CA112: =SUM(D112:O112) -> 0 | CB112: =SUM(P112:AA112) -> 0 | CC112: =SUM(AB112:AM112) -> 0 | CD112: =SUM(AN112:AY112) -> 0 | CE112: =SUM(AZ112:BK112) -> 0 | CF112: =SUM(BL112:BW112) -> 0 | CG112: =IF(CG$6="Actual",SUMIF($A$1385:$A$1424,$B112,CG$1385:CG$1424)*CG$351,SUMIF($A$542:$A$1382,$B112,CG$542:CG$1382)*CG$351) -> 0 | CH112: 0 | CI112: 0 | CJ112: 0 | CK112: 0
A113: Hide | B113: =Labels!B113 -> Hide | D113: 0 | E113: 0 | F113: 0 | G113: 0 | H113: 0 | I113: 0 | J113: 0 | K113: 0 | L113: 0 | M113: 0 | N113: 0 | O113: 0 | P113: 0 | Q113: 0 | R113: 0 | S113: 0 | T113: 0 | U113: 0 | V113: 0 | W113: 0 | X113: 0 | Y113: 0 | Z113: 0 | AA113: 0 | AB113: 0 | AC113: 0 | AD113: 0 | AE113: 0 | AF113: 0 | AG113: 0 | AH113: 0 | AI113: 0 | AJ113: 0 | AK113: 0 | AL113: 0 | AM113: 0 | AN113: 0 | AO113: 0 | AP113: 0 | AQ113: 0 | AR113: 0 | AS113: 0 | AT113: 0 | AU113: 0 | AV113: 0 | AW113: 0 | AX113: 0 | AY113: 0 | AZ113: 0 | BA113: 0 | BB113: 0 | BC113: 0 | BD113: 0 | BE113: 0 | BF113: 0 | BG113: 0 | BH113: 0 | BI113: 0 | BJ113: 0 | BK113: 0 | BL113: 0 | BM113: 0 | BN113: 0 | BO113: 0 | BP113: 0 | BQ113: 0 | BR113: 0 | BS113: 0 | BT113: 0 | BU113: 0 | BV113: 0 | BW113: 0 | CA113: 0 | CB113: 0 | CC113: 0 | CD113: 0 | CE113: 0 | CF113: 0 | CG113: 0 | CH113: 0 | CI113: 0 | CJ113: 0 | CK113: 0
A114: Hide | B114: =Labels!B114 -> Hide | D114: 0 | E114: 0 | F114: 0 | G114: 0 | H114: 0 | I114: 0 | J114: 0 | K114: 0 | L114: 0 | M114: 0 | N114: 0 | O114: 0 | P114: 0 | Q114: 0 | R114: 0 | S114: 0 | T114: 0 | U114: 0 | V114: 0 | W114: 0 | X114: 0 | Y114: 0 | Z114: 0 | AA114: 0 | AB114: 0 | AC114: 0 | AD114: 0 | AE114: 0 | AF114: 0 | AG114: 0 | AH114: 0 | AI114: 0 | AJ114: 0 | AK114: 0 | AL114: 0 | AM114: 0 | AN114: 0 | AO114: 0 | AP114: 0 | AQ114: 0 | AR114: 0 | AS114: 0 | AT114: 0 | AU114: 0 | AV114: 0 | AW114: 0 | AX114: 0 | AY114: 0 | AZ114: 0 | BA114: 0 | BB114: 0 | BC114: 0 | BD114: 0 | BE114: 0 | BF114: 0 | BG114: 0 | BH114: 0 | BI114: 0 | BJ114: 0 | BK114: 0 | BL114: 0 | BM114: 0 | BN114: 0 | BO114: 0 | BP114: 0 | BQ114: 0 | BR114: 0 | BS114: 0 | BT114: 0 | BU114: 0 | BV114: 0 | BW114: 0 | CA114: 0 | CB114: 0 | CC114: 0 | CD114: 0 | CE114: 0 | CF114: 0 | CG114: 0 | CH114: 0 | CI114: 0 | CJ114: 0 | CK114: 0
A115: Hide | B115: =Labels!B115 -> Hide | D115: 0 | E115: 0 | F115: 0 | G115: 0 | H115: 0 | I115: 0 | J115: 0 | K115: 0 | L115: 0 | M115: 0 | N115: 0 | O115: 0 | P115: 0 | Q115: 0 | R115: 0 | S115: 0 | T115: 0 | U115: 0 | V115: 0 | W115: 0 | X115: 0 | Y115: 0 | Z115: 0 | AA115: 0 | AB115: 0 | AC115: 0 | AD115: 0 | AE115: 0 | AF115: 0 | AG115: 0 | AH115: 0 | AI115: 0 | AJ115: 0 | AK115: 0 | AL115: 0 | AM115: 0 | AN115: 0 | AO115: 0 | AP115: 0 | AQ115: 0 | AR115: 0 | AS115: 0 | AT115: 0 | AU115: 0 | AV115: 0 | AW115: 0 | AX115: 0 | AY115: 0 | AZ115: 0 | BA115: 0 | BB115: 0 | BC115: 0 | BD115: 0 | BE115: 0 | BF115: 0 | BG115: 0 | BH115: 0 | BI115: 0 | BJ115: 0 | BK115: 0 | BL115: 0 | BM115: 0 | BN115: 0 | BO115: 0 | BP115: 0 | BQ115: 0 | BR115: 0 | BS115: 0 | BT115: 0 | BU115: 0 | BV115: 0 | BW115: 0 | CA115: 0 | CB115: 0 | CC115: 0 | CD115: 0 | CE115: 0 | CF115: 0 | CG115: 0 | CH115: 0 | CI115: 0 | CJ115: 0 | CK115: 0
A116: Hide | B116: =Labels!B116 -> Hide | D116: 0 | E116: 0 | F116: 0 | G116: 0 | H116: 0 | I116: 0 | J116: 0 | K116: 0 | L116: 0 | M116: 0 | N116: 0 | O116: 0 | P116: 0 | Q116: 0 | R116: 0 | S116: 0 | T116: 0 | U116: 0 | V116: 0 | W116: 0 | X116: 0 | Y116: 0 | Z116: 0 | AA116: 0 | AB116: 0 | AC116: 0 | AD116: 0 | AE116: 0 | AF116: 0 | AG116: 0 | AH116: 0 | AI116: 0 | AJ116: 0 | AK116: 0 | AL116: 0 | AM116: 0 | AN116: 0 | AO116: 0 | AP116: 0 | AQ116: 0 | AR116: 0 | AS116: 0 | AT116: 0 | AU116: 0 | AV116: 0 | AW116: 0 | AX116: 0 | AY116: 0 | AZ116: 0 | BA116: 0 | BB116: 0 | BC116: 0 | BD116: 0 | BE116: 0 | BF116: 0 | BG116: 0 | BH116: 0 | BI116: 0 | BJ116: 0 | BK116: 0 | BL116: 0 | BM116: 0 | BN116: 0 | BO116: 0 | BP116: 0 | BQ116: 0 | BR116: 0 | BS116: 0 | BT116: 0 | BU116: 0 | BV116: 0 | BW116: 0 | CA116: 0 | CB116: 0 | CC116: 0 | CD116: 0 | CE116: 0 | CF116: 0 | CG116: 0 | CH116: 0 | CI116: 0 | CJ116: 0 | CK116: 0
A117: Hide | B117: =Labels!B117 -> Hide | D117: 0 | E117: 0 | F117: 0 | G117: 0 | H117: 0 | I117: 0 | J117: 0 | K117: 0 | L117: 0 | M117: 0 | N117: 0 | O117: 0 | P117: 0 | Q117: 0 | R117: 0 | S117: 0 | T117: 0 | U117: 0 | V117: 0 | W117: 0 | X117: 0 | Y117: 0 | Z117: 0 | AA117: 0 | AB117: 0 | AC117: 0 | AD117: 0 | AE117: 0 | AF117: 0 | AG117: 0 | AH117: 0 | AI117: 0 | AJ117: 0 | AK117: 0 | AL117: 0 | AM117: 0 | AN117: 0 | AO117: 0 | AP117: 0 | AQ117: 0 | AR117: 0 | AS117: 0 | AT117: 0 | AU117: 0 | AV117: 0 | AW117: 0 | AX117: 0 | AY117: 0 | AZ117: 0 | BA117: 0 | BB117: 0 | BC117: 0 | BD117: 0 | BE117: 0 | BF117: 0 | BG117: 0 | BH117: 0 | BI117: 0 | BJ117: 0 | BK117: 0 | BL117: 0 | BM117: 0 | BN117: 0 | BO117: 0 | BP117: 0 | BQ117: 0 | BR117: 0 | BS117: 0 | BT117: 0 | BU117: 0 | BV117: 0 | BW117: 0 | CA117: 0 | CB117: 0 | CC117: 0 | CD117: 0 | CE117: 0 | CF117: 0 | CG117: 0 | CH117: 0 | CI117: 0 | CJ117: 0 | CK117: 0
A118: Trust Preferred Dividends | B118: =Labels!B118 -> Trust Preferred Dividends | D118: 0 | E118: 0 | F118: 0 | G118: 0 | H118: 0 | I118: 0 | J118: 0 | K118: 0 | L118: 0 | M118: 0 | N118: 0 | O118: 0 | P118: 0 | Q118: 0 | R118: 0 | S118: 0 | T118: 0 | U118: 0 | V118: 0 | W118: 0 | X118: 0 | Y118: 0 | Z118: 0 | AA118: 0 | AB118: 0 | AC118: 0 | AD118: 0 | AE118: 0 | AF118: 0 | AG118: 0 | AH118: 0 | AI118: 0 | AJ118: 0 | AK118: 0 | AL118: 0 | AM118: 0 | AN118: 0 | AO118: 0 | AP118: 0 | AQ118: 0 | AR118: 0 | AS118: 0 | AT118: 0 | AU118: 0 | AV118: 0 | AW118: 0 | AX118: 0 | AY118: 0 | AZ118: 0 | BA118: 0 | BB118: 0 | BC118: 0 | BD118: 0 | BE118: 0 | BF118: 0 | BG118: 0 | BH118: 0 | BI118: 0 | BJ118: 0 | BK118: 0 | BL118: 0 | BM118: 0 | BN118: 0 | BO118: 0 | BP118: 0 | BQ118: 0 | BR118: 0 | BS118: 0 | BT118: 0 | BU118: 0 | BV118: 0 | BW118: 0 | CA118: 0 | CB118: 0 | CC118: 0 | CD118: 0 | CE118: 0 | CF118: 0 | CG118: 0 | CH118: 0 | CI118: 0 | CJ118: 0 | CK118: 0
A119: Hide | B119: =Labels!B119 -> Hide | D119: 0 | E119: 0 | F119: 0 | G119: 0 | H119: 0 | I119: 0 | J119: 0 | K119: 0 | L119: 0 | M119: 0 | N119: 0 | O119: 0 | P119: 0 | Q119: 0 | R119: 0 | S119: 0 | T119: 0 | U119: 0 | V119: 0 | W119: 0 | X119: 0 | Y119: 0 | Z119: 0 | AA119: 0 | AB119: 0 | AC119: 0 | AD119: 0 | AE119: 0 | AF119: 0 | AG119: 0 | AH119: 0 | AI119: 0 | AJ119: 0 | AK119: 0 | AL119: 0 | AM119: 0 | AN119: 0 | AO119: 0 | AP119: 0 | AQ119: 0 | AR119: 0 | AS119: 0 | AT119: 0 | AU119: 0 | AV119: 0 | AW119: 0 | AX119: 0 | AY119: 0 | AZ119: 0 | BA119: 0 | BB119: 0 | BC119: 0 | BD119: 0 | BE119: 0 | BF119: 0 | BG119: 0 | BH119: 0 | BI119: 0 | BJ119: 0 | BK119: 0 | BL119: 0 | BM119: 0 | BN119: 0 | BO119: 0 | BP119: 0 | BQ119: 0 | BR119: 0 | BS119: 0 | BT119: 0 | BU119: 0 | BV119: 0 | BW119: 0 | CA119: 0 | CB119: 0 | CC119: 0 | CD119: 0 | CE119: 0 | CF119: 0 | CG119: 0 | CH119: 0 | CI119: 0 | CJ119: 0 | CK119: 0
A120: Hide | B120: =Labels!B120 -> Hide | D120: 0 | E120: 0 | F120: 0 | G120: 0 | H120: 0 | I120: 0 | J120: 0 | K120: 0 | L120: 0 | M120: 0 | N120: 0 | O120: 0 | P120: 0 | Q120: 0 | R120: 0 | S120: 0 | T120: 0 | U120: 0 | V120: 0 | W120: 0 | X120: 0 | Y120: 0 | Z120: 0 | AA120: 0 | AB120: 0 | AC120: 0 | AD120: 0 | AE120: 0 | AF120: 0 | AG120: 0 | AH120: 0 | AI120: 0 | AJ120: 0 | AK120: 0 | AL120: 0 | AM120: 0 | AN120: 0 | AO120: 0 | AP120: 0 | AQ120: 0 | AR120: 0 | AS120: 0 | AT120: 0 | AU120: 0 | AV120: 0 | AW120: 0 | AX120: 0 | AY120: 0 | AZ120: 0 | BA120: 0 | BB120: 0 | BC120: 0 | BD120: 0 | BE120: 0 | BF120: 0 | BG120: 0 | BH120: 0 | BI120: 0 | BJ120: 0 | BK120: 0 | BL120: 0 | BM120: 0 | BN120: 0 | BO120: 0 | BP120: 0 | BQ120: 0 | BR120: 0 | BS120: 0 | BT120: 0 | BU120: 0 | BV120: 0 | BW120: 0 | CA120: 0 | CB120: 0 | CC120: 0 | CD120: 0 | CE120: 0 | CF120: 0 | CG120: 0 | CH120: 0 | CI120: 0 | CJ120: 0 | CK120: 0
A121: Hide | B121: =Labels!B121 -> Hide | D121: 0 | E121: 0 | F121: 0 | G121: 0 | H121: 0 | I121: 0 | J121: 0 | K121: 0 | L121: 0 | M121: 0 | N121: 0 | O121: 0 | P121: 0 | Q121: 0 | R121: 0 | S121: 0 | T121: 0 | U121: 0 | V121: 0 | W121: 0 | X121: 0 | Y121: 0 | Z121: 0 | AA121: 0 | AB121: 0 | AC121: 0 | AD121: 0 | AE121: 0 | AF121: 0 | AG121: 0 | AH121: 0 | AI121: 0 | AJ121: 0 | AK121: 0 | AL121: 0 | AM121: 0 | AN121: 0 | AO121: 0 | AP121: 0 | AQ121: 0 | AR121: 0 | AS121: 0 | AT121: 0 | AU121: 0 | AV121: 0 | AW121: 0 | AX121: 0 | AY121: 0 | AZ121: 0 | BA121: 0 | BB121: 0 | BC121: 0 | BD121: 0 | BE121: 0 | BF121: 0 | BG121: 0 | BH121: 0 | BI121: 0 | BJ121: 0 | BK121: 0 | BL121: 0 | BM121: 0 | BN121: 0 | BO121: 0 | BP121: 0 | BQ121: 0 | BR121: 0 | BS121: 0 | BT121: 0 | BU121: 0 | BV121: 0 | BW121: 0 | CA121: 0 | CB121: 0 | CC121: 0 | CD121: 0 | CE121: 0 | CF121: 0 | CG121: 0 | CH121: 0 | CI121: 0 | CJ121: 0 | CK121: 0
A122: Interest During Construction | B122: =Labels!B122 -> Interest During Construction | D122: 0 | E122: 0 | F122: 0 | G122: 0 | H122: 0 | I122: 0 | J122: 0 | K122: 0 | L122: 0 | M122: 0 | N122: 0 | O122: 0 | P122: 0 | Q122: 0 | R122: 0 | S122: 0 | T122: 0 | U122: 0 | V122: 0 | W122: 0 | X122: 0 | Y122: 0 | Z122: 0 | AA122: 0 | AB122: 0 | AC122: 0 | AD122: 0 | AE122: 0 | AF122: 0 | AG122: 0 | AH122: 0 | AI122: 0 | AJ122: 0 | AK122: 0 | AL122: 0 | AM122: 0 | AN122: 0 | AO122: 0 | AP122: 0 | AQ122: 0 | AR122: 0 | AS122: 0 | AT122: 0 | AU122: 0 | AV122: 0 | AW122: 0 | AX122: 0 | AY122: 0 | AZ122: 0 | BA122: 0 | BB122: 0 | BC122: 0 | BD122: 0 | BE122: 0 | BF122: 0 | BG122: 0 | BH122: 0 | BI122: 0 | BJ122: 0 | BK122: 0 | BL122: 0 | BM122: 0 | BN122: 0 | BO122: 0 | BP122: 0 | BQ122: 0 | BR122: 0 | BS122: 0 | BT122: 0 | BU122: 0 | BV122: 0 | BW122: 0 | CA122: 0 | CB122: 0 | CC122: 0 | CD122: 0 | CE122: 0 | CF122: 0 | CG122: 0 | CH122: 0 | CI122: 0 | CJ122: 0 | CK122: 0
A123: Hide | B123: =Labels!B123 -> Hide | D123: 0 | E123: 0 | F123: 0 | G123: 0 | H123: 0 | I123: 0 | J123: 0 | K123: 0 | L123: 0 | M123: 0 | N123: 0 | O123: 0 | P123: 0 | Q123: 0 | R123: 0 | S123: 0 | T123: 0 | U123: 0 | V123: 0 | W123: 0 | X123: 0 | Y123: 0 | Z123: 0 | AA123: 0 | AB123: 0 | AC123: 0 | AD123: 0 | AE123: 0 | AF123: 0 | AG123: 0 | AH123: 0 | AI123: 0 | AJ123: 0 | AK123: 0 | AL123: 0 | AM123: 0 | AN123: 0 | AO123: 0 | AP123: 0 | AQ123: 0 | AR123: 0 | AS123: 0 | AT123: 0 | AU123: 0 | AV123: 0 | AW123: 0 | AX123: 0 | AY123: 0 | AZ123: 0 | BA123: 0 | BB123: 0 | BC123: 0 | BD123: 0 | BE123: 0 | BF123: 0 | BG123: 0 | BH123: 0 | BI123: 0 | BJ123: 0 | BK123: 0 | BL123: 0 | BM123: 0 | BN123: 0 | BO123: 0 | BP123: 0 | BQ123: 0 | BR123: 0 | BS123: 0 | BT123: 0 | BU123: 0 | BV123: 0 | BW123: 0 | CA123: 0 | CB123: 0 | CC123: 0 | CD123: 0 | CE123: 0 | CF123: 0 | CG123: 0 | CH123: 0 | CI123: 0 | CJ123: 0 | CK123: 0
A124: Hide | B124: =Labels!B124 -> Hide | D124: 0 | E124: 0 | F124: 0 | G124: 0 | H124: 0 | I124: 0 | J124: 0 | K124: 0 | L124: 0 | M124: 0 | N124: 0 | O124: 0 | P124: 0 | Q124: 0 | R124: 0 | S124: 0 | T124: 0 | U124: 0 | V124: 0 | W124: 0 | X124: 0 | Y124: 0 | Z124: 0 | AA124: 0 | AB124: 0 | AC124: 0 | AD124: 0 | AE124: 0 | AF124: 0 | AG124: 0 | AH124: 0 | AI124: 0 | AJ124: 0 | AK124: 0 | AL124: 0 | AM124: 0 | AN124: 0 | AO124: 0 | AP124: 0 | AQ124: 0 | AR124: 0 | AS124: 0 | AT124: 0 | AU124: 0 | AV124: 0 | AW124: 0 | AX124: 0 | AY124: 0 | AZ124: 0 | BA124: 0 | BB124: 0 | BC124: 0 | BD124: 0 | BE124: 0 | BF124: 0 | BG124: 0 | BH124: 0 | BI124: 0 | BJ124: 0 | BK124: 0 | BL124: 0 | BM124: 0 | BN124: 0 | BO124: 0 | BP124: 0 | BQ124: 0 | BR124: 0 | BS124: 0 | BT124: 0 | BU124: 0 | BV124: 0 | BW124: 0 | CA124: 0 | CB124: 0 | CC124: 0 | CD124: 0 | CE124: 0 | CF124: 0 | CG124: 0 | CH124: 0 | CI124: 0 | CJ124: 0 | CK124: 0
A125: Hide | B125: =Labels!B125 -> Hide | D125: 0 | E125: 0 | F125: 0 | G125: 0 | H125: 0 | I125: 0 | J125: 0 | K125: 0 | L125: 0 | M125: 0 | N125: 0 | O125: 0 | P125: 0 | Q125: 0 | R125: 0 | S125: 0 | T125: 0 | U125: 0 | V125: 0 | W125: 0 | X125: 0 | Y125: 0 | Z125: 0 | AA125: 0 | AB125: 0 | AC125: 0 | AD125: 0 | AE125: 0 | AF125: 0 | AG125: 0 | AH125: 0 | AI125: 0 | AJ125: 0 | AK125: 0 | AL125: 0 | AM125: 0 | AN125: 0 | AO125: 0 | AP125: 0 | AQ125: 0 | AR125: 0 | AS125: 0 | AT125: 0 | AU125: 0 | AV125: 0 | AW125: 0 | AX125: 0 | AY125: 0 | AZ125: 0 | BA125: 0 | BB125: 0 | BC125: 0 | BD125: 0 | BE125: 0 | BF125: 0 | BG125: 0 | BH125: 0 | BI125: 0 | BJ125: 0 | BK125: 0 | BL125: 0 | BM125: 0 | BN125: 0 | BO125: 0 | BP125: 0 | BQ125: 0 | BR125: 0 | BS125: 0 | BT125: 0 | BU125: 0 | BV125: 0 | BW125: 0 | CA125: 0 | CB125: 0 | CC125: 0 | CD125: 0 | CE125: 0 | CF125: 0 | CG125: 0 | CH125: 0 | CI125: 0 | CJ125: 0 | CK125: 0
A126: Total Net Interest Expenses | B126: =Labels!B126 -> Total Net Interest Expenses | D126: =SUM(D112:D125) -> 0 | E126: 0 | F126: 0 | G126: 0 | H126: 0 | I126: 0 | J126: 0 | K126: 0 | L126: 0 | M126: 0 | N126: 0 | O126: 0 | P126: 0 | Q126: 0 | R126: 0 | S126: 0 | T126: 0 | U126: 0 | V126: 0 | W126: 0 | X126: 0 | Y126: 0 | Z126: 0 | AA126: 0 | AB126: 0 | AC126: 0 | AD126: 0 | AE126: 0 | AF126: 0 | AG126: 0 | AH126: 0 | AI126: 0 | AJ126: =SUM(AJ112:AJ125) -> 0 | AK126: 0 | AL126: 0 | AM126: 0 | AN126: 0 | AO126: 0 | AP126: 0 | AQ126: 0 | AR126: 0 | AS126: 0 | AT126: 0 | AU126: 0 | AV126: 0 | AW126: 0 | AX126: 0 | AY126: 0 | AZ126: 0 | BA126: 0 | BB126: 0 | BC126: 0 | BD126: 0 | BE126: 0 | BF126: 0 | BG126: 0 | BH126: 0 | BI126: 0 | BJ126: 0 | BK126: 0 | BL126: 0 | BM126: 0 | BN126: 0 | BO126: 0 | BP126: =SUM(BP112:BP125) -> 0 | BQ126: 0 | BR126: 0 | BS126: 0 | BT126: 0 | BU126: 0 | BV126: 0 | BW126: 0 | CA126: =SUM(CA112:CA125) -> 0 | CB126: 0 | CC126: =SUM(CC112:CC125) -> 0 | CD126: 0 | CE126: 0 | CF126: 0 | CG126: 0 | CH126: 0 | CI126: 0 | CJ126: 0 | CK126: 0
A128: =B128 -> Earnings Before Taxes (EBT) | B128: =Labels!B128 -> Earnings Before Taxes (EBT) | D128: =D109-D126 -> 27.99222 | E128: 38.86973 | F128: 28.39195 | G128: 30.58646 | H128: 26.18923 | I128: 8.09573 | J128: 28.25445 | K128: 31.36002 | L128: 19.05345 | M128: 20.16721 | N128: 39.74266 | O128: 40.00168 | P128: 37.9226 | Q128: 43.53511 | R128: 35.20396 | S128: 38.67953 | T128: 25.83575 | U128: 35.6888 | V128: 34.40177 | W128: 34.10898 | X128: 39.45924 | Y128: 44.50843 | Z128: 52.41596 | AA128: 43.73121 | AB128: 46.64538 | AC128: 44.89015 | AD128: 43.76112 | AE128: 44.42995 | AF128: 44.14449 | AG128: 38.02098 | AH128: 38.46414 | AI128: 42.77079 | AJ128: =AJ109-AJ126 -> 47.36817 | AK128: 42.19668 | AL128: 48.51661 | AM128: 51.03069 | AN128: 51.37495 | AO128: 50.18256 | AP128: 49.26868 | AQ128: 48.68511 | AR128: 44.50588 | AS128: 38.74503 | AT128: 44.20758 | AU128: 44.38554 | AV128: 53.84557 | AW128: 53.43107 | AX128: 54.13737 | AY128: 57.67889 | AZ128: 51.88536 | BA128: 55.91169 | BB128: 55.58139 | BC128: 51.21935 | BD128: 52.72593 | BE128: 55.02585 | BF128: 39.99599 | BG128: 52.68049 | BH128: 52.10116 | BI128: 51.87419 | BJ128: 60.09316 | BK128: 56.55089 | BL128: 54.85953 | BM128: 52.70122 | BN128: 51.87357 | BO128: 52.39887 | BP128: =BP109-BP126 -> 54.08613 | BQ128: 55.25003 | BR128: 47.54453696 | BS128: 46.38890733 | BT128: 49.33020117 | BU128: 52.83200137 | BV128: 54.05016144 | BW128: 53.51557626 | CA128: =CA109-CA126 -> 338.70479 | CB128: 465.49134 | CC128: 532.23915 | CD128: 590.44823 | CE128: 635.64545 | CF128: 624.8307345 | CG128: 556.9767388 | CH128: 552.6552225 | CI128: 662.3574857 | CJ128: 694.411266 | CK128: 715.7798282
B130: =Labels!B130 -> Income Taxes:
A131: =B131 -> State Income Taxes | B131: =Labels!B131 -> State Income Taxes | D131: =IF(D$6="Actual",SUMIF($A$1385:$A$1424,$B131,D$1385:D$1424)*D$351,SUMIF($A$542:$A$1382,$B131,D$542:D$1382)*D$351) -> 1.539500656 | E131: 2.139522527 | F131: 1.550171737 | G131: 1.740159044 | H131: 1.411966252 | I131: 0.4416173904 | J131: 1.558549009 | K131: 1.698591999 | L131: 1.100248783 | M131: 1.091556573 | N131: =IF(N$6="Actual",SUMIF($A$1385:$A$1424,$B131,N$1385:N$1424)*N$351,SUMIF($A$542:$A$1382,$B131,N$542:N$1382)*N$351) -> 2.17628843 | O131: 2.171584742 | P131: 2.081809602 | Q131: 2.39365995 | R131: 2.002280026 | S131: 2.11665226 | T131: 1.395223066 | U131: 1.909952088 | V131: 1.875544666 | W131: 1.830871934 | X131: =IF(X$6="Actual",SUMIF($A$1385:$A$1424,$B131,X$1385:X$1424)*X$351,SUMIF($A$542:$A$1382,$B131,X$542:X$1382)*X$351) -> 2.238163882 | Y131: 2.432730636 | Z131: 2.871185831 | AA131: 2.372326121 | AB131: 2.566666691 | AC131: 2.46741648 | AD131: 2.467017778 | AE131: 2.503166447 | AF131: 2.162196018 | AG131: 0.9598682048 | AH131: =IF(AH$6="Actual",SUMIF($A$1385:$A$1424,$B131,AH$1385:AH$1424)*AH$351,SUMIF($A$542:$A$1382,$B131,AH$542:AH$1382)*AH$351) -> 1.901803067 | AI131: 2.183611426 | AJ131: 2.226121812 | AK131: 2.073934986 | AL131: 2.390197918 | AM131: 2.494439097 | AN131: 2.501219475 | AO131: 2.550273639 | AP131: 2.415727493 | AQ131: 2.397317562 | AR131: =IF(AR$6="Actual",SUMIF($A$1385:$A$1424,$B131,AR$1385:AR$1424)*AR$351,SUMIF($A$542:$A$1382,$B131,AR$542:AR$1382)*AR$351) -> 2.184313043 | AS131: 1.906051013 | AT131: 2.180890541 | AU131: 2.042888076 | AV131: 2.726390903 | AW131: 2.940552975 | AX131: 2.740229394 | AY131: 2.848770387 | AZ131: 2.510872387 | BA131: 2.548478425 | BB131: =IF(BB$6="Actual",SUMIF($A$1385:$A$1424,$B131,BB$1385:BB$1424)*BB$351,SUMIF($A$542:$A$1382,$B131,BB$542:BB$1382)*BB$351) -> 2.747886843 | BC131: 2.500591946 | BD131: 2.379163651 | BE131: 2.475297889 | BF131: 2.48065196 | BG131: 2.511844252 | BH131: 2.75045196 | BI131: 2.575506593 | BJ131: 3.015734421 | BK131: 2.914325432 | BL131: =IF(BL$6="Actual",SUMIF($A$1385:$A$1424,$B131,BL$1385:BL$1424)*BL$351,SUMIF($A$542:$A$1382,$B131,BL$542:BL$1382)*BL$351) -> 2.745887661 | BM131: 2.67904901 | BN131: 2.570706528 | BO131: 2.613257001 | BP131: 2.757824819 | BQ131: 2.927738707 | BR131: 0 | BS131: 0 | BT131: 0 | BU131: 0 | BV131: 0 | BW131: 0 | CA131: =SUM(D131:O131) -> 18.61975714 | CB131: =SUM(P131:AA131) -> 25.52040006 | CC131: =SUM(AB131:AM131) -> 26.39643992 | CD131: =SUM(AN131:AY131) -> 29.4346245 | CE131: =SUM(AZ131:BK131) -> 31.41080576 | CF131: =SUM(BL131:BW131) -> 16.29446373 | CG131: =IF(CG$6="Actual",SUMIF($A$1385:$A$1424,$B131,CG$1385:CG$1424)*CG$351,SUMIF($A$542:$A$1382,$B131,CG$542:CG$1382)*CG$351) -> 0 | CH131: 0 | CI131: 0 | CJ131: 0 | CK131: 0
A132: =B132 -> Federal Income Taxes | B132: =Labels!B132 -> Federal Income Taxes | D132: 9.25876366 | E132: 12.86683745 | F132: 9.320605653 | G132: 10.46485755 | H132: 8.486335131 | I132: 2.656035774 | J132: 9.372953648 | K132: 10.21525752 | L132: 6.61795311 | M132: 6.564570458 | N132: 13.08342033 | O132: 13.05929444 | P132: 12.51799985 | Q132: 14.39349184 | R132: 12.04462448 | S132: 12.72535862 | T132: 8.391335081 | U132: 11.48922021 | V132: 11.27378614 | W132: 11.01167348 | X132: 13.45764096 | Y132: 14.63027083 | Z132: 17.26529565 | AA132: 14.26725253 | AB132: 15.43353917 | AC132: 14.84011296 | AD132: 14.83465308 | AE132: 15.05416085 | AF132: 14.36378495 | AG132: 12.53061068 | AH132: 12.63397458 | AI132: 14.50599881 | AJ132: 15.58238383 | AK132: 13.86338963 | AL132: 15.98226126 | AM132: 16.67501483 | AN132: 16.71816166 | AO132: 17.04889465 | AP132: 16.14626939 | AQ132: 16.02398505 | AR132: 14.60122214 | AS132: 12.74113229 | AT132: 14.57829028 | AU132: 13.65586954 | AV132: 18.22479576 | AW132: 18.09875568 | AX132: 18.14415114 | AY132: 18.86256571 | AZ132: 16.62551985 | BA132: 16.87452491 | BB132: 18.19486544 | BC132: 16.55744538 | BD132: 15.75341542 | BE132: 16.38992362 | BF132: 16.42546986 | BG132: 16.63195206 | BH132: 17.34236049 | BI132: 16.9334027 | BJ132: 19.82787998 | BK132: 19.1610794 | BL132: 18.05363281 | BM132: 17.6142079 | BN132: 16.90189658 | BO132: 17.18161436 | BP132: 18.13209559 | BQ132: 19.24928399 | BR132: 18.34030513 | BS132: 17.894521 | BT132: 19.0291251 | BU132: 20.37994453 | BV132: 20.84984978 | BW132: 20.64363354 | CA132: =SUM(D132:O132) -> 111.9668847 | CB132: =SUM(P132:AA132) -> 153.4679497 | CC132: =SUM(AB132:AM132) -> 176.2998846 | CD132: =SUM(AN132:AY132) -> 194.8440933 | CE132: =SUM(AZ132:BK132) -> 206.7178391 | CF132: =SUM(BL132:BW132) -> 224.2701103 | CG132: 214.853777 | CH132: 213.1867521 | CI132: 255.5044001 | CJ132: 267.8691459 | CK132: 276.1120687
A133: =B133 -> Total Income Taxes | B133: =Labels!B133 -> Total Income Taxes | D133: =SUM(D131:D132) -> 10.79826432 | E133: 15.00635997 | F133: 10.87077739 | G133: 12.20501659 | H133: 9.898301383 | I133: 3.097653165 | J133: 10.93150266 | K133: 11.91384952 | L133: 7.718201893 | M133: 7.656127031 | N133: 15.25970876 | O133: 15.23087918 | P133: 14.59980945 | Q133: 16.78715179 | R133: 14.04690451 | S133: 14.84201088 | T133: 9.786558148 | U133: 13.3991723 | V133: 13.1493308 | W133: 12.84254541 | X133: 15.69580484 | Y133: 17.06300146 | Z133: 20.13648148 | AA133: 16.63957865 | AB133: 18.00020586 | AC133: 17.30752944 | AD133: 17.30167086 | AE133: 17.5573273 | AF133: 16.52598097 | AG133: 13.49047889 | AH133: 14.53577765 | AI133: 16.68961024 | AJ133: =SUM(AJ131:AJ132) -> 17.80850564 | AK133: 15.93732461 | AL133: 18.37245918 | AM133: 19.16945393 | AN133: 19.21938114 | AO133: 19.59916828 | AP133: 18.56199688 | AQ133: 18.42130261 | AR133: 16.78553518 | AS133: 14.6471833 | AT133: 16.75918082 | AU133: 15.69875761 | AV133: 20.95118666 | AW133: 21.03930865 | AX133: 20.88438054 | AY133: 21.7113361 | AZ133: 19.13639224 | BA133: 19.42300334 | BB133: 20.94275228 | BC133: 19.05803733 | BD133: 18.13257907 | BE133: 18.86522151 | BF133: 18.90612182 | BG133: 19.14379631 | BH133: 20.09281245 | BI133: 19.50890929 | BJ133: 22.8436144 | BK133: 22.07540483 | BL133: 20.79952047 | BM133: 20.29325691 | BN133: 19.47260311 | BO133: 19.79487136 | BP133: =SUM(BP131:BP132) -> 20.88992041 | BQ133: 22.17702269 | BR133: 18.34030513 | BS133: 17.894521 | BT133: 19.0291251 | BU133: 20.37994453 | BV133: 20.84984978 | BW133: 20.64363354 | CA133: =SUM(CA131:CA132) -> 130.5866419 | CB133: 178.9883497 | CC133: 202.6963246 | CD133: 224.2787178 | CE133: 238.1286449 | CF133: 240.564574 | CG133: 214.853777 | CH133: 213.1867521 | CI133: 255.5044001 | CJ133: 267.8691459 | CK133: 276.1120687
A135: =B135 -> Earnings After Taxes (EAT) | B135: =Labels!B135 -> Earnings After Taxes (EAT) | D135: =D128-D133 -> 17.19395568 | E135: 23.86337003 | F135: 17.52117261 | G135: 18.38144341 | H135: 16.29092862 | I135: 4.998076835 | J135: 17.32294734 | K135: 19.44617048 | L135: 11.33524811 | M135: 12.51108297 | N135: 24.48295124 | O135: 24.77080082 | P135: 23.32279055 | Q135: 26.74795821 | R135: 21.15705549 | S135: 23.83751912 | T135: 16.04919185 | U135: 22.2896277 | V135: 21.2524392 | W135: 21.26643459 | X135: 23.76343516 | Y135: 27.44542854 | Z135: 32.27947852 | AA135: 27.09163135 | AB135: 28.64517414 | AC135: 27.58262056 | AD135: 26.45944914 | AE135: 26.8726227 | AF135: 27.61850903 | AG135: 24.53050111 | AH135: 23.92836235 | AI135: 26.08117976 | AJ135: =AJ128-AJ133 -> 29.55966436 | AK135: 26.25935539 | AL135: 30.14415082 | AM135: 31.86123607 | AN135: 32.15556886 | AO135: 30.58339172 | AP135: 30.70668312 | AQ135: 30.26380739 | AR135: 27.72034482 | AS135: 24.0978467 | AT135: 27.44839918 | AU135: 28.68678239 | AV135: 32.89438334 | AW135: 32.39176135 | AX135: 33.25298946 | AY135: 35.9675539 | AZ135: 32.74896776 | BA135: 36.48868666 | BB135: 34.63863772 | BC135: 32.16131267 | BD135: 34.59335093 | BE135: 36.16062849 | BF135: 21.08986818 | BG135: 33.53669369 | BH135: 32.00834755 | BI135: 32.36528071 | BJ135: 37.2495456 | BK135: 34.47548517 | BL135: 34.06000953 | BM135: 32.40796309 | BN135: 32.40096689 | BO135: 32.60399864 | BP135: =BP128-BP133 -> 33.19620959 | BQ135: 33.07300731 | BR135: 29.20423183 | BS135: 28.49438633 | BT135: 30.30107607 | BU135: 32.45205684 | BV135: 33.20031166 | BW135: 32.87194272 | CA135: =CA128-CA133 -> 208.1181481 | CB135: 286.5029903 | CC135: 329.5428254 | CD135: 366.1695122 | CE135: 397.5168051 | CF135: 384.2661605 | CG135: 342.1229618 | CH135: 339.4684704 | CI135: 406.8530856 | CJ135: 426.5421201 | CK135: 439.6677595
A136: =B136 -> Hide | B136: =Labels!B136 -> Hide | D136: =IF(D$6="Actual",SUMIF($A$1385:$A$1424,$B136,D$1385:D$1424)*D$351,SUMIF($A$542:$A$1382,$B136,D$542:D$1382)*D$351) -> 0 | E136: 0 | F136: 0 | G136: 0 | H136: 0 | I136: 0 | J136: 0 | K136: 0 | L136: 0 | M136: 0 | N136: =IF(N$6="Actual",SUMIF($A$1385:$A$1424,$B136,N$1385:N$1424)*N$351,SUMIF($A$542:$A$1382,$B136,N$542:N$1382)*N$351) -> 0 | O136: 0 | P136: 0 | Q136: 0 | R136: 0 | S136: 0 | T136: 0 | U136: 0 | V136: 0 | W136: 0 | X136: =IF(X$6="Actual",SUMIF($A$1385:$A$1424,$B136,X$1385:X$1424)*X$351,SUMIF($A$542:$A$1382,$B136,X$542:X$1382)*X$351) -> 0 | Y136: 0 | Z136: 0 | AA136: 0 | AB136: 0 | AC136: 0 | AD136: 0 | AE136: 0 | AF136: 0 | AG136: 0 | AH136: =IF(AH$6="Actual",SUMIF($A$1385:$A$1424,$B136,AH$1385:AH$1424)*AH$351,SUMIF($A$542:$A$1382,$B136,AH$542:AH$1382)*AH$351) -> 0 | AI136: 0 | AJ136: 0 | AK136: 0 | AL136: 0 | AM136: 0 | AN136: 0 | AO136: 0 | AP136: 0 | AQ136: 0 | AR136: =IF(AR$6="Actual",SUMIF($A$1385:$A$1424,$B136,AR$1385:AR$1424)*AR$351,SUMIF($A$542:$A$1382,$B136,AR$542:AR$1382)*AR$351) -> 0 | AS136: 0 | AT136: 0 | AU136: 0 | AV136: 0 | AW136: 0 | AX136: 0 | AY136: 0 | AZ136: 0 | BA136: 0 | BB136: =IF(BB$6="Actual",SUMIF($A$1385:$A$1424,$B136,BB$1385:BB$1424)*BB$351,SUMIF($A$542:$A$1382,$B136,BB$542:BB$1382)*BB$351) -> 0 | BC136: 0 | BD136: 0 | BE136: 0 | BF136: 0 | BG136: 0 | BH136: 0 | BI136: 0 | BJ136: 0 | BK136: 0 | BL136: =IF(BL$6="Actual",SUMIF($A$1385:$A$1424,$B136,BL$1385:BL$1424)*BL$351,SUMIF($A$542:$A$1382,$B136,BL$542:BL$1382)*BL$351) -> 0 | BM136: 0 | BN136: 0 | BO136: 0 | BP136: 0 | BQ136: 0 | BR136: 0 | BS136: 0 | BT136: 0 | BU136: 0 | BV136: 0 | BW136: 0 | CA136: =SUM(D136:O136) -> 0 | CB136: =SUM(P136:AA136) -> 0 | CC136: =SUM(AB136:AM136) -> 0 | CD136: =SUM(AN136:AY136) -> 0 | CE136: =SUM(AZ136:BK136) -> 0 | CF136: =SUM(BL136:BW136) -> 0 | CG136: =IF(CG$6="Actual",SUMIF($A$1385:$A$1424,$B136,CG$1385:CG$1424)*CG$351,SUMIF($A$542:$A$1382,$B136,CG$542:CG$1382)*CG$351) -> 0 | CH136: 0 | CI136: 0 | CJ136: 0 | CK136: 0
A137: =B137 -> Hide | B137: =Labels!B137 -> Hide | D137: 0 | E137: 0 | F137: 0 | G137: 0 | H137: 0 | I137: 0 | J137: 0 | K137: 0 | L137: 0 | M137: 0 | N137: 0 | O137: 0 | P137: 0 | Q137: 0 | R137: 0 | S137: 0 | T137: 0 | U137: 0 | V137: 0 | W137: 0 | X137: 0 | Y137: 0 | Z137: 0 | AA137: 0 | AB137: 0 | AC137: 0 | AD137: 0 | AE137: 0 | AF137: 0 | AG137: 0 | AH137: 0 | AI137: 0 | AJ137: 0 | AK137: 0 | AL137: 0 | AM137: 0 | AN137: 0 | AO137: 0 | AP137: 0 | AQ137: 0 | AR137: 0 | AS137: 0 | AT137: 0 | AU137: 0 | AV137: 0 | AW137: 0 | AX137: 0 | AY137: 0 | AZ137: 0 | BA137: 0 | BB137: 0 | BC137: 0 | BD137: 0 | BE137: 0 | BF137: 0 | BG137: 0 | BH137: 0 | BI137: 0 | BJ137: 0 | BK137: 0 | BL137: 0 | BM137: 0 | BN137: 0 | BO137: 0 | BP137: 0 | BQ137: 0 | BR137: 0 | BS137: 0 | BT137: 0 | BU137: 0 | BV137: 0 | BW137: 0 | CA137: =SUM(D137:O137) -> 0 | CB137: =SUM(P137:AA137) -> 0 | CC137: =SUM(AB137:AM137) -> 0 | CD137: =SUM(AN137:AY137) -> 0 | CE137: =SUM(AZ137:BK137) -> 0 | CF137: =SUM(BL137:BW137) -> 0 | CG137: 0 | CH137: 0 | CI137: 0 | CJ137: 0 | CK137: 0
A138: =B138 -> Preferred Dividends | B138: =Labels!B138 -> Preferred Dividends | D138: 0 | E138: 0 | F138: 0 | G138: 0 | H138: 0 | I138: 0 | J138: 0 | K138: 0 | L138: 0 | M138: 0 | N138: 0 | O138: 0 | P138: 0 | Q138: 0 | R138: 0 | S138: 0 | T138: 0 | U138: 0 | V138: 0 | W138: 0 | X138: 0 | Y138: 0 | Z138: 0 | AA138: 0 | AB138: 0 | AC138: 0 | AD138: 0 | AE138: 0 | AF138: 0 | AG138: 0 | AH138: 0 | AI138: 0 | AJ138: 0 | AK138: 0 | AL138: 0 | AM138: 0 | AN138: 0 | AO138: 0 | AP138: 0 | AQ138: 0 | AR138: 0 | AS138: 0 | AT138: 0 | AU138: 0 | AV138: 0 | AW138: 0 | AX138: 0 | AY138: 0 | AZ138: 0 | BA138: 0 | BB138: 0 | BC138: 0 | BD138: 0 | BE138: 0 | BF138: 0 | BG138: 0 | BH138: 0 | BI138: 0 | BJ138: 0 | BK138: 0 | BL138: 0 | BM138: 0 | BN138: 0 | BO138: 0 | BP138: 0 | BQ138: 0 | BR138: 0 | BS138: 0 | BT138: 0 | BU138: 0 | BV138: 0 | BW138: 0 | CA138: =SUM(D138:O138) -> 0 | CB138: =SUM(P138:AA138) -> 0 | CC138: =SUM(AB138:AM138) -> 0 | CD138: =SUM(AN138:AY138) -> 0 | CE138: =SUM(AZ138:BK138) -> 0 | CF138: =SUM(BL138:BW138) -> 0 | CG138: 0 | CH138: 0 | CI138: 0 | CJ138: 0 | CK138: 0
A139: =B139 -> Net Income | B139: =Labels!B139 -> Net Income | D139: =D135-SUM(D136:D138) -> 17.19395568 | E139: 23.86337003 | F139: 17.52117261 | G139: 18.38144341 | H139: 16.29092862 | I139: 4.998076835 | J139: 17.32294734 | K139: 19.44617048 | L139: 11.33524811 | M139: 12.51108297 | N139: 24.48295124 | O139: 24.77080082 | P139: 23.32279055 | Q139: 26.74795821 | R139: 21.15705549 | S139: 23.83751912 | T139: 16.04919185 | U139: 22.2896277 | V139: 21.2524392 | W139: 21.26643459 | X139: 23.76343516 | Y139: 27.44542854 | Z139: 32.27947852 | AA139: 27.09163135 | AB139: 28.64517414 | AC139: 27.58262056 | AD139: 26.45944914 | AE139: 26.8726227 | AF139: 27.61850903 | AG139: 24.53050111 | AH139: 23.92836235 | AI139: 26.08117976 | AJ139: =AJ135-SUM(AJ136:AJ138) -> 29.55966436 | AK139: 26.25935539 | AL139: 30.14415082 | AM139: 31.86123607 | AN139: 32.15556886 | AO139: 30.58339172 | AP139: 30.70668312 | AQ139: 30.26380739 | AR139: 27.72034482 | AS139: 24.0978467 | AT139: 27.44839918 | AU139: 28.68678239 | AV139: 32.89438334 | AW139: 32.39176135 | AX139: 33.25298946 | AY139: 35.9675539 | AZ139: 32.74896776 | BA139: 36.48868666 | BB139: 34.63863772 | BC139: 32.16131267 | BD139: 34.59335093 | BE139: 36.16062849 | BF139: 21.08986818 | BG139: 33.53669369 | BH139: 32.00834755 | BI139: 32.36528071 | BJ139: 37.2495456 | BK139: 34.47548517 | BL139: 34.06000953 | BM139: 32.40796309 | BN139: 32.40096689 | BO139: 32.60399864 | BP139: =BP135-SUM(BP136:BP138) -> 33.19620959 | BQ139: 33.07300731 | BR139: 29.20423183 | BS139: 28.49438633 | BT139: 30.30107607 | BU139: 32.45205684 | BV139: 33.20031166 | BW139: 32.87194272 | CA139: =CA135-SUM(CA136:CA138) -> 208.1181481 | CB139: 286.5029903 | CC139: 329.5428254 | CD139: 366.1695122 | CE139: 397.5168051 | CF139: 384.2661605 | CG139: 342.1229618 | CH139: 339.4684704 | CI139: 406.8530856 | CJ139: 426.5421201 | CK139: 439.6677595
B141: =Labels!B141 -> BALANCE SHEET
B143: =Labels!B143 -> Assets:
B144: =Labels!B144 -> Property, Plant and Equipment:
A145: =B145 -> Plant in Service | B145: =Labels!B145 -> Plant in Service | C145: 0 | D145: =IF(D$6="Actual",SUMIF($A$1385:$A$1424,$B145,D$1385:D$1424)*D$351,C145+SUMIF($A$542:$A$1382,$B145,D$542:D$1382)*D$351) -> 0 | E145: 0 | F145: 0 | G145: 0 | H145: 0 | I145: 0 | J145: 0 | K145: 0 | L145: 0 | M145: 0 | N145: 0 | O145: 0 | P145: 0 | Q145: 0 | R145: 0 | S145: 0 | T145: 0 | U145: 0 | V145: 0 | W145: 0 | X145: 0 | Y145: 0 | Z145: 0 | AA145: 0 | AB145: 0 | AC145: 0 | AD145: 0 | AE145: 0 | AF145: 0 | AG145: 0 | AH145: 0 | AI145: 0 | AJ145: =IF(AJ$6="Actual",SUMIF($A$1385:$A$1424,$B145,AJ$1385:AJ$1424)*AJ$351,AI145+SUMIF($A$542:$A$1382,$B145,AJ$542:AJ$1382)*AJ$351) -> 0 | AK145: 0 | AL145: 0 | AM145: 0 | AN145: 0 | AO145: 0 | AP145: 0 | AQ145: 0 | AR145: 0 | AS145: 0 | AT145: 0 | AU145: 0 | AV145: 0 | AW145: 0 | AX145: 0 | AY145: 0 | AZ145: 0 | BA145: 0 | BB145: 0 | BC145: 0 | BD145: 0 | BE145: 0 | BF145: 0 | BG145: 0 | BH145: 0 | BI145: 0 | BJ145: 0 | BK145: 0 | BL145: 0 | BM145: 0 | BN145: 0 | BO145: 0 | BP145: =IF(BP$6="Actual",SUMIF($A$1385:$A$1424,$B145,BP$1385:BP$1424)*BP$351,BO145+SUMIF($A$542:$A$1382,$B145,BP$542:BP$1382)*BP$351) -> 0 | BQ145: 0 | BR145: 0 | BS145: 0 | BT145: 0 | BU145: 0 | BV145: 0 | BW145: 0 | BZ145: =C145 -> 0 | CA145: =O145 -> 0 | CB145: =AA145 -> 0 | CC145: =AM145 -> 0 | CD145: =AY145 -> 0 | CE145: =BK145 -> 0 | CF145: =BW145 -> 0 | CG145: =IF(CG$6="Actual",SUMIF($A$1385:$A$1424,$B145,CG$1385:CG$1424)*CG$351,CF145+SUMIF($A$542:$A$1382,$B145,CG$542:CG$1382)*CG$351) -> 0 | CH145: 0 | CI145: 0 | CJ145: 0 | CK145: 0
A146: Land | B146: =Labels!B146 -> Land | C146: 0 | D146: =IF(D$6="Actual",SUMIF($A$1385:$A$1424,$B146,D$1385:D$1424)*D$351,C146+SUMIF($A$542:$A$1382,$B146,D$542:D$1382)*D$351) -> 0 | E146: 0 | F146: 0 | G146: 0 | H146: 0 | I146: 0 | J146: 0 | K146: 0 | L146: 0 | M146: 0 | N146: 0 | O146: 0 | P146: 0 | Q146: 0 | R146: 0 | S146: 0 | T146: 0 | U146: 0 | V146: 0 | W146: 0 | X146: 0 | Y146: 0 | Z146: 0 | AA146: 0 | AB146: 0 | AC146: 0 | AD146: 0 | AE146: 0 | AF146: 0 | AG146: 0 | AH146: 0 | AI146: 0 | AJ146: =IF(AJ$6="Actual",SUMIF($A$1385:$A$1424,$B146,AJ$1385:AJ$1424)*AJ$351,AI146+SUMIF($A$542:$A$1382,$B146,AJ$542:AJ$1382)*AJ$351) -> 0 | AK146: 0 | AL146: 0 | AM146: 0 | AN146: 0 | AO146: 0 | AP146: 0 | AQ146: 0 | AR146: 0 | AS146: 0 | AT146: 0 | AU146: 0 | AV146: 0 | AW146: 0 | AX146: 0 | AY146: 0 | AZ146: 0 | BA146: 0 | BB146: 0 | BC146: 0 | BD146: 0 | BE146: 0 | BF146: 0 | BG146: 0 | BH146: 0 | BI146: 0 | BJ146: 0 | BK146: 0 | BL146: 0 | BM146: 0 | BN146: 0 | BO146: 0 | BP146: =IF(BP$6="Actual",SUMIF($A$1385:$A$1424,$B146,BP$1385:BP$1424)*BP$351,BO146+SUMIF($A$542:$A$1382,$B146,BP$542:BP$1382)*BP$351) -> 0 | BQ146: 0 | BR146: 0 | BS146: 0 | BT146: 0 | BU146: 0 | BV146: 0 | BW146: 0 | BZ146: 0 | CA146: 0 | CB146: 0 | CC146: 0 | CD146: 0 | CE146: 0 | CF146: 0 | CG146: 0 | CH146: 0 | CI146: 0 | CJ146: 0 | CK146: 0
A147: Equipment | B147: =Labels!B147 -> Equipment | C147: 1612.83753 | D147: =IF(D$6="Actual",SUMIF($A$1385:$A$1424,$B147,D$1385:D$1424)*D$351,C147+SUMIF($A$542:$A$1382,$B147,D$542:D$1382)*D$351) -> 1635.09844 | E147: 1629.89316 | F147: 1620.58021 | G147: 1702.99941 | H147: 1711.20744 | I147: 1733.69384 | J147: 1765.65513 | K147: 1808.27236 | L147: 1834.88784 | M147: 1970.22759 | N147: 1985.055 | O147: 1992.298 | P147: 1997.64276 | Q147: 2013.68795 | R147: 2022.99274 | S147: 2085.37874 | T147: 2080.275 | U147: 2115.17552 | V147: 2112.43152 | W147: 2207.14404 | X147: 2252.43996 | Y147: 2324.00293 | Z147: 2352.92717 | AA147: 2379.40039 | AB147: 2383.945 | AC147: 2394.41347 | AD147: 2397.93785 | AE147: 2411.54615 | AF147: 2463.54713 | AG147: 2490.4059 | AH147: 2513.01577 | AI147: 2585.89828 | AJ147: =IF(AJ$6="Actual",SUMIF($A$1385:$A$1424,$B147,AJ$1385:AJ$1424)*AJ$351,AI147+SUMIF($A$542:$A$1382,$B147,AJ$542:AJ$1382)*AJ$351) -> 2612.19258 | AK147: 2676.79585 | AL147: 2694.38285 | AM147: 2702.90465 | AN147: 2702.977 | AO147: 2707.34165 | AP147: 2711.34965 | AQ147: 2714.585 | AR147: 2759.19804 | AS147: 2779.45304 | AT147: 2816.17847 | AU147: 2896.48901 | AV147: 2949.25219 | AW147: 2968.41331 | AX147: 2971.05313 | AY147: 2973.69966 | AZ147: 2977.25866 | BA147: 2979.80346 | BB147: 2980.79216 | BC147: 2986.99828 | BD147: 2995.13486 | BE147: 3045.6109 | BF147: 3065.50806 | BG147: 3118.06689 | BH147: 3163.57897 | BI147: 3188.63519 | BJ147: 3195.35265 | BK147: 3200.32466 | BL147: 3202.06266 | BM147: 3203.92566 | BN147: 3211.05577 | BO147: 3214.17798 | BP147: =IF(BP$6="Actual",SUMIF($A$1385:$A$1424,$B147,BP$1385:BP$1424)*BP$351,BO147+SUMIF($A$542:$A$1382,$B147,BP$542:BP$1382)*BP$351) -> 3214.17798 | BQ147: 3246.15933 | BR147: 3307.00363 | BS147: 3323.550934 | BT147: 3338.786465 | BU147: 3397.694557 | BV147: 3402.246593 | BW147: 3403.211698 | BZ147: 1612.83753 | CA147: 1992.298 | CB147: 2379.40039 | CC147: 2702.90465 | CD147: 2973.69966 | CE147: 3200.32466 | CF147: 3403.211698 | CG147: 3614.604418 | CH147: 3817.118493 | CI147: 4019.471848 | CJ147: 4208.003616 | CK147: 4402.641187
A148: Other Non-Depreciable | B148: =Labels!B148 -> Other Non-Depreciable | C148: 0 | D148: =IF(D$6="Actual",SUMIF($A$1385:$A$1424,$B148,D$1385:D$1424)*D$351,C148+SUMIF($A$542:$A$1382,$B148,D$542:D$1382)*D$351) -> 0 | E148: 0 | F148: 0 | G148: 0 | H148: 0 | I148: 0 | J148: 0 | K148: 0 | L148: 0 | M148: 0 | N148: 0 | O148: 0 | P148: 0 | Q148: 0 | R148: 0 | S148: 0 | T148: 0 | U148: 0 | V148: 0 | W148: 0 | X148: 0 | Y148: 0 | Z148: 0 | AA148: 0 | AB148: 0 | AC148: 0 | AD148: 0 | AE148: 0 | AF148: 0 | AG148: 0 | AH148: 0 | AI148: 0 | AJ148: =IF(AJ$6="Actual",SUMIF($A$1385:$A$1424,$B148,AJ$1385:AJ$1424)*AJ$351,AI148+SUMIF($A$542:$A$1382,$B148,AJ$542:AJ$1382)*AJ$351) -> 0 | AK148: 0 | AL148: 0 | AM148: 0 | AN148: 0 | AO148: 0 | AP148: 0 | AQ148: 0 | AR148: 0 | AS148: 0 | AT148: 0 | AU148: 0 | AV148: 0 | AW148: 0 | AX148: 0 | AY148: 0 | AZ148: 0 | BA148: 0 | BB148: 0 | BC148: 0 | BD148: 0 | BE148: 0 | BF148: 0 | BG148: 0 | BH148: 0 | BI148: 0 | BJ148: 0 | BK148: 0 | BL148: 0 | BM148: 0 | BN148: 0 | BO148: 0 | BP148: =IF(BP$6="Actual",SUMIF($A$1385:$A$1424,$B148,BP$1385:BP$1424)*BP$351,BO148+SUMIF($A$542:$A$1382,$B148,BP$542:BP$1382)*BP$351) -> 0 | BQ148: 0 | BR148: 0 | BS148: 0 | BT148: 0 | BU148: 0 | BV148: 0 | BW148: 0 | BZ148: 0 | CA148: 0 | CB148: 0 | CC148: 0 | CD148: 0 | CE148: 0 | CF148: 0 | CG148: 0 | CH148: 0 | CI148: 0 | CJ148: 0 | CK148: 0
A149: Accumulated Depreciation | B149: =Labels!B149 -> Accumulated Depreciation | C149: -174.78392 | D149: =IF(D$6="Actual",SUMIF($A$1385:$A$1424,$B149,D$1385:D$1424)*D$351,C149+SUMIF($A$542:$A$1382,$B149,D$542:D$1382)*D$351) -> -188.40975 | E149: -201.99221 | F149: -193.61315 | G149: -207.80483 | H149: -222.06491 | I149: -236.51238 | J149: -251.22619 | K149: -266.29514 | L149: -281.58588 | M149: -298.00445 | N149: -314.54645 | O149: -331.14891 | P149: -347.79594 | Q149: -364.57664 | R149: -381.43493 | S149: -398.81307 | T149: -416.14807 | U149: -433.77452 | V149: -451.37814 | W149: -469.77098 | X149: -488.54133 | Y149: -507.90733 | Z149: -527.51433 | AA149: -547.33333 | AB149: -567.19953 | AC149: -587.15548 | AD149: -608.26682 | AE149: -628.36305 | AF149: -648.89263 | AG149: -669.64603 | AH149: -690.58783 | AI149: -712.13699 | AJ149: =IF(AJ$6="Actual",SUMIF($A$1385:$A$1424,$B149,AJ$1385:AJ$1424)*AJ$351,AI149+SUMIF($A$542:$A$1382,$B149,AJ$542:AJ$1382)*AJ$351) -> -734.02139 | AK149: -756.44413 | AL149: -779.01344 | AM149: -801.65374 | AN149: -824.29474 | AO149: -846.97206 | AP149: -869.68277 | AQ149: -892.41977 | AR149: -915.52916 | AS149: -938.80741 | AT149: -962.39169 | AU149: -986.6452 | AV149: -1011.33843 | AW149: -1036.19135 | AX149: -1061.10954 | AY149: -1086.04978 | AZ149: -1111.01965 | BA149: -1136.01079 | BB149: -1161.01014 | BC149: -1186.06121 | BD149: -1211.18006 | BE149: -1236.71958 | BF149: -1262.42491 | BG149: -1288.56821 | BH149: -1315.09077 | BI149: -1341.82214 | BJ149: -1368.60948 | BK149: -1395.43825 | BL149: -1422.28149 | BM149: -1449.14031 | BN149: -1476.05855 | BO149: -1503.00276 | BP149: =IF(BP$6="Actual",SUMIF($A$1385:$A$1424,$B149,BP$1385:BP$1424)*BP$351,BO149+SUMIF($A$542:$A$1382,$B149,BP$542:BP$1382)*BP$351) -> -1529.94699 | BQ149: -1557.15775 | BR149: -1585.282876 | BS149: -1613.545896 | BT149: -1641.935878 | BU149: -1670.816762 | BV149: -1699.735579 | BW149: -1728.662438 | BZ149: -174.78392 | CA149: -331.14891 | CB149: -547.33333 | CC149: -801.65374 | CD149: -1086.04978 | CE149: -1395.43825 | CF149: -1728.662438 | CG149: -2090.126788 | CH149: -2471.846351 | CI149: -2752.903518 | CJ149: -3012.42372 | CK149: -3253.458039
A150: CWIP | B150: =Labels!B150 -> CWIP | C150: 0 | D150: =IF(D$6="Actual",SUMIF($A$1385:$A$1424,$B150,D$1385:D$1424)*D$351,C150+SUMIF($A$542:$A$1382,$B150,D$542:D$1382)*D$351) -> 0 | E150: 0 | F150: 0 | G150: 0 | H150: 0 | I150: 0 | J150: 0 | K150: 0 | L150: 0 | M150: 0 | N150: 0 | O150: 0 | P150: 0 | Q150: 0 | R150: 0 | S150: 0 | T150: 0 | U150: 0 | V150: 0 | W150: 0 | X150: 0 | Y150: 0 | Z150: 0 | AA150: 0 | AB150: 0 | AC150: 0 | AD150: 0 | AE150: 0 | AF150: 0 | AG150: 0 | AH150: 0 | AI150: 0 | AJ150: =IF(AJ$6="Actual",SUMIF($A$1385:$A$1424,$B150,AJ$1385:AJ$1424)*AJ$351,AI150+SUMIF($A$542:$A$1382,$B150,AJ$542:AJ$1382)*AJ$351) -> 0 | AK150: 0 | AL150: 0 | AM150: 0 | AN150: 0 | AO150: 0 | AP150: 0 | AQ150: 0 | AR150: 0 | AS150: 0 | AT150: 0 | AU150: 0 | AV150: 0 | AW150: 0 | AX150: 0 | AY150: 0 | AZ150: 0 | BA150: 0 | BB150: 0 | BC150: 0 | BD150: 0 | BE150: 0 | BF150: 0 | BG150: 0 | BH150: 0 | BI150: 0 | BJ150: 0 | BK150: 0 | BL150: 0 | BM150: 0 | BN150: 0 | BO150: 0 | BP150: =IF(BP$6="Actual",SUMIF($A$1385:$A$1424,$B150,BP$1385:BP$1424)*BP$351,BO150+SUMIF($A$542:$A$1382,$B150,BP$542:BP$1382)*BP$351) -> 0 | BQ150: 0 | BR150: 0 | BS150: 0 | BT150: 0 | BU150: 0 | BV150: 0 | BW150: 0 | BZ150: 0 | CA150: 0 | CB150: 0 | CC150: 0 | CD150: 0 | CE150: 0 | CF150: 0 | CG150: 0 | CH150: 0 | CI150: 0 | CJ150: 0 | CK150: 0
A151: Total PP&E- Net | B151: =Labels!B151 -> Total PP&E- Net | C151: 1438.05361 | D151: =SUM(D145:D150) -> 1446.68869 | E151: 1427.90095 | F151: 1426.96706 | G151: 1495.19458 | H151: 1489.14253 | I151: 1497.18146 | J151: 1514.42894 | K151: 1541.97722 | L151: 1553.30196 | M151: 1672.22314 | N151: 1670.50855 | O151: 1661.14909 | P151: 1649.84682 | Q151: 1649.11131 | R151: 1641.55781 | S151: 1686.56567 | T151: 1664.12693 | U151: 1681.401 | V151: 1661.05338 | W151: 1737.37306 | X151: 1763.89863 | Y151: 1816.0956 | Z151: 1825.41284 | AA151: 1832.06706 | AB151: 1816.74547 | AC151: 1807.25799 | AD151: 1789.67103 | AE151: 1783.1831 | AF151: 1814.6545 | AG151: 1820.75987 | AH151: 1822.42794 | AI151: =SUM(AI145:AI150) -> 1873.76129 | AJ151: 1878.17119 | AK151: 1920.35172 | AL151: 1915.36941 | AM151: 1901.25091 | AN151: 1878.68226 | AO151: 1860.36959 | AP151: 1841.66688 | AQ151: 1822.16523 | AR151: 1843.66888 | AS151: 1840.64563 | AT151: 1853.78678 | AU151: 1909.84381 | AV151: 1937.91376 | AW151: 1932.22196 | AX151: 1909.94359 | AY151: 1887.64988 | AZ151: 1866.23901 | BA151: 1843.79267 | BB151: 1819.78202 | BC151: 1800.93707 | BD151: 1783.9548 | BE151: 1808.89132 | BF151: 1803.08315 | BG151: 1829.49868 | BH151: 1848.4882 | BI151: 1846.81305 | BJ151: 1826.74317 | BK151: 1804.88641 | BL151: 1779.78117 | BM151: 1754.78535 | BN151: 1734.99722 | BO151: =SUM(BO145:BO150) -> 1711.17522 | BP151: 1684.23099 | BQ151: 1689.00158 | BR151: 1721.720754 | BS151: 1710.005038 | BT151: 1696.850587 | BU151: 1726.877795 | BV151: 1702.511014 | BW151: 1674.54926 | BZ151: =SUM(BZ145:BZ150) -> 1438.05361 | CA151: 1661.14909 | CB151: 1832.06706 | CC151: 1901.25091 | CD151: 1887.64988 | CE151: 1804.88641 | CF151: 1674.54926 | CG151: 1524.47763 | CH151: 1345.272142 | CI151: 1266.568331 | CJ151: 1195.579896 | CK151: 1149.183148
B153: =Labels!B153 -> Other Property & Investments:
A154: =B154 -> Investment in Subsidiaries | B154: =Labels!B154 -> Investment in Subsidiaries | C154: 0 | D154: =IF(D$6="Actual",SUMIF($A$1385:$A$1424,$B154,D$1385:D$1424)*D$351,C154+SUMIF($A$542:$A$1382,$B154,D$542:D$1382)*D$351) -> 0 | E154: 0 | F154: 0 | G154: 0 | H154: 0 | I154: 0 | J154: 0 | K154: 0 | L154: 0 | M154: 0 | N154: 0 | O154: 0 | P154: 0 | Q154: 0 | R154: 0 | S154: 0 | T154: 0 | U154: 0 | V154: 0 | W154: 0 | X154: 0 | Y154: 0 | Z154: 0 | AA154: 0 | AB154: 0 | AC154: 0 | AD154: 0 | AE154: 0 | AF154: 0 | AG154: 0 | AH154: 0 | AI154: 0 | AJ154: =IF(AJ$6="Actual",SUMIF($A$1385:$A$1424,$B154,AJ$1385:AJ$1424)*AJ$351,AI154+SUMIF($A$542:$A$1382,$B154,AJ$542:AJ$1382)*AJ$351) -> 0 | AK154: 0 | AL154: 0 | AM154: 0 | AN154: 0 | AO154: 0 | AP154: 0 | AQ154: 0 | AR154: 0 | AS154: 0 | AT154: 0 | AU154: 0 | AV154: 0 | AW154: 0 | AX154: 0 | AY154: 0 | AZ154: 0 | BA154: 0 | BB154: 0 | BC154: 0 | BD154: 0 | BE154: 0 | BF154: 0 | BG154: 0 | BH154: 0 | BI154: 0 | BJ154: 0 | BK154: 0 | BL154: 0 | BM154: 0 | BN154: 0 | BO154: 0 | BP154: =IF(BP$6="Actual",SUMIF($A$1385:$A$1424,$B154,BP$1385:BP$1424)*BP$351,BO154+SUMIF($A$542:$A$1382,$B154,BP$542:BP$1382)*BP$351) -> 0 | BQ154: 0 | BR154: 0 | BS154: 0 | BT154: 0 | BU154: 0 | BV154: 0 | BW154: 0 | BZ154: =C154 -> 0 | CA154: =O154 -> 0 | CB154: =AA154 -> 0 | CC154: =AM154 -> 0 | CD154: =AY154 -> 0 | CE154: =BK154 -> 0 | CF154: =BW154 -> 0 | CG154: =IF(CG$6="Actual",SUMIF($A$1385:$A$1424,$B154,CG$1385:CG$1424)*CG$351,CF154+SUMIF($A$542:$A$1382,$B154,CG$542:CG$1382)*CG$351) -> 0 | CH154: 0 | CI154: 0 | CJ154: 0 | CK154: 0
A155: Undistributed Earnings of Subsidiaries | B155: =Labels!B155 -> Undistributed Earnings of Subsidiaries | C155: 0 | D155: =IF(D$6="Actual",SUMIF($A$1385:$A$1424,$B155,D$1385:D$1424)*D$351,C155+SUMIF($A$542:$A$1382,$B155,D$542:D$1382)*D$351) -> 0 | E155: 0 | F155: 0 | G155: 0 | H155: 0 | I155: 0 | J155: 0 | K155: 0 | L155: 0 | M155: 0 | N155: 0 | O155: 0 | P155: 0 | Q155: 0 | R155: 0 | S155: 0 | T155: 0 | U155: 0 | V155: 0 | W155: 0 | X155: 0 | Y155: 0 | Z155: 0 | AA155: 0 | AB155: 0 | AC155: 0 | AD155: 0 | AE155: 0 | AF155: 0 | AG155: 0 | AH155: 0 | AI155: 0 | AJ155: =IF(AJ$6="Actual",SUMIF($A$1385:$A$1424,$B155,AJ$1385:AJ$1424)*AJ$351,AI155+SUMIF($A$542:$A$1382,$B155,AJ$542:AJ$1382)*AJ$351) -> 0 | AK155: 0 | AL155: 0 | AM155: 0 | AN155: 0 | AO155: 0 | AP155: 0 | AQ155: 0 | AR155: 0 | AS155: 0 | AT155: 0 | AU155: 0 | AV155: 0 | AW155: 0 | AX155: 0 | AY155: 0 | AZ155: 0 | BA155: 0 | BB155: 0 | BC155: 0 | BD155: 0 | BE155: 0 | BF155: 0 | BG155: 0 | BH155: 0 | BI155: 0 | BJ155: 0 | BK155: 0 | BL155: 0 | BM155: 0 | BN155: 0 | BO155: 0 | BP155: =IF(BP$6="Actual",SUMIF($A$1385:$A$1424,$B155,BP$1385:BP$1424)*BP$351,BO155+SUMIF($A$542:$A$1382,$B155,BP$542:BP$1382)*BP$351) -> 0 | BQ155: 0 | BR155: 0 | BS155: 0 | BT155: 0 | BU155: 0 | BV155: 0 | BW155: 0 | BZ155: 0 | CA155: 0 | CB155: 0 | CC155: 0 | CD155: 0 | CE155: 0 | CF155: 0 | CG155: 0 | CH155: 0 | CI155: 0 | CJ155: 0 | CK155: 0
A156: Investment in Associated Companies | B156: =Labels!B156 -> Investment in Associated Companies | C156: 0 | D156: =IF(D$6="Actual",SUMIF($A$1385:$A$1424,$B156,D$1385:D$1424)*D$351,C156+SUMIF($A$542:$A$1382,$B156,D$542:D$1382)*D$351) -> 0 | E156: 0 | F156: 0 | G156: 0 | H156: 0 | I156: 0 | J156: 0 | K156: 0 | L156: 0 | M156: 0 | N156: 0 | O156: 0 | P156: 0 | Q156: 0 | R156: 0 | S156: 0 | T156: 0 | U156: 0 | V156: 0 | W156: 0 | X156: 0 | Y156: 0 | Z156: 0 | AA156: 0 | AB156: 0 | AC156: 0 | AD156: 0 | AE156: 0 | AF156: 0 | AG156: 0 | AH156: 0 | AI156: 0 | AJ156: =IF(AJ$6="Actual",SUMIF($A$1385:$A$1424,$B156,AJ$1385:AJ$1424)*AJ$351,AI156+SUMIF($A$542:$A$1382,$B156,AJ$542:AJ$1382)*AJ$351) -> 0 | AK156: 0 | AL156: 0 | AM156: 0 | AN156: 0 | AO156: 0 | AP156: 0 | AQ156: 0 | AR156: 0 | AS156: 0 | AT156: 0 | AU156: 0 | AV156: 0 | AW156: 0 | AX156: 0 | AY156: 0 | AZ156: 0 | BA156: 0 | BB156: 0 | BC156: 0 | BD156: 0 | BE156: 0 | BF156: 0 | BG156: 0 | BH156: 0 | BI156: 0 | BJ156: 0 | BK156: 0 | BL156: 0 | BM156: 0 | BN156: 0 | BO156: 0 | BP156: =IF(BP$6="Actual",SUMIF($A$1385:$A$1424,$B156,BP$1385:BP$1424)*BP$351,BO156+SUMIF($A$542:$A$1382,$B156,BP$542:BP$1382)*BP$351) -> 0 | BQ156: 0 | BR156: 0 | BS156: 0 | BT156: 0 | BU156: 0 | BV156: 0 | BW156: 0 | BZ156: 0 | CA156: 0 | CB156: 0 | CC156: 0 | CD156: 0 | CE156: 0 | CF156: 0 | CG156: 0 | CH156: 0 | CI156: 0 | CJ156: 0 | CK156: 0
A157: Goodwill | B157: =Labels!B157 -> Goodwill | C157: 0 | D157: =IF(D$6="Actual",SUMIF($A$1385:$A$1424,$B157,D$1385:D$1424)*D$351,C157+SUMIF($A$542:$A$1382,$B157,D$542:D$1382)*D$351) -> 0 | E157: 0 | F157: 0 | G157: 0 | H157: 0 | I157: 0 | J157: 0 | K157: 0 | L157: 0 | M157: 0 | N157: 0 | O157: 0 | P157: 0 | Q157: 0 | R157: 0 | S157: 0 | T157: 0 | U157: 0 | V157: 0 | W157: 0 | X157: 0 | Y157: 0 | Z157: 0 | AA157: 0 | AB157: 0 | AC157: 0 | AD157: 0 | AE157: 0 | AF157: 0 | AG157: 0 | AH157: 0 | AI157: 0 | AJ157: =IF(AJ$6="Actual",SUMIF($A$1385:$A$1424,$B157,AJ$1385:AJ$1424)*AJ$351,AI157+SUMIF($A$542:$A$1382,$B157,AJ$542:AJ$1382)*AJ$351) -> 0 | AK157: 0 | AL157: 0 | AM157: 0 | AN157: 0 | AO157: 0 | AP157: 0 | AQ157: 0 | AR157: 0 | AS157: 0 | AT157: 0 | AU157: 0 | AV157: 0 | AW157: 0 | AX157: 0 | AY157: 0 | AZ157: 0 | BA157: 0 | BB157: 0 | BC157: 0 | BD157: 0 | BE157: 0 | BF157: 0 | BG157: 0 | BH157: 0 | BI157: 0 | BJ157: 0 | BK157: 0 | BL157: 0 | BM157: 0 | BN157: 0 | BO157: 0 | BP157: =IF(BP$6="Actual",SUMIF($A$1385:$A$1424,$B157,BP$1385:BP$1424)*BP$351,BO157+SUMIF($A$542:$A$1382,$B157,BP$542:BP$1382)*BP$351) -> 0 | BQ157: 0 | BR157: 0 | BS157: 0 | BT157: 0 | BU157: 0 | BV157: 0 | BW157: 0 | BZ157: 0 | CA157: 0 | CB157: 0 | CC157: 0 | CD157: 0 | CE157: 0 | CF157: 0 | CG157: 0 | CH157: 0 | CI157: 0 | CJ157: 0 | CK157: 0
A158: Intangibles | B158: =Labels!B158 -> Intangibles | C158: 0 | D158: =IF(D$6="Actual",SUMIF($A$1385:$A$1424,$B158,D$1385:D$1424)*D$351,C158+SUMIF($A$542:$A$1382,$B158,D$542:D$1382)*D$351) -> 0 | E158: 0 | F158: 0 | G158: 0 | H158: 0 | I158: 0 | J158: 0 | K158: 0 | L158: 0 | M158: 0 | N158: 0 | O158: 0 | P158: 0 | Q158: 0 | R158: 0 | S158: 0 | T158: 0 | U158: 0 | V158: 0 | W158: 0 | X158: 0 | Y158: 0 | Z158: 0 | AA158: 0 | AB158: 0 | AC158: 0 | AD158: 0 | AE158: 0 | AF158: 0 | AG158: 0 | AH158: 0 | AI158: 0 | AJ158: =IF(AJ$6="Actual",SUMIF($A$1385:$A$1424,$B158,AJ$1385:AJ$1424)*AJ$351,AI158+SUMIF($A$542:$A$1382,$B158,AJ$542:AJ$1382)*AJ$351) -> 0 | AK158: 0 | AL158: 0 | AM158: 0 | AN158: 0 | AO158: 0 | AP158: 0 | AQ158: 0 | AR158: 0 | AS158: 0 | AT158: 0 | AU158: 0 | AV158: 0 | AW158: 0 | AX158: 0 | AY158: 0 | AZ158: 0 | BA158: 0 | BB158: 0 | BC158: 0 | BD158: 0 | BE158: 0 | BF158: 0 | BG158: 0 | BH158: 0 | BI158: 0 | BJ158: 0 | BK158: 0 | BL158: 0 | BM158: 0 | BN158: 0 | BO158: 0 | BP158: =IF(BP$6="Actual",SUMIF($A$1385:$A$1424,$B158,BP$1385:BP$1424)*BP$351,BO158+SUMIF($A$542:$A$1382,$B158,BP$542:BP$1382)*BP$351) -> 0 | BQ158: 0 | BR158: 0 | BS158: 0 | BT158: 0 | BU158: 0 | BV158: 0 | BW158: 0 | BZ158: 0 | CA158: 0 | CB158: 0 | CC158: 0 | CD158: 0 | CE158: 0 | CF158: 0 | CG158: 0 | CH158: 0 | CI158: 0 | CJ158: 0 | CK158: 0
A159: Other Property & Investments | B159: =Labels!B159 -> Other Property & Investments | C159: 0 | D159: =IF(D$6="Actual",SUMIF($A$1385:$A$1424,$B159,D$1385:D$1424)*D$351,C159+SUMIF($A$542:$A$1382,$B159,D$542:D$1382)*D$351) -> 0 | E159: 0 | F159: 0 | G159: 0 | H159: 0 | I159: 0 | J159: 0 | K159: 0 | L159: 0 | M159: 0 | N159: 0 | O159: 0 | P159: 0 | Q159: 0 | R159: 0 | S159: 0 | T159: 0 | U159: 0 | V159: 0 | W159: 0 | X159: 0 | Y159: 0 | Z159: 0 | AA159: 0 | AB159: 0 | AC159: 0 | AD159: 0 | AE159: 0 | AF159: 0 | AG159: 0 | AH159: 0 | AI159: 0 | AJ159: =IF(AJ$6="Actual",SUMIF($A$1385:$A$1424,$B159,AJ$1385:AJ$1424)*AJ$351,AI159+SUMIF($A$542:$A$1382,$B159,AJ$542:AJ$1382)*AJ$351) -> 0 | AK159: 0 | AL159: 0 | AM159: 0 | AN159: 0 | AO159: 0 | AP159: 0 | AQ159: 0 | AR159: 0 | AS159: 0 | AT159: 0 | AU159: 0 | AV159: 0 | AW159: 0 | AX159: 0 | AY159: 0 | AZ159: 0 | BA159: 0 | BB159: 0 | BC159: 0 | BD159: 0 | BE159: 0 | BF159: 0 | BG159: 0 | BH159: 0 | BI159: 0 | BJ159: 0 | BK159: 0 | BL159: 0 | BM159: 0 | BN159: 0 | BO159: 0 | BP159: =IF(BP$6="Actual",SUMIF($A$1385:$A$1424,$B159,BP$1385:BP$1424)*BP$351,BO159+SUMIF($A$542:$A$1382,$B159,BP$542:BP$1382)*BP$351) -> 0 | BQ159: 0 | BR159: 0 | BS159: 0 | BT159: 0 | BU159: 0 | BV159: 0 | BW159: 0 | BZ159: 0 | CA159: 0 | CB159: 0 | CC159: 0 | CD159: 0 | CE159: 0 | CF159: 0 | CG159: 0 | CH159: 0 | CI159: 0 | CJ159: 0 | CK159: 0
A160: Total Other Property & Investments | B160: =Labels!B160 -> Total Other Property & Investments | C160: 0 | D160: =SUM(D154:D159) -> 0 | E160: 0 | F160: 0 | G160: 0 | H160: 0 | I160: 0 | J160: 0 | K160: 0 | L160: 0 | M160: 0 | N160: 0 | O160: 0 | P160: 0 | Q160: 0 | R160: 0 | S160: 0 | T160: 0 | U160: 0 | V160: 0 | W160: 0 | X160: 0 | Y160: 0 | Z160: 0 | AA160: 0 | AB160: 0 | AC160: 0 | AD160: 0 | AE160: 0 | AF160: 0 | AG160: 0 | AH160: 0 | AI160: =SUM(AI154:AI159) -> 0 | AJ160: 0 | AK160: 0 | AL160: 0 | AM160: 0 | AN160: 0 | AO160: 0 | AP160: 0 | AQ160: 0 | AR160: 0 | AS160: 0 | AT160: 0 | AU160: 0 | AV160: 0 | AW160: 0 | AX160: 0 | AY160: 0 | AZ160: 0 | BA160: 0 | BB160: 0 | BC160: 0 | BD160: 0 | BE160: 0 | BF160: 0 | BG160: 0 | BH160: 0 | BI160: 0 | BJ160: 0 | BK160: 0 | BL160: 0 | BM160: 0 | BN160: 0 | BO160: =SUM(BO154:BO159) -> 0 | BP160: 0 | BQ160: 0 | BR160: 0 | BS160: 0 | BT160: 0 | BU160: 0 | BV160: 0 | BW160: 0 | BZ160: =SUM(BZ154:BZ159) -> 0 | CA160: 0 | CB160: 0 | CC160: 0 | CD160: 0 | CE160: 0 | CF160: 0 | CG160: 0 | CH160: 0 | CI160: 0 | CJ160: 0 | CK160: 0
B162: =Labels!B162 -> Current Assets:
A163: =B163 -> Cash | B163: =Labels!B163 -> Cash | C163: 0 | D163: =IF(D$6="Actual",SUMIF($A$1385:$A$1424,$B163,D$1385:D$1424)*D$351,C163+SUMIF($A$542:$A$1382,$B163,D$542:D$1382)*D$351) -> 0 | E163: 0 | F163: 0 | G163: 0 | H163: 0 | I163: 0 | J163: 0 | K163: 0 | L163: 0 | M163: 0 | N163: 0 | O163: 0 | P163: 0 | Q163: 0 | R163: 0 | S163: 0 | T163: 0 | U163: 0 | V163: 0 | W163: 0 | X163: 0 | Y163: 0 | Z163: 0 | AA163: 0 | AB163: 0 | AC163: 0 | AD163: 0 | AE163: 0 | AF163: 0 | AG163: 0 | AH163: 0 | AI163: 0 | AJ163: =IF(AJ$6="Actual",SUMIF($A$1385:$A$1424,$B163,AJ$1385:AJ$1424)*AJ$351,AI163+SUMIF($A$542:$A$1382,$B163,AJ$542:AJ$1382)*AJ$351) -> 0 | AK163: 0 | AL163: 0 | AM163: 0 | AN163: 0 | AO163: 0 | AP163: 0 | AQ163: 0 | AR163: 0 | AS163: 0 | AT163: 0 | AU163: 0 | AV163: 0 | AW163: 0 | AX163: 0 | AY163: 0 | AZ163: 0 | BA163: 0 | BB163: 0 | BC163: 0 | BD163: 0 | BE163: 0 | BF163: 0 | BG163: 0 | BH163: 0 | BI163: 0 | BJ163: 0 | BK163: 0 | BL163: 0 | BM163: 0 | BN163: 0 | BO163: 0 | BP163: =IF(BP$6="Actual",SUMIF($A$1385:$A$1424,$B163,BP$1385:BP$1424)*BP$351,BO163+SUMIF($A$542:$A$1382,$B163,BP$542:BP$1382)*BP$351) -> 0 | BQ163: 0 | BR163: 0 | BS163: 0 | BT163: 0 | BU163: 0 | BV163: 0 | BW163: 0 | BZ163: =C163 -> 0 | CA163: =O163 -> 0 | CB163: =AA163 -> 0 | CC163: =AM163 -> 0 | CD163: =AY163 -> 0 | CE163: =BK163 -> 0 | CF163: =BW163 -> 0 | CG163: =IF(CG$6="Actual",SUMIF($A$1385:$A$1424,$B163,CG$1385:CG$1424)*CG$351,CF163+SUMIF($A$542:$A$1382,$B163,CG$542:CG$1382)*CG$351) -> 0 | CH163: 0 | CI163: 0 | CJ163: 0 | CK163: 0
A164: Temporary Cash Investments | B164: =Labels!B164 -> Temporary Cash Investments | C164: 0 | D164: =IF(D$6="Actual",SUMIF($A$1385:$A$1424,$B164,D$1385:D$1424)*D$351,C164+SUMIF($A$542:$A$1382,$B164,D$542:D$1382)*D$351) -> 0 | E164: 0 | F164: 0 | G164: 0 | H164: 0 | I164: 0 | J164: 0 | K164: 0 | L164: 0 | M164: 0 | N164: 0 | O164: 0 | P164: 0 | Q164: 0 | R164: 0 | S164: 0 | T164: 0 | U164: 0 | V164: 0 | W164: 0 | X164: 0 | Y164: 0 | Z164: 0 | AA164: 0 | AB164: 0 | AC164: 0 | AD164: 0 | AE164: 0 | AF164: 0 | AG164: 0 | AH164: 0 | AI164: 0 | AJ164: =IF(AJ$6="Actual",SUMIF($A$1385:$A$1424,$B164,AJ$1385:AJ$1424)*AJ$351,AI164+SUMIF($A$542:$A$1382,$B164,AJ$542:AJ$1382)*AJ$351) -> 0 | AK164: 0 | AL164: 0 | AM164: 0 | AN164: 0 | AO164: 0 | AP164: 0 | AQ164: 0 | AR164: 0 | AS164: 0 | AT164: 0 | AU164: 0 | AV164: 0 | AW164: 0 | AX164: 0 | AY164: 0 | AZ164: 0 | BA164: 0 | BB164: 0 | BC164: 0 | BD164: 0 | BE164: 0 | BF164: 0 | BG164: 0 | BH164: 0 | BI164: 0 | BJ164: 0 | BK164: 0 | BL164: 0 | BM164: 0 | BN164: 0 | BO164: 0 | BP164: =IF(BP$6="Actual",SUMIF($A$1385:$A$1424,$B164,BP$1385:BP$1424)*BP$351,BO164+SUMIF($A$542:$A$1382,$B164,BP$542:BP$1382)*BP$351) -> 0 | BQ164: 0 | BR164: 0 | BS164: 0 | BT164: 0 | BU164: 0 | BV164: 0 | BW164: 0 | BZ164: 0 | CA164: 0 | CB164: 0 | CC164: 0 | CD164: 0 | CE164: 0 | CF164: 0 | CG164: 0 | CH164: 0 | CI164: 0 | CJ164: 0 | CK164: 0
A165: Special Deposits | B165: =Labels!B165 -> Special Deposits | C165: 0 | D165: =IF(D$6="Actual",SUMIF($A$1385:$A$1424,$B165,D$1385:D$1424)*D$351,C165+SUMIF($A$542:$A$1382,$B165,D$542:D$1382)*D$351) -> 0 | E165: 0 | F165: 0 | G165: 0 | H165: 0 | I165: 0 | J165: 0 | K165: 0 | L165: 0 | M165: 0 | N165: 0 | O165: 0 | P165: 0 | Q165: 0 | R165: 0 | S165: 0 | T165: 0 | U165: 0 | V165: 0 | W165: 0 | X165: 0 | Y165: 0 | Z165: 0 | AA165: 0 | AB165: 0 | AC165: 0 | AD165: 0 | AE165: 0 | AF165: 0 | AG165: 0 | AH165: 0 | AI165: 0 | AJ165: =IF(AJ$6="Actual",SUMIF($A$1385:$A$1424,$B165,AJ$1385:AJ$1424)*AJ$351,AI165+SUMIF($A$542:$A$1382,$B165,AJ$542:AJ$1382)*AJ$351) -> 0 | AK165: 0 | AL165: 0 | AM165: 0 | AN165: 0 | AO165: 0 | AP165: 0 | AQ165: 0 | AR165: 0 | AS165: 0 | AT165: 0 | AU165: 0 | AV165: 0 | AW165: 0 | AX165: 0 | AY165: 0 | AZ165: 0 | BA165: 0 | BB165: 0 | BC165: 0 | BD165: 0 | BE165: 0 | BF165: 0 | BG165: 0 | BH165: 0 | BI165: 0 | BJ165: 0 | BK165: 0 | BL165: 0 | BM165: 0 | BN165: 0 | BO165: 0 | BP165: =IF(BP$6="Actual",SUMIF($A$1385:$A$1424,$B165,BP$1385:BP$1424)*BP$351,BO165+SUMIF($A$542:$A$1382,$B165,BP$542:BP$1382)*BP$351) -> 0 | BQ165: 0 | BR165: 0 | BS165: 0 | BT165: 0 | BU165: 0 | BV165: 0 | BW165: 0 | BZ165: 0 | CA165: 0 | CB165: 0 | CC165: 0 | CD165: 0 | CE165: 0 | CF165: 0 | CG165: 0 | CH165: 0 | CI165: 0 | CJ165: 0 | CK165: 0
A166: Accounts Receivable | B166: =Labels!B166 -> Accounts Receivable | C166: 0 | D166: =IF(D$6="Actual",SUMIF($A$1385:$A$1424,$B166,D$1385:D$1424)*D$351,C166+SUMIF($A$542:$A$1382,$B166,D$542:D$1382)*D$351) -> 0 | E166: 0 | F166: 0 | G166: 0 | H166: 0 | I166: 0 | J166: 0 | K166: 0 | L166: 0 | M166: 0 | N166: 0 | O166: 0 | P166: 0 | Q166: 0 | R166: 0 | S166: 0 | T166: 0 | U166: 0 | V166: 0 | W166: 0 | X166: 0 | Y166: 0 | Z166: 0 | AA166: 0 | AB166: 0 | AC166: 0 | AD166: 0 | AE166: 0 | AF166: 0 | AG166: 0 | AH166: 0 | AI166: 0 | AJ166: =IF(AJ$6="Actual",SUMIF($A$1385:$A$1424,$B166,AJ$1385:AJ$1424)*AJ$351,AI166+SUMIF($A$542:$A$1382,$B166,AJ$542:AJ$1382)*AJ$351) -> 0 | AK166: 0 | AL166: 0 | AM166: 0 | AN166: 0 | AO166: 0 | AP166: 0 | AQ166: 0 | AR166: 0 | AS166: 0 | AT166: 0 | AU166: 0 | AV166: 0 | AW166: 0 | AX166: 0 | AY166: 0 | AZ166: 0 | BA166: 0 | BB166: 0 | BC166: 0 | BD166: 0 | BE166: 0 | BF166: 0 | BG166: 0 | BH166: 0 | BI166: 0 | BJ166: 0 | BK166: 0 | BL166: 0 | BM166: 0 | BN166: 0 | BO166: 0 | BP166: =IF(BP$6="Actual",SUMIF($A$1385:$A$1424,$B166,BP$1385:BP$1424)*BP$351,BO166+SUMIF($A$542:$A$1382,$B166,BP$542:BP$1382)*BP$351) -> 0 | BQ166: 0 | BR166: 0 | BS166: 0 | BT166: 0 | BU166: 0 | BV166: 0 | BW166: 0 | BZ166: 0 | CA166: 0 | CB166: 0 | CC166: 0 | CD166: 0 | CE166: 0 | CF166: 0 | CG166: 0 | CH166: 0 | CI166: 0 | CJ166: 0 | CK166: 0
A167: Accounts Receivable - Affiliated Companies | B167: =Labels!B167 -> Accounts Receivable - Affiliated Companies | C167: 0 | D167: =IF(D$6="Actual",SUMIF($A$1385:$A$1424,$B167,D$1385:D$1424)*D$351,C167+SUMIF($A$542:$A$1382,$B167,D$542:D$1382)*D$351) -> 0 | E167: 0 | F167: 0 | G167: 0 | H167: 0 | I167: 0 | J167: 0 | K167: 0 | L167: 0 | M167: 0 | N167: 0 | O167: 0 | P167: 0 | Q167: 0 | R167: 0 | S167: 0 | T167: 0 | U167: 0 | V167: 0 | W167: 0 | X167: 0 | Y167: 0 | Z167: 0 | AA167: 0 | AB167: 0 | AC167: 0 | AD167: 0 | AE167: 0 | AF167: 0 | AG167: 0 | AH167: 0 | AI167: 0 | AJ167: =IF(AJ$6="Actual",SUMIF($A$1385:$A$1424,$B167,AJ$1385:AJ$1424)*AJ$351,AI167+SUMIF($A$542:$A$1382,$B167,AJ$542:AJ$1382)*AJ$351) -> 0 | AK167: 0 | AL167: 0 | AM167: 0 | AN167: 0 | AO167: 0 | AP167: 0 | AQ167: 0 | AR167: 0 | AS167: 0 | AT167: 0 | AU167: 0 | AV167: 0 | AW167: 0 | AX167: 0 | AY167: 0 | AZ167: 0 | BA167: 0 | BB167: 0 | BC167: 0 | BD167: 0 | BE167: 0 | BF167: 0 | BG167: 0 | BH167: 0 | BI167: 0 | BJ167: 0 | BK167: 0 | BL167: 0 | BM167: 0 | BN167: 0 | BO167: 0 | BP167: =IF(BP$6="Actual",SUMIF($A$1385:$A$1424,$B167,BP$1385:BP$1424)*BP$351,BO167+SUMIF($A$542:$A$1382,$B167,BP$542:BP$1382)*BP$351) -> 0 | BQ167: 0 | BR167: 0 | BS167: 0 | BT167: 0 | BU167: 0 | BV167: 0 | BW167: 0 | BZ167: 0 | CA167: 0 | CB167: 0 | CC167: 0 | CD167: 0 | CE167: 0 | CF167: 0 | CG167: 0 | CH167: 0 | CI167: 0 | CJ167: 0 | CK167: 0
A168: Hide | B168: =Labels!B168 -> Hide | C168: 0 | D168: =IF(D$6="Actual",SUMIF($A$1385:$A$1424,$B168,D$1385:D$1424)*D$351,C168+SUMIF($A$542:$A$1382,$B168,D$542:D$1382)*D$351) -> 0 | E168: 0 | F168: 0 | G168: 0 | H168: 0 | I168: 0 | J168: 0 | K168: 0 | L168: 0 | M168: 0 | N168: 0 | O168: 0 | P168: 0 | Q168: 0 | R168: 0 | S168: 0 | T168: 0 | U168: 0 | V168: 0 | W168: 0 | X168: 0 | Y168: 0 | Z168: 0 | AA168: 0 | AB168: 0 | AC168: 0 | AD168: 0 | AE168: 0 | AF168: 0 | AG168: 0 | AH168: 0 | AI168: 0 | AJ168: =IF(AJ$6="Actual",SUMIF($A$1385:$A$1424,$B168,AJ$1385:AJ$1424)*AJ$351,AI168+SUMIF($A$542:$A$1382,$B168,AJ$542:AJ$1382)*AJ$351) -> 0 | AK168: 0 | AL168: 0 | AM168: 0 | AN168: 0 | AO168: 0 | AP168: 0 | AQ168: 0 | AR168: 0 | AS168: 0 | AT168: 0 | AU168: 0 | AV168: 0 | AW168: 0 | AX168: 0 | AY168: 0 | AZ168: 0 | BA168: 0 | BB168: 0 | BC168: 0 | BD168: 0 | BE168: 0 | BF168: 0 | BG168: 0 | BH168: 0 | BI168: 0 | BJ168: 0 | BK168: 0 | BL168: 0 | BM168: 0 | BN168: 0 | BO168: 0 | BP168: =IF(BP$6="Actual",SUMIF($A$1385:$A$1424,$B168,BP$1385:BP$1424)*BP$351,BO168+SUMIF($A$542:$A$1382,$B168,BP$542:BP$1382)*BP$351) -> 0 | BQ168: 0 | BR168: 0 | BS168: 0 | BT168: 0 | BU168: 0 | BV168: 0 | BW168: 0 | BZ168: 0 | CA168: 0 | CB168: 0 | CC168: 0 | CD168: 0 | CE168: 0 | CF168: 0 | CG168: 0 | CH168: 0 | CI168: 0 | CJ168: 0 | CK168: 0
A169: Hide | B169: =Labels!B169 -> Hide | C169: 0 | D169: =IF(D$6="Actual",SUMIF($A$1385:$A$1424,$B169,D$1385:D$1424)*D$351,C169+SUMIF($A$542:$A$1382,$B169,D$542:D$1382)*D$351) -> 0 | E169: 0 | F169: 0 | G169: 0 | H169: 0 | I169: 0 | J169: 0 | K169: 0 | L169: 0 | M169: 0 | N169: 0 | O169: 0 | P169: 0 | Q169: 0 | R169: 0 | S169: 0 | T169: 0 | U169: 0 | V169: 0 | W169: 0 | X169: 0 | Y169: 0 | Z169: 0 | AA169: 0 | AB169: 0 | AC169: 0 | AD169: 0 | AE169: 0 | AF169: 0 | AG169: 0 | AH169: 0 | AI169: 0 | AJ169: =IF(AJ$6="Actual",SUMIF($A$1385:$A$1424,$B169,AJ$1385:AJ$1424)*AJ$351,AI169+SUMIF($A$542:$A$1382,$B169,AJ$542:AJ$1382)*AJ$351) -> 0 | AK169: 0 | AL169: 0 | AM169: 0 | AN169: 0 | AO169: 0 | AP169: 0 | AQ169: 0 | AR169: 0 | AS169: 0 | AT169: 0 | AU169: 0 | AV169: 0 | AW169: 0 | AX169: 0 | AY169: 0 | AZ169: 0 | BA169: 0 | BB169: 0 | BC169: 0 | BD169: 0 | BE169: 0 | BF169: 0 | BG169: 0 | BH169: 0 | BI169: 0 | BJ169: 0 | BK169: 0 | BL169: 0 | BM169: 0 | BN169: 0 | BO169: 0 | BP169: =IF(BP$6="Actual",SUMIF($A$1385:$A$1424,$B169,BP$1385:BP$1424)*BP$351,BO169+SUMIF($A$542:$A$1382,$B169,BP$542:BP$1382)*BP$351) -> 0 | BQ169: 0 | BR169: 0 | BS169: 0 | BT169: 0 | BU169: 0 | BV169: 0 | BW169: 0 | BZ169: 0 | CA169: 0 | CB169: 0 | CC169: 0 | CD169: 0 | CE169: 0 | CF169: 0 | CG169: 0 | CH169: 0 | CI169: 0 | CJ169: 0 | CK169: 0
A170: Hide | B170: =Labels!B170 -> Hide | C170: 0 | D170: =IF(D$6="Actual",SUMIF($A$1385:$A$1424,$B170,D$1385:D$1424)*D$351,C170+SUMIF($A$542:$A$1382,$B170,D$542:D$1382)*D$351) -> 0 | E170: 0 | F170: 0 | G170: 0 | H170: 0 | I170: 0 | J170: 0 | K170: 0 | L170: 0 | M170: 0 | N170: 0 | O170: 0 | P170: 0 | Q170: 0 | R170: 0 | S170: 0 | T170: 0 | U170: 0 | V170: 0 | W170: 0 | X170: 0 | Y170: 0 | Z170: 0 | AA170: 0 | AB170: 0 | AC170: 0 | AD170: 0 | AE170: 0 | AF170: 0 | AG170: 0 | AH170: 0 | AI170: 0 | AJ170: =IF(AJ$6="Actual",SUMIF($A$1385:$A$1424,$B170,AJ$1385:AJ$1424)*AJ$351,AI170+SUMIF($A$542:$A$1382,$B170,AJ$542:AJ$1382)*AJ$351) -> 0 | AK170: 0 | AL170: 0 | AM170: 0 | AN170: 0 | AO170: 0 | AP170: 0 | AQ170: 0 | AR170: 0 | AS170: 0 | AT170: 0 | AU170: 0 | AV170: 0 | AW170: 0 | AX170: 0 | AY170: 0 | AZ170: 0 | BA170: 0 | BB170: 0 | BC170: 0 | BD170: 0 | BE170: 0 | BF170: 0 | BG170: 0 | BH170: 0 | BI170: 0 | BJ170: 0 | BK170: 0 | BL170: 0 | BM170: 0 | BN170: 0 | BO170: 0 | BP170: =IF(BP$6="Actual",SUMIF($A$1385:$A$1424,$B170,BP$1385:BP$1424)*BP$351,BO170+SUMIF($A$542:$A$1382,$B170,BP$542:BP$1382)*BP$351) -> 0 | BQ170: 0 | BR170: 0 | BS170: 0 | BT170: 0 | BU170: 0 | BV170: 0 | BW170: 0 | BZ170: 0 | CA170: 0 | CB170: 0 | CC170: 0 | CD170: 0 | CE170: 0 | CF170: 0 | CG170: 0 | CH170: 0 | CI170: 0 | CJ170: 0 | CK170: 0
A171: Hide | B171: =Labels!B171 -> Hide | C171: 0 | D171: =IF(D$6="Actual",SUMIF($A$1385:$A$1424,$B171,D$1385:D$1424)*D$351,C171+SUMIF($A$542:$A$1382,$B171,D$542:D$1382)*D$351) -> 0 | E171: 0 | F171: 0 | G171: 0 | H171: 0 | I171: 0 | J171: 0 | K171: 0 | L171: 0 | M171: 0 | N171: 0 | O171: 0 | P171: 0 | Q171: 0 | R171: 0 | S171: 0 | T171: 0 | U171: 0 | V171: 0 | W171: 0 | X171: 0 | Y171: 0 | Z171: 0 | AA171: 0 | AB171: 0 | AC171: 0 | AD171: 0 | AE171: 0 | AF171: 0 | AG171: 0 | AH171: 0 | AI171: 0 | AJ171: =IF(AJ$6="Actual",SUMIF($A$1385:$A$1424,$B171,AJ$1385:AJ$1424)*AJ$351,AI171+SUMIF($A$542:$A$1382,$B171,AJ$542:AJ$1382)*AJ$351) -> 0 | AK171: 0 | AL171: 0 | AM171: 0 | AN171: 0 | AO171: 0 | AP171: 0 | AQ171: 0 | AR171: 0 | AS171: 0 | AT171: 0 | AU171: 0 | AV171: 0 | AW171: 0 | AX171: 0 | AY171: 0 | AZ171: 0 | BA171: 0 | BB171: 0 | BC171: 0 | BD171: 0 | BE171: 0 | BF171: 0 | BG171: 0 | BH171: 0 | BI171: 0 | BJ171: 0 | BK171: 0 | BL171: 0 | BM171: 0 | BN171: 0 | BO171: 0 | BP171: =IF(BP$6="Actual",SUMIF($A$1385:$A$1424,$B171,BP$1385:BP$1424)*BP$351,BO171+SUMIF($A$542:$A$1382,$B171,BP$542:BP$1382)*BP$351) -> 0 | BQ171: 0 | BR171: 0 | BS171: 0 | BT171: 0 | BU171: 0 | BV171: 0 | BW171: 0 | BZ171: 0 | CA171: 0 | CB171: 0 | CC171: 0 | CD171: 0 | CE171: 0 | CF171: 0 | CG171: 0 | CH171: 0 | CI171: 0 | CJ171: 0 | CK171: 0
A172: Inventories - Other | B172: =Labels!B172 -> Inventories - Other | C172: 0 | D172: =IF(D$6="Actual",SUMIF($A$1385:$A$1424,$B172,D$1385:D$1424)*D$351,C172+SUMIF($A$542:$A$1382,$B172,D$542:D$1382)*D$351) -> 0 | E172: 0 | F172: 0 | G172: 0 | H172: 0 | I172: 0 | J172: 0 | K172: 0 | L172: 0 | M172: 0 | N172: 0 | O172: 0 | P172: 0 | Q172: 0 | R172: 0 | S172: 0 | T172: 0 | U172: 0 | V172: 0 | W172: 0 | X172: 0 | Y172: 0 | Z172: 0 | AA172: 0 | AB172: 0 | AC172: 0 | AD172: 0 | AE172: 0 | AF172: 0 | AG172: 0 | AH172: 0 | AI172: 0 | AJ172: =IF(AJ$6="Actual",SUMIF($A$1385:$A$1424,$B172,AJ$1385:AJ$1424)*AJ$351,AI172+SUMIF($A$542:$A$1382,$B172,AJ$542:AJ$1382)*AJ$351) -> 0 | AK172: 0 | AL172: 0 | AM172: 0 | AN172: 0 | AO172: 0 | AP172: 0 | AQ172: 0 | AR172: 0 | AS172: 0 | AT172: 0 | AU172: 0 | AV172: 0 | AW172: 0 | AX172: 0 | AY172: 0 | AZ172: 0 | BA172: 0 | BB172: 0 | BC172: 0 | BD172: 0 | BE172: 0 | BF172: 0 | BG172: 0 | BH172: 0 | BI172: 0 | BJ172: 0 | BK172: 0 | BL172: 0 | BM172: 0 | BN172: 0 | BO172: 0 | BP172: =IF(BP$6="Actual",SUMIF($A$1385:$A$1424,$B172,BP$1385:BP$1424)*BP$351,BO172+SUMIF($A$542:$A$1382,$B172,BP$542:BP$1382)*BP$351) -> 0 | BQ172: 0 | BR172: 0 | BS172: 0 | BT172: 0 | BU172: 0 | BV172: 0 | BW172: 0 | BZ172: 0 | CA172: 0 | CB172: 0 | CC172: 0 | CD172: 0 | CE172: 0 | CF172: 0 | CG172: 0 | CH172: 0 | CI172: 0 | CJ172: 0 | CK172: 0
A173: Prepayments | B173: =Labels!B173 -> Prepayments | C173: 0 | D173: =IF(D$6="Actual",SUMIF($A$1385:$A$1424,$B173,D$1385:D$1424)*D$351,C173+SUMIF($A$542:$A$1382,$B173,D$542:D$1382)*D$351) -> 0 | E173: 0 | F173: 0 | G173: 0 | H173: 0 | I173: 0 | J173: 0 | K173: 0 | L173: 0 | M173: 0 | N173: 0 | O173: 0 | P173: 0 | Q173: 0 | R173: 0 | S173: 0 | T173: 0 | U173: 0 | V173: 0 | W173: 0 | X173: 0 | Y173: 0 | Z173: 0 | AA173: 0 | AB173: 0 | AC173: 0 | AD173: 0 | AE173: 0 | AF173: 0 | AG173: 0 | AH173: 0 | AI173: 0 | AJ173: =IF(AJ$6="Actual",SUMIF($A$1385:$A$1424,$B173,AJ$1385:AJ$1424)*AJ$351,AI173+SUMIF($A$542:$A$1382,$B173,AJ$542:AJ$1382)*AJ$351) -> 0 | AK173: 0 | AL173: 0 | AM173: 0 | AN173: 0 | AO173: 0 | AP173: 0 | AQ173: 0 | AR173: 0 | AS173: 0 | AT173: 0 | AU173: 0 | AV173: 0 | AW173: 0 | AX173: 0 | AY173: 0 | AZ173: 0 | BA173: 0 | BB173: 0 | BC173: 0 | BD173: 0 | BE173: 0 | BF173: 0 | BG173: 0 | BH173: 0 | BI173: 0 | BJ173: 0 | BK173: 0 | BL173: 0 | BM173: 0 | BN173: 0 | BO173: 0 | BP173: =IF(BP$6="Actual",SUMIF($A$1385:$A$1424,$B173,BP$1385:BP$1424)*BP$351,BO173+SUMIF($A$542:$A$1382,$B173,BP$542:BP$1382)*BP$351) -> 0 | BQ173: 0 | BR173: 0 | BS173: 0 | BT173: 0 | BU173: 0 | BV173: 0 | BW173: 0 | BZ173: 0 | CA173: 0 | CB173: 0 | CC173: 0 | CD173: 0 | CE173: 0 | CF173: 0 | CG173: 0 | CH173: 0 | CI173: 0 | CJ173: 0 | CK173: 0
A174: Income Taxes Receivable | B174: =Labels!B174 -> Income Taxes Receivable | C174: 0 | D174: =IF(D$6="Actual",SUMIF($A$1385:$A$1424,$B174,D$1385:D$1424)*D$351,C174+SUMIF($A$542:$A$1382,$B174,D$542:D$1382)*D$351) -> 0 | E174: 0 | F174: 0 | G174: 0 | H174: 0 | I174: 0 | J174: 0 | K174: 0 | L174: 0 | M174: 0 | N174: 0 | O174: 0 | P174: 0 | Q174: 0 | R174: 0 | S174: 0 | T174: 0 | U174: 0 | V174: 0 | W174: 0 | X174: 0 | Y174: 0 | Z174: 0 | AA174: 0 | AB174: 0 | AC174: 0 | AD174: 0 | AE174: 0 | AF174: 0 | AG174: 0 | AH174: 0 | AI174: 0 | AJ174: =IF(AJ$6="Actual",SUMIF($A$1385:$A$1424,$B174,AJ$1385:AJ$1424)*AJ$351,AI174+SUMIF($A$542:$A$1382,$B174,AJ$542:AJ$1382)*AJ$351) -> 0 | AK174: 0 | AL174: 0 | AM174: 0 | AN174: 0 | AO174: 0 | AP174: 0 | AQ174: 0 | AR174: 0 | AS174: 0 | AT174: 0 | AU174: 0 | AV174: 0 | AW174: 0 | AX174: 0 | AY174: 0 | AZ174: 0 | BA174: 0 | BB174: 0 | BC174: 0 | BD174: 0 | BE174: 0 | BF174: 0 | BG174: 0 | BH174: 0 | BI174: 0 | BJ174: 0 | BK174: 0 | BL174: 0 | BM174: 0 | BN174: 0 | BO174: 0 | BP174: =IF(BP$6="Actual",SUMIF($A$1385:$A$1424,$B174,BP$1385:BP$1424)*BP$351,BO174+SUMIF($A$542:$A$1382,$B174,BP$542:BP$1382)*BP$351) -> 0 | BQ174: 0 | BR174: 0 | BS174: 0 | BT174: 0 | BU174: 0 | BV174: 0 | BW174: 0 | BZ174: 0 | CA174: 0 | CB174: 0 | CC174: 0 | CD174: 0 | CE174: 0 | CF174: 0 | CG174: 0 | CH174: 0 | CI174: 0 | CJ174: 0 | CK174: 0
A175: Intercompany Loans Receivable | B175: =Labels!B175 -> Intercompany Loans Receivable | C175: 0 | D175: =IF(D$6="Actual",SUMIF($A$1385:$A$1424,$B175,D$1385:D$1424)*D$351,C175+SUMIF($A$542:$A$1382,$B175,D$542:D$1382)*D$351) -> 0 | E175: 0 | F175: 0 | G175: 0 | H175: 0 | I175: 0 | J175: 0 | K175: 0 | L175: 0 | M175: 0 | N175: 0 | O175: 0 | P175: 0 | Q175: 0 | R175: 0 | S175: 0 | T175: 0 | U175: 0 | V175: 0 | W175: 0 | X175: 0 | Y175: 0 | Z175: 0 | AA175: 0 | AB175: 0 | AC175: 0 | AD175: 0 | AE175: 0 | AF175: 0 | AG175: 0 | AH175: 0 | AI175: 0 | AJ175: =IF(AJ$6="Actual",SUMIF($A$1385:$A$1424,$B175,AJ$1385:AJ$1424)*AJ$351,AI175+SUMIF($A$542:$A$1382,$B175,AJ$542:AJ$1382)*AJ$351) -> 0 | AK175: 0 | AL175: 0 | AM175: 0 | AN175: 0 | AO175: 0 | AP175: 0 | AQ175: 0 | AR175: 0 | AS175: 0 | AT175: 0 | AU175: 0 | AV175: 0 | AW175: 0 | AX175: 0 | AY175: 0 | AZ175: 0 | BA175: 0 | BB175: 0 | BC175: 0 | BD175: 0 | BE175: 0 | BF175: 0 | BG175: 0 | BH175: 0 | BI175: 0 | BJ175: 0 | BK175: 0 | BL175: 0 | BM175: 0 | BN175: 0 | BO175: 0 | BP175: =IF(BP$6="Actual",SUMIF($A$1385:$A$1424,$B175,BP$1385:BP$1424)*BP$351,BO175+SUMIF($A$542:$A$1382,$B175,BP$542:BP$1382)*BP$351) -> 0 | BQ175: 0 | BR175: 0 | BS175: 0 | BT175: 0 | BU175: 0 | BV175: 0 | BW175: 0 | BZ175: 0 | CA175: 0 | CB175: 0 | CC175: 0 | CD175: 0 | CE175: 0 | CF175: 0 | CG175: 0 | CH175: 0 | CI175: 0 | CJ175: 0 | CK175: 0
A176: Other Current Assets | B176: =Labels!B176 -> Other Current Assets | C176: 0 | D176: =IF(D$6="Actual",SUMIF($A$1385:$A$1424,$B176,D$1385:D$1424)*D$351,C176+SUMIF($A$542:$A$1382,$B176,D$542:D$1382)*D$351) -> 0 | E176: 0 | F176: 0 | G176: 0 | H176: 0 | I176: 0 | J176: 0 | K176: 0 | L176: 0 | M176: 0 | N176: 0 | O176: 0 | P176: 0 | Q176: 0 | R176: 0 | S176: 0 | T176: 0 | U176: 0 | V176: 0 | W176: 0 | X176: 0 | Y176: 0 | Z176: 0 | AA176: 0 | AB176: 0 | AC176: 0 | AD176: 0 | AE176: 0 | AF176: 0 | AG176: 0 | AH176: 0 | AI176: 0 | AJ176: =IF(AJ$6="Actual",SUMIF($A$1385:$A$1424,$B176,AJ$1385:AJ$1424)*AJ$351,AI176+SUMIF($A$542:$A$1382,$B176,AJ$542:AJ$1382)*AJ$351) -> 0 | AK176: 0 | AL176: 0 | AM176: 0 | AN176: 0 | AO176: 0 | AP176: 0 | AQ176: 0 | AR176: 0 | AS176: 0 | AT176: 0 | AU176: 0 | AV176: 0 | AW176: 0 | AX176: 0 | AY176: 0 | AZ176: 0 | BA176: 0 | BB176: 0 | BC176: 0 | BD176: 0 | BE176: 0 | BF176: 0 | BG176: 0 | BH176: 0 | BI176: 0 | BJ176: 0 | BK176: 0 | BL176: 0 | BM176: 0 | BN176: 0 | BO176: 0 | BP176: =IF(BP$6="Actual",SUMIF($A$1385:$A$1424,$B176,BP$1385:BP$1424)*BP$351,BO176+SUMIF($A$542:$A$1382,$B176,BP$542:BP$1382)*BP$351) -> 0 | BQ176: 0 | BR176: 0 | BS176: 0 | BT176: 0 | BU176: 0 | BV176: 0 | BW176: 0 | BZ176: 0 | CA176: 0 | CB176: 0 | CC176: 0 | CD176: 0 | CE176: 0 | CF176: 0 | CG176: 0 | CH176: 0 | CI176: 0 | CJ176: 0 | CK176: 0
A177: Total Current Assets | B177: =Labels!B177 -> Total Current Assets | C177: 0 | D177: =SUM(D163:D176) -> 0 | E177: 0 | F177: 0 | G177: 0 | H177: 0 | I177: 0 | J177: 0 | K177: 0 | L177: 0 | M177: 0 | N177: 0 | O177: 0 | P177: 0 | Q177: 0 | R177: 0 | S177: 0 | T177: 0 | U177: 0 | V177: 0 | W177: 0 | X177: 0 | Y177: 0 | Z177: 0 | AA177: 0 | AB177: 0 | AC177: 0 | AD177: 0 | AE177: 0 | AF177: 0 | AG177: 0 | AH177: 0 | AI177: =SUM(AI163:AI176) -> 0 | AJ177: 0 | AK177: 0 | AL177: 0 | AM177: 0 | AN177: 0 | AO177: 0 | AP177: 0 | AQ177: 0 | AR177: 0 | AS177: 0 | AT177: 0 | AU177: 0 | AV177: 0 | AW177: 0 | AX177: 0 | AY177: 0 | AZ177: 0 | BA177: 0 | BB177: 0 | BC177: 0 | BD177: 0 | BE177: 0 | BF177: 0 | BG177: 0 | BH177: 0 | BI177: 0 | BJ177: 0 | BK177: 0 | BL177: 0 | BM177: 0 | BN177: 0 | BO177: =SUM(BO163:BO176) -> 0 | BP177: 0 | BQ177: 0 | BR177: 0 | BS177: 0 | BT177: 0 | BU177: 0 | BV177: 0 | BW177: 0 | BZ177: =SUM(BZ163:BZ176) -> 0 | CA177: 0 | CB177: 0 | CC177: 0 | CD177: 0 | CE177: 0 | CF177: 0 | CG177: 0 | CH177: 0 | CI177: 0 | CJ177: 0 | CK177: 0
B179: =Labels!B179 -> Deferred Debits:
A180: =B180 -> Deferred Taxes - Asset | B180: =Labels!B180 -> Deferred Taxes - Asset | C180: 0 | D180: =IF(D$6="Actual",SUMIF($A$1385:$A$1424,$B180,D$1385:D$1424)*D$351,C180+SUMIF($A$542:$A$1382,$B180,D$542:D$1382)*D$351) -> 0 | E180: 0 | F180: 0 | G180: 0 | H180: 0 | I180: 0 | J180: 0 | K180: 0 | L180: 0 | M180: 0 | N180: 0 | O180: 0 | P180: 0 | Q180: 0 | R180: 0 | S180: 0 | T180: 0 | U180: 0 | V180: 0 | W180: 0 | X180: 0 | Y180: 0 | Z180: 0 | AA180: 0 | AB180: 0 | AC180: 0 | AD180: 0 | AE180: 0 | AF180: 0 | AG180: 0 | AH180: 0 | AI180: 0 | AJ180: =IF(AJ$6="Actual",SUMIF($A$1385:$A$1424,$B180,AJ$1385:AJ$1424)*AJ$351,AI180+SUMIF($A$542:$A$1382,$B180,AJ$542:AJ$1382)*AJ$351) -> 0 | AK180: 0 | AL180: 0 | AM180: 0 | AN180: 0 | AO180: 0 | AP180: 0 | AQ180: 0 | AR180: 0 | AS180: 0 | AT180: 0 | AU180: 0 | AV180: 0 | AW180: 0 | AX180: 0 | AY180: 0 | AZ180: 0 | BA180: 0 | BB180: 0 | BC180: 0 | BD180: 0 | BE180: 0 | BF180: 0 | BG180: 0 | BH180: 0 | BI180: 0 | BJ180: 0 | BK180: 0 | BL180: 0 | BM180: 0 | BN180: 0 | BO180: 0 | BP180: =IF(BP$6="Actual",SUMIF($A$1385:$A$1424,$B180,BP$1385:BP$1424)*BP$351,BO180+SUMIF($A$542:$A$1382,$B180,BP$542:BP$1382)*BP$351) -> 0 | BQ180: 0 | BR180: 0.2305982468 | BS180: 0.5143891816 | BT180: 0.8471560007 | BU180: 1.36928779 | BV180: 1.906052479 | BW180: 2.445919577 | BZ180: =C180 -> 0 | CA180: =O180 -> 0 | CB180: =AA180 -> 0 | CC180: =AM180 -> 0 | CD180: =AY180 -> 0 | CE180: =BK180 -> 0 | CF180: =BW180 -> 2.445919577 | CG180: =IF(CG$6="Actual",SUMIF($A$1385:$A$1424,$B180,CG$1385:CG$1424)*CG$351,CF180+SUMIF($A$542:$A$1382,$B180,CG$542:CG$1382)*CG$351) -> 38.24016766 | CH180: 89.42249454 | CI180: 108.583283 | CJ180: 125.6526644 | CK180: 139.9537921
A181: =B181 -> Deferred Debt Costs, Net | B181: =Labels!B181 -> Deferred Debt Costs, Net | C181: 0 | D181: =IF(D$6="Actual",SUMIF($A$1385:$A$1424,$B181,D$1385:D$1424)*D$351,C181+SUMIF($A$542:$A$1382,$B181,D$542:D$1382)*D$351) -> 0 | E181: 0 | F181: 0 | G181: 0 | H181: 0 | I181: 0 | J181: 0 | K181: 0 | L181: 0 | M181: 0 | N181: 0 | O181: 0 | P181: 0 | Q181: 0 | R181: 0 | S181: 0 | T181: 0 | U181: 0 | V181: 0 | W181: 0 | X181: 0 | Y181: 0 | Z181: 0 | AA181: 0 | AB181: 0 | AC181: 0 | AD181: 0 | AE181: 0 | AF181: 0 | AG181: 0 | AH181: 0 | AI181: 0 | AJ181: =IF(AJ$6="Actual",SUMIF($A$1385:$A$1424,$B181,AJ$1385:AJ$1424)*AJ$351,AI181+SUMIF($A$542:$A$1382,$B181,AJ$542:AJ$1382)*AJ$351) -> 0 | AK181: 0 | AL181: 0 | AM181: 0 | AN181: 0 | AO181: 0 | AP181: 0 | AQ181: 0 | AR181: 0 | AS181: 0 | AT181: 0 | AU181: 0 | AV181: 0 | AW181: 0 | AX181: 0 | AY181: 0 | AZ181: 0 | BA181: 0 | BB181: 0 | BC181: 0 | BD181: 0 | BE181: 0 | BF181: 0 | BG181: 0 | BH181: 0 | BI181: 0 | BJ181: 0 | BK181: 0 | BL181: 0 | BM181: 0 | BN181: 0 | BO181: 0 | BP181: =IF(BP$6="Actual",SUMIF($A$1385:$A$1424,$B181,BP$1385:BP$1424)*BP$351,BO181+SUMIF($A$542:$A$1382,$B181,BP$542:BP$1382)*BP$351) -> 0 | BQ181: 0 | BR181: 0 | BS181: 0 | BT181: 0 | BU181: 0 | BV181: 0 | BW181: 0 | BZ181: =C181 -> 0 | CA181: =O181 -> 0 | CB181: =AA181 -> 0 | CC181: =AM181 -> 0 | CD181: =AY181 -> 0 | CE181: =BK181 -> 0 | CF181: =BW181 -> 0 | CG181: 0 | CH181: 0 | CI181: 0 | CJ181: 0 | CK181: 0
A182: =B182 -> Other Deferred Debits | B182: =Labels!B182 -> Other Deferred Debits | C182: 0 | D182: =IF(D$6="Actual",SUMIF($A$1385:$A$1424,$B182,D$1385:D$1424)*D$351,C182+SUMIF($A$542:$A$1382,$B182,D$542:D$1382)*D$351) -> 0 | E182: 0 | F182: 0 | G182: 0 | H182: 0 | I182: 0 | J182: 0 | K182: 0 | L182: 0 | M182: 0 | N182: 0 | O182: 0 | P182: 0 | Q182: 0 | R182: 0 | S182: 0 | T182: 0 | U182: 0 | V182: 0 | W182: 0 | X182: 0 | Y182: 0 | Z182: 0 | AA182: 0 | AB182: 0 | AC182: 0 | AD182: 0 | AE182: 0 | AF182: 0 | AG182: 0 | AH182: 0 | AI182: 0 | AJ182: =IF(AJ$6="Actual",SUMIF($A$1385:$A$1424,$B182,AJ$1385:AJ$1424)*AJ$351,AI182+SUMIF($A$542:$A$1382,$B182,AJ$542:AJ$1382)*AJ$351) -> 0 | AK182: 0 | AL182: 0 | AM182: 0 | AN182: 0 | AO182: 0 | AP182: 0 | AQ182: 0 | AR182: 0 | AS182: 0 | AT182: 0 | AU182: 0 | AV182: 0 | AW182: 0 | AX182: 0 | AY182: 0 | AZ182: 0 | BA182: 0 | BB182: 0 | BC182: 0 | BD182: 0 | BE182: 0 | BF182: 0 | BG182: 0 | BH182: 0 | BI182: 0 | BJ182: 0 | BK182: 0 | BL182: 0 | BM182: 0 | BN182: 0 | BO182: 0 | BP182: =IF(BP$6="Actual",SUMIF($A$1385:$A$1424,$B182,BP$1385:BP$1424)*BP$351,BO182+SUMIF($A$542:$A$1382,$B182,BP$542:BP$1382)*BP$351) -> 0 | BQ182: 0 | BR182: 0 | BS182: 0 | BT182: 0 | BU182: 0 | BV182: 0 | BW182: 0 | BZ182: =C182 -> 0 | CA182: =O182 -> 0 | CB182: =AA182 -> 0 | CC182: =AM182 -> 0 | CD182: =AY182 -> 0 | CE182: =BK182 -> 0 | CF182: =BW182 -> 0 | CG182: 0 | CH182: 0 | CI182: 0 | CJ182: 0 | CK182: 0
A183: =B183 -> Total Deferred Debits | B183: =Labels!B183 -> Total Deferred Debits | C183: 0 | D183: =SUM(D180:D182) -> 0 | E183: 0 | F183: 0 | G183: 0 | H183: 0 | I183: 0 | J183: 0 | K183: 0 | L183: 0 | M183: 0 | N183: 0 | O183: 0 | P183: 0 | Q183: 0 | R183: 0 | S183: 0 | T183: 0 | U183: 0 | V183: 0 | W183: 0 | X183: 0 | Y183: 0 | Z183: 0 | AA183: 0 | AB183: 0 | AC183: 0 | AD183: 0 | AE183: 0 | AF183: 0 | AG183: 0 | AH183: 0 | AI183: =SUM(AI180:AI182) -> 0 | AJ183: 0 | AK183: 0 | AL183: 0 | AM183: 0 | AN183: 0 | AO183: 0 | AP183: 0 | AQ183: 0 | AR183: 0 | AS183: 0 | AT183: 0 | AU183: 0 | AV183: 0 | AW183: 0 | AX183: 0 | AY183: 0 | AZ183: 0 | BA183: 0 | BB183: 0 | BC183: 0 | BD183: 0 | BE183: 0 | BF183: 0 | BG183: 0 | BH183: 0 | BI183: 0 | BJ183: 0 | BK183: 0 | BL183: 0 | BM183: 0 | BN183: 0 | BO183: =SUM(BO180:BO182) -> 0 | BP183: 0 | BQ183: 0 | BR183: 0.2305982468 | BS183: 0.5143891816 | BT183: 0.8471560007 | BU183: 1.36928779 | BV183: 1.906052479 | BW183: 2.445919577 | BZ183: =SUM(BZ180:BZ182) -> 0 | CA183: 0 | CB183: 0 | CC183: 0 | CD183: 0 | CE183: 0 | CF183: 2.445919577 | CG183: 38.24016766 | CH183: 89.42249454 | CI183: 108.583283 | CJ183: 125.6526644 | CK183: 139.9537921
A185: =B185 -> Hide | B185: =Labels!B185 -> Hide | C185: 0 | D185: =IF(D$6="Actual",SUMIF($A$1385:$A$1424,$B185,D$1385:D$1424)*D$351,C185+SUMIF($A$542:$A$1382,$B185,D$542:D$1382)*D$351) -> 0 | E185: 0 | F185: 0 | G185: 0 | H185: 0 | I185: 0 | J185: 0 | K185: 0 | L185: 0 | M185: 0 | N185: 0 | O185: 0 | P185: 0 | Q185: 0 | R185: 0 | S185: 0 | T185: 0 | U185: 0 | V185: 0 | W185: 0 | X185: 0 | Y185: 0 | Z185: 0 | AA185: 0 | AB185: 0 | AC185: 0 | AD185: 0 | AE185: 0 | AF185: 0 | AG185: 0 | AH185: 0 | AI185: 0 | AJ185: =IF(AJ$6="Actual",SUMIF($A$1385:$A$1424,$B185,AJ$1385:AJ$1424)*AJ$351,AI185+SUMIF($A$542:$A$1382,$B185,AJ$542:AJ$1382)*AJ$351) -> 0 | AK185: 0 | AL185: 0 | AM185: 0 | AN185: 0 | AO185: 0 | AP185: 0 | AQ185: 0 | AR185: 0 | AS185: 0 | AT185: 0 | AU185: 0 | AV185: 0 | AW185: 0 | AX185: 0 | AY185: 0 | AZ185: 0 | BA185: 0 | BB185: 0 | BC185: 0 | BD185: 0 | BE185: 0 | BF185: 0 | BG185: 0 | BH185: 0 | BI185: 0 | BJ185: 0 | BK185: 0 | BL185: 0 | BM185: 0 | BN185: 0 | BO185: 0 | BP185: =IF(BP$6="Actual",SUMIF($A$1385:$A$1424,$B185,BP$1385:BP$1424)*BP$351,BO185+SUMIF($A$542:$A$1382,$B185,BP$542:BP$1382)*BP$351) -> 0 | BQ185: 0 | BR185: 0 | BS185: 0 | BT185: 0 | BU185: 0 | BV185: 0 | BW185: 0 | BZ185: =C185 -> 0 | CA185: =O185 -> 0 | CB185: =AA185 -> 0 | CC185: =AM185 -> 0 | CD185: =AY185 -> 0 | CE185: =BK185 -> 0 | CF185: =BW185 -> 0 | CG185: =IF(CG$6="Actual",SUMIF($A$1385:$A$1424,$B185,CG$1385:CG$1424)*CG$351,CF185+SUMIF($A$542:$A$1382,$B185,CG$542:CG$1382)*CG$351) -> 0 | CH185: =IF(CH$6="Actual",SUMIF($A$1385:$A$1424,$B185,CH$1385:CH$1424)*CH$351,CG185+SUMIF($A$542:$A$1382,$B185,CH$542:CH$1382)*CH$351) -> 0 | CI185: =IF(CI$6="Actual",SUMIF($A$1385:$A$1424,$B185,CI$1385:CI$1424)*CI$351,CH185+SUMIF($A$542:$A$1382,$B185,CI$542:CI$1382)*CI$351) -> 0 | CJ185: =IF(CJ$6="Actual",SUMIF($A$1385:$A$1424,$B185,CJ$1385:CJ$1424)*CJ$351,CI185+SUMIF($A$542:$A$1382,$B185,CJ$542:CJ$1382)*CJ$351) -> 0 | CK185: =IF(CK$6="Actual",SUMIF($A$1385:$A$1424,$B185,CK$1385:CK$1424)*CK$351,CJ185+SUMIF($A$542:$A$1382,$B185,CK$542:CK$1382)*CK$351) -> 0
A186: =B186 -> Total Assets | B186: =Labels!B186 -> Total Assets | C186: 1438.05361 | D186: =D151+D160+D177+D183+D185 -> 1446.68869 | E186: 1427.90095 | F186: 1426.96706 | G186: 1495.19458 | H186: 1489.14253 | I186: 1497.18146 | J186: 1514.42894 | K186: 1541.97722 | L186: 1553.30196 | M186: 1672.22314 | N186: 1670.50855 | O186: 1661.14909 | P186: 1649.84682 | Q186: 1649.11131 | R186: 1641.55781 | S186: 1686.56567 | T186: 1664.12693 | U186: 1681.401 | V186: 1661.05338 | W186: 1737.37306 | X186: 1763.89863 | Y186: 1816.0956 | Z186: 1825.41284 | AA186: 1832.06706 | AB186: 1816.74547 | AC186: 1807.25799 | AD186: 1789.67103 | AE186: 1783.1831 | AF186: 1814.6545 | AG186: 1820.75987 | AH186: 1822.42794 | AI186: =AI151+AI160+AI177+AI183+AI185 -> 1873.76129 | AJ186: 1878.17119 | AK186: 1920.35172 | AL186: 1915.36941 | AM186: 1901.25091 | AN186: 1878.68226 | AO186: 1860.36959 | AP186: 1841.66688 | AQ186: 1822.16523 | AR186: 1843.66888 | AS186: 1840.64563 | AT186: 1853.78678 | AU186: 1909.84381 | AV186: 1937.91376 | AW186: 1932.22196 | AX186: 1909.94359 | AY186: 1887.64988 | AZ186: 1866.23901 | BA186: 1843.79267 | BB186: 1819.78202 | BC186: 1800.93707 | BD186: 1783.9548 | BE186: 1808.89132 | BF186: 1803.08315 | BG186: 1829.49868 | BH186: 1848.4882 | BI186: 1846.81305 | BJ186: 1826.74317 | BK186: 1804.88641 | BL186: 1779.78117 | BM186: 1754.78535 | BN186: 1734.99722 | BO186: =BO151+BO160+BO177+BO183+BO185 -> 1711.17522 | BP186: 1684.23099 | BQ186: 1689.00158 | BR186: 1721.951352 | BS186: 1710.519428 | BT186: 1697.697743 | BU186: 1728.247083 | BV186: 1704.417067 | BW186: 1676.995179 | BZ186: =BZ151+BZ160+BZ177+BZ183+BZ185 -> 1438.05361 | CA186: 1661.14909 | CB186: 1832.06706 | CC186: 1901.25091 | CD186: 1887.64988 | CE186: 1804.88641 | CF186: 1676.995179 | CG186: 1562.717797 | CH186: 1434.694637 | CI186: 1375.151614 | CJ186: 1321.23256 | CK186: 1289.13694
B188: =Labels!B188 -> Capitalization & Liabilities:
B189: =Labels!B189 -> Common Equity:
A190: =B190 -> Common Stock | B190: =Labels!B190 -> Common Stock | C190: 0 | D190: =IF(D$6="Actual",SUMIF($A$1385:$A$1424,$B190,D$1385:D$1424)*D$351,C190+SUMIF($A$542:$A$1382,$B190,D$542:D$1382)*D$351) -> 0 | E190: 0 | F190: 0 | G190: 0 | H190: 0 | I190: 0 | J190: 0 | K190: 0 | L190: 0 | M190: 0 | N190: 0 | O190: 0 | P190: 0 | Q190: 0 | R190: 0 | S190: 0 | T190: 0 | U190: 0 | V190: 0 | W190: 0 | X190: 0 | Y190: 0 | Z190: 0 | AA190: 0 | AB190: 0 | AC190: 0 | AD190: 0 | AE190: 0 | AF190: 0 | AG190: 0 | AH190: 0 | AI190: 0 | AJ190: =IF(AJ$6="Actual",SUMIF($A$1385:$A$1424,$B190,AJ$1385:AJ$1424)*AJ$351,AI190+SUMIF($A$542:$A$1382,$B190,AJ$542:AJ$1382)*AJ$351) -> 0 | AK190: 0 | AL190: 0 | AM190: 0 | AN190: 0 | AO190: 0 | AP190: 0 | AQ190: 0 | AR190: 0 | AS190: 0 | AT190: 0 | AU190: 0 | AV190: 0 | AW190: 0 | AX190: 0 | AY190: 0 | AZ190: 0 | BA190: 0 | BB190: 0 | BC190: 0 | BD190: 0 | BE190: 0 | BF190: 0 | BG190: 0 | BH190: 0 | BI190: 0 | BJ190: 0 | BK190: 0 | BL190: 0 | BM190: 0 | BN190: 0 | BO190: 0 | BP190: =IF(BP$6="Actual",SUMIF($A$1385:$A$1424,$B190,BP$1385:BP$1424)*BP$351,BO190+SUMIF($A$542:$A$1382,$B190,BP$542:BP$1382)*BP$351) -> 0 | BQ190: 0 | BR190: 0 | BS190: 0 | BT190: 0 | BU190: 0 | BV190: 0 | BW190: 0 | BZ190: =C190 -> 0 | CA190: =O190 -> 0 | CB190: =AA190 -> 0 | CC190: =AM190 -> 0 | CD190: =AY190 -> 0 | CE190: =BK190 -> 0 | CF190: =BW190 -> 0 | CG190: =IF(CG$6="Actual",SUMIF($A$1385:$A$1424,$B190,CG$1385:CG$1424)*CG$351,CF190+SUMIF($A$542:$A$1382,$B190,CG$542:CG$1382)*CG$351) -> 0 | CH190: 0 | CI190: 0 | CJ190: 0 | CK190: 0
A191: Other Paid in Capital | B191: =Labels!B191 -> Other Paid in Capital | C191: 0 | D191: =IF(D$6="Actual",SUMIF($A$1385:$A$1424,$B191,D$1385:D$1424)*D$351,C191+SUMIF($A$542:$A$1382,$B191,D$542:D$1382)*D$351) -> 0 | E191: 0 | F191: 0 | G191: 0 | H191: 0 | I191: 0 | J191: 0 | K191: 0 | L191: 0 | M191: 0 | N191: 0 | O191: 0 | P191: 0 | Q191: 0 | R191: 0 | S191: 0 | T191: 0 | U191: 0 | V191: 0 | W191: 0 | X191: 0 | Y191: 0 | Z191: 0 | AA191: 0 | AB191: 0 | AC191: 0 | AD191: 0 | AE191: 0 | AF191: 0 | AG191: 0 | AH191: 0 | AI191: 0 | AJ191: =IF(AJ$6="Actual",SUMIF($A$1385:$A$1424,$B191,AJ$1385:AJ$1424)*AJ$351,AI191+SUMIF($A$542:$A$1382,$B191,AJ$542:AJ$1382)*AJ$351) -> 0 | AK191: 0 | AL191: 0 | AM191: 0 | AN191: 0 | AO191: 0 | AP191: 0 | AQ191: 0 | AR191: 0 | AS191: 0 | AT191: 0 | AU191: 0 | AV191: 0 | AW191: 0 | AX191: 0 | AY191: 0 | AZ191: 0 | BA191: 0 | BB191: 0 | BC191: 0 | BD191: 0 | BE191: 0 | BF191: 0 | BG191: 0 | BH191: 0 | BI191: 0 | BJ191: 0 | BK191: 0 | BL191: 0 | BM191: 0 | BN191: 0 | BO191: 0 | BP191: =IF(BP$6="Actual",SUMIF($A$1385:$A$1424,$B191,BP$1385:BP$1424)*BP$351,BO191+SUMIF($A$542:$A$1382,$B191,BP$542:BP$1382)*BP$351) -> 0 | BQ191: 0 | BR191: 0 | BS191: 0 | BT191: 0 | BU191: 0 | BV191: 0 | BW191: 0 | BZ191: =C191 -> 0 | CA191: =O191 -> 0 | CB191: =AA191 -> 0 | CC191: =AM191 -> 0 | CD191: =AY191 -> 0 | CE191: =BK191 -> 0 | CF191: =BW191 -> 0 | CG191: 0 | CH191: 0 | CI191: 0 | CJ191: 0 | CK191: 0
A192: Other Equity | B192: =Labels!B192 -> Other Equity | C192: 1219.533239 | D192: =IF(D$6="Actual",SUMIF($A$1385:$A$1424,$B192,D$1385:D$1424)*D$351,C192+SUMIF($A$542:$A$1382,$B192,D$542:D$1382)*D$351) -> 1210.974364 | E192: 1168.323254 | F192: 1149.868191 | G192: 1199.714268 | H192: 1177.371289 | I192: 1180.412142 | J192: 1180.336675 | K192: 1188.438784 | L192: 1188.428276 | M192: 1294.838373 | N192: 1268.640832 | O192: 1234.510571 | P192: 1199.885511 | Q192: 1172.402042 | R192: 1143.691487 | S192: 1164.861828 | T192: 1126.373896 | U192: 1121.358338 | V192: 1079.758279 | W192: 1134.811525 | X192: 1137.573659 | Y192: 1162.325201 | Z192: 1139.362962 | AA192: 1118.925551 | AB192: 1074.958787 | AC192: 1037.888686 | AD192: 993.8422771 | AE192: 960.4817244 | AF192: 964.3346154 | AG192: 945.9094843 | AH192: 923.6491919 | AI192: 948.9013622 | AJ192: =IF(AJ$6="Actual",SUMIF($A$1385:$A$1424,$B192,AJ$1385:AJ$1424)*AJ$351,AI192+SUMIF($A$542:$A$1382,$B192,AJ$542:AJ$1382)*AJ$351) -> 923.7515978 | AK192: 939.6727724 | AL192: 904.5463116 | AM192: 858.5665755 | AN192: 803.8423567 | AO192: 754.946295 | AP192: 705.5369018 | AQ192: 655.7714444 | AR192: 649.5547496 | AS192: 622.4336529 | AT192: 607.9046337 | AU192: 639.7278214 | AV192: 633.429188 | AW192: 593.9078367 | AX192: 537.4989772 | AY192: 479.5589833 | AZ192: 425.3991455 | BA192: 366.4641189 | BB192: 307.8148312 | BC192: 256.8085685 | BD192: 205.2329476 | BE192: 194.0088391 | BF192: 167.1108009 | BG192: 159.9896372 | BH192: 146.9708097 | BI192: 112.930379 | BJ192: 55.61095335 | BK192: -0.7212918176 | BL192: -59.88654135 | BM192: -117.2903244 | BN192: -169.4794213 | BO192: -225.90542 | BP192: =IF(BP$6="Actual",SUMIF($A$1385:$A$1424,$B192,BP$1385:BP$1424)*BP$351,BO192+SUMIF($A$542:$A$1382,$B192,BP$542:BP$1382)*BP$351) -> -286.0458596 | BQ192: -314.3482769 | BR192: -330.0757048 | BS192: -389.0873366 | BT192: -452.4826231 | BU192: -476.2412579 | BV192: -555.6053888 | BW192: -512.8786832 | BZ192: =C192 -> 1219.533239 | CA192: =O192 -> 1234.510571 | CB192: =AA192 -> 1118.925551 | CC192: =AM192 -> 858.5665755 | CD192: =AY192 -> 479.5589833 | CE192: =BK192 -> -0.7212918176 | CF192: =BW192 -> -512.8786832 | CG192: -969.2790269 | CH192: -1436.770658 | CI192: -1903.166767 | CJ192: -2383.62794 | CK192: -2855.39132
A193: Other Non-Cash Equity | B193: =Labels!B193 -> Other Non-Cash Equity | C193: 0 | D193: =IF(D$6="Actual",SUMIF($A$1385:$A$1424,$B193,D$1385:D$1424)*D$351,C193+SUMIF($A$542:$A$1382,$B193,D$542:D$1382)*D$351) -> 0 | E193: 0 | F193: 0 | G193: 0 | H193: 0 | I193: 0 | J193: 0 | K193: 0 | L193: 0 | M193: 0 | N193: 0 | O193: 0 | P193: 0 | Q193: 0 | R193: 0 | S193: 0 | T193: 0 | U193: 0 | V193: 0 | W193: 0 | X193: 0 | Y193: 0 | Z193: 0 | AA193: 0 | AB193: 0 | AC193: 0 | AD193: 0 | AE193: 0 | AF193: 0 | AG193: 0 | AH193: 0 | AI193: 0 | AJ193: =IF(AJ$6="Actual",SUMIF($A$1385:$A$1424,$B193,AJ$1385:AJ$1424)*AJ$351,AI193+SUMIF($A$542:$A$1382,$B193,AJ$542:AJ$1382)*AJ$351) -> 0 | AK193: 0 | AL193: 0 | AM193: 0 | AN193: 0 | AO193: 0 | AP193: 0 | AQ193: 0 | AR193: 0 | AS193: 0 | AT193: 0 | AU193: 0 | AV193: 0 | AW193: 0 | AX193: 0 | AY193: 0 | AZ193: 0 | BA193: 0 | BB193: 0 | BC193: 0 | BD193: 0 | BE193: 0 | BF193: 0 | BG193: 0 | BH193: 0 | BI193: 0 | BJ193: 0 | BK193: 0 | BL193: 0 | BM193: 0 | BN193: 0 | BO193: 0 | BP193: =IF(BP$6="Actual",SUMIF($A$1385:$A$1424,$B193,BP$1385:BP$1424)*BP$351,BO193+SUMIF($A$542:$A$1382,$B193,BP$542:BP$1382)*BP$351) -> 0 | BQ193: 0 | BR193: 0 | BS193: 0 | BT193: 0 | BU193: 0 | BV193: 0 | BW193: 0 | BZ193: =C193 -> 0 | CA193: =O193 -> 0 | CB193: =AA193 -> 0 | CC193: =AM193 -> 0 | CD193: =AY193 -> 0 | CE193: =BK193 -> 0 | CF193: =BW193 -> 0 | CG193: 0 | CH193: 0 | CI193: 0 | CJ193: 0 | CK193: 0
A194: Retained Earnings | B194: =Labels!B194 -> Retained Earnings | C194: 218.5203706 | D194: =D252 -> 235.7143263 | E194: 259.5776963 | F194: 277.0988689 | G194: 295.4803123 | H194: 311.771241 | I194: 316.7693178 | J194: 334.0922651 | K194: 353.5384356 | L194: 364.8736837 | M194: 377.3847667 | N194: 401.8677179 | O194: 426.6385188 | P194: 449.9613093 | Q194: 476.7092675 | R194: 497.866323 | S194: 521.7038421 | T194: 537.753034 | U194: 560.0426617 | V194: 581.2951009 | W194: 602.5615355 | X194: 626.3249706 | Y194: 653.7703992 | Z194: 686.0498777 | AA194: 713.141509 | AB194: 741.7866832 | AC194: 769.3693037 | AD194: 795.8287529 | AE194: 822.7013756 | AF194: 850.3198846 | AG194: 874.8503857 | AH194: 898.7787481 | AI194: 924.8599278 | AJ194: =AJ252 -> 954.4195922 | AK194: 980.6789476 | AL194: 1010.823098 | AM194: 1042.684334 | AN194: 1074.839903 | AO194: 1105.423295 | AP194: 1136.129978 | AQ194: 1166.393786 | AR194: 1194.11413 | AS194: 1218.211977 | AT194: 1245.660376 | AU194: 1274.347159 | AV194: 1307.241542 | AW194: 1339.633303 | AX194: 1372.886293 | AY194: 1408.853847 | AZ194: 1441.602814 | BA194: 1478.091501 | BB194: 1512.730139 | BC194: 1544.891452 | BD194: 1579.484802 | BE194: 1615.645431 | BF194: 1636.735299 | BG194: 1670.271993 | BH194: 1702.28034 | BI194: 1734.645621 | BJ194: 1771.895167 | BK194: 1806.370652 | BL194: 1840.430661 | BM194: 1872.838624 | BN194: 1905.239591 | BO194: 1937.84359 | BP194: =BP252 -> 1971.0398 | BQ194: 2004.112807 | BR194: 2033.317039 | BS194: 2061.811425 | BT194: 2092.112501 | BU194: 2124.564558 | BV194: 2157.76487 | BW194: 2190.636812 | BZ194: =C194 -> 218.5203706 | CA194: =O194 -> 426.6385188 | CB194: =AA194 -> 713.141509 | CC194: =AM194 -> 1042.684334 | CD194: =AY194 -> 1408.853847 | CE194: =BK194 -> 1806.370652 | CF194: =BW194 -> 2190.636812 | CG194: =CG252 -> 2532.759774 | CH194: =CH252 -> 2872.228245 | CI194: =CI252 -> 3279.08133 | CJ194: =CJ252 -> 3705.62345 | CK194: =CK252 -> 4145.29121
A195: Total Common Equity | B195: =Labels!B195 -> Total Common Equity | C195: 1438.05361 | D195: =SUM(D190:D194) -> 1446.68869 | E195: 1427.90095 | F195: 1426.96706 | G195: 1495.19458 | H195: 1489.14253 | I195: 1497.18146 | J195: 1514.42894 | K195: 1541.97722 | L195: 1553.30196 | M195: 1672.22314 | N195: 1670.50855 | O195: 1661.14909 | P195: 1649.84682 | Q195: 1649.11131 | R195: 1641.55781 | S195: 1686.56567 | T195: 1664.12693 | U195: 1681.401 | V195: 1661.05338 | W195: 1737.37306 | X195: 1763.89863 | Y195: 1816.0956 | Z195: 1825.41284 | AA195: 1832.06706 | AB195: 1816.74547 | AC195: 1807.25799 | AD195: 1789.67103 | AE195: 1783.1831 | AF195: 1814.6545 | AG195: 1820.75987 | AH195: 1822.42794 | AI195: =SUM(AI190:AI194) -> 1873.76129 | AJ195: 1878.17119 | AK195: 1920.35172 | AL195: 1915.36941 | AM195: 1901.25091 | AN195: 1878.68226 | AO195: 1860.36959 | AP195: 1841.66688 | AQ195: 1822.16523 | AR195: 1843.66888 | AS195: 1840.64563 | AT195: 1853.56501 | AU195: 1914.07498 | AV195: 1940.67073 | AW195: 1933.54114 | AX195: 1910.38527 | AY195: 1888.41283 | AZ195: 1867.00196 | BA195: 1844.55562 | BB195: 1820.54497 | BC195: 1801.70002 | BD195: 1784.71775 | BE195: 1809.65427 | BF195: 1803.8461 | BG195: 1830.26163 | BH195: 1849.25115 | BI195: 1847.576 | BJ195: 1827.50612 | BK195: 1805.64936 | BL195: 1780.54412 | BM195: 1755.5483 | BN195: 1735.76017 | BO195: =SUM(BO190:BO194) -> 1711.93817 | BP195: 1684.99394 | BQ195: 1689.76453 | BR195: 1703.241334 | BS195: 1672.724088 | BT195: 1639.629878 | BU195: 1648.3233 | BV195: 1602.159481 | BW195: 1677.758129 | BZ195: =SUM(BZ190:BZ194) -> 1438.05361 | CA195: 1661.14909 | CB195: 1832.06706 | CC195: 1901.25091 | CD195: 1888.41283 | CE195: 1805.64936 | CF195: 1677.758129 | CG195: 1563.480747 | CH195: 1435.457587 | CI195: 1375.914564 | CJ195: 1321.99551 | CK195: 1289.89989
A197: =B197 -> Preferred Stock | B197: =Labels!B197 -> Preferred Stock | C197: 0 | D197: =IF(D$6="Actual",SUMIF($A$1385:$A$1424,$B197,D$1385:D$1424)*D$351,C197+SUMIF($A$542:$A$1382,$B197,D$542:D$1382)*D$351) -> 0 | E197: 0 | F197: 0 | G197: 0 | H197: 0 | I197: 0 | J197: 0 | K197: 0 | L197: 0 | M197: 0 | N197: 0 | O197: 0 | P197: 0 | Q197: 0 | R197: 0 | S197: 0 | T197: 0 | U197: 0 | V197: 0 | W197: 0 | X197: 0 | Y197: 0 | Z197: 0 | AA197: 0 | AB197: 0 | AC197: 0 | AD197: 0 | AE197: 0 | AF197: 0 | AG197: 0 | AH197: 0 | AI197: 0 | AJ197: =IF(AJ$6="Actual",SUMIF($A$1385:$A$1424,$B197,AJ$1385:AJ$1424)*AJ$351,AI197+SUMIF($A$542:$A$1382,$B197,AJ$542:AJ$1382)*AJ$351) -> 0 | AK197: 0 | AL197: 0 | AM197: 0 | AN197: 0 | AO197: 0 | AP197: 0 | AQ197: 0 | AR197: 0 | AS197: 0 | AT197: 0 | AU197: 0 | AV197: 0 | AW197: 0 | AX197: 0 | AY197: 0 | AZ197: 0 | BA197: 0 | BB197: 0 | BC197: 0 | BD197: 0 | BE197: 0 | BF197: 0 | BG197: 0 | BH197: 0 | BI197: 0 | BJ197: 0 | BK197: 0 | BL197: 0 | BM197: 0 | BN197: 0 | BO197: 0 | BP197: =IF(BP$6="Actual",SUMIF($A$1385:$A$1424,$B197,BP$1385:BP$1424)*BP$351,BO197+SUMIF($A$542:$A$1382,$B197,BP$542:BP$1382)*BP$351) -> 0 | BQ197: 0 | BR197: 0 | BS197: 0 | BT197: 0 | BU197: 0 | BV197: 0 | BW197: 0 | BZ197: =C197 -> 0 | CA197: =O197 -> 0 | CB197: =AA197 -> 0 | CC197: =AM197 -> 0 | CD197: =AY197 -> 0 | CE197: =BK197 -> 0 | CF197: =BW197 -> 0 | CG197: =IF(CG$6="Actual",SUMIF($A$1385:$A$1424,$B197,CG$1385:CG$1424)*CG$351,CF197+SUMIF($A$542:$A$1382,$B197,CG$542:CG$1382)*CG$351) -> 0 | CH197: 0 | CI197: 0 | CJ197: 0 | CK197: 0
A198: =B198 -> Trust Preferred Securities | B198: =Labels!B198 -> Trust Preferred Securities | C198: 0 | D198: =IF(D$6="Actual",SUMIF($A$1385:$A$1424,$B198,D$1385:D$1424)*D$351,C198+SUMIF($A$542:$A$1382,$B198,D$542:D$1382)*D$351) -> 0 | E198: 0 | F198: 0 | G198: 0 | H198: 0 | I198: 0 | J198: 0 | K198: 0 | L198: 0 | M198: 0 | N198: 0 | O198: 0 | P198: 0 | Q198: 0 | R198: 0 | S198: 0 | T198: 0 | U198: 0 | V198: 0 | W198: 0 | X198: 0 | Y198: 0 | Z198: 0 | AA198: 0 | AB198: 0 | AC198: 0 | AD198: 0 | AE198: 0 | AF198: 0 | AG198: 0 | AH198: 0 | AI198: 0 | AJ198: =IF(AJ$6="Actual",SUMIF($A$1385:$A$1424,$B198,AJ$1385:AJ$1424)*AJ$351,AI198+SUMIF($A$542:$A$1382,$B198,AJ$542:AJ$1382)*AJ$351) -> 0 | AK198: 0 | AL198: 0 | AM198: 0 | AN198: 0 | AO198: 0 | AP198: 0 | AQ198: 0 | AR198: 0 | AS198: 0 | AT198: 0 | AU198: 0 | AV198: 0 | AW198: 0 | AX198: 0 | AY198: 0 | AZ198: 0 | BA198: 0 | BB198: 0 | BC198: 0 | BD198: 0 | BE198: 0 | BF198: 0 | BG198: 0 | BH198: 0 | BI198: 0 | BJ198: 0 | BK198: 0 | BL198: 0 | BM198: 0 | BN198: 0 | BO198: 0 | BP198: =IF(BP$6="Actual",SUMIF($A$1385:$A$1424,$B198,BP$1385:BP$1424)*BP$351,BO198+SUMIF($A$542:$A$1382,$B198,BP$542:BP$1382)*BP$351) -> 0 | BQ198: 0 | BR198: 0 | BS198: 0 | BT198: 0 | BU198: 0 | BV198: 0 | BW198: 0 | BZ198: =C198 -> 0 | CA198: =O198 -> 0 | CB198: =AA198 -> 0 | CC198: =AM198 -> 0 | CD198: =AY198 -> 0 | CE198: =BK198 -> 0 | CF198: =BW198 -> 0 | CG198: 0 | CH198: 0 | CI198: 0 | CJ198: 0 | CK198: 0
A200: =B200 -> Total Equity | B200: =Labels!B200 -> Total Equity | C200: 1438.05361 | D200: =D195+D197+D198 -> 1446.68869 | E200: 1427.90095 | F200: 1426.96706 | G200: 1495.19458 | H200: 1489.14253 | I200: 1497.18146 | J200: 1514.42894 | K200: 1541.97722 | L200: 1553.30196 | M200: 1672.22314 | N200: 1670.50855 | O200: 1661.14909 | P200: 1649.84682 | Q200: 1649.11131 | R200: 1641.55781 | S200: 1686.56567 | T200: 1664.12693 | U200: 1681.401 | V200: 1661.05338 | W200: 1737.37306 | X200: 1763.89863 | Y200: 1816.0956 | Z200: 1825.41284 | AA200: 1832.06706 | AB200: 1816.74547 | AC200: 1807.25799 | AD200: 1789.67103 | AE200: 1783.1831 | AF200: 1814.6545 | AG200: 1820.75987 | AH200: 1822.42794 | AI200: =AI195+AI197+AI198 -> 1873.76129 | AJ200: 1878.17119 | AK200: 1920.35172 | AL200: 1915.36941 | AM200: 1901.25091 | AN200: 1878.68226 | AO200: 1860.36959 | AP200: 1841.66688 | AQ200: 1822.16523 | AR200: 1843.66888 | AS200: 1840.64563 | AT200: 1853.56501 | AU200: 1914.07498 | AV200: 1940.67073 | AW200: 1933.54114 | AX200: 1910.38527 | AY200: 1888.41283 | AZ200: 1867.00196 | BA200: 1844.55562 | BB200: 1820.54497 | BC200: 1801.70002 | BD200: 1784.71775 | BE200: 1809.65427 | BF200: 1803.8461 | BG200: 1830.26163 | BH200: 1849.25115 | BI200: 1847.576 | BJ200: 1827.50612 | BK200: 1805.64936 | BL200: 1780.54412 | BM200: 1755.5483 | BN200: 1735.76017 | BO200: =BO195+BO197+BO198 -> 1711.93817 | BP200: 1684.99394 | BQ200: 1689.76453 | BR200: 1703.241334 | BS200: 1672.724088 | BT200: 1639.629878 | BU200: 1648.3233 | BV200: 1602.159481 | BW200: 1677.758129 | BZ200: =BZ195+BZ197+BZ198 -> 1438.05361 | CA200: 1661.14909 | CB200: 1832.06706 | CC200: 1901.25091 | CD200: 1888.41283 | CE200: 1805.64936 | CF200: 1677.758129 | CG200: 1563.480747 | CH200: 1435.457587 | CI200: 1375.914564 | CJ200: 1321.99551 | CK200: 1289.89989
B202: =Labels!B202 -> Long Term Debt:
A203: =B203 -> Long Term Debt | B203: =Labels!B203 -> Long Term Debt | C203: 0 | D203: =IF(D$6="Actual",SUMIF($A$1385:$A$1424,$B203,D$1385:D$1424)*D$351,C203+SUMIF($A$542:$A$1382,$B203,D$542:D$1382)*D$351) -> 0 | E203: 0 | F203: 0 | G203: 0 | H203: 0 | I203: 0 | J203: 0 | K203: 0 | L203: 0 | M203: 0 | N203: 0 | O203: 0 | P203: 0 | Q203: 0 | R203: 0 | S203: 0 | T203: 0 | U203: 0 | V203: 0 | W203: 0 | X203: 0 | Y203: 0 | Z203: 0 | AA203: 0 | AB203: 0 | AC203: 0 | AD203: 0 | AE203: 0 | AF203: 0 | AG203: 0 | AH203: 0 | AI203: 0 | AJ203: =IF(AJ$6="Actual",SUMIF($A$1385:$A$1424,$B203,AJ$1385:AJ$1424)*AJ$351,AI203+SUMIF($A$542:$A$1382,$B203,AJ$542:AJ$1382)*AJ$351) -> 0 | AK203: 0 | AL203: 0 | AM203: 0 | AN203: 0 | AO203: 0 | AP203: 0 | AQ203: 0 | AR203: 0 | AS203: 0 | AT203: 0 | AU203: 0 | AV203: 0 | AW203: 0 | AX203: 0 | AY203: 0 | AZ203: 0 | BA203: 0 | BB203: 0 | BC203: 0 | BD203: 0 | BE203: 0 | BF203: 0 | BG203: 0 | BH203: 0 | BI203: 0 | BJ203: 0 | BK203: 0 | BL203: 0 | BM203: 0 | BN203: 0 | BO203: 0 | BP203: =IF(BP$6="Actual",SUMIF($A$1385:$A$1424,$B203,BP$1385:BP$1424)*BP$351,BO203+SUMIF($A$542:$A$1382,$B203,BP$542:BP$1382)*BP$351) -> 0 | BQ203: 0 | BR203: 0 | BS203: 0 | BT203: 0 | BU203: 0 | BV203: 0 | BW203: 0 | BZ203: =C203 -> 0 | CA203: =O203 -> 0 | CB203: =AA203 -> 0 | CC203: =AM203 -> 0 | CD203: =AY203 -> 0 | CE203: =BK203 -> 0 | CF203: =BW203 -> 0 | CG203: =IF(CG$6="Actual",SUMIF($A$1385:$A$1424,$B203,CG$1385:CG$1424)*CG$351,CF203+SUMIF($A$542:$A$1382,$B203,CG$542:CG$1382)*CG$351) -> 0 | CH203: 0 | CI203: 0 | CJ203: 0 | CK203: 0
A204: First Mortgage Bonds | B204: =Labels!B204 -> First Mortgage Bonds | C204: 0 | D204: =IF(D$6="Actual",SUMIF($A$1385:$A$1424,$B204,D$1385:D$1424)*D$351,C204+SUMIF($A$542:$A$1382,$B204,D$542:D$1382)*D$351) -> 0 | E204: 0 | F204: 0 | G204: 0 | H204: 0 | I204: 0 | J204: 0 | K204: 0 | L204: 0 | M204: 0 | N204: 0 | O204: 0 | P204: 0 | Q204: 0 | R204: 0 | S204: 0 | T204: 0 | U204: 0 | V204: 0 | W204: 0 | X204: 0 | Y204: 0 | Z204: 0 | AA204: 0 | AB204: 0 | AC204: 0 | AD204: 0 | AE204: 0 | AF204: 0 | AG204: 0 | AH204: 0 | AI204: 0 | AJ204: =IF(AJ$6="Actual",SUMIF($A$1385:$A$1424,$B204,AJ$1385:AJ$1424)*AJ$351,AI204+SUMIF($A$542:$A$1382,$B204,AJ$542:AJ$1382)*AJ$351) -> 0 | AK204: 0 | AL204: 0 | AM204: 0 | AN204: 0 | AO204: 0 | AP204: 0 | AQ204: 0 | AR204: 0 | AS204: 0 | AT204: 0 | AU204: 0 | AV204: 0 | AW204: 0 | AX204: 0 | AY204: 0 | AZ204: 0 | BA204: 0 | BB204: 0 | BC204: 0 | BD204: 0 | BE204: 0 | BF204: 0 | BG204: 0 | BH204: 0 | BI204: 0 | BJ204: 0 | BK204: 0 | BL204: 0 | BM204: 0 | BN204: 0 | BO204: 0 | BP204: =IF(BP$6="Actual",SUMIF($A$1385:$A$1424,$B204,BP$1385:BP$1424)*BP$351,BO204+SUMIF($A$542:$A$1382,$B204,BP$542:BP$1382)*BP$351) -> 0 | BQ204: 0 | BR204: 0 | BS204: 0 | BT204: 0 | BU204: 0 | BV204: 0 | BW204: 0 | BZ204: 0 | CA204: 0 | CB204: 0 | CC204: 0 | CD204: 0 | CE204: 0 | CF204: 0 | CG204: 0 | CH204: 0 | CI204: 0 | CJ204: 0 | CK204: 0
A205: Pollution Control Bonds | B205: =Labels!B205 -> Pollution Control Bonds | C205: 0 | D205: =IF(D$6="Actual",SUMIF($A$1385:$A$1424,$B205,D$1385:D$1424)*D$351,C205+SUMIF($A$542:$A$1382,$B205,D$542:D$1382)*D$351) -> 0 | E205: 0 | F205: 0 | G205: 0 | H205: 0 | I205: 0 | J205: 0 | K205: 0 | L205: 0 | M205: 0 | N205: 0 | O205: 0 | P205: 0 | Q205: 0 | R205: 0 | S205: 0 | T205: 0 | U205: 0 | V205: 0 | W205: 0 | X205: 0 | Y205: 0 | Z205: 0 | AA205: 0 | AB205: 0 | AC205: 0 | AD205: 0 | AE205: 0 | AF205: 0 | AG205: 0 | AH205: 0 | AI205: 0 | AJ205: =IF(AJ$6="Actual",SUMIF($A$1385:$A$1424,$B205,AJ$1385:AJ$1424)*AJ$351,AI205+SUMIF($A$542:$A$1382,$B205,AJ$542:AJ$1382)*AJ$351) -> 0 | AK205: 0 | AL205: 0 | AM205: 0 | AN205: 0 | AO205: 0 | AP205: 0 | AQ205: 0 | AR205: 0 | AS205: 0 | AT205: 0 | AU205: 0 | AV205: 0 | AW205: 0 | AX205: 0 | AY205: 0 | AZ205: 0 | BA205: 0 | BB205: 0 | BC205: 0 | BD205: 0 | BE205: 0 | BF205: 0 | BG205: 0 | BH205: 0 | BI205: 0 | BJ205: 0 | BK205: 0 | BL205: 0 | BM205: 0 | BN205: 0 | BO205: 0 | BP205: =IF(BP$6="Actual",SUMIF($A$1385:$A$1424,$B205,BP$1385:BP$1424)*BP$351,BO205+SUMIF($A$542:$A$1382,$B205,BP$542:BP$1382)*BP$351) -> 0 | BQ205: 0 | BR205: 0 | BS205: 0 | BT205: 0 | BU205: 0 | BV205: 0 | BW205: 0 | BZ205: 0 | CA205: 0 | CB205: 0 | CC205: 0 | CD205: 0 | CE205: 0 | CF205: 0 | CG205: 0 | CH205: 0 | CI205: 0 | CJ205: 0 | CK205: 0
A206: Senior Notes | B206: =Labels!B206 -> Senior Notes | C206: 0 | D206: =IF(D$6="Actual",SUMIF($A$1385:$A$1424,$B206,D$1385:D$1424)*D$351,C206+SUMIF($A$542:$A$1382,$B206,D$542:D$1382)*D$351) -> 0 | E206: 0 | F206: 0 | G206: 0 | H206: 0 | I206: 0 | J206: 0 | K206: 0 | L206: 0 | M206: 0 | N206: 0 | O206: 0 | P206: 0 | Q206: 0 | R206: 0 | S206: 0 | T206: 0 | U206: 0 | V206: 0 | W206: 0 | X206: 0 | Y206: 0 | Z206: 0 | AA206: 0 | AB206: 0 | AC206: 0 | AD206: 0 | AE206: 0 | AF206: 0 | AG206: 0 | AH206: 0 | AI206: 0 | AJ206: =IF(AJ$6="Actual",SUMIF($A$1385:$A$1424,$B206,AJ$1385:AJ$1424)*AJ$351,AI206+SUMIF($A$542:$A$1382,$B206,AJ$542:AJ$1382)*AJ$351) -> 0 | AK206: 0 | AL206: 0 | AM206: 0 | AN206: 0 | AO206: 0 | AP206: 0 | AQ206: 0 | AR206: 0 | AS206: 0 | AT206: 0 | AU206: 0 | AV206: 0 | AW206: 0 | AX206: 0 | AY206: 0 | AZ206: 0 | BA206: 0 | BB206: 0 | BC206: 0 | BD206: 0 | BE206: 0 | BF206: 0 | BG206: 0 | BH206: 0 | BI206: 0 | BJ206: 0 | BK206: 0 | BL206: 0 | BM206: 0 | BN206: 0 | BO206: 0 | BP206: =IF(BP$6="Actual",SUMIF($A$1385:$A$1424,$B206,BP$1385:BP$1424)*BP$351,BO206+SUMIF($A$542:$A$1382,$B206,BP$542:BP$1382)*BP$351) -> 0 | BQ206: 0 | BR206: 0 | BS206: 0 | BT206: 0 | BU206: 0 | BV206: 0 | BW206: 0 | BZ206: 0 | CA206: 0 | CB206: 0 | CC206: 0 | CD206: 0 | CE206: 0 | CF206: 0 | CG206: 0 | CH206: 0 | CI206: 0 | CJ206: 0 | CK206: 0
A207: Capitalized Leases | B207: =Labels!B207 -> Capitalized Leases | C207: 0 | D207: =IF(D$6="Actual",SUMIF($A$1385:$A$1424,$B207,D$1385:D$1424)*D$351,C207+SUMIF($A$542:$A$1382,$B207,D$542:D$1382)*D$351) -> 0 | E207: 0 | F207: 0 | G207: 0 | H207: 0 | I207: 0 | J207: 0 | K207: 0 | L207: 0 | M207: 0 | N207: 0 | O207: 0 | P207: 0 | Q207: 0 | R207: 0 | S207: 0 | T207: 0 | U207: 0 | V207: 0 | W207: 0 | X207: 0 | Y207: 0 | Z207: 0 | AA207: 0 | AB207: 0 | AC207: 0 | AD207: 0 | AE207: 0 | AF207: 0 | AG207: 0 | AH207: 0 | AI207: 0 | AJ207: =IF(AJ$6="Actual",SUMIF($A$1385:$A$1424,$B207,AJ$1385:AJ$1424)*AJ$351,AI207+SUMIF($A$542:$A$1382,$B207,AJ$542:AJ$1382)*AJ$351) -> 0 | AK207: 0 | AL207: 0 | AM207: 0 | AN207: 0 | AO207: 0 | AP207: 0 | AQ207: 0 | AR207: 0 | AS207: 0 | AT207: 0 | AU207: 0 | AV207: 0 | AW207: 0 | AX207: 0 | AY207: 0 | AZ207: 0 | BA207: 0 | BB207: 0 | BC207: 0 | BD207: 0 | BE207: 0 | BF207: 0 | BG207: 0 | BH207: 0 | BI207: 0 | BJ207: 0 | BK207: 0 | BL207: 0 | BM207: 0 | BN207: 0 | BO207: 0 | BP207: =IF(BP$6="Actual",SUMIF($A$1385:$A$1424,$B207,BP$1385:BP$1424)*BP$351,BO207+SUMIF($A$542:$A$1382,$B207,BP$542:BP$1382)*BP$351) -> 0 | BQ207: 0 | BR207: 0 | BS207: 0 | BT207: 0 | BU207: 0 | BV207: 0 | BW207: 0 | BZ207: 0 | CA207: 0 | CB207: 0 | CC207: 0 | CD207: 0 | CE207: 0 | CF207: 0 | CG207: 0 | CH207: 0 | CI207: 0 | CJ207: 0 | CK207: 0
A208: Other Long Term Debt | B208: =Labels!B208 -> Other Long Term Debt | C208: 0 | D208: =IF(D$6="Actual",SUMIF($A$1385:$A$1424,$B208,D$1385:D$1424)*D$351,C208+SUMIF($A$542:$A$1382,$B208,D$542:D$1382)*D$351) -> 0 | E208: 0 | F208: 0 | G208: 0 | H208: 0 | I208: 0 | J208: 0 | K208: 0 | L208: 0 | M208: 0 | N208: 0 | O208: 0 | P208: 0 | Q208: 0 | R208: 0 | S208: 0 | T208: 0 | U208: 0 | V208: 0 | W208: 0 | X208: 0 | Y208: 0 | Z208: 0 | AA208: 0 | AB208: 0 | AC208: 0 | AD208: 0 | AE208: 0 | AF208: 0 | AG208: 0 | AH208: 0 | AI208: 0 | AJ208: =IF(AJ$6="Actual",SUMIF($A$1385:$A$1424,$B208,AJ$1385:AJ$1424)*AJ$351,AI208+SUMIF($A$542:$A$1382,$B208,AJ$542:AJ$1382)*AJ$351) -> 0 | AK208: 0 | AL208: 0 | AM208: 0 | AN208: 0 | AO208: 0 | AP208: 0 | AQ208: 0 | AR208: 0 | AS208: 0 | AT208: 0 | AU208: 0 | AV208: 0 | AW208: 0 | AX208: 0 | AY208: 0 | AZ208: 0 | BA208: 0 | BB208: 0 | BC208: 0 | BD208: 0 | BE208: 0 | BF208: 0 | BG208: 0 | BH208: 0 | BI208: 0 | BJ208: 0 | BK208: 0 | BL208: 0 | BM208: 0 | BN208: 0 | BO208: 0 | BP208: =IF(BP$6="Actual",SUMIF($A$1385:$A$1424,$B208,BP$1385:BP$1424)*BP$351,BO208+SUMIF($A$542:$A$1382,$B208,BP$542:BP$1382)*BP$351) -> 0 | BQ208: 0 | BR208: 0 | BS208: 0 | BT208: 0 | BU208: 0 | BV208: 0 | BW208: 0 | BZ208: 0 | CA208: 0 | CB208: 0 | CC208: 0 | CD208: 0 | CE208: 0 | CF208: 0 | CG208: 0 | CH208: 0 | CI208: 0 | CJ208: 0 | CK208: 0
A209: Intercompany Debt | B209: =Labels!B209 -> Intercompany Debt | C209: 0 | D209: =IF(D$6="Actual",SUMIF($A$1385:$A$1424,$B209,D$1385:D$1424)*D$351,C209+SUMIF($A$542:$A$1382,$B209,D$542:D$1382)*D$351) -> 0 | E209: 0 | F209: 0 | G209: 0 | H209: 0 | I209: 0 | J209: 0 | K209: 0 | L209: 0 | M209: 0 | N209: 0 | O209: 0 | P209: 0 | Q209: 0 | R209: 0 | S209: 0 | T209: 0 | U209: 0 | V209: 0 | W209: 0 | X209: 0 | Y209: 0 | Z209: 0 | AA209: 0 | AB209: 0 | AC209: 0 | AD209: 0 | AE209: 0 | AF209: 0 | AG209: 0 | AH209: 0 | AI209: 0 | AJ209: =IF(AJ$6="Actual",SUMIF($A$1385:$A$1424,$B209,AJ$1385:AJ$1424)*AJ$351,AI209+SUMIF($A$542:$A$1382,$B209,AJ$542:AJ$1382)*AJ$351) -> 0 | AK209: 0 | AL209: 0 | AM209: 0 | AN209: 0 | AO209: 0 | AP209: 0 | AQ209: 0 | AR209: 0 | AS209: 0 | AT209: 0 | AU209: 0 | AV209: 0 | AW209: 0 | AX209: 0 | AY209: 0 | AZ209: 0 | BA209: 0 | BB209: 0 | BC209: 0 | BD209: 0 | BE209: 0 | BF209: 0 | BG209: 0 | BH209: 0 | BI209: 0 | BJ209: 0 | BK209: 0 | BL209: 0 | BM209: 0 | BN209: 0 | BO209: 0 | BP209: =IF(BP$6="Actual",SUMIF($A$1385:$A$1424,$B209,BP$1385:BP$1424)*BP$351,BO209+SUMIF($A$542:$A$1382,$B209,BP$542:BP$1382)*BP$351) -> 0 | BQ209: 0 | BR209: 0 | BS209: 0 | BT209: 0 | BU209: 0 | BV209: 0 | BW209: 0 | BZ209: 0 | CA209: 0 | CB209: 0 | CC209: 0 | CD209: 0 | CE209: 0 | CF209: 0 | CG209: 0 | CH209: 0 | CI209: 0 | CJ209: 0 | CK209: 0
A210: Unamortized Debt Discount/Premium | B210: =Labels!B210 -> Unamortized Debt Discount/Premium | C210: 0 | D210: =IF(D$6="Actual",SUMIF($A$1385:$A$1424,$B210,D$1385:D$1424)*D$351,C210+SUMIF($A$542:$A$1382,$B210,D$542:D$1382)*D$351) -> 0 | E210: 0 | F210: 0 | G210: 0 | H210: 0 | I210: 0 | J210: 0 | K210: 0 | L210: 0 | M210: 0 | N210: 0 | O210: 0 | P210: 0 | Q210: 0 | R210: 0 | S210: 0 | T210: 0 | U210: 0 | V210: 0 | W210: 0 | X210: 0 | Y210: 0 | Z210: 0 | AA210: 0 | AB210: 0 | AC210: 0 | AD210: 0 | AE210: 0 | AF210: 0 | AG210: 0 | AH210: 0 | AI210: 0 | AJ210: =IF(AJ$6="Actual",SUMIF($A$1385:$A$1424,$B210,AJ$1385:AJ$1424)*AJ$351,AI210+SUMIF($A$542:$A$1382,$B210,AJ$542:AJ$1382)*AJ$351) -> 0 | AK210: 0 | AL210: 0 | AM210: 0 | AN210: 0 | AO210: 0 | AP210: 0 | AQ210: 0 | AR210: 0 | AS210: 0 | AT210: 0 | AU210: 0 | AV210: 0 | AW210: 0 | AX210: 0 | AY210: 0 | AZ210: 0 | BA210: 0 | BB210: 0 | BC210: 0 | BD210: 0 | BE210: 0 | BF210: 0 | BG210: 0 | BH210: 0 | BI210: 0 | BJ210: 0 | BK210: 0 | BL210: 0 | BM210: 0 | BN210: 0 | BO210: 0 | BP210: =IF(BP$6="Actual",SUMIF($A$1385:$A$1424,$B210,BP$1385:BP$1424)*BP$351,BO210+SUMIF($A$542:$A$1382,$B210,BP$542:BP$1382)*BP$351) -> 0 | BQ210: 0 | BR210: 0 | BS210: 0 | BT210: 0 | BU210: 0 | BV210: 0 | BW210: 0 | BZ210: 0 | CA210: 0 | CB210: 0 | CC210: 0 | CD210: 0 | CE210: 0 | CF210: 0 | CG210: 0 | CH210: 0 | CI210: 0 | CJ210: 0 | CK210: 0
A211: Total Long Term Debt | B211: =Labels!B211 -> Total Long Term Debt | C211: 0 | D211: =SUM(D203:D210) -> 0 | E211: 0 | F211: 0 | G211: 0 | H211: 0 | I211: 0 | J211: 0 | K211: 0 | L211: 0 | M211: 0 | N211: 0 | O211: 0 | P211: 0 | Q211: 0 | R211: 0 | S211: 0 | T211: 0 | U211: 0 | V211: 0 | W211: 0 | X211: 0 | Y211: 0 | Z211: 0 | AA211: 0 | AB211: 0 | AC211: 0 | AD211: 0 | AE211: 0 | AF211: 0 | AG211: 0 | AH211: 0 | AI211: =SUM(AI203:AI210) -> 0 | AJ211: 0 | AK211: 0 | AL211: 0 | AM211: 0 | AN211: 0 | AO211: 0 | AP211: 0 | AQ211: 0 | AR211: 0 | AS211: 0 | AT211: 0 | AU211: 0 | AV211: 0 | AW211: 0 | AX211: 0 | AY211: 0 | AZ211: 0 | BA211: 0 | BB211: 0 | BC211: 0 | BD211: 0 | BE211: 0 | BF211: 0 | BG211: 0 | BH211: 0 | BI211: 0 | BJ211: 0 | BK211: 0 | BL211: 0 | BM211: 0 | BN211: 0 | BO211: =SUM(BO203:BO210) -> 0 | BP211: 0 | BQ211: 0 | BR211: 0 | BS211: 0 | BT211: 0 | BU211: 0 | BV211: 0 | BW211: 0 | BZ211: =SUM(BZ203:BZ210) -> 0 | CA211: 0 | CB211: 0 | CC211: 0 | CD211: 0 | CE211: 0 | CF211: 0 | CG211: 0 | CH211: 0 | CI211: 0 | CJ211: 0 | CK211: 0
A213: =B213 -> Total Capitalization | B213: =Labels!B213 -> Total Capitalization | C213: 1438.05361 | D213: =D195+D197+D198+D211 -> 1446.68869 | E213: 1427.90095 | F213: 1426.96706 | G213: 1495.19458 | H213: 1489.14253 | I213: 1497.18146 | J213: 1514.42894 | K213: 1541.97722 | L213: 1553.30196 | M213: 1672.22314 | N213: 1670.50855 | O213: 1661.14909 | P213: 1649.84682 | Q213: 1649.11131 | R213: 1641.55781 | S213: 1686.56567 | T213: 1664.12693 | U213: 1681.401 | V213: 1661.05338 | W213: 1737.37306 | X213: 1763.89863 | Y213: 1816.0956 | Z213: 1825.41284 | AA213: 1832.06706 | AB213: 1816.74547 | AC213: 1807.25799 | AD213: 1789.67103 | AE213: 1783.1831 | AF213: 1814.6545 | AG213: 1820.75987 | AH213: 1822.42794 | AI213: =AI195+AI197+AI198+AI211 -> 1873.76129 | AJ213: 1878.17119 | AK213: 1920.35172 | AL213: 1915.36941 | AM213: 1901.25091 | AN213: 1878.68226 | AO213: 1860.36959 | AP213: 1841.66688 | AQ213: 1822.16523 | AR213: 1843.66888 | AS213: 1840.64563 | AT213: 1853.56501 | AU213: 1914.07498 | AV213: 1940.67073 | AW213: 1933.54114 | AX213: 1910.38527 | AY213: 1888.41283 | AZ213: 1867.00196 | BA213: 1844.55562 | BB213: 1820.54497 | BC213: 1801.70002 | BD213: 1784.71775 | BE213: 1809.65427 | BF213: 1803.8461 | BG213: 1830.26163 | BH213: 1849.25115 | BI213: 1847.576 | BJ213: 1827.50612 | BK213: 1805.64936 | BL213: 1780.54412 | BM213: 1755.5483 | BN213: 1735.76017 | BO213: =BO195+BO197+BO198+BO211 -> 1711.93817 | BP213: 1684.99394 | BQ213: 1689.76453 | BR213: 1703.241334 | BS213: 1672.724088 | BT213: 1639.629878 | BU213: 1648.3233 | BV213: 1602.159481 | BW213: 1677.758129 | BZ213: =BZ195+BZ197+BZ198+BZ211 -> 1438.05361 | CA213: 1661.14909 | CB213: 1832.06706 | CC213: 1901.25091 | CD213: 1888.41283 | CE213: 1805.64936 | CF213: 1677.758129 | CG213: 1563.480747 | CH213: 1435.457587 | CI213: 1375.914564 | CJ213: 1321.99551 | CK213: 1289.89989
A215: =B215 -> Minority Interest Equity | B215: =Labels!B215 -> Minority Interest Equity | C215: 0 | D215: =IF(D$6="Actual",SUMIF($A$1385:$A$1424,$B215,D$1385:D$1424)*D$351,C215+SUMIF($A$542:$A$1382,$B215,D$542:D$1382)*D$351) -> 0 | E215: 0 | F215: 0 | G215: 0 | H215: 0 | I215: 0 | J215: 0 | K215: 0 | L215: 0 | M215: 0 | N215: 0 | O215: 0 | P215: 0 | Q215: 0 | R215: 0 | S215: 0 | T215: 0 | U215: 0 | V215: 0 | W215: 0 | X215: 0 | Y215: 0 | Z215: 0 | AA215: 0 | AB215: 0 | AC215: 0 | AD215: 0 | AE215: 0 | AF215: 0 | AG215: 0 | AH215: 0 | AI215: 0 | AJ215: =IF(AJ$6="Actual",SUMIF($A$1385:$A$1424,$B215,AJ$1385:AJ$1424)*AJ$351,AI215+SUMIF($A$542:$A$1382,$B215,AJ$542:AJ$1382)*AJ$351) -> 0 | AK215: 0 | AL215: 0 | AM215: 0 | AN215: 0 | AO215: 0 | AP215: 0 | AQ215: 0 | AR215: 0 | AS215: 0 | AT215: 0 | AU215: 0 | AV215: 0 | AW215: 0 | AX215: 0 | AY215: 0 | AZ215: 0 | BA215: 0 | BB215: 0 | BC215: 0 | BD215: 0 | BE215: 0 | BF215: 0 | BG215: 0 | BH215: 0 | BI215: 0 | BJ215: 0 | BK215: 0 | BL215: 0 | BM215: 0 | BN215: 0 | BO215: 0 | BP215: =IF(BP$6="Actual",SUMIF($A$1385:$A$1424,$B215,BP$1385:BP$1424)*BP$351,BO215+SUMIF($A$542:$A$1382,$B215,BP$542:BP$1382)*BP$351) -> 0 | BQ215: 0 | BR215: 0 | BS215: 0 | BT215: 0 | BU215: 0 | BV215: 0 | BW215: 0 | BZ215: =C215 -> 0 | CA215: =O215 -> 0 | CB215: =AA215 -> 0 | CC215: =AM215 -> 0 | CD215: =AY215 -> 0 | CE215: =BK215 -> 0 | CF215: =BW215 -> 0 | CG215: =IF(CG$6="Actual",SUMIF($A$1385:$A$1424,$B215,CG$1385:CG$1424)*CG$351,CF215+SUMIF($A$542:$A$1382,$B215,CG$542:CG$1382)*CG$351) -> 0 | CH215: =IF(CH$6="Actual",SUMIF($A$1385:$A$1424,$B215,CH$1385:CH$1424)*CH$351,CG215+SUMIF($A$542:$A$1382,$B215,CH$542:CH$1382)*CH$351) -> 0 | CI215: =IF(CI$6="Actual",SUMIF($A$1385:$A$1424,$B215,CI$1385:CI$1424)*CI$351,CH215+SUMIF($A$542:$A$1382,$B215,CI$542:CI$1382)*CI$351) -> 0 | CJ215: =IF(CJ$6="Actual",SUMIF($A$1385:$A$1424,$B215,CJ$1385:CJ$1424)*CJ$351,CI215+SUMIF($A$542:$A$1382,$B215,CJ$542:CJ$1382)*CJ$351) -> 0 | CK215: =IF(CK$6="Actual",SUMIF($A$1385:$A$1424,$B215,CK$1385:CK$1424)*CK$351,CJ215+SUMIF($A$542:$A$1382,$B215,CK$542:CK$1382)*CK$351) -> 0
B217: =Labels!B217 -> Current Liabilities:
B218: =Labels!B218 -> Short Term Debt:
A219: =B219 -> Short Term Debt | B219: =Labels!B219 -> Short Term Debt | C219: 0 | D219: =IF(D$6="Actual",SUMIF($A$1385:$A$1424,$B219,D$1385:D$1424)*D$351,C219+SUMIF($A$542:$A$1382,$B219,D$542:D$1382)*D$351) -> 0 | E219: 0 | F219: 0 | G219: 0 | H219: 0 | I219: 0 | J219: 0 | K219: 0 | L219: 0 | M219: 0 | N219: 0 | O219: 0 | P219: 0 | Q219: 0 | R219: 0 | S219: 0 | T219: 0 | U219: 0 | V219: 0 | W219: 0 | X219: 0 | Y219: 0 | Z219: 0 | AA219: 0 | AB219: 0 | AC219: 0 | AD219: 0 | AE219: 0 | AF219: 0 | AG219: 0 | AH219: 0 | AI219: 0 | AJ219: =IF(AJ$6="Actual",SUMIF($A$1385:$A$1424,$B219,AJ$1385:AJ$1424)*AJ$351,AI219+SUMIF($A$542:$A$1382,$B219,AJ$542:AJ$1382)*AJ$351) -> 0 | AK219: 0 | AL219: 0 | AM219: 0 | AN219: 0 | AO219: 0 | AP219: 0 | AQ219: 0 | AR219: 0 | AS219: 0 | AT219: 0 | AU219: 0 | AV219: 0 | AW219: 0 | AX219: 0 | AY219: 0 | AZ219: 0 | BA219: 0 | BB219: 0 | BC219: 0 | BD219: 0 | BE219: 0 | BF219: 0 | BG219: 0 | BH219: 0 | BI219: 0 | BJ219: 0 | BK219: 0 | BL219: 0 | BM219: 0 | BN219: 0 | BO219: 0 | BP219: =IF(BP$6="Actual",SUMIF($A$1385:$A$1424,$B219,BP$1385:BP$1424)*BP$351,BO219+SUMIF($A$542:$A$1382,$B219,BP$542:BP$1382)*BP$351) -> 0 | BQ219: 0 | BR219: 0 | BS219: 0 | BT219: 0 | BU219: 0 | BV219: 0 | BW219: 0 | BZ219: =C219 -> 0 | CA219: =O219 -> 0 | CB219: =AA219 -> 0 | CC219: =AM219 -> 0 | CD219: =AY219 -> 0 | CE219: =BK219 -> 0 | CF219: =BW219 -> 0 | CG219: =IF(CG$6="Actual",SUMIF($A$1385:$A$1424,$B219,CG$1385:CG$1424)*CG$351,CF219+SUMIF($A$542:$A$1382,$B219,CG$542:CG$1382)*CG$351) -> 0 | CH219: 0 | CI219: 0 | CJ219: 0 | CK219: 0
A220: =B220 -> Hide | B220: =Labels!B220 -> Hide | C220: 0 | D220: =IF(D$6="Actual",SUMIF($A$1385:$A$1424,$B220,D$1385:D$1424)*D$351,C220+SUMIF($A$542:$A$1382,$B220,D$542:D$1382)*D$351) -> 0 | E220: 0 | F220: 0 | G220: 0 | H220: 0 | I220: 0 | J220: 0 | K220: 0 | L220: 0 | M220: 0 | N220: 0 | O220: 0 | P220: 0 | Q220: 0 | R220: 0 | S220: 0 | T220: 0 | U220: 0 | V220: 0 | W220: 0 | X220: 0 | Y220: 0 | Z220: 0 | AA220: 0 | AB220: 0 | AC220: 0 | AD220: 0 | AE220: 0 | AF220: 0 | AG220: 0 | AH220: 0 | AI220: 0 | AJ220: =IF(AJ$6="Actual",SUMIF($A$1385:$A$1424,$B220,AJ$1385:AJ$1424)*AJ$351,AI220+SUMIF($A$542:$A$1382,$B220,AJ$542:AJ$1382)*AJ$351) -> 0 | AK220: 0 | AL220: 0 | AM220: 0 | AN220: 0 | AO220: 0 | AP220: 0 | AQ220: 0 | AR220: 0 | AS220: 0 | AT220: 0 | AU220: 0 | AV220: 0 | AW220: 0 | AX220: 0 | AY220: 0 | AZ220: 0 | BA220: 0 | BB220: 0 | BC220: 0 | BD220: 0 | BE220: 0 | BF220: 0 | BG220: 0 | BH220: 0 | BI220: 0 | BJ220: 0 | BK220: 0 | BL220: 0 | BM220: 0 | BN220: 0 | BO220: 0 | BP220: =IF(BP$6="Actual",SUMIF($A$1385:$A$1424,$B220,BP$1385:BP$1424)*BP$351,BO220+SUMIF($A$542:$A$1382,$B220,BP$542:BP$1382)*BP$351) -> 0 | BQ220: 0 | BR220: 0 | BS220: 0 | BT220: 0 | BU220: 0 | BV220: 0 | BW220: 0 | BZ220: =C220 -> 0 | CA220: =O220 -> 0 | CB220: =AA220 -> 0 | CC220: =AM220 -> 0 | CD220: =AY220 -> 0 | CE220: =BK220 -> 0 | CF220: =BW220 -> 0 | CG220: 0 | CH220: 0 | CI220: 0 | CJ220: 0 | CK220: 0
A221: =B221 -> Total Short Term Debt | B221: =Labels!B221 -> Total Short Term Debt | C221: 0 | D221: =SUM(D219:D220) -> 0 | E221: 0 | F221: 0 | G221: 0 | H221: 0 | I221: 0 | J221: 0 | K221: 0 | L221: 0 | M221: 0 | N221: 0 | O221: 0 | P221: 0 | Q221: 0 | R221: 0 | S221: 0 | T221: 0 | U221: 0 | V221: 0 | W221: 0 | X221: 0 | Y221: 0 | Z221: 0 | AA221: 0 | AB221: 0 | AC221: 0 | AD221: 0 | AE221: 0 | AF221: 0 | AG221: 0 | AH221: 0 | AI221: =SUM(AI219:AI220) -> 0 | AJ221: 0 | AK221: 0 | AL221: 0 | AM221: 0 | AN221: 0 | AO221: 0 | AP221: 0 | AQ221: 0 | AR221: 0 | AS221: 0 | AT221: 0 | AU221: 0 | AV221: 0 | AW221: 0 | AX221: 0 | AY221: 0 | AZ221: 0 | BA221: 0 | BB221: 0 | BC221: 0 | BD221: 0 | BE221: 0 | BF221: 0 | BG221: 0 | BH221: 0 | BI221: 0 | BJ221: 0 | BK221: 0 | BL221: 0 | BM221: 0 | BN221: 0 | BO221: =SUM(BO219:BO220) -> 0 | BP221: 0 | BQ221: 0 | BR221: 0 | BS221: 0 | BT221: 0 | BU221: 0 | BV221: 0 | BW221: 0 | BZ221: =SUM(BZ219:BZ220) -> 0 | CA221: 0 | CB221: 0 | CC221: 0 | CD221: 0 | CE221: 0 | CF221: 0 | CG221: 0 | CH221: 0 | CI221: 0 | CJ221: 0 | CK221: 0
B223: =Labels!B223 -> Other Current Liabilities:
A224: =B224 -> Accounts Payable | B224: =Labels!B224 -> Accounts Payable | C224: 0 | D224: =IF(D$6="Actual",SUMIF($A$1385:$A$1424,$B224,D$1385:D$1424)*D$351,C224+SUMIF($A$542:$A$1382,$B224,D$542:D$1382)*D$351) -> 0 | E224: 0 | F224: 0 | G224: 0 | H224: 0 | I224: 0 | J224: 0 | K224: 0 | L224: 0 | M224: 0 | N224: 0 | O224: 0 | P224: 0 | Q224: 0 | R224: 0 | S224: 0 | T224: 0 | U224: 0 | V224: 0 | W224: 0 | X224: 0 | Y224: 0 | Z224: 0 | AA224: 0 | AB224: 0 | AC224: 0 | AD224: 0 | AE224: 0 | AF224: 0 | AG224: 0 | AH224: 0 | AI224: 0 | AJ224: =IF(AJ$6="Actual",SUMIF($A$1385:$A$1424,$B224,AJ$1385:AJ$1424)*AJ$351,AI224+SUMIF($A$542:$A$1382,$B224,AJ$542:AJ$1382)*AJ$351) -> 0 | AK224: 0 | AL224: 0 | AM224: 0 | AN224: 0 | AO224: 0 | AP224: 0 | AQ224: 0 | AR224: 0 | AS224: 0 | AT224: 0 | AU224: 0 | AV224: 0 | AW224: 0 | AX224: 0 | AY224: 0 | AZ224: 0 | BA224: 0 | BB224: 0 | BC224: 0 | BD224: 0 | BE224: 0 | BF224: 0 | BG224: 0 | BH224: 0 | BI224: 0 | BJ224: 0 | BK224: 0 | BL224: 0 | BM224: 0 | BN224: 0 | BO224: 0 | BP224: =IF(BP$6="Actual",SUMIF($A$1385:$A$1424,$B224,BP$1385:BP$1424)*BP$351,BO224+SUMIF($A$542:$A$1382,$B224,BP$542:BP$1382)*BP$351) -> 0 | BQ224: 0 | BR224: 0 | BS224: 0 | BT224: 0 | BU224: 0 | BV224: 0 | BW224: 0 | BZ224: =C224 -> 0 | CA224: =O224 -> 0 | CB224: =AA224 -> 0 | CC224: =AM224 -> 0 | CD224: =AY224 -> 0 | CE224: =BK224 -> 0 | CF224: =BW224 -> 0 | CG224: =IF(CG$6="Actual",SUMIF($A$1385:$A$1424,$B224,CG$1385:CG$1424)*CG$351,CF224+SUMIF($A$542:$A$1382,$B224,CG$542:CG$1382)*CG$351) -> 0 | CH224: 0 | CI224: 0 | CJ224: 0 | CK224: 0
A225: Accounts Payable Associated Companies | B225: =Labels!B225 -> Accounts Payable Associated Companies | C225: 0 | D225: =IF(D$6="Actual",SUMIF($A$1385:$A$1424,$B225,D$1385:D$1424)*D$351,C225+SUMIF($A$542:$A$1382,$B225,D$542:D$1382)*D$351) -> 0 | E225: 0 | F225: 0 | G225: 0 | H225: 0 | I225: 0 | J225: 0 | K225: 0 | L225: 0 | M225: 0 | N225: 0 | O225: 0 | P225: 0 | Q225: 0 | R225: 0 | S225: 0 | T225: 0 | U225: 0 | V225: 0 | W225: 0 | X225: 0 | Y225: 0 | Z225: 0 | AA225: 0 | AB225: 0 | AC225: 0 | AD225: 0 | AE225: 0 | AF225: 0 | AG225: 0 | AH225: 0 | AI225: 0 | AJ225: =IF(AJ$6="Actual",SUMIF($A$1385:$A$1424,$B225,AJ$1385:AJ$1424)*AJ$351,AI225+SUMIF($A$542:$A$1382,$B225,AJ$542:AJ$1382)*AJ$351) -> 0 | AK225: 0 | AL225: 0 | AM225: 0 | AN225: 0 | AO225: 0 | AP225: 0 | AQ225: 0 | AR225: 0 | AS225: 0 | AT225: 0 | AU225: 0 | AV225: 0 | AW225: 0 | AX225: 0 | AY225: 0 | AZ225: 0 | BA225: 0 | BB225: 0 | BC225: 0 | BD225: 0 | BE225: 0 | BF225: 0 | BG225: 0 | BH225: 0 | BI225: 0 | BJ225: 0 | BK225: 0 | BL225: 0 | BM225: 0 | BN225: 0 | BO225: 0 | BP225: =IF(BP$6="Actual",SUMIF($A$1385:$A$1424,$B225,BP$1385:BP$1424)*BP$351,BO225+SUMIF($A$542:$A$1382,$B225,BP$542:BP$1382)*BP$351) -> 0 | BQ225: 0 | BR225: 0 | BS225: 0 | BT225: 0 | BU225: 0 | BV225: 0 | BW225: 0 | BZ225: 0 | CA225: 0 | CB225: 0 | CC225: 0 | CD225: 0 | CE225: 0 | CF225: 0 | CG225: 0 | CH225: 0 | CI225: 0 | CJ225: 0 | CK225: 0
A226: Interest Accrued | B226: =Labels!B226 -> Interest Accrued | C226: 0 | D226: =IF(D$6="Actual",SUMIF($A$1385:$A$1424,$B226,D$1385:D$1424)*D$351,C226+SUMIF($A$542:$A$1382,$B226,D$542:D$1382)*D$351) -> 0 | E226: 0 | F226: 0 | G226: 0 | H226: 0 | I226: 0 | J226: 0 | K226: 0 | L226: 0 | M226: 0 | N226: 0 | O226: 0 | P226: 0 | Q226: 0 | R226: 0 | S226: 0 | T226: 0 | U226: 0 | V226: 0 | W226: 0 | X226: 0 | Y226: 0 | Z226: 0 | AA226: 0 | AB226: 0 | AC226: 0 | AD226: 0 | AE226: 0 | AF226: 0 | AG226: 0 | AH226: 0 | AI226: 0 | AJ226: =IF(AJ$6="Actual",SUMIF($A$1385:$A$1424,$B226,AJ$1385:AJ$1424)*AJ$351,AI226+SUMIF($A$542:$A$1382,$B226,AJ$542:AJ$1382)*AJ$351) -> 0 | AK226: 0 | AL226: 0 | AM226: 0 | AN226: 0 | AO226: 0 | AP226: 0 | AQ226: 0 | AR226: 0 | AS226: 0 | AT226: 0 | AU226: 0 | AV226: 0 | AW226: 0 | AX226: 0 | AY226: 0 | AZ226: 0 | BA226: 0 | BB226: 0 | BC226: 0 | BD226: 0 | BE226: 0 | BF226: 0 | BG226: 0 | BH226: 0 | BI226: 0 | BJ226: 0 | BK226: 0 | BL226: 0 | BM226: 0 | BN226: 0 | BO226: 0 | BP226: =IF(BP$6="Actual",SUMIF($A$1385:$A$1424,$B226,BP$1385:BP$1424)*BP$351,BO226+SUMIF($A$542:$A$1382,$B226,BP$542:BP$1382)*BP$351) -> 0 | BQ226: 0 | BR226: 0 | BS226: 0 | BT226: 0 | BU226: 0 | BV226: 0 | BW226: 0 | BZ226: 0 | CA226: 0 | CB226: 0 | CC226: 0 | CD226: 0 | CE226: 0 | CF226: 0 | CG226: 0 | CH226: 0 | CI226: 0 | CJ226: 0 | CK226: 0
A227: Interest Accrued Associated Companies | B227: =Labels!B227 -> Interest Accrued Associated Companies | C227: 0 | D227: =IF(D$6="Actual",SUMIF($A$1385:$A$1424,$B227,D$1385:D$1424)*D$351,C227+SUMIF($A$542:$A$1382,$B227,D$542:D$1382)*D$351) -> 0 | E227: 0 | F227: 0 | G227: 0 | H227: 0 | I227: 0 | J227: 0 | K227: 0 | L227: 0 | M227: 0 | N227: 0 | O227: 0 | P227: 0 | Q227: 0 | R227: 0 | S227: 0 | T227: 0 | U227: 0 | V227: 0 | W227: 0 | X227: 0 | Y227: 0 | Z227: 0 | AA227: 0 | AB227: 0 | AC227: 0 | AD227: 0 | AE227: 0 | AF227: 0 | AG227: 0 | AH227: 0 | AI227: 0 | AJ227: =IF(AJ$6="Actual",SUMIF($A$1385:$A$1424,$B227,AJ$1385:AJ$1424)*AJ$351,AI227+SUMIF($A$542:$A$1382,$B227,AJ$542:AJ$1382)*AJ$351) -> 0 | AK227: 0 | AL227: 0 | AM227: 0 | AN227: 0 | AO227: 0 | AP227: 0 | AQ227: 0 | AR227: 0 | AS227: 0 | AT227: 0 | AU227: 0 | AV227: 0 | AW227: 0 | AX227: 0 | AY227: 0 | AZ227: 0 | BA227: 0 | BB227: 0 | BC227: 0 | BD227: 0 | BE227: 0 | BF227: 0 | BG227: 0 | BH227: 0 | BI227: 0 | BJ227: 0 | BK227: 0 | BL227: 0 | BM227: 0 | BN227: 0 | BO227: 0 | BP227: =IF(BP$6="Actual",SUMIF($A$1385:$A$1424,$B227,BP$1385:BP$1424)*BP$351,BO227+SUMIF($A$542:$A$1382,$B227,BP$542:BP$1382)*BP$351) -> 0 | BQ227: 0 | BR227: 0 | BS227: 0 | BT227: 0 | BU227: 0 | BV227: 0 | BW227: 0 | BZ227: 0 | CA227: 0 | CB227: 0 | CC227: 0 | CD227: 0 | CE227: 0 | CF227: 0 | CG227: 0 | CH227: 0 | CI227: 0 | CJ227: 0 | CK227: 0
A228: Income Taxes Payable | B228: =Labels!B228 -> Income Taxes Payable | C228: 0 | D228: =IF(D$6="Actual",SUMIF($A$1385:$A$1424,$B228,D$1385:D$1424)*D$351,C228+SUMIF($A$542:$A$1382,$B228,D$542:D$1382)*D$351) -> 0 | E228: 0 | F228: 0 | G228: 0 | H228: 0 | I228: 0 | J228: 0 | K228: 0 | L228: 0 | M228: 0 | N228: 0 | O228: 0 | P228: 0 | Q228: 0 | R228: 0 | S228: 0 | T228: 0 | U228: 0 | V228: 0 | W228: 0 | X228: 0 | Y228: 0 | Z228: 0 | AA228: 0 | AB228: 0 | AC228: 0 | AD228: 0 | AE228: 0 | AF228: 0 | AG228: 0 | AH228: 0 | AI228: 0 | AJ228: =IF(AJ$6="Actual",SUMIF($A$1385:$A$1424,$B228,AJ$1385:AJ$1424)*AJ$351,AI228+SUMIF($A$542:$A$1382,$B228,AJ$542:AJ$1382)*AJ$351) -> 0 | AK228: 0 | AL228: 0 | AM228: 0 | AN228: 0 | AO228: 0 | AP228: 0 | AQ228: 0 | AR228: 0 | AS228: 0 | AT228: 0 | AU228: 0 | AV228: 0 | AW228: 0 | AX228: 0 | AY228: 0 | AZ228: 0 | BA228: 0 | BB228: 0 | BC228: 0 | BD228: 0 | BE228: 0 | BF228: 0 | BG228: 0 | BH228: 0 | BI228: 0 | BJ228: 0 | BK228: 0 | BL228: 0 | BM228: 0 | BN228: 0 | BO228: 0 | BP228: =IF(BP$6="Actual",SUMIF($A$1385:$A$1424,$B228,BP$1385:BP$1424)*BP$351,BO228+SUMIF($A$542:$A$1382,$B228,BP$542:BP$1382)*BP$351) -> 0 | BQ228: 0 | BR228: 18.57090338 | BS228: 36.74921532 | BT228: 56.11110724 | BU228: 77.01318356 | BV228: 98.39979802 | BW228: 0 | BZ228: 0 | CA228: 0 | CB228: 0 | CC228: 0 | CD228: 0 | CE228: 0 | CF228: 0 | CG228: 0 | CH228: 0 | CI228: 0 | CJ228: 0 | CK228: 0
A229: Other Tax Liabilities | B229: =Labels!B229 -> Other Tax Liabilities | C229: 0 | D229: =IF(D$6="Actual",SUMIF($A$1385:$A$1424,$B229,D$1385:D$1424)*D$351,C229+SUMIF($A$542:$A$1382,$B229,D$542:D$1382)*D$351) -> 0 | E229: 0 | F229: 0 | G229: 0 | H229: 0 | I229: 0 | J229: 0 | K229: 0 | L229: 0 | M229: 0 | N229: 0 | O229: 0 | P229: 0 | Q229: 0 | R229: 0 | S229: 0 | T229: 0 | U229: 0 | V229: 0 | W229: 0 | X229: 0 | Y229: 0 | Z229: 0 | AA229: 0 | AB229: 0 | AC229: 0 | AD229: 0 | AE229: 0 | AF229: 0 | AG229: 0 | AH229: 0 | AI229: 0 | AJ229: =IF(AJ$6="Actual",SUMIF($A$1385:$A$1424,$B229,AJ$1385:AJ$1424)*AJ$351,AI229+SUMIF($A$542:$A$1382,$B229,AJ$542:AJ$1382)*AJ$351) -> 0 | AK229: 0 | AL229: 0 | AM229: 0 | AN229: 0 | AO229: 0 | AP229: 0 | AQ229: 0 | AR229: 0 | AS229: 0 | AT229: 0 | AU229: 0 | AV229: 0 | AW229: 0 | AX229: 0 | AY229: 0 | AZ229: 0 | BA229: 0 | BB229: 0 | BC229: 0 | BD229: 0 | BE229: 0 | BF229: 0 | BG229: 0 | BH229: 0 | BI229: 0 | BJ229: 0 | BK229: 0 | BL229: 0 | BM229: 0 | BN229: 0 | BO229: 0 | BP229: =IF(BP$6="Actual",SUMIF($A$1385:$A$1424,$B229,BP$1385:BP$1424)*BP$351,BO229+SUMIF($A$542:$A$1382,$B229,BP$542:BP$1382)*BP$351) -> 0 | BQ229: 0 | BR229: 0.9020650487 | BS229: 1.809073838 | BT229: 2.719707526 | BU229: 3.673549302 | BV229: 4.620738009 | BW229: 0 | BZ229: 0 | CA229: 0 | CB229: 0 | CC229: 0 | CD229: 0 | CE229: 0 | CF229: 0 | CG229: 0 | CH229: 0 | CI229: 0 | CJ229: 0 | CK229: 0
A230: Other Current Liabilities | B230: =Labels!B230 -> Other Current Liabilities | C230: 0 | D230: =IF(D$6="Actual",SUMIF($A$1385:$A$1424,$B230,D$1385:D$1424)*D$351,C230+SUMIF($A$542:$A$1382,$B230,D$542:D$1382)*D$351) -> 0 | E230: 0 | F230: 0 | G230: 0 | H230: 0 | I230: 0 | J230: 0 | K230: 0 | L230: 0 | M230: 0 | N230: 0 | O230: 0 | P230: 0 | Q230: 0 | R230: 0 | S230: 0 | T230: 0 | U230: 0 | V230: 0 | W230: 0 | X230: 0 | Y230: 0 | Z230: 0 | AA230: 0 | AB230: 0 | AC230: 0 | AD230: 0 | AE230: 0 | AF230: 0 | AG230: 0 | AH230: 0 | AI230: 0 | AJ230: =IF(AJ$6="Actual",SUMIF($A$1385:$A$1424,$B230,AJ$1385:AJ$1424)*AJ$351,AI230+SUMIF($A$542:$A$1382,$B230,AJ$542:AJ$1382)*AJ$351) -> 0 | AK230: 0 | AL230: 0 | AM230: 0 | AN230: 0 | AO230: 0 | AP230: 0 | AQ230: 0 | AR230: 0 | AS230: 0 | AT230: 0 | AU230: 0 | AV230: 0 | AW230: 0 | AX230: 0 | AY230: 0 | AZ230: 0 | BA230: 0 | BB230: 0 | BC230: 0 | BD230: 0 | BE230: 0 | BF230: 0 | BG230: 0 | BH230: 0 | BI230: 0 | BJ230: 0 | BK230: 0 | BL230: 0 | BM230: 0 | BN230: 0 | BO230: 0 | BP230: =IF(BP$6="Actual",SUMIF($A$1385:$A$1424,$B230,BP$1385:BP$1424)*BP$351,BO230+SUMIF($A$542:$A$1382,$B230,BP$542:BP$1382)*BP$351) -> 0 | BQ230: 0 | BR230: 0 | BS230: 0 | BT230: 0 | BU230: 0 | BV230: 0 | BW230: 0 | BZ230: 0 | CA230: 0 | CB230: 0 | CC230: 0 | CD230: 0 | CE230: 0 | CF230: 0 | CG230: 0 | CH230: 0 | CI230: 0 | CJ230: 0 | CK230: 0
A231: Dividends Payable | B231: =Labels!B231 -> Dividends Payable | C231: 0 | D231: =IF(D$6="Actual",SUMIF($A$1385:$A$1424,$B231,D$1385:D$1424)*D$351,C231+SUMIF($A$542:$A$1382,$B231,D$542:D$1382)*D$351) -> 0 | E231: 0 | F231: 0 | G231: 0 | H231: 0 | I231: 0 | J231: 0 | K231: 0 | L231: 0 | M231: 0 | N231: 0 | O231: 0 | P231: 0 | Q231: 0 | R231: 0 | S231: 0 | T231: 0 | U231: 0 | V231: 0 | W231: 0 | X231: 0 | Y231: 0 | Z231: 0 | AA231: 0 | AB231: 0 | AC231: 0 | AD231: 0 | AE231: 0 | AF231: 0 | AG231: 0 | AH231: 0 | AI231: 0 | AJ231: =IF(AJ$6="Actual",SUMIF($A$1385:$A$1424,$B231,AJ$1385:AJ$1424)*AJ$351,AI231+SUMIF($A$542:$A$1382,$B231,AJ$542:AJ$1382)*AJ$351) -> 0 | AK231: 0 | AL231: 0 | AM231: 0 | AN231: 0 | AO231: 0 | AP231: 0 | AQ231: 0 | AR231: 0 | AS231: 0 | AT231: 0 | AU231: 0 | AV231: 0 | AW231: 0 | AX231: 0 | AY231: 0 | AZ231: 0 | BA231: 0 | BB231: 0 | BC231: 0 | BD231: 0 | BE231: 0 | BF231: 0 | BG231: 0 | BH231: 0 | BI231: 0 | BJ231: 0 | BK231: 0 | BL231: 0 | BM231: 0 | BN231: 0 | BO231: 0 | BP231: =IF(BP$6="Actual",SUMIF($A$1385:$A$1424,$B231,BP$1385:BP$1424)*BP$351,BO231+SUMIF($A$542:$A$1382,$B231,BP$542:BP$1382)*BP$351) -> 0 | BQ231: 0 | BR231: 0 | BS231: 0 | BT231: 0 | BU231: 0 | BV231: 0 | BW231: 0 | BZ231: 0 | CA231: 0 | CB231: 0 | CC231: 0 | CD231: 0 | CE231: 0 | CF231: 0 | CG231: 0 | CH231: 0 | CI231: 0 | CJ231: 0 | CK231: 0
A232: Total Other Current Liabilities | B232: =Labels!B232 -> Total Other Current Liabilities | C232: 0 | D232: =SUM(D224:D231) -> 0 | E232: 0 | F232: 0 | G232: 0 | H232: 0 | I232: 0 | J232: 0 | K232: 0 | L232: 0 | M232: 0 | N232: 0 | O232: 0 | P232: 0 | Q232: 0 | R232: 0 | S232: 0 | T232: 0 | U232: 0 | V232: 0 | W232: 0 | X232: 0 | Y232: 0 | Z232: 0 | AA232: 0 | AB232: 0 | AC232: 0 | AD232: 0 | AE232: 0 | AF232: 0 | AG232: 0 | AH232: 0 | AI232: =SUM(AI224:AI231) -> 0 | AJ232: 0 | AK232: 0 | AL232: 0 | AM232: 0 | AN232: 0 | AO232: 0 | AP232: 0 | AQ232: 0 | AR232: 0 | AS232: 0 | AT232: 0 | AU232: 0 | AV232: 0 | AW232: 0 | AX232: 0 | AY232: 0 | AZ232: 0 | BA232: 0 | BB232: 0 | BC232: 0 | BD232: 0 | BE232: 0 | BF232: 0 | BG232: 0 | BH232: 0 | BI232: 0 | BJ232: 0 | BK232: 0 | BL232: 0 | BM232: 0 | BN232: 0 | BO232: =SUM(BO224:BO231) -> 0 | BP232: 0 | BQ232: 0 | BR232: 19.47296843 | BS232: 38.55828916 | BT232: 58.83081476 | BU232: 80.68673286 | BV232: 103.020536 | BW232: 0 | BZ232: =SUM(BZ224:BZ231) -> 0 | CA232: 0 | CB232: 0 | CC232: 0 | CD232: 0 | CE232: 0 | CF232: 0 | CG232: 0 | CH232: 0 | CI232: 0 | CJ232: 0 | CK232: 0
A234: =B234 -> Total Current Liabilities | B234: =Labels!B234 -> Total Current Liabilities | C234: 0 | D234: =D221+D232 -> 0 | E234: 0 | F234: 0 | G234: 0 | H234: 0 | I234: 0 | J234: 0 | K234: 0 | L234: 0 | M234: 0 | N234: 0 | O234: 0 | P234: 0 | Q234: 0 | R234: 0 | S234: 0 | T234: 0 | U234: 0 | V234: 0 | W234: 0 | X234: 0 | Y234: 0 | Z234: 0 | AA234: 0 | AB234: 0 | AC234: 0 | AD234: 0 | AE234: 0 | AF234: 0 | AG234: 0 | AH234: 0 | AI234: =AI221+AI232 -> 0 | AJ234: 0 | AK234: 0 | AL234: 0 | AM234: 0 | AN234: 0 | AO234: 0 | AP234: 0 | AQ234: 0 | AR234: 0 | AS234: 0 | AT234: 0 | AU234: 0 | AV234: 0 | AW234: 0 | AX234: 0 | AY234: 0 | AZ234: 0 | BA234: 0 | BB234: 0 | BC234: 0 | BD234: 0 | BE234: 0 | BF234: 0 | BG234: 0 | BH234: 0 | BI234: 0 | BJ234: 0 | BK234: 0 | BL234: 0 | BM234: 0 | BN234: 0 | BO234: =BO221+BO232 -> 0 | BP234: 0 | BQ234: 0 | BR234: 19.47296843 | BS234: 38.55828916 | BT234: 58.83081476 | BU234: 80.68673286 | BV234: 103.020536 | BW234: 0 | BZ234: =BZ221+BZ232 -> 0 | CA234: 0 | CB234: 0 | CC234: 0 | CD234: 0 | CE234: 0 | CF234: 0 | CG234: 0 | CH234: 0 | CI234: 0 | CJ234: 0 | CK234: 0
B236: =Labels!B236 -> Deferred Credits:
... 1042 more rows

Sheet Tables
A1: Table Information
A2: Case | B2: MAP New Rate Case
A3: Case ID | B3: 18668
A4: Base Year | B4: 1999
A5: Modified Date
A6: Tax Tables
C7: 1 | D7: 2 | E7: 3 | F7: 4 | G7: 5 | H7: 6 | I7: 7
B8: Table for selecting company | C8: APC | D8: GPC | E8: GULF | F8: MPC | G8: SAV | H8: System | I8: Off System
C9: Orig Bk | D9: Orig Bk | E9: Yr End Bk | F9: Orig Bk | G9: Avg Bk | H9: Avg Bk | I9: Avg Bk
B10: Period | C10: =Labels!B7 -> 2004-12-31 | D10: =EOMONTH(C10,1) -> 2005-01-31 | E10: 2005-02-28 | F10: 2005-03-31 | G10: 2005-04-30 | H10: 2005-05-31 | I10: 2005-06-30 | J10: 2005-07-31 | K10: 2005-08-31 | L10: 2005-09-30 | M10: 2005-10-31 | N10: 2005-11-30 | O10: 2005-12-31 | P10: 2006-01-31 | Q10: 2006-02-28 | R10: 2006-03-31 | S10: 2006-04-30 | T10: 2006-05-31 | U10: 2006-06-30 | V10: 2006-07-31 | W10: 2006-08-31 | X10: 2006-09-30 | Y10: 2006-10-31 | Z10: 2006-11-30 | AA10: 2006-12-31 | AB10: 2007-01-31 | AC10: 2007-02-28 | AD10: 2007-03-31 | AE10: 2007-04-30 | AF10: 2007-05-31 | AG10: 2007-06-30 | AH10: 2007-07-31 | AI10: 2007-08-31 | AJ10: =EOMONTH(AI10,1) -> 2007-09-30 | AK10: 2007-10-31 | AL10: 2007-11-30 | AM10: 2007-12-31 | AN10: 2008-01-31 | AO10: 2008-02-29 | AP10: 2008-03-31 | AQ10: 2008-04-30 | AR10: 2008-05-31 | AS10: 2008-06-30 | AT10: 2008-07-31 | AU10: 2008-08-31 | AV10: 2008-09-30 | AW10: 2008-10-31 | AX10: 2008-11-30 | AY10: 2008-12-31 | AZ10: 2009-01-31 | BA10: 2009-02-28 | BB10: 2009-03-31 | BC10: 2009-04-30 | BD10: 2009-05-31 | BE10: 2009-06-30 | BF10: 2009-07-31 | BG10: 2009-08-31 | BH10: 2009-09-30 | BI10: 2009-10-31 | BJ10: 2009-11-30 | BK10: 2009-12-31 | BL10: 2010-01-31 | BM10: 2010-02-28 | BN10: 2010-03-31 | BO10: 2010-04-30 | BP10: =EOMONTH(BO10,1) -> 2010-05-31 | BQ10: 2010-06-30 | BR10: 2010-07-31 | BS10: 2010-08-31 | BT10: 2010-09-30 | BU10: 2010-10-31 | BV10: 2010-11-30 | BW10: 2010-12-31 | BZ10: =C10 -> 2004-12-31 | CA10: =EOMONTH(BZ10,12) -> 2005-12-31 | CB10: 2006-12-31 | CC10: 2007-12-31 | CD10: 2008-12-31 | CE10: 2009-12-31 | CF10: 2010-12-31 | CG10: 2011-12-31 | CH10: 2012-12-31 | CI10: 2013-12-31 | CJ10: 2014-12-31 | CK10: 2015-12-31 | CL10: 2016-12-31 | CM10: 2017-12-31 | CN10: 2018-12-31 | CO10: 2019-12-31 | CP10: 2020-12-31 | CQ10: 2021-12-31 | CR10: 2022-12-31 | CS10: 2023-12-31 | CT10: 2024-12-31 | CU10: 2025-12-31 | CV10: 2026-12-31 | CW10: 2027-12-31 | CX10: 2028-12-31 | CY10: 2029-12-31 | CZ10: 2030-12-31 | DA10: 2031-12-31 | DB10: 2032-12-31 | DC10: 2033-12-31 | DD10: 2034-12-31 | DE10: 2035-12-31 | DF10: 2036-12-31 | DG10: =EOMONTH(DF10,12) -> 2037-12-31 | DH10: 2038-12-31 | DI10: 2039-12-31 | DJ10: 2040-12-31 | DK10: 2041-12-31 | DL10: 2042-12-31 | DM10: 2043-12-31 | DN10: 2044-12-31 | DO10: 2045-12-31 | DP10: 2046-12-31 | DQ10: 2047-12-31 | DR10: 2048-12-31 | DS10: 2049-12-31 | DT10: 2050-12-31 | DU10: 2051-12-31 | DV10: 2052-12-31 | DW10: 2053-12-31 | DX10: 2054-12-31 | DY10: 2055-12-31
C11: DEC | D11: JAN | E11: FEB | F11: MAR | G11: APR | H11: MAY | I11: JUN | J11: JUL | K11: AUG | L11: SEP | M11: OCT | N11: NOV | O11: DEC | P11: JAN | Q11: FEB | R11: MAR | S11: APR | T11: MAY | U11: JUN | V11: JUL | W11: AUG | X11: SEP | Y11: OCT | Z11: NOV | AA11: DEC | AB11: JAN | AC11: FEB | AD11: MAR | AE11: APR | AF11: MAY | AG11: JUN | AH11: JUL | AI11: AUG | AJ11: SEP | AK11: OCT | AL11: NOV | AM11: DEC | AN11: JAN | AO11: FEB | AP11: MAR | AQ11: APR | AR11: MAY | AS11: JUN | AT11: JUL | AU11: AUG | AV11: SEP | AW11: OCT | AX11: NOV | AY11: DEC | AZ11: JAN | BA11: FEB | BB11: MAR | BC11: APR | BD11: MAY | BE11: JUN | BF11: JUL | BG11: AUG | BH11: SEP | BI11: OCT | BJ11: NOV | BK11: DEC | BL11: JAN | BM11: FEB | BN11: MAR | BO11: APR | BP11: MAY | BQ11: JUN | BR11: JUL | BS11: AUG | BT11: SEP | BU11: OCT | BV11: NOV | BW11: DEC | BZ11: TOTAL | CA11: TOTAL | CB11: TOTAL | CC11: TOTAL | CD11: TOTAL | CE11: TOTAL | CF11: TOTAL | CG11: TOTAL | CH11: TOTAL | CI11: TOTAL | CJ11: TOTAL | CK11: TOTAL | CL11: TOTAL | CM11: TOTAL | CN11: TOTAL | CO11: TOTAL | CP11: TOTAL | CQ11: TOTAL | CR11: TOTAL | CS11: TOTAL | CT11: TOTAL | CU11: TOTAL | CV11: TOTAL | CW11: TOTAL | CX11: TOTAL | CY11: TOTAL | CZ11: TOTAL | DA11: TOTAL | DB11: TOTAL | DC11: TOTAL | DD11: TOTAL | DE11: TOTAL | DF11: TOTAL | DG11: TOTAL | DH11: TOTAL | DI11: TOTAL | DJ11: TOTAL | DK11: TOTAL | DL11: TOTAL | DM11: TOTAL | DN11: TOTAL | DO11: TOTAL | DP11: TOTAL | DQ11: TOTAL | DR11: TOTAL | DS11: TOTAL | DT11: TOTAL | DU11: TOTAL | DV11: TOTAL | DW11: TOTAL | DX11: TOTAL | DY11: TOTAL
B12: State Tax Rate - APC | C12: 0.043229 | D12: 0.043229 | E12: 0.043229 | F12: 0.043229 | G12: 0.043229 | H12: 0.043229 | I12: 0.043229 | J12: 0.043229 | K12: 0.043229 | L12: 0.043229 | M12: 0.043229 | N12: 0.043229 | O12: 0.043229 | P12: 0.043229 | Q12: 0.043229 | R12: 0.043229 | S12: 0.043229 | T12: 0.043229 | U12: 0.043229 | V12: 0.043229 | W12: 0.043229 | X12: 0.043229 | Y12: 0.043229 | Z12: 0.043229 | AA12: 0.043229 | AB12: 0.043229 | AC12: 0.043229 | AD12: 0.043229 | AE12: 0.043229 | AF12: 0.043229 | AG12: 0.043229 | AH12: 0.043229 | AI12: 0.043229 | AJ12: 0.043229 | AK12: 0.043229 | AL12: 0.043229 | AM12: 0.043229 | AN12: 0.043229 | AO12: 0.043229 | AP12: 0.043229 | AQ12: 0.043229 | AR12: 0.043229 | AS12: 0.043229 | AT12: 0.043229 | AU12: 0.043229 | AV12: 0.043229 | AW12: 0.043229 | AX12: 0.043229 | AY12: 0.043229 | AZ12: 0.043229 | BA12: 0.043229 | BB12: 0.043229 | BC12: 0.043229 | BD12: 0.043229 | BE12: 0.043229 | BF12: 0.043229 | BG12: 0.043229 | BH12: 0.043229 | BI12: 0.043229 | BJ12: 0.043229 | BK12: 0.043229 | BL12: 0.043229 | BM12: 0.043229 | BN12: 0.043229 | BO12: 0.043229 | BP12: 0.043229 | BQ12: 0.043229 | BR12: 0.043229 | BS12: 0.043229 | BT12: 0.043229 | BU12: 0.043229 | BV12: 0.043229 | BW12: 0.043229 | BZ12: 0.043229231 | CA12: 0.043229231 | CB12: 0.043229231 | CC12: 0.043229231 | CD12: 0.043229231 | CE12: 0.043229231 | CF12: 0.043229231 | CG12: 0.043229231 | CH12: 0.043229231 | CI12: 0.043229231 | CJ12: 0.043229231 | CK12: 0.043229231 | CL12: 0.043229231 | CM12: 0.043229231 | CN12: 0.043229231 | CO12: 0.043229231 | CP12: 0.043229231 | CQ12: 0.043229231 | CR12: 0.043229231 | CS12: 0.043229231 | CT12: 0.043229231 | CU12: 0.043229231 | CV12: 0.043229231 | CW12: 0.043229231 | CX12: 0.043229231 | CY12: 0.043229231 | CZ12: 0.043229231 | DA12: 0.043229231 | DB12: 0.043229231 | DC12: 0.043229231 | DD12: 0.043229231 | DE12: 0.043229231 | DF12: 0.043229231 | DG12: 0.043229231 | DH12: 0.043229231 | DI12: 0.043229231 | DJ12: 0.043229231 | DK12: 0.043229231 | DL12: 0.043229231 | DM12: 0.043229231 | DN12: 0.043229231 | DO12: 0.043229231 | DP12: 0.043229231 | DQ12: 0.043229231 | DR12: 0.043229231 | DS12: 0.043229231 | DT12: 0.043229231 | DU12: 0.043229231 | DV12: 0.043229231 | DW12: 0.043229231 | DX12: 0.043229231 | DY12: 0.043229231
B13: State Tax Rate - GPC | C13: 0.0566 | D13: 0.0566 | E13: 0.0566 | F13: 0.0566 | G13: 0.0566 | H13: 0.0566 | I13: 0.0566 | J13: 0.0566 | K13: 0.0566 | L13: 0.0566 | M13: 0.0566 | N13: 0.0566 | O13: 0.0566 | P13: 0.0566 | Q13: 0.0566 | R13: 0.0566 | S13: 0.0566 | T13: 0.0566 | U13: 0.0566 | V13: 0.0566 | W13: 0.0566 | X13: 0.0566 | Y13: 0.0566 | Z13: 0.0566 | AA13: 0.0566 | AB13: 0.0566 | AC13: 0.0566 | AD13: 0.0566 | AE13: 0.0566 | AF13: 0.0566 | AG13: 0.0566 | AH13: 0.0566 | AI13: 0.0566 | AJ13: 0.0566 | AK13: 0.0566 | AL13: 0.0566 | AM13: 0.0566 | AN13: 0.0566 | AO13: 0.0566 | AP13: 0.0566 | AQ13: 0.0566 | AR13: 0.0566 | AS13: 0.0566 | AT13: 0.0566 | AU13: 0.0566 | AV13: 0.0566 | AW13: 0.0566 | AX13: 0.0566 | AY13: 0.0566 | AZ13: 0.0566 | BA13: 0.0566 | BB13: 0.0566 | BC13: 0.0566 | BD13: 0.0566 | BE13: 0.0566 | BF13: 0.0566 | BG13: 0.0566 | BH13: 0.0566 | BI13: 0.0566 | BJ13: 0.0566 | BK13: 0.0566 | BL13: 0.0566 | BM13: 0.0566 | BN13: 0.0566 | BO13: 0.0566 | BP13: 0.0566 | BQ13: 0.0566 | BR13: 0.0566 | BS13: 0.0566 | BT13: 0.0566 | BU13: 0.0566 | BV13: 0.0566 | BW13: 0.0566 | BZ13: 0.0566 | CA13: 0.0566 | CB13: 0.0566 | CC13: 0.0566 | CD13: 0.0566 | CE13: 0.0566 | CF13: 0.0566 | CG13: 0.0566 | CH13: 0.0566 | CI13: 0.0566 | CJ13: 0.0566 | CK13: 0.0566 | CL13: 0.0566 | CM13: 0.0566 | CN13: 0.0566 | CO13: 0.0566 | CP13: 0.0566 | CQ13: 0.0566 | CR13: 0.0566 | CS13: 0.0566 | CT13: 0.0566 | CU13: 0.0566 | CV13: 0.0566 | CW13: 0.0566 | CX13: 0.0566 | CY13: 0.0566 | CZ13: 0.0566 | DA13: 0.0566 | DB13: 0.0566 | DC13: 0.0566 | DD13: 0.0566 | DE13: 0.0566 | DF13: 0.0566 | DG13: 0.0566 | DH13: 0.0566 | DI13: 0.0566 | DJ13: 0.0566 | DK13: 0.0566 | DL13: 0.0566 | DM13: 0.0566 | DN13: 0.0566 | DO13: 0.0566 | DP13: 0.0566 | DQ13: 0.0566 | DR13: 0.0566 | DS13: 0.0566 | DT13: 0.0566 | DU13: 0.0566 | DV13: 0.0566 | DW13: 0.0566 | DX13: 0.0566 | DY13: 0.0566
B14: State Tax Rate - GULF | C14: 0.055 | D14: 0.055 | E14: 0.055 | F14: 0.055 | G14: 0.055 | H14: 0.055 | I14: 0.055 | J14: 0.055 | K14: 0.055 | L14: 0.055 | M14: 0.055 | N14: 0.055 | O14: 0.055 | P14: 0.055 | Q14: 0.055 | R14: 0.055 | S14: 0.055 | T14: 0.055 | U14: 0.055 | V14: 0.055 | W14: 0.055 | X14: 0.055 | Y14: 0.055 | Z14: 0.055 | AA14: 0.055 | AB14: 0.055 | AC14: 0.055 | AD14: 0.055 | AE14: 0.055 | AF14: 0.055 | AG14: 0.055 | AH14: 0.055 | AI14: 0.055 | AJ14: 0.055 | AK14: 0.055 | AL14: 0.055 | AM14: 0.055 | AN14: 0.055 | AO14: 0.055 | AP14: 0.055 | AQ14: 0.055 | AR14: 0.055 | AS14: 0.055 | AT14: 0.055 | AU14: 0.055 | AV14: 0.055 | AW14: 0.055 | AX14: 0.055 | AY14: 0.055 | AZ14: 0.055 | BA14: 0.055 | BB14: 0.055 | BC14: 0.055 | BD14: 0.055 | BE14: 0.055 | BF14: 0.055 | BG14: 0.055 | BH14: 0.055 | BI14: 0.055 | BJ14: 0.055 | BK14: 0.055 | BL14: 0.055 | BM14: 0.055 | BN14: 0.055 | BO14: 0.055 | BP14: 0.055 | BQ14: 0.055 | BR14: 0.055 | BS14: 0.055 | BT14: 0.055 | BU14: 0.055 | BV14: 0.055 | BW14: 0.055 | BZ14: 0.055 | CA14: 0.055 | CB14: 0.055 | CC14: 0.055 | CD14: 0.055 | CE14: 0.055 | CF14: 0.055 | CG14: 0.055 | CH14: 0.055 | CI14: 0.055 | CJ14: 0.055 | CK14: 0.055 | CL14: 0.055 | CM14: 0.055 | CN14: 0.055 | CO14: 0.055 | CP14: 0.055 | CQ14: 0.055 | CR14: 0.055 | CS14: 0.055 | CT14: 0.055 | CU14: 0.055 | CV14: 0.055 | CW14: 0.055 | CX14: 0.055 | CY14: 0.055 | CZ14: 0.055 | DA14: 0.055 | DB14: 0.055 | DC14: 0.055 | DD14: 0.055 | DE14: 0.055 | DF14: 0.055 | DG14: 0.055 | DH14: 0.055 | DI14: 0.055 | DJ14: 0.055 | DK14: 0.055 | DL14: 0.055 | DM14: 0.055 | DN14: 0.055 | DO14: 0.055 | DP14: 0.055 | DQ14: 0.055 | DR14: 0.055 | DS14: 0.055 | DT14: 0.055 | DU14: 0.055 | DV14: 0.055 | DW14: 0.055 | DX14: 0.055 | DY14: 0.055
B15: State Tax Rate - MPC | C15: 0.05 | D15: 0.05 | E15: 0.05 | F15: 0.05 | G15: 0.05 | H15: 0.05 | I15: 0.05 | J15: 0.05 | K15: 0.05 | L15: 0.05 | M15: 0.05 | N15: 0.05 | O15: 0.05 | P15: 0.05 | Q15: 0.05 | R15: 0.05 | S15: 0.05 | T15: 0.05 | U15: 0.05 | V15: 0.05 | W15: 0.05 | X15: 0.05 | Y15: 0.05 | Z15: 0.05 | AA15: 0.05 | AB15: 0.05 | AC15: 0.05 | AD15: 0.05 | AE15: 0.05 | AF15: 0.05 | AG15: 0.05 | AH15: 0.05 | AI15: 0.05 | AJ15: 0.05 | AK15: 0.05 | AL15: 0.05 | AM15: 0.05 | AN15: 0.05 | AO15: 0.05 | AP15: 0.05 | AQ15: 0.05 | AR15: 0.05 | AS15: 0.05 | AT15: 0.05 | AU15: 0.05 | AV15: 0.05 | AW15: 0.05 | AX15: 0.05 | AY15: 0.05 | AZ15: 0.05 | BA15: 0.05 | BB15: 0.05 | BC15: 0.05 | BD15: 0.05 | BE15: 0.05 | BF15: 0.05 | BG15: 0.05 | BH15: 0.05 | BI15: 0.05 | BJ15: 0.05 | BK15: 0.05 | BL15: 0.05 | BM15: 0.05 | BN15: 0.05 | BO15: 0.05 | BP15: 0.05 | BQ15: 0.05 | BR15: 0.05 | BS15: 0.05 | BT15: 0.05 | BU15: 0.05 | BV15: 0.05 | BW15: 0.05 | BZ15: 0.05 | CA15: 0.05 | CB15: 0.05 | CC15: 0.05 | CD15: 0.05 | CE15: 0.05 | CF15: 0.05 | CG15: 0.05 | CH15: 0.05 | CI15: 0.05 | CJ15: 0.05 | CK15: 0.05 | CL15: 0.05 | CM15: 0.05 | CN15: 0.05 | CO15: 0.05 | CP15: 0.05 | CQ15: 0.05 | CR15: 0.05 | CS15: 0.05 | CT15: 0.05 | CU15: 0.05 | CV15: 0.05 | CW15: 0.05 | CX15: 0.05 | CY15: 0.05 | CZ15: 0.05 | DA15: 0.05 | DB15: 0.05 | DC15: 0.05 | DD15: 0.05 | DE15: 0.05 | DF15: 0.05 | DG15: 0.05 | DH15: 0.05 | DI15: 0.05 | DJ15: 0.05 | DK15: 0.05 | DL15: 0.05 | DM15: 0.05 | DN15: 0.05 | DO15: 0.05 | DP15: 0.05 | DQ15: 0.05 | DR15: 0.05 | DS15: 0.05 | DT15: 0.05 | DU15: 0.05 | DV15: 0.05 | DW15: 0.05 | DX15: 0.05 | DY15: 0.05
B16: State Tax Rate - SAV | C16: 0.0566 | D16: 0.0566 | E16: 0.0566 | F16: 0.0566 | G16: 0.0566 | H16: 0.0566 | I16: 0.0566 | J16: 0.0566 | K16: 0.0566 | L16: 0.0566 | M16: 0.0566 | N16: 0.0566 | O16: 0.0566 | P16: 0.0566 | Q16: 0.0566 | R16: 0.0566 | S16: 0.0566 | T16: 0.0566 | U16: 0.0566 | V16: 0.0566 | W16: 0.0566 | X16: 0.0566 | Y16: 0.0566 | Z16: 0.0566 | AA16: 0.0566 | AB16: 0.0566 | AC16: 0.0566 | AD16: 0.0566 | AE16: 0.0566 | AF16: 0.0566 | AG16: 0.0566 | AH16: 0.0566 | AI16: 0.0566 | AJ16: 0.0566 | AK16: 0.0566 | AL16: 0.0566 | AM16: 0.0566 | AN16: 0.0566 | AO16: 0.0566 | AP16: 0.0566 | AQ16: 0.0566 | AR16: 0.0566 | AS16: 0.0566 | AT16: 0.0566 | AU16: 0.0566 | AV16: 0.0566 | AW16: 0.0566 | AX16: 0.0566 | AY16: 0.0566 | AZ16: 0.0566 | BA16: 0.0566 | BB16: 0.0566 | BC16: 0.0566 | BD16: 0.0566 | BE16: 0.0566 | BF16: 0.0566 | BG16: 0.0566 | BH16: 0.0566 | BI16: 0.0566 | BJ16: 0.0566 | BK16: 0.0566 | BL16: 0.0566 | BM16: 0.0566 | BN16: 0.0566 | BO16: 0.0566 | BP16: 0.0566 | BQ16: 0.0566 | BR16: 0.0566 | BS16: 0.0566 | BT16: 0.0566 | BU16: 0.0566 | BV16: 0.0566 | BW16: 0.0566 | BZ16: 0.0566 | CA16: 0.0566 | CB16: 0.0566 | CC16: 0.0566 | CD16: 0.0566 | CE16: 0.0566 | CF16: 0.0566 | CG16: 0.0566 | CH16: 0.0566 | CI16: 0.0566 | CJ16: 0.0566 | CK16: 0.0566 | CL16: 0.0566 | CM16: 0.0566 | CN16: 0.0566 | CO16: 0.0566 | CP16: 0.0566 | CQ16: 0.0566 | CR16: 0.0566 | CS16: 0.0566 | CT16: 0.0566 | CU16: 0.0566 | CV16: 0.0566 | CW16: 0.0566 | CX16: 0.0566 | CY16: 0.0566 | CZ16: 0.0566 | DA16: 0.0566 | DB16: 0.0566 | DC16: 0.0566 | DD16: 0.0566 | DE16: 0.0566 | DF16: 0.0566 | DG16: 0.0566 | DH16: 0.0566 | DI16: 0.0566 | DJ16: 0.0566 | DK16: 0.0566 | DL16: 0.0566 | DM16: 0.0566 | DN16: 0.0566 | DO16: 0.0566 | DP16: 0.0566 | DQ16: 0.0566 | DR16: 0.0566 | DS16: 0.0566 | DT16: 0.0566 | DU16: 0.0566 | DV16: 0.0566 | DW16: 0.0566 | DX16: 0.0566 | DY16: 0.0566
B17: State Tax Rate - System | C17: 0.05105 | D17: 0.05105 | E17: 0.05105 | F17: 0.05105 | G17: 0.05105 | H17: 0.05105 | I17: 0.05105 | J17: 0.05105 | K17: 0.05105 | L17: 0.05105 | M17: 0.05105 | N17: 0.05105 | O17: 0.05105 | P17: 0.05105 | Q17: 0.05105 | R17: 0.05105 | S17: 0.05105 | T17: 0.05105 | U17: 0.05105 | V17: 0.05105 | W17: 0.05105 | X17: 0.05105 | Y17: 0.05105 | Z17: 0.05105 | AA17: 0.05105 | AB17: 0.05105 | AC17: 0.05105 | AD17: 0.05105 | AE17: 0.05105 | AF17: 0.05105 | AG17: 0.05105 | AH17: 0.05105 | AI17: 0.05105 | AJ17: 0.05105 | AK17: 0.05105 | AL17: 0.05105 | AM17: 0.05105 | AN17: 0.05105 | AO17: 0.05105 | AP17: 0.05105 | AQ17: 0.05105 | AR17: 0.05105 | AS17: 0.05105 | AT17: 0.05105 | AU17: 0.05105 | AV17: 0.05105 | AW17: 0.05105 | AX17: 0.05105 | AY17: 0.05105 | AZ17: 0.05105 | BA17: 0.05105 | BB17: 0.05105 | BC17: 0.05105 | BD17: 0.05105 | BE17: 0.05105 | BF17: 0.05105 | BG17: 0.05105 | BH17: 0.05105 | BI17: 0.05105 | BJ17: 0.05105 | BK17: 0.05105 | BL17: 0.05105 | BM17: 0.05105 | BN17: 0.05105 | BO17: 0.05105 | BP17: 0.05105 | BQ17: 0.05105 | BR17: 0.05105 | BS17: 0.05105 | BT17: 0.05105 | BU17: 0.05105 | BV17: 0.05105 | BW17: 0.05105 | BZ17: 0.05105 | CA17: 0.05105 | CB17: 0.05105 | CC17: 0.05105 | CD17: 0.05105 | CE17: 0.05105 | CF17: 0.05105 | CG17: 0.05105 | CH17: 0.05105 | CI17: 0.05105 | CJ17: 0.05105 | CK17: 0.05105 | CL17: 0.05105 | CM17: 0.05105 | CN17: 0.05105 | CO17: 0.05105 | CP17: 0.05105 | CQ17: 0.05105 | CR17: 0.05105 | CS17: 0.05105 | CT17: 0.05105 | CU17: 0.05105 | CV17: 0.05105 | CW17: 0.05105 | CX17: 0.05105 | CY17: 0.05105 | CZ17: 0.05105 | DA17: 0.05105 | DB17: 0.05105 | DC17: 0.05105 | DD17: 0.05105 | DE17: 0.05105 | DF17: 0.05105 | DG17: 0.05105 | DH17: 0.05105 | DI17: 0.05105 | DJ17: 0.05105 | DK17: 0.05105 | DL17: 0.05105 | DM17: 0.05105 | DN17: 0.05105 | DO17: 0.05105 | DP17: 0.05105 | DQ17: 0.05105 | DR17: 0.05105 | DS17: 0.05105 | DT17: 0.05105 | DU17: 0.05105 | DV17: 0.05105 | DW17: 0.05105 | DX17: 0.05105 | DY17: 0.05105
B18: State Tax Rate - Off System | C18: 0.07692 | D18: 0.07692 | E18: 0.07692 | F18: 0.07692 | G18: 0.07692 | H18: 0.07692 | I18: 0.07692 | J18: 0.07692 | K18: 0.07692 | L18: 0.07692 | M18: 0.07692 | N18: 0.07692 | O18: 0.07692 | P18: 0.07692 | Q18: 0.07692 | R18: 0.07692 | S18: 0.07692 | T18: 0.07692 | U18: 0.07692 | V18: 0.07692 | W18: 0.07692 | X18: 0.07692 | Y18: 0.07692 | Z18: 0.07692 | AA18: 0.07692 | AB18: 0.07692 | AC18: 0.07692 | AD18: 0.07692 | AE18: 0.07692 | AF18: 0.07692 | AG18: 0.07692 | AH18: 0.07692 | AI18: 0.07692 | AJ18: 0.07692 | AK18: 0.07692 | AL18: 0.07692 | AM18: 0.07692 | AN18: 0.07692 | AO18: 0.07692 | AP18: 0.07692 | AQ18: 0.07692 | AR18: 0.07692 | AS18: 0.07692 | AT18: 0.07692 | AU18: 0.07692 | AV18: 0.07692 | AW18: 0.07692 | AX18: 0.07692 | AY18: 0.07692 | AZ18: 0.07692 | BA18: 0.07692 | BB18: 0.07692 | BC18: 0.07692 | BD18: 0.07692 | BE18: 0.07692 | BF18: 0.07692 | BG18: 0.07692 | BH18: 0.07692 | BI18: 0.07692 | BJ18: 0.07692 | BK18: 0.07692 | BL18: 0.07692 | BM18: 0.07692 | BN18: 0.07692 | BO18: 0.07692 | BP18: 0.07692 | BQ18: 0.07692 | BR18: 0.07692 | BS18: 0.07692 | BT18: 0.07692 | BU18: 0.07692 | BV18: 0.07692 | BW18: 0.07692 | BZ18: 0.07692 | CA18: 0.07692 | CB18: 0.07692 | CC18: 0.07692 | CD18: 0.07692 | CE18: 0.07692 | CF18: 0.07692 | CG18: 0.07692 | CH18: 0.07692 | CI18: 0.07692 | CJ18: 0.07692 | CK18: 0.07692 | CL18: 0.07692 | CM18: 0.07692 | CN18: 0.07692 | CO18: 0.07692 | CP18: 0.07692 | CQ18: 0.07692 | CR18: 0.07692 | CS18: 0.07692 | CT18: 0.07692 | CU18: 0.07692 | CV18: 0.07692 | CW18: 0.07692 | CX18: 0.07692 | CY18: 0.07692 | CZ18: 0.07692 | DA18: 0.07692 | DB18: 0.07692 | DC18: 0.07692 | DD18: 0.07692 | DE18: 0.07692 | DF18: 0.07692 | DG18: 0.07692 | DH18: 0.07692 | DI18: 0.07692 | DJ18: 0.07692 | DK18: 0.07692 | DL18: 0.07692 | DM18: 0.07692 | DN18: 0.07692 | DO18: 0.07692 | DP18: 0.07692 | DQ18: 0.07692 | DR18: 0.07692 | DS18: 0.07692 | DT18: 0.07692 | DU18: 0.07692 | DV18: 0.07692 | DW18: 0.07692 | DX18: 0.07692 | DY18: 0.07692
B19: Composite Tax Rate - APC | C19: 0.3781 | D19: 0.3781 | E19: 0.3781 | F19: 0.3781 | G19: 0.3781 | H19: 0.3781 | I19: 0.3781 | J19: 0.3781 | K19: 0.3781 | L19: 0.3781 | M19: 0.3781 | N19: 0.3781 | O19: 0.3781 | P19: 0.3781 | Q19: 0.3781 | R19: 0.3781 | S19: 0.3781 | T19: 0.3781 | U19: 0.3781 | V19: 0.3781 | W19: 0.3781 | X19: 0.3781 | Y19: 0.3781 | Z19: 0.3781 | AA19: 0.3781 | AB19: 0.3781 | AC19: 0.3781 | AD19: 0.3781 | AE19: 0.3781 | AF19: 0.3781 | AG19: 0.3781 | AH19: 0.3781 | AI19: 0.3781 | AJ19: 0.3781 | AK19: 0.3781 | AL19: 0.3781 | AM19: 0.3781 | AN19: 0.3781 | AO19: 0.3781 | AP19: 0.3781 | AQ19: 0.3781 | AR19: 0.3781 | AS19: 0.3781 | AT19: 0.3781 | AU19: 0.3781 | AV19: 0.3781 | AW19: 0.3781 | AX19: 0.3781 | AY19: 0.3781 | AZ19: 0.3781 | BA19: 0.3781 | BB19: 0.3781 | BC19: 0.3781 | BD19: 0.3781 | BE19: 0.3781 | BF19: 0.3781 | BG19: 0.3781 | BH19: 0.3781 | BI19: 0.3781 | BJ19: 0.3781 | BK19: 0.3781 | BL19: 0.3781 | BM19: 0.3781 | BN19: 0.3781 | BO19: 0.3781 | BP19: 0.3781 | BQ19: 0.3781 | BR19: 0.3781 | BS19: 0.3781 | BT19: 0.3781 | BU19: 0.3781 | BV19: 0.3781 | BW19: 0.3781 | BZ19: 0.3781 | CA19: 0.3781 | CB19: 0.3781 | CC19: 0.3781 | CD19: 0.3781 | CE19: 0.3781 | CF19: 0.3781 | CG19: 0.3781 | CH19: 0.3781 | CI19: 0.3781 | CJ19: 0.3781 | CK19: 0.3781 | CL19: 0.3781 | CM19: 0.3781 | CN19: 0.3781 | CO19: 0.3781 | CP19: 0.3781 | CQ19: 0.3781 | CR19: 0.3781 | CS19: 0.3781 | CT19: 0.3781 | CU19: 0.3781 | CV19: 0.3781 | CW19: 0.3781 | CX19: 0.3781 | CY19: 0.3781 | CZ19: 0.3781 | DA19: 0.3781 | DB19: 0.3781 | DC19: 0.3781 | DD19: 0.3781 | DE19: 0.3781 | DF19: 0.3781 | DG19: 0.3781 | DH19: 0.3781 | DI19: 0.3781 | DJ19: 0.3781 | DK19: 0.3781 | DL19: 0.3781 | DM19: 0.3781 | DN19: 0.3781 | DO19: 0.3781 | DP19: 0.3781 | DQ19: 0.3781 | DR19: 0.3781 | DS19: 0.3781 | DT19: 0.3781 | DU19: 0.3781 | DV19: 0.3781 | DW19: 0.3781 | DX19: 0.3781 | DY19: 0.3781
B20: Composite Tax Rate - GPC | C20: 0.38679 | D20: 0.38679 | E20: 0.38679 | F20: 0.38679 | G20: 0.38679 | H20: 0.38679 | I20: 0.38679 | J20: 0.38679 | K20: 0.38679 | L20: 0.38679 | M20: 0.38679 | N20: 0.38679 | O20: 0.38679 | P20: 0.38679 | Q20: 0.38679 | R20: 0.38679 | S20: 0.38679 | T20: 0.38679 | U20: 0.38679 | V20: 0.38679 | W20: 0.38679 | X20: 0.38679 | Y20: 0.38679 | Z20: 0.38679 | AA20: 0.38679 | AB20: 0.38679 | AC20: 0.38679 | AD20: 0.38679 | AE20: 0.38679 | AF20: 0.38679 | AG20: 0.38679 | AH20: 0.38679 | AI20: 0.38679 | AJ20: 0.38679 | AK20: 0.38679 | AL20: 0.38679 | AM20: 0.38679 | AN20: 0.38679 | AO20: 0.38679 | AP20: 0.38679 | AQ20: 0.38679 | AR20: 0.38679 | AS20: 0.38679 | AT20: 0.38679 | AU20: 0.38679 | AV20: 0.38679 | AW20: 0.38679 | AX20: 0.38679 | AY20: 0.38679 | AZ20: 0.38679 | BA20: 0.38679 | BB20: 0.38679 | BC20: 0.38679 | BD20: 0.38679 | BE20: 0.38679 | BF20: 0.38679 | BG20: 0.38679 | BH20: 0.38679 | BI20: 0.38679 | BJ20: 0.38679 | BK20: 0.38679 | BL20: 0.38679 | BM20: 0.38679 | BN20: 0.38679 | BO20: 0.38679 | BP20: 0.38679 | BQ20: 0.38679 | BR20: 0.38679 | BS20: 0.38679 | BT20: 0.38679 | BU20: 0.38679 | BV20: 0.38679 | BW20: 0.38679 | BZ20: 0.38679 | CA20: 0.38679 | CB20: 0.38679 | CC20: 0.38679 | CD20: 0.38679 | CE20: 0.38679 | CF20: 0.38679 | CG20: 0.38679 | CH20: 0.38679 | CI20: 0.38679 | CJ20: 0.38679 | CK20: 0.38679 | CL20: 0.38679 | CM20: 0.38679 | CN20: 0.38679 | CO20: 0.38679 | CP20: 0.38679 | CQ20: 0.38679 | CR20: 0.38679 | CS20: 0.38679 | CT20: 0.38679 | CU20: 0.38679 | CV20: 0.38679 | CW20: 0.38679 | CX20: 0.38679 | CY20: 0.38679 | CZ20: 0.38679 | DA20: 0.38679 | DB20: 0.38679 | DC20: 0.38679 | DD20: 0.38679 | DE20: 0.38679 | DF20: 0.38679 | DG20: 0.38679 | DH20: 0.38679 | DI20: 0.38679 | DJ20: 0.38679 | DK20: 0.38679 | DL20: 0.38679 | DM20: 0.38679 | DN20: 0.38679 | DO20: 0.38679 | DP20: 0.38679 | DQ20: 0.38679 | DR20: 0.38679 | DS20: 0.38679 | DT20: 0.38679 | DU20: 0.38679 | DV20: 0.38679 | DW20: 0.38679 | DX20: 0.38679 | DY20: 0.38679
B21: Composite Tax Rate - GULF | C21: 0.38575 | D21: 0.38575 | E21: 0.38575 | F21: 0.38575 | G21: 0.38575 | H21: 0.38575 | I21: 0.38575 | J21: 0.38575 | K21: 0.38575 | L21: 0.38575 | M21: 0.38575 | N21: 0.38575 | O21: 0.38575 | P21: 0.38575 | Q21: 0.38575 | R21: 0.38575 | S21: 0.38575 | T21: 0.38575 | U21: 0.38575 | V21: 0.38575 | W21: 0.38575 | X21: 0.38575 | Y21: 0.38575 | Z21: 0.38575 | AA21: 0.38575 | AB21: 0.38575 | AC21: 0.38575 | AD21: 0.38575 | AE21: 0.38575 | AF21: 0.38575 | AG21: 0.38575 | AH21: 0.38575 | AI21: 0.38575 | AJ21: 0.38575 | AK21: 0.38575 | AL21: 0.38575 | AM21: 0.38575 | AN21: 0.38575 | AO21: 0.38575 | AP21: 0.38575 | AQ21: 0.38575 | AR21: 0.38575 | AS21: 0.38575 | AT21: 0.38575 | AU21: 0.38575 | AV21: 0.38575 | AW21: 0.38575 | AX21: 0.38575 | AY21: 0.38575 | AZ21: 0.38575 | BA21: 0.38575 | BB21: 0.38575 | BC21: 0.38575 | BD21: 0.38575 | BE21: 0.38575 | BF21: 0.38575 | BG21: 0.38575 | BH21: 0.38575 | BI21: 0.38575 | BJ21: 0.38575 | BK21: 0.38575 | BL21: 0.38575 | BM21: 0.38575 | BN21: 0.38575 | BO21: 0.38575 | BP21: 0.38575 | BQ21: 0.38575 | BR21: 0.38575 | BS21: 0.38575 | BT21: 0.38575 | BU21: 0.38575 | BV21: 0.38575 | BW21: 0.38575 | BZ21: 0.38575 | CA21: 0.38575 | CB21: 0.38575 | CC21: 0.38575 | CD21: 0.38575 | CE21: 0.38575 | CF21: 0.38575 | CG21: 0.38575 | CH21: 0.38575 | CI21: 0.38575 | CJ21: 0.38575 | CK21: 0.38575 | CL21: 0.38575 | CM21: 0.38575 | CN21: 0.38575 | CO21: 0.38575 | CP21: 0.38575 | CQ21: 0.38575 | CR21: 0.38575 | CS21: 0.38575 | CT21: 0.38575 | CU21: 0.38575 | CV21: 0.38575 | CW21: 0.38575 | CX21: 0.38575 | CY21: 0.38575 | CZ21: 0.38575 | DA21: 0.38575 | DB21: 0.38575 | DC21: 0.38575 | DD21: 0.38575 | DE21: 0.38575 | DF21: 0.38575 | DG21: 0.38575 | DH21: 0.38575 | DI21: 0.38575 | DJ21: 0.38575 | DK21: 0.38575 | DL21: 0.38575 | DM21: 0.38575 | DN21: 0.38575 | DO21: 0.38575 | DP21: 0.38575 | DQ21: 0.38575 | DR21: 0.38575 | DS21: 0.38575 | DT21: 0.38575 | DU21: 0.38575 | DV21: 0.38575 | DW21: 0.38575 | DX21: 0.38575 | DY21: 0.38575
B22: Composite Tax Rate - MPC | C22: 0.3825 | D22: 0.3825 | E22: 0.3825 | F22: 0.3825 | G22: 0.3825 | H22: 0.3825 | I22: 0.3825 | J22: 0.3825 | K22: 0.3825 | L22: 0.3825 | M22: 0.3825 | N22: 0.3825 | O22: 0.3825 | P22: 0.3825 | Q22: 0.3825 | R22: 0.3825 | S22: 0.3825 | T22: 0.3825 | U22: 0.3825 | V22: 0.3825 | W22: 0.3825 | X22: 0.3825 | Y22: 0.3825 | Z22: 0.3825 | AA22: 0.3825 | AB22: 0.3825 | AC22: 0.3825 | AD22: 0.3825 | AE22: 0.3825 | AF22: 0.3825 | AG22: 0.3825 | AH22: 0.3825 | AI22: 0.3825 | AJ22: 0.3825 | AK22: 0.3825 | AL22: 0.3825 | AM22: 0.3825 | AN22: 0.3825 | AO22: 0.3825 | AP22: 0.3825 | AQ22: 0.3825 | AR22: 0.3825 | AS22: 0.3825 | AT22: 0.3825 | AU22: 0.3825 | AV22: 0.3825 | AW22: 0.3825 | AX22: 0.3825 | AY22: 0.3825 | AZ22: 0.3825 | BA22: 0.3825 | BB22: 0.3825 | BC22: 0.3825 | BD22: 0.3825 | BE22: 0.3825 | BF22: 0.3825 | BG22: 0.3825 | BH22: 0.3825 | BI22: 0.3825 | BJ22: 0.3825 | BK22: 0.3825 | BL22: 0.3825 | BM22: 0.3825 | BN22: 0.3825 | BO22: 0.3825 | BP22: 0.3825 | BQ22: 0.3825 | BR22: 0.3825 | BS22: 0.3825 | BT22: 0.3825 | BU22: 0.3825 | BV22: 0.3825 | BW22: 0.3825 | BZ22: 0.3825 | CA22: 0.3825 | CB22: 0.3825 | CC22: 0.3825 | CD22: 0.3825 | CE22: 0.3825 | CF22: 0.3825 | CG22: 0.3825 | CH22: 0.3825 | CI22: 0.3825 | CJ22: 0.3825 | CK22: 0.3825 | CL22: 0.3825 | CM22: 0.3825 | CN22: 0.3825 | CO22: 0.3825 | CP22: 0.3825 | CQ22: 0.3825 | CR22: 0.3825 | CS22: 0.3825 | CT22: 0.3825 | CU22: 0.3825 | CV22: 0.3825 | CW22: 0.3825 | CX22: 0.3825 | CY22: 0.3825 | CZ22: 0.3825 | DA22: 0.3825 | DB22: 0.3825 | DC22: 0.3825 | DD22: 0.3825 | DE22: 0.3825 | DF22: 0.3825 | DG22: 0.3825 | DH22: 0.3825 | DI22: 0.3825 | DJ22: 0.3825 | DK22: 0.3825 | DL22: 0.3825 | DM22: 0.3825 | DN22: 0.3825 | DO22: 0.3825 | DP22: 0.3825 | DQ22: 0.3825 | DR22: 0.3825 | DS22: 0.3825 | DT22: 0.3825 | DU22: 0.3825 | DV22: 0.3825 | DW22: 0.3825 | DX22: 0.3825 | DY22: 0.3825
B23: Composite Tax Rate - SAV | C23: 0.38679 | D23: 0.38679 | E23: 0.38679 | F23: 0.38679 | G23: 0.38679 | H23: 0.38679 | I23: 0.38679 | J23: 0.38679 | K23: 0.38679 | L23: 0.38679 | M23: 0.38679 | N23: 0.38679 | O23: 0.38679 | P23: 0.38679 | Q23: 0.38679 | R23: 0.38679 | S23: 0.38679 | T23: 0.38679 | U23: 0.38679 | V23: 0.38679 | W23: 0.38679 | X23: 0.38679 | Y23: 0.38679 | Z23: 0.38679 | AA23: 0.38679 | AB23: 0.38679 | AC23: 0.38679 | AD23: 0.38679 | AE23: 0.38679 | AF23: 0.38679 | AG23: 0.38679 | AH23: 0.38679 | AI23: 0.38679 | AJ23: 0.38679 | AK23: 0.38679 | AL23: 0.38679 | AM23: 0.38679 | AN23: 0.38679 | AO23: 0.38679 | AP23: 0.38679 | AQ23: 0.38679 | AR23: 0.38679 | AS23: 0.38679 | AT23: 0.38679 | AU23: 0.38679 | AV23: 0.38679 | AW23: 0.38679 | AX23: 0.38679 | AY23: 0.38679 | AZ23: 0.38679 | BA23: 0.38679 | BB23: 0.38679 | BC23: 0.38679 | BD23: 0.38679 | BE23: 0.38679 | BF23: 0.38679 | BG23: 0.38679 | BH23: 0.38679 | BI23: 0.38679 | BJ23: 0.38679 | BK23: 0.38679 | BL23: 0.38679 | BM23: 0.38679 | BN23: 0.38679 | BO23: 0.38679 | BP23: 0.38679 | BQ23: 0.38679 | BR23: 0.38679 | BS23: 0.38679 | BT23: 0.38679 | BU23: 0.38679 | BV23: 0.38679 | BW23: 0.38679 | BZ23: 0.38679 | CA23: 0.38679 | CB23: 0.38679 | CC23: 0.38679 | CD23: 0.38679 | CE23: 0.38679 | CF23: 0.38679 | CG23: 0.38679 | CH23: 0.38679 | CI23: 0.38679 | CJ23: 0.38679 | CK23: 0.38679 | CL23: 0.38679 | CM23: 0.38679 | CN23: 0.38679 | CO23: 0.38679 | CP23: 0.38679 | CQ23: 0.38679 | CR23: 0.38679 | CS23: 0.38679 | CT23: 0.38679 | CU23: 0.38679 | CV23: 0.38679 | CW23: 0.38679 | CX23: 0.38679 | CY23: 0.38679 | CZ23: 0.38679 | DA23: 0.38679 | DB23: 0.38679 | DC23: 0.38679 | DD23: 0.38679 | DE23: 0.38679 | DF23: 0.38679 | DG23: 0.38679 | DH23: 0.38679 | DI23: 0.38679 | DJ23: 0.38679 | DK23: 0.38679 | DL23: 0.38679 | DM23: 0.38679 | DN23: 0.38679 | DO23: 0.38679 | DP23: 0.38679 | DQ23: 0.38679 | DR23: 0.38679 | DS23: 0.38679 | DT23: 0.38679 | DU23: 0.38679 | DV23: 0.38679 | DW23: 0.38679 | DX23: 0.38679 | DY23: 0.38679
B24: Composite Tax Rate - System | C24: 0.38318 | D24: 0.38318 | E24: 0.38318 | F24: 0.38318 | G24: 0.38318 | H24: 0.38318 | I24: 0.38318 | J24: 0.38318 | K24: 0.38318 | L24: 0.38318 | M24: 0.38318 | N24: 0.38318 | O24: 0.38318 | P24: 0.38318 | Q24: 0.38318 | R24: 0.38318 | S24: 0.38318 | T24: 0.38318 | U24: 0.38318 | V24: 0.38318 | W24: 0.38318 | X24: 0.38318 | Y24: 0.38318 | Z24: 0.38318 | AA24: 0.38318 | AB24: 0.38318 | AC24: 0.38318 | AD24: 0.38318 | AE24: 0.38318 | AF24: 0.38318 | AG24: 0.38318 | AH24: 0.38318 | AI24: 0.38318 | AJ24: 0.38318 | AK24: 0.38318 | AL24: 0.38318 | AM24: 0.38318 | AN24: 0.38318 | AO24: 0.38318 | AP24: 0.38318 | AQ24: 0.38318 | AR24: 0.38318 | AS24: 0.38318 | AT24: 0.38318 | AU24: 0.38318 | AV24: 0.38318 | AW24: 0.38318 | AX24: 0.38318 | AY24: 0.38318 | AZ24: 0.38318 | BA24: 0.38318 | BB24: 0.38318 | BC24: 0.38318 | BD24: 0.38318 | BE24: 0.38318 | BF24: 0.38318 | BG24: 0.38318 | BH24: 0.38318 | BI24: 0.38318 | BJ24: 0.38318 | BK24: 0.38318 | BL24: 0.38318 | BM24: 0.38318 | BN24: 0.38318 | BO24: 0.38318 | BP24: 0.38318 | BQ24: 0.38318 | BR24: 0.38318 | BS24: 0.38318 | BT24: 0.38318 | BU24: 0.38318 | BV24: 0.38318 | BW24: 0.38318 | BZ24: 0.38318 | CA24: 0.38318 | CB24: 0.38318 | CC24: 0.38318 | CD24: 0.38318 | CE24: 0.38318 | CF24: 0.38318 | CG24: 0.38318 | CH24: 0.38318 | CI24: 0.38318 | CJ24: 0.38318 | CK24: 0.38318 | CL24: 0.38318 | CM24: 0.38318 | CN24: 0.38318 | CO24: 0.38318 | CP24: 0.38318 | CQ24: 0.38318 | CR24: 0.38318 | CS24: 0.38318 | CT24: 0.38318 | CU24: 0.38318 | CV24: 0.38318 | CW24: 0.38318 | CX24: 0.38318 | CY24: 0.38318 | CZ24: 0.38318 | DA24: 0.38318 | DB24: 0.38318 | DC24: 0.38318 | DD24: 0.38318 | DE24: 0.38318 | DF24: 0.38318 | DG24: 0.38318 | DH24: 0.38318 | DI24: 0.38318 | DJ24: 0.38318 | DK24: 0.38318 | DL24: 0.38318 | DM24: 0.38318 | DN24: 0.38318 | DO24: 0.38318 | DP24: 0.38318 | DQ24: 0.38318 | DR24: 0.38318 | DS24: 0.38318 | DT24: 0.38318 | DU24: 0.38318 | DV24: 0.38318 | DW24: 0.38318 | DX24: 0.38318 | DY24: 0.38318
B25: Composite Tax Rate - Off System | C25: 0.4 | D25: 0.4 | E25: 0.4 | F25: 0.4 | G25: 0.4 | H25: 0.4 | I25: 0.4 | J25: 0.4 | K25: 0.4 | L25: 0.4 | M25: 0.4 | N25: 0.4 | O25: 0.4 | P25: 0.4 | Q25: 0.4 | R25: 0.4 | S25: 0.4 | T25: 0.4 | U25: 0.4 | V25: 0.4 | W25: 0.4 | X25: 0.4 | Y25: 0.4 | Z25: 0.4 | AA25: 0.4 | AB25: 0.4 | AC25: 0.4 | AD25: 0.4 | AE25: 0.4 | AF25: 0.4 | AG25: 0.4 | AH25: 0.4 | AI25: 0.4 | AJ25: 0.4 | AK25: 0.4 | AL25: 0.4 | AM25: 0.4 | AN25: 0.4 | AO25: 0.4 | AP25: 0.4 | AQ25: 0.4 | AR25: 0.4 | AS25: 0.4 | AT25: 0.4 | AU25: 0.4 | AV25: 0.4 | AW25: 0.4 | AX25: 0.4 | AY25: 0.4 | AZ25: 0.4 | BA25: 0.4 | BB25: 0.4 | BC25: 0.4 | BD25: 0.4 | BE25: 0.4 | BF25: 0.4 | BG25: 0.4 | BH25: 0.4 | BI25: 0.4 | BJ25: 0.4 | BK25: 0.4 | BL25: 0.4 | BM25: 0.4 | BN25: 0.4 | BO25: 0.4 | BP25: 0.4 | BQ25: 0.4 | BR25: 0.4 | BS25: 0.4 | BT25: 0.4 | BU25: 0.4 | BV25: 0.4 | BW25: 0.4 | BZ25: 0.4 | CA25: 0.4 | CB25: 0.4 | CC25: 0.4 | CD25: 0.4 | CE25: 0.4 | CF25: 0.4 | CG25: 0.4 | CH25: 0.4 | CI25: 0.4 | CJ25: 0.4 | CK25: 0.4 | CL25: 0.4 | CM25: 0.4 | CN25: 0.4 | CO25: 0.4 | CP25: 0.4 | CQ25: 0.4 | CR25: 0.4 | CS25: 0.4 | CT25: 0.4 | CU25: 0.4 | CV25: 0.4 | CW25: 0.4 | CX25: 0.4 | CY25: 0.4 | CZ25: 0.4 | DA25: 0.4 | DB25: 0.4 | DC25: 0.4 | DD25: 0.4 | DE25: 0.4 | DF25: 0.4 | DG25: 0.4 | DH25: 0.4 | DI25: 0.4 | DJ25: 0.4 | DK25: 0.4 | DL25: 0.4 | DM25: 0.4 | DN25: 0.4 | DO25: 0.4 | DP25: 0.4 | DQ25: 0.4 | DR25: 0.4 | DS25: 0.4 | DT25: 0.4 | DU25: 0.4 | DV25: 0.4 | DW25: 0.4 | DX25: 0.4 | DY25: 0.4
B26: Federal Tax Rate | C26: 0.35 | D26: 0.35 | E26: 0.35 | F26: 0.35 | G26: 0.35 | H26: 0.35 | I26: 0.35 | J26: 0.35 | K26: 0.35 | L26: 0.35 | M26: 0.35 | N26: 0.35 | O26: 0.35 | P26: 0.35 | Q26: 0.35 | R26: 0.35 | S26: 0.35 | T26: 0.35 | U26: 0.35 | V26: 0.35 | W26: 0.35 | X26: 0.35 | Y26: 0.35 | Z26: 0.35 | AA26: 0.35 | AB26: 0.35 | AC26: 0.35 | AD26: 0.35 | AE26: 0.35 | AF26: 0.35 | AG26: 0.35 | AH26: 0.35 | AI26: 0.35 | AJ26: 0.35 | AK26: 0.35 | AL26: 0.35 | AM26: 0.35 | AN26: 0.35 | AO26: 0.35 | AP26: 0.35 | AQ26: 0.35 | AR26: 0.35 | AS26: 0.35 | AT26: 0.35 | AU26: 0.35 | AV26: 0.35 | AW26: 0.35 | AX26: 0.35 | AY26: 0.35 | AZ26: 0.35 | BA26: 0.35 | BB26: 0.35 | BC26: 0.35 | BD26: 0.35 | BE26: 0.35 | BF26: 0.35 | BG26: 0.35 | BH26: 0.35 | BI26: 0.35 | BJ26: 0.35 | BK26: 0.35 | BL26: 0.35 | BM26: 0.35 | BN26: 0.35 | BO26: 0.35 | BP26: 0.35 | BQ26: 0.35 | BR26: 0.35 | BS26: 0.35 | BT26: 0.35 | BU26: 0.35 | BV26: 0.35 | BW26: 0.35 | BZ26: 0.35 | CA26: 0.35 | CB26: 0.35 | CC26: 0.35 | CD26: 0.35 | CE26: 0.35 | CF26: 0.35 | CG26: 0.35 | CH26: 0.35 | CI26: 0.35 | CJ26: 0.35 | CK26: 0.35 | CL26: 0.35 | CM26: 0.35 | CN26: 0.35 | CO26: 0.35 | CP26: 0.35 | CQ26: 0.35 | CR26: 0.35 | CS26: 0.35 | CT26: 0.35 | CU26: 0.35 | CV26: 0.35 | CW26: 0.35 | CX26: 0.35 | CY26: 0.35 | CZ26: 0.35 | DA26: 0.35 | DB26: 0.35 | DC26: 0.35 | DD26: 0.35 | DE26: 0.35 | DF26: 0.35 | DG26: 0.35 | DH26: 0.35 | DI26: 0.35 | DJ26: 0.35 | DK26: 0.35 | DL26: 0.35 | DM26: 0.35 | DN26: 0.35 | DO26: 0.35 | DP26: 0.35 | DQ26: 0.35 | DR26: 0.35 | DS26: 0.35 | DT26: 0.35 | DU26: 0.35 | DV26: 0.35 | DW26: 0.35 | DX26: 0.35 | DY26: 0.35
B27: Ad Valorem Tax Rate - APC | C27: 0.0082 | D27: 0.0082 | E27: 0.0082 | F27: 0.0082 | G27: 0.0082 | H27: 0.0082 | I27: 0.0082 | J27: 0.0082 | K27: 0.0082 | L27: 0.0082 | M27: 0.0082 | N27: 0.0082 | O27: 0.0082 | P27: 0.0082 | Q27: 0.0082 | R27: 0.0082 | S27: 0.0082 | T27: 0.0082 | U27: 0.0082 | V27: 0.0082 | W27: 0.0082 | X27: 0.0082 | Y27: 0.0082 | Z27: 0.0082 | AA27: 0.0082 | AB27: 0.0082 | AC27: 0.0082 | AD27: 0.0082 | AE27: 0.0082 | AF27: 0.0082 | AG27: 0.0082 | AH27: 0.0082 | AI27: 0.0082 | AJ27: 0.0082 | AK27: 0.0082 | AL27: 0.0082 | AM27: 0.0082 | AN27: 0.0082 | AO27: 0.0082 | AP27: 0.0082 | AQ27: 0.0082 | AR27: 0.0082 | AS27: 0.0082 | AT27: 0.0082 | AU27: 0.0082 | AV27: 0.0082 | AW27: 0.0082 | AX27: 0.0082 | AY27: 0.0082 | AZ27: 0.0082 | BA27: 0.0082 | BB27: 0.0082 | BC27: 0.0082 | BD27: 0.0082 | BE27: 0.0082 | BF27: 0.0082 | BG27: 0.0082 | BH27: 0.0082 | BI27: 0.0082 | BJ27: 0.0082 | BK27: 0.0082 | BL27: 0.0082 | BM27: 0.0082 | BN27: 0.0082 | BO27: 0.0082 | BP27: 0.0082 | BQ27: 0.0082 | BR27: 0.0082 | BS27: 0.0082 | BT27: 0.0082 | BU27: 0.0082 | BV27: 0.0082 | BW27: 0.0082 | BZ27: 0.0082 | CA27: 0.0082 | CB27: 0.0082 | CC27: 0.0082 | CD27: 0.0082 | CE27: 0.0082 | CF27: 0.0082 | CG27: 0.0082 | CH27: 0.0082 | CI27: 0.0082 | CJ27: 0.0082 | CK27: 0.0082 | CL27: 0.0082 | CM27: 0.0082 | CN27: 0.0082 | CO27: 0.0082 | CP27: 0.0082 | CQ27: 0.0082 | CR27: 0.0082 | CS27: 0.0082 | CT27: 0.0082 | CU27: 0.0082 | CV27: 0.0082 | CW27: 0.0082 | CX27: 0.0082 | CY27: 0.0082 | CZ27: 0.0082 | DA27: 0.0082 | DB27: 0.0082 | DC27: 0.0082 | DD27: 0.0082 | DE27: 0.0082 | DF27: 0.0082 | DG27: 0.0082 | DH27: 0.0082 | DI27: 0.0082 | DJ27: 0.0082 | DK27: 0.0082 | DL27: 0.0082 | DM27: 0.0082 | DN27: 0.0082 | DO27: 0.0082 | DP27: 0.0082 | DQ27: 0.0082 | DR27: 0.0082 | DS27: 0.0082 | DT27: 0.0082 | DU27: 0.0082 | DV27: 0.0082 | DW27: 0.0082 | DX27: 0.0082 | DY27: 0.0082
B28: Ad Valorem Tax Rate - GPC | C28: 0.0062 | D28: 0.0062 | E28: 0.0062 | F28: 0.0062 | G28: 0.0062 | H28: 0.0062 | I28: 0.0062 | J28: 0.0062 | K28: 0.0062 | L28: 0.0062 | M28: 0.0062 | N28: 0.0062 | O28: 0.0062 | P28: 0.0062 | Q28: 0.0062 | R28: 0.0062 | S28: 0.0062 | T28: 0.0062 | U28: 0.0062 | V28: 0.0062 | W28: 0.0062 | X28: 0.0062 | Y28: 0.0062 | Z28: 0.0062 | AA28: 0.0062 | AB28: 0.0062 | AC28: 0.0062 | AD28: 0.0062 | AE28: 0.0062 | AF28: 0.0062 | AG28: 0.0062 | AH28: 0.0062 | AI28: 0.0062 | AJ28: 0.0062 | AK28: 0.0062 | AL28: 0.0062 | AM28: 0.0062 | AN28: 0.0062 | AO28: 0.0062 | AP28: 0.0062 | AQ28: 0.0062 | AR28: 0.0062 | AS28: 0.0062 | AT28: 0.0062 | AU28: 0.0062 | AV28: 0.0062 | AW28: 0.0062 | AX28: 0.0062 | AY28: 0.0062 | AZ28: 0.0062 | BA28: 0.0062 | BB28: 0.0062 | BC28: 0.0062 | BD28: 0.0062 | BE28: 0.0062 | BF28: 0.0062 | BG28: 0.0062 | BH28: 0.0062 | BI28: 0.0062 | BJ28: 0.0062 | BK28: 0.0062 | BL28: 0.0062 | BM28: 0.0062 | BN28: 0.0062 | BO28: 0.0062 | BP28: 0.0062 | BQ28: 0.0062 | BR28: 0.0062 | BS28: 0.0062 | BT28: 0.0062 | BU28: 0.0062 | BV28: 0.0062 | BW28: 0.0062 | BZ28: 0.0062 | CA28: 0.0062 | CB28: 0.0062 | CC28: 0.0062 | CD28: 0.0062 | CE28: 0.0062 | CF28: 0.0062 | CG28: 0.0062 | CH28: 0.0062 | CI28: 0.0062 | CJ28: 0.0062 | CK28: 0.0062 | CL28: 0.0062 | CM28: 0.0062 | CN28: 0.0062 | CO28: 0.0062 | CP28: 0.0062 | CQ28: 0.0062 | CR28: 0.0062 | CS28: 0.0062 | CT28: 0.0062 | CU28: 0.0062 | CV28: 0.0062 | CW28: 0.0062 | CX28: 0.0062 | CY28: 0.0062 | CZ28: 0.0062 | DA28: 0.0062 | DB28: 0.0062 | DC28: 0.0062 | DD28: 0.0062 | DE28: 0.0062 | DF28: 0.0062 | DG28: 0.0062 | DH28: 0.0062 | DI28: 0.0062 | DJ28: 0.0062 | DK28: 0.0062 | DL28: 0.0062 | DM28: 0.0062 | DN28: 0.0062 | DO28: 0.0062 | DP28: 0.0062 | DQ28: 0.0062 | DR28: 0.0062 | DS28: 0.0062 | DT28: 0.0062 | DU28: 0.0062 | DV28: 0.0062 | DW28: 0.0062 | DX28: 0.0062 | DY28: 0.0062
B29: Ad Valorem Tax Rate - GULF | C29: 0.011 | D29: 0.011 | E29: 0.011 | F29: 0.011 | G29: 0.011 | H29: 0.011 | I29: 0.011 | J29: 0.011 | K29: 0.011 | L29: 0.011 | M29: 0.011 | N29: 0.011 | O29: 0.011 | P29: 0.011 | Q29: 0.011 | R29: 0.011 | S29: 0.011 | T29: 0.011 | U29: 0.011 | V29: 0.011 | W29: 0.011 | X29: 0.011 | Y29: 0.011 | Z29: 0.011 | AA29: 0.011 | AB29: 0.011 | AC29: 0.011 | AD29: 0.011 | AE29: 0.011 | AF29: 0.011 | AG29: 0.011 | AH29: 0.011 | AI29: 0.011 | AJ29: 0.011 | AK29: 0.011 | AL29: 0.011 | AM29: 0.011 | AN29: 0.011 | AO29: 0.011 | AP29: 0.011 | AQ29: 0.011 | AR29: 0.011 | AS29: 0.011 | AT29: 0.011 | AU29: 0.011 | AV29: 0.011 | AW29: 0.011 | AX29: 0.011 | AY29: 0.011 | AZ29: 0.011 | BA29: 0.011 | BB29: 0.011 | BC29: 0.011 | BD29: 0.011 | BE29: 0.011 | BF29: 0.011 | BG29: 0.011 | BH29: 0.011 | BI29: 0.011 | BJ29: 0.011 | BK29: 0.011 | BL29: 0.011 | BM29: 0.011 | BN29: 0.011 | BO29: 0.011 | BP29: 0.011 | BQ29: 0.011 | BR29: 0.011 | BS29: 0.011 | BT29: 0.011 | BU29: 0.011 | BV29: 0.011 | BW29: 0.011 | BZ29: 0.011 | CA29: 0.011 | CB29: 0.011 | CC29: 0.011 | CD29: 0.011 | CE29: 0.011 | CF29: 0.011 | CG29: 0.011 | CH29: 0.011 | CI29: 0.011 | CJ29: 0.011 | CK29: 0.011 | CL29: 0.011 | CM29: 0.011 | CN29: 0.011 | CO29: 0.011 | CP29: 0.011 | CQ29: 0.011 | CR29: 0.011 | CS29: 0.011 | CT29: 0.011 | CU29: 0.011 | CV29: 0.011 | CW29: 0.011 | CX29: 0.011 | CY29: 0.011 | CZ29: 0.011 | DA29: 0.011 | DB29: 0.011 | DC29: 0.011 | DD29: 0.011 | DE29: 0.011 | DF29: 0.011 | DG29: 0.011 | DH29: 0.011 | DI29: 0.011 | DJ29: 0.011 | DK29: 0.011 | DL29: 0.011 | DM29: 0.011 | DN29: 0.011 | DO29: 0.011 | DP29: 0.011 | DQ29: 0.011 | DR29: 0.011 | DS29: 0.011 | DT29: 0.011 | DU29: 0.011 | DV29: 0.011 | DW29: 0.011 | DX29: 0.011 | DY29: 0.011
B30: Ad Valorem Tax Rate - MPC | C30: 0.0202 | D30: 0.0202 | E30: 0.0202 | F30: 0.0202 | G30: 0.0202 | H30: 0.0202 | I30: 0.0202 | J30: 0.0202 | K30: 0.0202 | L30: 0.0202 | M30: 0.0202 | N30: 0.0202 | O30: 0.0202 | P30: 0.0202 | Q30: 0.0202 | R30: 0.0202 | S30: 0.0202 | T30: 0.0202 | U30: 0.0202 | V30: 0.0202 | W30: 0.0202 | X30: 0.0202 | Y30: 0.0202 | Z30: 0.0202 | AA30: 0.0202 | AB30: 0.0202 | AC30: 0.0202 | AD30: 0.0202 | AE30: 0.0202 | AF30: 0.0202 | AG30: 0.0202 | AH30: 0.0202 | AI30: 0.0202 | AJ30: 0.0202 | AK30: 0.0202 | AL30: 0.0202 | AM30: 0.0202 | AN30: 0.0202 | AO30: 0.0202 | AP30: 0.0202 | AQ30: 0.0202 | AR30: 0.0202 | AS30: 0.0202 | AT30: 0.0202 | AU30: 0.0202 | AV30: 0.0202 | AW30: 0.0202 | AX30: 0.0202 | AY30: 0.0202 | AZ30: 0.0202 | BA30: 0.0202 | BB30: 0.0202 | BC30: 0.0202 | BD30: 0.0202 | BE30: 0.0202 | BF30: 0.0202 | BG30: 0.0202 | BH30: 0.0202 | BI30: 0.0202 | BJ30: 0.0202 | BK30: 0.0202 | BL30: 0.0202 | BM30: 0.0202 | BN30: 0.0202 | BO30: 0.0202 | BP30: 0.0202 | BQ30: 0.0202 | BR30: 0.0202 | BS30: 0.0202 | BT30: 0.0202 | BU30: 0.0202 | BV30: 0.0202 | BW30: 0.0202 | BZ30: 0.0202 | CA30: 0.0202 | CB30: 0.0202 | CC30: 0.0202 | CD30: 0.0202 | CE30: 0.0202 | CF30: 0.0202 | CG30: 0.0202 | CH30: 0.0202 | CI30: 0.0202 | CJ30: 0.0202 | CK30: 0.0202 | CL30: 0.0202 | CM30: 0.0202 | CN30: 0.0202 | CO30: 0.0202 | CP30: 0.0202 | CQ30: 0.0202 | CR30: 0.0202 | CS30: 0.0202 | CT30: 0.0202 | CU30: 0.0202 | CV30: 0.0202 | CW30: 0.0202 | CX30: 0.0202 | CY30: 0.0202 | CZ30: 0.0202 | DA30: 0.0202 | DB30: 0.0202 | DC30: 0.0202 | DD30: 0.0202 | DE30: 0.0202 | DF30: 0.0202 | DG30: 0.0202 | DH30: 0.0202 | DI30: 0.0202 | DJ30: 0.0202 | DK30: 0.0202 | DL30: 0.0202 | DM30: 0.0202 | DN30: 0.0202 | DO30: 0.0202 | DP30: 0.0202 | DQ30: 0.0202 | DR30: 0.0202 | DS30: 0.0202 | DT30: 0.0202 | DU30: 0.0202 | DV30: 0.0202 | DW30: 0.0202 | DX30: 0.0202 | DY30: 0.0202
B31: Ad Valorem Tax Rate - SAV | C31: 0.01 | D31: 0.01 | E31: 0.01 | F31: 0.01 | G31: 0.01 | H31: 0.01 | I31: 0.01 | J31: 0.01 | K31: 0.01 | L31: 0.01 | M31: 0.01 | N31: 0.01 | O31: 0.01 | P31: 0.01 | Q31: 0.01 | R31: 0.01 | S31: 0.01 | T31: 0.01 | U31: 0.01 | V31: 0.01 | W31: 0.01 | X31: 0.01 | Y31: 0.01 | Z31: 0.01 | AA31: 0.01 | AB31: 0.01 | AC31: 0.01 | AD31: 0.01 | AE31: 0.01 | AF31: 0.01 | AG31: 0.01 | AH31: 0.01 | AI31: 0.01 | AJ31: 0.01 | AK31: 0.01 | AL31: 0.01 | AM31: 0.01 | AN31: 0.01 | AO31: 0.01 | AP31: 0.01 | AQ31: 0.01 | AR31: 0.01 | AS31: 0.01 | AT31: 0.01 | AU31: 0.01 | AV31: 0.01 | AW31: 0.01 | AX31: 0.01 | AY31: 0.01 | AZ31: 0.01 | BA31: 0.01 | BB31: 0.01 | BC31: 0.01 | BD31: 0.01 | BE31: 0.01 | BF31: 0.01 | BG31: 0.01 | BH31: 0.01 | BI31: 0.01 | BJ31: 0.01 | BK31: 0.01 | BL31: 0.01 | BM31: 0.01 | BN31: 0.01 | BO31: 0.01 | BP31: 0.01 | BQ31: 0.01 | BR31: 0.01 | BS31: 0.01 | BT31: 0.01 | BU31: 0.01 | BV31: 0.01 | BW31: 0.01 | BZ31: 0.01 | CA31: 0.01 | CB31: 0.01 | CC31: 0.01 | CD31: 0.01 | CE31: 0.01 | CF31: 0.01 | CG31: 0.01 | CH31: 0.01 | CI31: 0.01 | CJ31: 0.01 | CK31: 0.01 | CL31: 0.01 | CM31: 0.01 | CN31: 0.01 | CO31: 0.01 | CP31: 0.01 | CQ31: 0.01 | CR31: 0.01 | CS31: 0.01 | CT31: 0.01 | CU31: 0.01 | CV31: 0.01 | CW31: 0.01 | CX31: 0.01 | CY31: 0.01 | CZ31: 0.01 | DA31: 0.01 | DB31: 0.01 | DC31: 0.01 | DD31: 0.01 | DE31: 0.01 | DF31: 0.01 | DG31: 0.01 | DH31: 0.01 | DI31: 0.01 | DJ31: 0.01 | DK31: 0.01 | DL31: 0.01 | DM31: 0.01 | DN31: 0.01 | DO31: 0.01 | DP31: 0.01 | DQ31: 0.01 | DR31: 0.01 | DS31: 0.01 | DT31: 0.01 | DU31: 0.01 | DV31: 0.01 | DW31: 0.01 | DX31: 0.01 | DY31: 0.01
B32: Ad Valorem Tax Rate - System | C32: 0.00867 | D32: 0.00867 | E32: 0.00867 | F32: 0.00867 | G32: 0.00867 | H32: 0.00867 | I32: 0.00867 | J32: 0.00867 | K32: 0.00867 | L32: 0.00867 | M32: 0.00867 | N32: 0.00867 | O32: 0.00867 | P32: 0.00867 | Q32: 0.00867 | R32: 0.00867 | S32: 0.00867 | T32: 0.00867 | U32: 0.00867 | V32: 0.00867 | W32: 0.00867 | X32: 0.00867 | Y32: 0.00867 | Z32: 0.00867 | AA32: 0.00867 | AB32: 0.00867 | AC32: 0.00867 | AD32: 0.00867 | AE32: 0.00867 | AF32: 0.00867 | AG32: 0.00867 | AH32: 0.00867 | AI32: 0.00867 | AJ32: 0.00867 | AK32: 0.00867 | AL32: 0.00867 | AM32: 0.00867 | AN32: 0.00867 | AO32: 0.00867 | AP32: 0.00867 | AQ32: 0.00867 | AR32: 0.00867 | AS32: 0.00867 | AT32: 0.00867 | AU32: 0.00867 | AV32: 0.00867 | AW32: 0.00867 | AX32: 0.00867 | AY32: 0.00867 | AZ32: 0.00867 | BA32: 0.00867 | BB32: 0.00867 | BC32: 0.00867 | BD32: 0.00867 | BE32: 0.00867 | BF32: 0.00867 | BG32: 0.00867 | BH32: 0.00867 | BI32: 0.00867 | BJ32: 0.00867 | BK32: 0.00867 | BL32: 0.00867 | BM32: 0.00867 | BN32: 0.00867 | BO32: 0.00867 | BP32: 0.00867 | BQ32: 0.00867 | BR32: 0.00867 | BS32: 0.00867 | BT32: 0.00867 | BU32: 0.00867 | BV32: 0.00867 | BW32: 0.00867 | BZ32: 0.00867 | CA32: 0.00867 | CB32: 0.00867 | CC32: 0.00867 | CD32: 0.00867 | CE32: 0.00867 | CF32: 0.00867 | CG32: 0.00867 | CH32: 0.00867 | CI32: 0.00867 | CJ32: 0.00867 | CK32: 0.00867 | CL32: 0.00867 | CM32: 0.00867 | CN32: 0.00867 | CO32: 0.00867 | CP32: 0.00867 | CQ32: 0.00867 | CR32: 0.00867 | CS32: 0.00867 | CT32: 0.00867 | CU32: 0.00867 | CV32: 0.00867 | CW32: 0.00867 | CX32: 0.00867 | CY32: 0.00867 | CZ32: 0.00867 | DA32: 0.00867 | DB32: 0.00867 | DC32: 0.00867 | DD32: 0.00867 | DE32: 0.00867 | DF32: 0.00867 | DG32: 0.00867 | DH32: 0.00867 | DI32: 0.00867 | DJ32: 0.00867 | DK32: 0.00867 | DL32: 0.00867 | DM32: 0.00867 | DN32: 0.00867 | DO32: 0.00867 | DP32: 0.00867 | DQ32: 0.00867 | DR32: 0.00867 | DS32: 0.00867 | DT32: 0.00867 | DU32: 0.00867 | DV32: 0.00867 | DW32: 0.00867 | DX32: 0.00867 | DY32: 0.00867
B33: Ad Valorem Tax Rate - Off System | C33: 0.01218 | D33: 0.01218 | E33: 0.01218 | F33: 0.01218 | G33: 0.01218 | H33: 0.01218 | I33: 0.01218 | J33: 0.01218 | K33: 0.01218 | L33: 0.01218 | M33: 0.01218 | N33: 0.01218 | O33: 0.01218 | P33: 0.01218 | Q33: 0.01218 | R33: 0.01218 | S33: 0.01218 | T33: 0.01218 | U33: 0.01218 | V33: 0.01218 | W33: 0.01218 | X33: 0.01218 | Y33: 0.01218 | Z33: 0.01218 | AA33: 0.01218 | AB33: 0.01218 | AC33: 0.01218 | AD33: 0.01218 | AE33: 0.01218 | AF33: 0.01218 | AG33: 0.01218 | AH33: 0.01218 | AI33: 0.01218 | AJ33: 0.01218 | AK33: 0.01218 | AL33: 0.01218 | AM33: 0.01218 | AN33: 0.01218 | AO33: 0.01218 | AP33: 0.01218 | AQ33: 0.01218 | AR33: 0.01218 | AS33: 0.01218 | AT33: 0.01218 | AU33: 0.01218 | AV33: 0.01218 | AW33: 0.01218 | AX33: 0.01218 | AY33: 0.01218 | AZ33: 0.01218 | BA33: 0.01218 | BB33: 0.01218 | BC33: 0.01218 | BD33: 0.01218 | BE33: 0.01218 | BF33: 0.01218 | BG33: 0.01218 | BH33: 0.01218 | BI33: 0.01218 | BJ33: 0.01218 | BK33: 0.01218 | BL33: 0.01218 | BM33: 0.01218 | BN33: 0.01218 | BO33: 0.01218 | BP33: 0.01218 | BQ33: 0.01218 | BR33: 0.01218 | BS33: 0.01218 | BT33: 0.01218 | BU33: 0.01218 | BV33: 0.01218 | BW33: 0.01218 | BZ33: 0.01218 | CA33: 0.01218 | CB33: 0.01218 | CC33: 0.01218 | CD33: 0.01218 | CE33: 0.01218 | CF33: 0.01218 | CG33: 0.01218 | CH33: 0.01218 | CI33: 0.01218 | CJ33: 0.01218 | CK33: 0.01218 | CL33: 0.01218 | CM33: 0.01218 | CN33: 0.01218 | CO33: 0.01218 | CP33: 0.01218 | CQ33: 0.01218 | CR33: 0.01218 | CS33: 0.01218 | CT33: 0.01218 | CU33: 0.01218 | CV33: 0.01218 | CW33: 0.01218 | CX33: 0.01218 | CY33: 0.01218 | CZ33: 0.01218 | DA33: 0.01218 | DB33: 0.01218 | DC33: 0.01218 | DD33: 0.01218 | DE33: 0.01218 | DF33: 0.01218 | DG33: 0.01218 | DH33: 0.01218 | DI33: 0.01218 | DJ33: 0.01218 | DK33: 0.01218 | DL33: 0.01218 | DM33: 0.01218 | DN33: 0.01218 | DO33: 0.01218 | DP33: 0.01218 | DQ33: 0.01218 | DR33: 0.01218 | DS33: 0.01218 | DT33: 0.01218 | DU33: 0.01218 | DV33: 0.01218 | DW33: 0.01218 | DX33: 0.01218 | DY33: 0.01218
A35: Rate Tables
A36: Tax Depreciation Table
B37: Tax Life | C37: Total | D37: Year 1 | E37: Year 2 | F37: Year 3 | G37: Year 4 | H37: Year 5 | I37: Year 6 | J37: Year 7 | K37: Year 8 | L37: Year 9 | M37: Year 10 | N37: Year 11 | O37: Year 12 | P37: Year 13 | Q37: Year 14 | R37: Year 15 | S37: Year 16 | T37: Year 17 | U37: Year 18 | V37: Year 19 | W37: Year 20 | X37: Year 21 | Y37: Year 22 | Z37: Year 23 | AA37: Year 24 | AB37: Year 25 | AC37: Year 26 | AD37: Year 27 | AE37: Year 28 | AF37: Year 29 | AG37: Year 30 | AH37: Year 31 | AI37: Year 32 | AJ37: Year 33 | AK37: Year 34 | AL37: Year 35 | AM37: Year 36 | AN37: Year 37 | AO37: Year 38 | AP37: Year 39 | AQ37: Year 40 | AR37: Year 41
B38: 3 Year MACRS | C38: 1 | D38: 0.33333 | E38: 0.44445 | F38: 0.14815 | G38: 0.07407
B39: 5 Year MACRS | C39: 1 | D39: 0.2 | E39: 0.32 | F39: 0.192 | G39: 0.1152 | H39: 0.1152 | I39: 0.0576
B40: 7 Year MACRS | C40: 1 | D40: 0.14286 | E40: 0.2449 | F40: 0.17493 | G40: 0.12495 | H40: 0.08925 | I40: 0.08924 | J40: 0.08925 | K40: 0.04462
B41: 10 Year MACRS | C41: 1 | D41: 0.1 | E41: 0.18 | F41: 0.144 | G41: 0.1152 | H41: 0.09216 | I41: 0.07373 | J41: 0.06554 | K41: 0.06553 | L41: 0.06554 | M41: 0.06553 | N41: 0.03277
B42: 15 Year MACRS | C42: 1 | D42: 0.05 | E42: 0.095 | F42: 0.0855 | G42: 0.07695 | H42: 0.06926 | I42: 0.06233 | J42: 0.05905 | K42: 0.05905 | L42: 0.05905 | M42: 0.05905 | N42: 0.05905 | O42: 0.05905 | P42: 0.05905 | Q42: 0.05904 | R42: 0.05905 | S42: 0.02952
B43: 20 Year MACRS | C43: 1 | D43: 0.0375 | E43: 0.07219 | F43: 0.06677 | G43: 0.06177 | H43: 0.05713 | I43: 0.05285 | J43: 0.04888 | K43: 0.04522 | L43: 0.04462 | M43: 0.04461 | N43: 0.04462 | O43: 0.04461 | P43: 0.04462 | Q43: 0.04461 | R43: 0.04462 | S43: 0.04461 | T43: 0.04462 | U43: 0.04461 | V43: 0.04462 | W43: 0.04461 | X43: 0.02231
B44: 20 Year MACRS mod for LTSA | C44: 0
B45: 39 Year MACRS | C45: 1 | D45: 0.01284 | E45: 0.02564 | F45: 0.02564 | G45: 0.02564 | H45: 0.02564 | I45: 0.02564 | J45: 0.02564 | K45: 0.02564 | L45: 0.02564 | M45: 0.02564 | N45: 0.02564 | O45: 0.02564 | P45: 0.02564 | Q45: 0.02564 | R45: 0.02564 | S45: 0.02564 | T45: 0.02564 | U45: 0.02564 | V45: 0.02564 | W45: 0.02564 | X45: 0.02564 | Y45: 0.02564 | Z45: 0.02564 | AA45: 0.02564 | AB45: 0.02564 | AC45: 0.02564 | AD45: 0.02564 | AE45: 0.02564 | AF45: 0.02564 | AG45: 0.02564 | AH45: 0.02564 | AI45: 0.02564 | AJ45: 0.02564 | AK45: 0.02564 | AL45: 0.02564 | AM45: 0.02564 | AN45: 0.02564 | AO45: 0.02564 | AP45: 0.02564 | AQ45: 0.01284
A48: Rate Tables
B50: Period | C50: =C10 -> 2004-12-31 | D50: 2005-01-31 | E50: 2005-02-28 | F50: 2005-03-31 | G50: 2005-04-30 | H50: 2005-05-31 | I50: 2005-06-30 | J50: 2005-07-31 | K50: 2005-08-31 | L50: 2005-09-30 | M50: 2005-10-31 | N50: 2005-11-30 | O50: 2005-12-31 | P50: 2006-01-31 | Q50: 2006-02-28 | R50: 2006-03-31 | S50: 2006-04-30 | T50: 2006-05-31 | U50: 2006-06-30 | V50: 2006-07-31 | W50: 2006-08-31 | X50: 2006-09-30 | Y50: 2006-10-31 | Z50: 2006-11-30 | AA50: 2006-12-31 | AB50: 2007-01-31 | AC50: 2007-02-28 | AD50: 2007-03-31 | AE50: 2007-04-30 | AF50: 2007-05-31 | AG50: 2007-06-30 | AH50: 2007-07-31 | AI50: =AI10 -> 2007-08-31 | AJ50: 2007-09-30 | AK50: 2007-10-31 | AL50: 2007-11-30 | AM50: 2007-12-31 | AN50: 2008-01-31 | AO50: 2008-02-29 | AP50: 2008-03-31 | AQ50: 2008-04-30 | AR50: 2008-05-31 | AS50: 2008-06-30 | AT50: 2008-07-31 | AU50: 2008-08-31 | AV50: 2008-09-30 | AW50: 2008-10-31 | AX50: 2008-11-30 | AY50: 2008-12-31 | AZ50: 2009-01-31 | BA50: 2009-02-28 | BB50: 2009-03-31 | BC50: 2009-04-30 | BD50: 2009-05-31 | BE50: 2009-06-30 | BF50: 2009-07-31 | BG50: 2009-08-31 | BH50: 2009-09-30 | BI50: 2009-10-31 | BJ50: 2009-11-30 | BK50: 2009-12-31 | BL50: 2010-01-31 | BM50: 2010-02-28 | BN50: 2010-03-31 | BO50: =BO10 -> 2010-04-30 | BP50: 2010-05-31 | BQ50: 2010-06-30 | BR50: 2010-07-31 | BS50: 2010-08-31 | BT50: 2010-09-30 | BU50: 2010-10-31 | BV50: 2010-11-30 | BW50: 2010-12-31 | BZ50: =BZ10 -> 2004-12-31 | CA50: 2005-12-31 | CB50: 2006-12-31 | CC50: 2007-12-31 | CD50: 2008-12-31 | CE50: 2009-12-31 | CF50: 2010-12-31 | CG50: 2011-12-31 | CH50: 2012-12-31 | CI50: 2013-12-31 | CJ50: 2014-12-31 | CK50: 2015-12-31 | CL50: 2016-12-31 | CM50: 2017-12-31 | CN50: 2018-12-31 | CO50: 2019-12-31 | CP50: 2020-12-31 | CQ50: 2021-12-31 | CR50: 2022-12-31 | CS50: 2023-12-31 | CT50: 2024-12-31 | CU50: 2025-12-31 | CV50: 2026-12-31 | CW50: 2027-12-31 | CX50: 2028-12-31 | CY50: 2029-12-31 | CZ50: 2030-12-31 | DA50: 2031-12-31 | DB50: 2032-12-31 | DC50: 2033-12-31 | DD50: 2034-12-31 | DE50: 2035-12-31 | DF50: =DF10 -> 2036-12-31 | DG50: 2037-12-31 | DH50: 2038-12-31 | DI50: 2039-12-31 | DJ50: 2040-12-31 | DK50: 2041-12-31 | DL50: 2042-12-31 | DM50: 2043-12-31 | DN50: 2044-12-31 | DO50: 2045-12-31 | DP50: 2046-12-31 | DQ50: 2047-12-31 | DR50: 2048-12-31 | DS50: 2049-12-31 | DT50: 2050-12-31 | DU50: 2051-12-31 | DV50: 2052-12-31 | DW50: 2053-12-31 | DX50: 2054-12-31 | DY50: 2055-12-31
C51: DEC | D51: JAN | E51: FEB | F51: MAR | G51: APR | H51: MAY | I51: JUN | J51: JUL | K51: AUG | L51: SEP | M51: OCT | N51: NOV | O51: DEC | P51: JAN | Q51: FEB | R51: MAR | S51: APR | T51: MAY | U51: JUN | V51: JUL | W51: AUG | X51: SEP | Y51: OCT | Z51: NOV | AA51: DEC | AB51: JAN | AC51: FEB | AD51: MAR | AE51: APR | AF51: MAY | AG51: JUN | AH51: JUL | AI51: AUG | AJ51: SEP | AK51: OCT | AL51: NOV | AM51: DEC | AN51: JAN | AO51: FEB | AP51: MAR | AQ51: APR | AR51: MAY | AS51: JUN | AT51: JUL | AU51: AUG | AV51: SEP | AW51: OCT | AX51: NOV | AY51: DEC | AZ51: JAN | BA51: FEB | BB51: MAR | BC51: APR | BD51: MAY | BE51: JUN | BF51: JUL | BG51: AUG | BH51: SEP | BI51: OCT | BJ51: NOV | BK51: DEC | BL51: JAN | BM51: FEB | BN51: MAR | BO51: APR | BP51: MAY | BQ51: JUN | BR51: JUL | BS51: AUG | BT51: SEP | BU51: OCT | BV51: NOV | BW51: DEC | BZ51: TOTAL | CA51: TOTAL | CB51: TOTAL | CC51: TOTAL | CD51: TOTAL | CE51: TOTAL | CF51: TOTAL | CG51: TOTAL | CH51: TOTAL | CI51: TOTAL | CJ51: TOTAL | CK51: TOTAL | CL51: TOTAL | CM51: TOTAL | CN51: TOTAL | CO51: TOTAL | CP51: TOTAL | CQ51: TOTAL | CR51: TOTAL | CS51: TOTAL | CT51: TOTAL | CU51: TOTAL | CV51: TOTAL | CW51: TOTAL | CX51: TOTAL | CY51: TOTAL | CZ51: TOTAL | DA51: TOTAL | DB51: TOTAL | DC51: TOTAL | DD51: TOTAL | DE51: TOTAL | DF51: TOTAL | DG51: TOTAL | DH51: TOTAL | DI51: TOTAL | DJ51: TOTAL | DK51: TOTAL | DL51: TOTAL | DM51: TOTAL | DN51: TOTAL | DO51: TOTAL | DP51: TOTAL | DQ51: TOTAL | DR51: TOTAL | DS51: TOTAL | DT51: TOTAL | DU51: TOTAL | DV51: TOTAL | DW51: TOTAL | DX51: TOTAL | DY51: TOTAL
B52: Long Term Debt Interest Rate | C52: 0.09 | D52: 0.09 | E52: 0.09 | F52: 0.09 | G52: 0.09 | H52: 0.09 | I52: 0.09 | J52: 0.09 | K52: 0.09 | L52: 0.09 | M52: 0.09 | N52: 0.09 | O52: 0.09 | P52: 0.09 | Q52: 0.09 | R52: 0.09 | S52: 0.09 | T52: 0.09 | U52: 0.09 | V52: 0.09 | W52: 0.09 | X52: 0.09 | Y52: 0.09 | Z52: 0.09 | AA52: 0.09 | AB52: 0.09 | AC52: 0.09 | AD52: 0.09 | AE52: 0.09 | AF52: 0.09 | AG52: 0.09 | AH52: 0.09 | AI52: 0.09 | AJ52: 0.09 | AK52: 0.09 | AL52: 0.09 | AM52: 0.09 | AN52: 0.09 | AO52: 0.09 | AP52: 0.09 | AQ52: 0.09 | AR52: 0.09 | AS52: 0.09 | AT52: 0.09 | AU52: 0.09 | AV52: 0.09 | AW52: 0.09 | AX52: 0.09 | AY52: 0.09 | AZ52: 0.09 | BA52: 0.09 | BB52: 0.09 | BC52: 0.09 | BD52: 0.09 | BE52: 0.09 | BF52: 0.09 | BG52: 0.09 | BH52: 0.09 | BI52: 0.09 | BJ52: 0.09 | BK52: 0.09 | BL52: 0.09 | BM52: 0.09 | BN52: 0.09 | BO52: 0.09 | BP52: 0.09 | BQ52: 0.09 | BR52: 0.09 | BS52: 0.09 | BT52: 0.09 | BU52: 0.09 | BV52: 0.09 | BW52: 0.09 | BZ52: 0.09 | CA52: 0.09 | CB52: 0.09 | CC52: 0.09 | CD52: 0.09 | CE52: 0.09 | CF52: 0.09 | CG52: 0.09 | CH52: 0.09 | CI52: 0.09 | CJ52: 0.09 | CK52: 0.09 | CL52: 0.09 | CM52: 0.09 | CN52: 0.09 | CO52: 0.09 | CP52: 0.09 | CQ52: 0.09 | CR52: 0.09 | CS52: 0.09 | CT52: 0.09 | CU52: 0.09 | CV52: 0.09 | CW52: 0.09 | CX52: 0.09 | CY52: 0.09 | CZ52: 0.09 | DA52: 0.09 | DB52: 0.09 | DC52: 0.09 | DD52: 0.09 | DE52: 0.09 | DF52: 0.09 | DG52: 0.09 | DH52: 0.09 | DI52: 0.09 | DJ52: 0.09 | DK52: 0.09 | DL52: 0.09 | DM52: 0.09 | DN52: 0.09 | DO52: 0.09 | DP52: 0.09 | DQ52: 0.09 | DR52: 0.09 | DS52: 0.09 | DT52: 0.09 | DU52: 0.09 | DV52: 0.09 | DW52: 0.09 | DX52: 0.09 | DY52: 0.09
B53: Preferred Rate | C53: 0.0875 | D53: 0.0875 | E53: 0.0875 | F53: 0.0875 | G53: 0.0875 | H53: 0.0875 | I53: 0.0875 | J53: 0.0875 | K53: 0.0875 | L53: 0.0875 | M53: 0.0875 | N53: 0.0875 | O53: 0.0875 | P53: 0.0875 | Q53: 0.0875 | R53: 0.0875 | S53: 0.0875 | T53: 0.0875 | U53: 0.0875 | V53: 0.0875 | W53: 0.0875 | X53: 0.0875 | Y53: 0.0875 | Z53: 0.0875 | AA53: 0.0875 | AB53: 0.0875 | AC53: 0.0875 | AD53: 0.0875 | AE53: 0.0875 | AF53: 0.0875 | AG53: 0.0875 | AH53: 0.0875 | AI53: 0.0875 | AJ53: 0.0875 | AK53: 0.0875 | AL53: 0.0875 | AM53: 0.0875 | AN53: 0.0875 | AO53: 0.0875 | AP53: 0.0875 | AQ53: 0.0875 | AR53: 0.0875 | AS53: 0.0875 | AT53: 0.0875 | AU53: 0.0875 | AV53: 0.0875 | AW53: 0.0875 | AX53: 0.0875 | AY53: 0.0875 | AZ53: 0.0875 | BA53: 0.0875 | BB53: 0.0875 | BC53: 0.0875 | BD53: 0.0875 | BE53: 0.0875 | BF53: 0.0875 | BG53: 0.0875 | BH53: 0.0875 | BI53: 0.0875 | BJ53: 0.0875 | BK53: 0.0875 | BL53: 0.0875 | BM53: 0.0875 | BN53: 0.0875 | BO53: 0.0875 | BP53: 0.0875 | BQ53: 0.0875 | BR53: 0.0875 | BS53: 0.0875 | BT53: 0.0875 | BU53: 0.0875 | BV53: 0.0875 | BW53: 0.0875 | BZ53: 0.0875 | CA53: 0.0875 | CB53: 0.0875 | CC53: 0.0875 | CD53: 0.0875 | CE53: 0.0875 | CF53: 0.0875 | CG53: 0.0875 | CH53: 0.0875 | CI53: 0.0875 | CJ53: 0.0875 | CK53: 0.0875 | CL53: 0.0875 | CM53: 0.0875 | CN53: 0.0875 | CO53: 0.0875 | CP53: 0.0875 | CQ53: 0.0875 | CR53: 0.0875 | CS53: 0.0875 | CT53: 0.0875 | CU53: 0.0875 | CV53: 0.0875 | CW53: 0.0875 | CX53: 0.0875 | CY53: 0.0875 | CZ53: 0.0875 | DA53: 0.0875 | DB53: 0.0875 | DC53: 0.0875 | DD53: 0.0875 | DE53: 0.0875 | DF53: 0.0875 | DG53: 0.0875 | DH53: 0.0875 | DI53: 0.0875 | DJ53: 0.0875 | DK53: 0.0875 | DL53: 0.0875 | DM53: 0.0875 | DN53: 0.0875 | DO53: 0.0875 | DP53: 0.0875 | DQ53: 0.0875 | DR53: 0.0875 | DS53: 0.0875 | DT53: 0.0875 | DU53: 0.0875 | DV53: 0.0875 | DW53: 0.0875 | DX53: 0.0875 | DY53: 0.0875
B54: Trust Preferred Rate | C54: 0.0875 | D54: 0.0875 | E54: 0.0875 | F54: 0.0875 | G54: 0.0875 | H54: 0.0875 | I54: 0.0875 | J54: 0.0875 | K54: 0.0875 | L54: 0.0875 | M54: 0.0875 | N54: 0.0875 | O54: 0.0875 | P54: 0.0875 | Q54: 0.0875 | R54: 0.0875 | S54: 0.0875 | T54: 0.0875 | U54: 0.0875 | V54: 0.0875 | W54: 0.0875 | X54: 0.0875 | Y54: 0.0875 | Z54: 0.0875 | AA54: 0.0875 | AB54: 0.0875 | AC54: 0.0875 | AD54: 0.0875 | AE54: 0.0875 | AF54: 0.0875 | AG54: 0.0875 | AH54: 0.0875 | AI54: 0.0875 | AJ54: 0.0875 | AK54: 0.0875 | AL54: 0.0875 | AM54: 0.0875 | AN54: 0.0875 | AO54: 0.0875 | AP54: 0.0875 | AQ54: 0.0875 | AR54: 0.0875 | AS54: 0.0875 | AT54: 0.0875 | AU54: 0.0875 | AV54: 0.0875 | AW54: 0.0875 | AX54: 0.0875 | AY54: 0.0875 | AZ54: 0.0875 | BA54: 0.0875 | BB54: 0.0875 | BC54: 0.0875 | BD54: 0.0875 | BE54: 0.0875 | BF54: 0.0875 | BG54: 0.0875 | BH54: 0.0875 | BI54: 0.0875 | BJ54: 0.0875 | BK54: 0.0875 | BL54: 0.0875 | BM54: 0.0875 | BN54: 0.0875 | BO54: 0.0875 | BP54: 0.0875 | BQ54: 0.0875 | BR54: 0.0875 | BS54: 0.0875 | BT54: 0.0875 | BU54: 0.0875 | BV54: 0.0875 | BW54: 0.0875 | BZ54: 0.0875 | CA54: 0.0875 | CB54: 0.0875 | CC54: 0.0875 | CD54: 0.0875 | CE54: 0.0875 | CF54: 0.0875 | CG54: 0.0875 | CH54: 0.0875 | CI54: 0.0875 | CJ54: 0.0875 | CK54: 0.0875 | CL54: 0.0875 | CM54: 0.0875 | CN54: 0.0875 | CO54: 0.0875 | CP54: 0.0875 | CQ54: 0.0875 | CR54: 0.0875 | CS54: 0.0875 | CT54: 0.0875 | CU54: 0.0875 | CV54: 0.0875 | CW54: 0.0875 | CX54: 0.0875 | CY54: 0.0875 | CZ54: 0.0875 | DA54: 0.0875 | DB54: 0.0875 | DC54: 0.0875 | DD54: 0.0875 | DE54: 0.0875 | DF54: 0.0875 | DG54: 0.0875 | DH54: 0.0875 | DI54: 0.0875 | DJ54: 0.0875 | DK54: 0.0875 | DL54: 0.0875 | DM54: 0.0875 | DN54: 0.0875 | DO54: 0.0875 | DP54: 0.0875 | DQ54: 0.0875 | DR54: 0.0875 | DS54: 0.0875 | DT54: 0.0875 | DU54: 0.0875 | DV54: 0.0875 | DW54: 0.0875 | DX54: 0.0875 | DY54: 0.0875
B55: Short Term Debt Interest Rate | C55: 0.067 | D55: 0.067 | E55: 0.067 | F55: 0.067 | G55: 0.067 | H55: 0.067 | I55: 0.067 | J55: 0.067 | K55: 0.067 | L55: 0.067 | M55: 0.067 | N55: 0.067 | O55: 0.067 | P55: 0.067 | Q55: 0.067 | R55: 0.067 | S55: 0.067 | T55: 0.067 | U55: 0.067 | V55: 0.067 | W55: 0.067 | X55: 0.067 | Y55: 0.067 | Z55: 0.067 | AA55: 0.067 | AB55: 0.067 | AC55: 0.067 | AD55: 0.067 | AE55: 0.067 | AF55: 0.067 | AG55: 0.067 | AH55: 0.067 | AI55: 0.067 | AJ55: 0.067 | AK55: 0.067 | AL55: 0.067 | AM55: 0.067 | AN55: 0.067 | AO55: 0.067 | AP55: 0.067 | AQ55: 0.067 | AR55: 0.067 | AS55: 0.067 | AT55: 0.067 | AU55: 0.067 | AV55: 0.067 | AW55: 0.067 | AX55: 0.067 | AY55: 0.067 | AZ55: 0.067 | BA55: 0.067 | BB55: 0.067 | BC55: 0.067 | BD55: 0.067 | BE55: 0.067 | BF55: 0.067 | BG55: 0.067 | BH55: 0.067 | BI55: 0.067 | BJ55: 0.067 | BK55: 0.067 | BL55: 0.067 | BM55: 0.067 | BN55: 0.067 | BO55: 0.067 | BP55: 0.067 | BQ55: 0.067 | BR55: 0.067 | BS55: 0.067 | BT55: 0.067 | BU55: 0.067 | BV55: 0.067 | BW55: 0.067 | BZ55: 0.067 | CA55: 0.067 | CB55: 0.067 | CC55: 0.067 | CD55: 0.067 | CE55: 0.067 | CF55: 0.067 | CG55: 0.067 | CH55: 0.067 | CI55: 0.067 | CJ55: 0.067 | CK55: 0.067 | CL55: 0.067 | CM55: 0.067 | CN55: 0.067 | CO55: 0.067 | CP55: 0.067 | CQ55: 0.067 | CR55: 0.067 | CS55: 0.067 | CT55: 0.067 | CU55: 0.067 | CV55: 0.067 | CW55: 0.067 | CX55: 0.067 | CY55: 0.067 | CZ55: 0.067 | DA55: 0.067 | DB55: 0.067 | DC55: 0.067 | DD55: 0.067 | DE55: 0.067 | DF55: 0.067 | DG55: 0.067 | DH55: 0.067 | DI55: 0.067 | DJ55: 0.067 | DK55: 0.067 | DL55: 0.067 | DM55: 0.067 | DN55: 0.067 | DO55: 0.067 | DP55: 0.067 | DQ55: 0.067 | DR55: 0.067 | DS55: 0.067 | DT55: 0.067 | DU55: 0.067 | DV55: 0.067 | DW55: 0.067 | DX55: 0.067 | DY55: 0.067
B56: Intercompany Debt Interest Rate | C56: 0.067 | D56: 0.067 | E56: 0.067 | F56: 0.067 | G56: 0.067 | H56: 0.067 | I56: 0.067 | J56: 0.067 | K56: 0.067 | L56: 0.067 | M56: 0.067 | N56: 0.067 | O56: 0.067 | P56: 0.067 | Q56: 0.067 | R56: 0.067 | S56: 0.067 | T56: 0.067 | U56: 0.067 | V56: 0.067 | W56: 0.067 | X56: 0.067 | Y56: 0.067 | Z56: 0.067 | AA56: 0.067 | AB56: 0.067 | AC56: 0.067 | AD56: 0.067 | AE56: 0.067 | AF56: 0.067 | AG56: 0.067 | AH56: 0.067 | AI56: 0.067 | AJ56: 0.067 | AK56: 0.067 | AL56: 0.067 | AM56: 0.067 | AN56: 0.067 | AO56: 0.067 | AP56: 0.067 | AQ56: 0.067 | AR56: 0.067 | AS56: 0.067 | AT56: 0.067 | AU56: 0.067 | AV56: 0.067 | AW56: 0.067 | AX56: 0.067 | AY56: 0.067 | AZ56: 0.067 | BA56: 0.067 | BB56: 0.067 | BC56: 0.067 | BD56: 0.067 | BE56: 0.067 | BF56: 0.067 | BG56: 0.067 | BH56: 0.067 | BI56: 0.067 | BJ56: 0.067 | BK56: 0.067 | BL56: 0.067 | BM56: 0.067 | BN56: 0.067 | BO56: 0.067 | BP56: 0.067 | BQ56: 0.067 | BR56: 0.067 | BS56: 0.067 | BT56: 0.067 | BU56: 0.067 | BV56: 0.067 | BW56: 0.067 | BZ56: 0.067 | CA56: 0.067 | CB56: 0.067 | CC56: 0.067 | CD56: 0.067 | CE56: 0.067 | CF56: 0.067 | CG56: 0.067 | CH56: 0.067 | CI56: 0.067 | CJ56: 0.067 | CK56: 0.067 | CL56: 0.067 | CM56: 0.067 | CN56: 0.067 | CO56: 0.067 | CP56: 0.067 | CQ56: 0.067 | CR56: 0.067 | CS56: 0.067 | CT56: 0.067 | CU56: 0.067 | CV56: 0.067 | CW56: 0.067 | CX56: 0.067 | CY56: 0.067 | CZ56: 0.067 | DA56: 0.067 | DB56: 0.067 | DC56: 0.067 | DD56: 0.067 | DE56: 0.067 | DF56: 0.067 | DG56: 0.067 | DH56: 0.067 | DI56: 0.067 | DJ56: 0.067 | DK56: 0.067 | DL56: 0.067 | DM56: 0.067 | DN56: 0.067 | DO56: 0.067 | DP56: 0.067 | DQ56: 0.067 | DR56: 0.067 | DS56: 0.067 | DT56: 0.067 | DU56: 0.067 | DV56: 0.067 | DW56: 0.067 | DX56: 0.067 | DY56: 0.067
